{"text_format":"1","workbook":"xlsx","n_sheets":4,"sheets":["Catalog Instructions","Available UOMs","Language Not Permitted","SmartBuy Item Catalog"],"not_rendered":{"charts":0,"images":0,"macros":1,"external_links":0,"defined_names":2,"comments":0,"pivot_tables":0},"unopened":[],"bounds":{"document_bytes":16777216,"sheet_cells":100000,"rows_first":2000,"rows_last":500,"rows_between":2000,"halvings":0,"cell_chars":16384,"cell_head_chars":4096},"cells_cut":0,"cells_raw":0,"read":"whole","date_system":"1900"}

{"sheet":"Catalog Instructions","index":0,"n_rows":58,"n_cols":9,"rows_kept":58,"cut":false,"hidden":false,"merged":[[34,7,34,8],[35,7,35,8],[0,1,0,6],[1,1,1,6],[4,7,4,8],[32,7,32,8],[33,7,33,8]]}
[null,"Texas SmartBuy (TSB) Template Catalog Instructions"]
[null,"All MANDATORY fields must be completed. Failing to follow the instructions below WILL delay review of the TXMAS offer packet.\nThis catalog template is used to create and publish contract items on the Texas SmartBuy (TSB) online order system for state agencies and local governments to search for and purchase contract items. Adhering to the following guidelines will ensure a quicker review of the company's TSB item catalog and may promote higher contract usage from TXMAS customers.\nNOTE: All goods/services provided are the exact same list of goods/services that are permitted for sale per the Base contract. \nYou can hide unused columns in the catalog template, but do not move or remove columns from the catalog template.  "]
[]
[null,"Green Fields: Mandatory",null,null,"Blue Fields: Optional",null,"Grey Fields: Completed by Statewide Procurement Division (SPD)"]
[null,"Field Name","Column","Mandatory","Example Data","Max Length (In Characters)","Description of Field Use","Error Flags"]
[null,"Case Internal ID","A","Optional","123456","--","FOR INTERNAL USE ONLY - SPD will complete"]
[null,"Leave Blank","B","Optional","Y or blank","--","Only used when an item is be removed from SmartBuy."]
[null,"Item Internal ID","C","Optional","Assigned System Number","--","FOR INTERNAL USE ONLY - SPD will complete\nsystem assigned number when the item is uploaded. It is referenced when making changes to the item."]
[null,"Contractor Internal ID","D","Mandatory","Assigned System Number","--","FOR INTERNAL USE ONLY - SPD will complete"]
[null,"Contract Association Internal ID","E","Mandatory","Assigned System Number","--","FOR INTERNAL USE ONLY - SPD will complete"]
[null,"Contract Type","F","Mandatory","TXMAS","--","FOR INTERNAL USE ONLY - SPD will complete"]
[null,"Contract Number","G","Mandatory","Assigned System Number","--","FOR INTERNAL USE ONLY - SPD will complete"]
[null,"Contractor","H","Mandatory","ABC Company Inc. dba DEFG Corporation",100,"Contractor's Full Legal Name"]
[null,"Commodity Code","I","Mandatory","Same as NIGP Code (Column J in catalog template)","--","FOR INTERNAL USE ONLY - SPD will complete"]
[null,"NIGP Code","J","Mandatory","45012",5,"NIGP code requirements: \n- Exactly 5 digits long\n- May not end in 00\n- Contain no dashes\n- Must be a valid and active number per the NIGP Code listing\n- NIGP code must align with the product or service being offered\n\nReference CPA's Commodity Code Book"]
[null,"Area","K","Not Applicable","Not Applicable ","--","FOR INTERNAL USE ONLY - SPD will complete"]
[null,"Zone","L","Mandatory","ALL","--","FOR INTERNAL USE ONLY - SPD will complete"]
[null,"Highway District","M","Not Applicable","Not Applicable ","--","FOR INTERNAL USE ONLY - SPD will complete"]
[null,"TXMAS/TSB Price","N","Mandatory","150.55",10,"TXMAS/TSB Price is the price offered to TSB customers.\n\nThe price is authorized to be increased up to 1.5228% (TSB Administrative Fee) more than the Base contract price. The price cannot exceed 4 decimal spaces nor be rounded up."]
[null,"SmartBuy Price Verification","O","Optional","Formula Field\nAllowed or Exceeds Max","--","FOR INTERNAL USE ONLY\nPrice verification. Base contract price plus the 1.5228% TSB Administration Fee, truncated to 2 decimals spaces. The TXMAS Contract Price is compared to this calculation.  If the TXMAS Contract Price is less than, equal to, or up to the allowed 1.5228% of the Base Contract price, it will display \"Allowed\", if it is over it will display \"Exceeds Max\". If the amount exceeds, the pricing must be evaluated to identify and fix the issue before submitting to TXMAS Contract Development."]
[null,"Base Contract Price","P","Mandatory","200.55",10,"Base contract price provided on submitted price list from vendor.\nThe price cannot: \n- Exceed 4 decimal spaces\n- Include commas or $ sign"]
[null,"Qty Break 1-20","Q,S,U,W…","Optional","25","--","This field is used to create tiered pricing at set quantities. The number entered sets the maximum quantity for that Quantity (QTY) Break. The corresponding price for the Qty Break set is listed in the adjacent Price Break cell.\n\nExample: Qty Break 1 = order quantity from 1 to 25, Qty Break 2 = order quantity from 26 to 50, etc."]
[null,"Price Break 1-20","R,T,V,X…","Optional","140.55",10,"This field is used to create tiered pricing at set quantities. The dollar amount entered in each break sets the price for the matching Qty Break.\nThe price cannot: exceed 4 decimal spaces, include no commas or $ sign.\n\nExample: Price Break 1 = $140.55 for order quantity from 1 to 25, Price Break 2 = $130.55 for order quantity from 26 to 50, etc."]
[null,"UOM","BE","Mandatory","EACH","--","Unit of Measure (UOM) for Catalog Items\nSee tab titled - Available UOMs.\nONLY the UOMs listed are authorized to be used. The spelling for the chosen UOM MUST match exactly as shown in the UOM list."]
[null,"Qty Per UOM","BF","Optional","3 [3 gallons per case (UOM)], or\n10 [10 pens per box (UOM)], or\n12 [12 boxes per case (UOM)]",30,"Describes what is contained in the UOM if necessary."]
[null,"Min Order Qty","BG","Mandatory","4",5,"Minimum order increment amount per UOM (as listed in column BE) required to be purchased. If no minimum order required, then input \"1\" in the cell.\nRequirements:\n- Number only field\n- No dashes allowed\n- No number ranges allowed i.e. \"1-10\" or \"1 to 10\"\nExample: \"4\" = four DOZ (dozen - UOM) is the minimum purchase required."]
[null,"Order In Increment Qty","BH","Optional","4",10,"This is only used when the item can only be ordered in increments per the UOM (as listed in column BE).\n\nRequirements:\n- Number only field\n- No dashes allowed\n- No number ranges allowed i.e. \"1-10\" or \"1 to 10\"\nExample: Order Increment Qty = 4 (four cases (UOM) - item can only be purchased in increments of 4 case, 5 cases cannot be ordered."]
[null,"Delivery Days","BI","Mandatory","45",4,"The number of days for delivery after receipt of order (ARO). This should match the number of delivery days as stated in the Base Contract. If the Base Contract provides a number range (i.e. 5 to 10 days), expectation is to list the maximum number (i.e. delivery days = 10).\n\nRequirements:\n- Number only field\n- No dashes allowed\n- No number ranges allowed i.e. \"1-10\" or \"1 to 10\"\n- Must be a number value of 1 or greater"]
[null,"Item Start Date","BJ","Mandatory","8/1/2015","--","FOR INTERNAL USE ONLY - SPD will complete"]
[null,"Item End Date","BK","Mandatory","8/31/2015","--","FOR INTERNAL USE ONLY - SPD will complete"]
[null,"Supplier Part No","BL","Mandatory","AMP01X12",30,"EACH item's Supplier part number MUST BE UNIQUE.\nSupplier part number cannot include &, /, \\, or *","This color denotes a duplicate supplier part number.","This color denotes the character length has been exceeded. See column BM for character count."]
[null,"Mfgr Name","BN","Mandatory","ABC Corp.",50,"Manufacturer of the item."]
[null,"Mfgr Part No","BO","Mandatory","56D",30,"Manufacturer's item number.","This color denotes the character length has been exceeded. See column BP for character count."]
[null,"Web Store Display Name","BQ","Mandatory","Pedestal Cabinets",99,"Brief item description displayed from search results listing. The TSB search function uses this field to return contract/item search results.\nCell guidelines:\n- Text must be proper case (ALL caps is not allowed).\n- Listing only the item supplier or manufacturer part numbers is not acceptable.\n- Each item's web store display name must be unique\n- See Language Not Permitted tab for character and language limitations.","This color denotes the character length has been exceeded. See column BR for character count."]
[null,"Short Description","BS","Mandatory","Pedestal Cabinets, 2 Drawers/Box 1 File",255,"Item description that prints on the TSB Purchase Order. The TSB search function uses this field to return contract/item search results.\nCell guidelines:\n- Text must be proper case (ALL caps is not allowed).\n- Complete and clear descriptions.\n- Limit abbreviations and cut-off descriptions.\n- Marketing language is NOT allowed.\n- Listing only the item supplier or manufacturer part numbers is not acceptable.\n- See Language Not Permitted tab for character and language limitations.","This color denotes the character length has been exceeded. See column BT for character count."]
[null,"Long Description","BU","Mandatory","Pedestal Cabinets, 2 Box 1 File; 12.0w x 28.7h x 23.5d",750,"Detailed item description that is displayed when the Web Store Display Name is clicked on from the search results listing.\nThe TSB search function does not search the text in this cell.\nCell guidelines:\n- Text must be proper case (ALL caps is not allowed). \n- Complete and clear descriptions.\n- Limit abbreviations and cut-off descriptions.\n- Marketing language is NOT allowed.\n- May include any special information about freight or installation (if it is or is not included in the price).\n- Listing only the item supplier or manufacturer part numbers is not acceptable.\n- See Language Not Permitted tab for character and language limitations.","This color denotes the character length has been exceeded. See column BV for character count."]
[null,"Option 1","BW","Optional","Size:S;M;L;XL",2000,"NO SPACES between : or ;\nPrimary field for no charge Product Options. If populated, it will be mandatory for an option to be selected when the item is chosen for the shopping cart. Field must contain header and option values as shown in Example Data (37E)."]
[null,"Option 2","BX","Optional","Color:Red;Blue;Green;Yellow",2000,"NO SPACES between : or ;\nSecondary field for no charge Product Options. If populated, it will be mandatory for an option to be selected when the item is chosen for the shopping cart. Field must contain header and option values as shown in Example Data (38E)."]
[null,"Linked Items","BY","Optional","In the parent item's linked item field enter the child items supplier part number separated by (,)\n\nExample: 123arm1,123arm2,3432caster12","--","This will set up a parent child relation. The parent item is the core product/service while the child item is an attribute of the parent item. \nThese are optional items that can be added to the parent item at an additional charge.\nExample: Parent item is a chair and the optional child items are casters, arms, etc.\nCell guidelines:\n- Child items REQUIRE an individual line.\n- Child items must be set up as a complete item.\n- Child items can be associated to multiple parent items as long as the price is the same. "]
[null,"Product Picture Link","BZ","Optional","www.company.com/geo_MB_MT_TATA.jpg",300,"Item images can be added by providing a link to a picture of the product. This cannot be a link to your company's storefront and must only link to an image of the product.\nCell guidelines:\n- Picture link must be directed to the image itself and not a product description page or to your company's general website. \n- Links must end in .jpg, .jpeg, .tiff, .gif, or .png. \n- Image will display on the item detail webpage in the search results."]
[null,"UNSPSC","CA","Optional","12345678",8,"UNSPSC or NAICS code as applicable"]
[null,"NAICS","CB","Optional","123456",6,"UNSPSC or NAICS code as applicable"]
[null,"GSA SIN","CC","Optional","339113LAB","--","If GSA SIN is available it should be provided."]
[null,"Item Status","CD","Optional","Q or blank","--","FOR INTERNAL USE ONLY - SPD will complete"]
[null,"Alt Fuel Tag","CE","Optional","H, D, or E","--","FOR INTERNAL USE ONLY - SPD will complete"]
[null,"Lease Flag","CF","Optional","--","--","FOR INTERNAL USE ONLY - SPD will complete"]
[null,"Recycle Flag","CG","Optional","E1, E2, E3, or blank","--","This field may only contain one value.\nE1 = Recycled, E2 = Remanufactured, E3 = Environmentally Friendly"]
[null,"Recycle Track Flag","CH","Optional","T, V, or blank","--","This field may only contain one value.\nT = Tracked, V = Virgin"]
[null,"Hazardous Materials","CI","Optional","Y or blank","--","Y = Yes"]
[null,"Item Type","CJ","Optional","PDI, material, or Blank","--","FOR INTERNAL USE ONLY - SPD will complete\nPDI, material, or Blank\nPDI is used for quote items or anytime the quantity needs to be able to have decimal quantities."]
[null,"Search Keywords","CK","Mandatory","Short Description Example:\nSelf Stick Note Pad, 3\" x 5\", Yellow, 100 Sheets/Pad, 12 Pads/Pkg\n\nKeyword Example For This Item:\npostit,sticky pad,sticky notes,post-it,post it,postit notes,post-it notes,post it notes,adhesive notes","--","This field will improve the item's search results. Include search terms that describe the item or service.\n\nCell guidelines:\n- It is not necessary to include words that are in the Web Store Display Name and Short Description (These fields are already being searched for keywords).\n- Use a comma between each word or phrase.\n- No space before or after the comma."]
[null,"Make","CL","Optional","Ford","--","FOR INTERNAL USE ONLY - SPD will complete"]
[null,"Model","CM","Optional","F150","--","FOR INTERNAL USE ONLY - SPD will complete"]
[null,"Special Item Notes","CN","Optional","Optional",300,"Special item ordering notes that print on the PO."]
[null,"Contractor Award Number","CO","Optional",21542,"--","FOR INTERNAL USE ONLY - SPD will complete"]
[null,"Solicitation Number","CP","Optional","304T-19-070A1","--","FOR INTERNAL USE ONLY - SPD will complete"]
[]
[null,"Revised 2/2026"]

{"sheet":"Available UOMs","index":1,"n_rows":80,"n_cols":3,"rows_kept":80,"cut":false,"hidden":false,"merged":[[0,1,0,2],[2,1,2,2]]}
[null,"Texas SmartBuy Template Catalog"]
[]
[null,"Unit of Measure (UOM) for Catalog Items"]
[null,"UOM","Description"]
[null,"ACRE","Acre"]
[null,"BAG","Bag"]
[null,"BALE","Bale"]
[null,"BKT","Bucket"]
[null,"BNDL","Bundle"]
[null,"BOOK","Book"]
[null,"BOX","Box"]
[null,"BTL","Bottle"]
[null,"C","Hundred"]
[null,"CAN","Can"]
[null,"CARD","Card"]
[null,"CASE","Case"]
[null,"CNTR","Container"]
[null,"COIL","Coil"]
[null,"CRTG","Cartridge"]
[null,"CRTN","Carton"]
[null,"CUFT","Cubic Foot"]
[null,"CUYD","Cubic Yard"]
[null,"DAY","Day"]
[null,"DISC","Disc"]
[null,"DOC","Document"]
[null,"DOZ","Dozen"]
[null,"DRUM","Drum"]
[null,"DSPL","Display"]
[null,"EACH","Each"]
[null,"FIELD","Field"]
[null,"FT","Foot"]
[null,"GAL","Gallon"]
[null,"GR","Gross"]
[null,"HR","Hour"]
[null,"IMAGE","Image"]
[null,"INCH","Inch"]
[null,"JAR","Jar"]
[null,"JUG","Jug"]
[null,"KEG","Keg"]
[null,"KIT","Kit"]
[null,"LB","Pound"]
[null,"LGTH","Length"]
[null,"LINE","Line"]
[null,"LNFT","Linear Foot"]
[null,"LOT","Log"]
[null,"LTR","Liter"]
[null,"M","Thousand"]
[null,"MILE","Mile"]
[null,"MIN","Minute"]
[null,"MO","Month"]
[null,"PACK","Pack"]
[null,"PAD","Pad"]
[null,"PAGE","Page"]
[null,"PAIL","Pail"]
[null,"PKG","Package"]
[null,"PLT","Pallet"]
[null,"PR","Pair"]
[null,"PT","Pint"]
[null,"QT","Quart"]
[null,"REAM","Ream"]
[null,"REEL","Reel"]
[null,"ROLL","Roll"]
[null,"SET","Set"]
[null,"SHT","Sheet"]
[null,"SPNDL","Spindle"]
[null,"SPOOL","Spool"]
[null,"SQFT","Square foot"]
[null,"SQIN","Square inch"]
[null,"SQYD","Square Yard"]
[null,"SYR","Syringe"]
[null,"TON","Ton"]
[null,"TOTE","Tote"]
[null,"TRK","Truck"]
[null,"TUBE","Tube"]
[null,"UNIT","Unit"]
[null,"VIAL","Vial"]
[null,"Week","Week"]
[null,"WORD","Word"]
[null,"YD","Yard"]
[null,"YR","Year"]

{"sheet":"Language Not Permitted","index":2,"n_rows":138,"n_cols":2,"rows_kept":138,"cut":false,"hidden":false,"merged":[[0,0,0,1]]}
["Language Not Permitted"]
["Special Characters\n(will be removed)","Marketing Language\n(will be flagged)"]
["€"," best "]
["œ"," call "]
["°"," ever "]
["¦","!"]
["¿",".com"]
["¬","<br>"]
["Å","<div>"]
["Â","<p>"]
["â","<strong>"]
["Ã","accurate"]
["Æ","advanced"]
["š","advantage"]
["ƒ","affordable"]
["¢","affordability"]
["„","affordable"]
["¡","amazing"]
["«","amplify"]
["»","assures"]
["\"\"","attractive"]
["²","awesome"]
["˜ ","beautiful"]
["<","best value"]
[">","best-selling"]
["?","boost"]
["*","classy"]
["®","comfortable"]
["©","compliment"]
["™","consistently"]
[null,"convenient"]
[null,"cost"]
[null,"cost-efficient"]
[null,"cozy"]
[null,"cutting edge"]
[null,"delivers"]
[null,"dependable"]
[null,"discounted"]
[null,"discover"]
[null,"dramatic"]
[null,"durab"]
[null,"dynamo"]
[null,"easily"]
[null,"easy"]
[null,"economic"]
[null,"economical"]
[null,"efficient"]
[null,"effortless"]
[null,"elegant"]
[null,"elevate"]
[null,"elite"]
[null,"enduring"]
[null,"enhance"]
[null,"enjoyable"]
[null,"ensure"]
[null,"ergonomic"]
[null,"essential"]
[null,"excellent"]
[null,"exceptional"]
[null,"exciting"]
[null,"exclusive"]
[null,"extensive"]
[null,"friendly"]
[null,"great for"]
[null,"gsa"]
[null,"GSA-approved"]
[null,"guarantee"]
[null,"harness"]
[null,"high performance"]
[null,"highly"]
[null,"href"]
[null,"ideal"]
[null,"improve"]
[null,"incredible"]
[null,"innovative"]
[null,"intelligently"]
[null,"invest"]
[null,"limited"]
[null,"long-lasting"]
[null,"low-cost"]
[null,"maximize"]
[null,"new"]
[null,"one low price"]
[null,"optimal"]
[null,"optimize"]
[null,"optimum"]
[null,"outperforms"]
[null,"outstanding"]
[null,"overcomes"]
[null,"perfect"]
[null,"performance"]
[null,"pleasant"]
[null,"pleasing"]
[null,"precise"]
[null,"preferred"]
[null,"premium"]
[null,"preserves"]
[null,"prestigious"]
[null,"prevents"]
[null,"price"]
[null,"promotes"]
[null,"protects"]
[null,"proven"]
[null,"provides"]
[null,"quality"]
[null,"quickly"]
[null,"remarkabl"]
[null,"resilien"]
[null,"robust"]
[null,"roomy"]
[null,"rugged"]
[null,"safely"]
[null,"sale"]
[null,"saving"]
[null,"selling"]
[null,"significant"]
[null,"simplify"]
[null,"special"]
[null,"state-of-the-art"]
[null,"streamlin"]
[null,"strong"]
[null,"surge"]
[null,"superior"]
[null,"thoughtful"]
[null,"trouble-free"]
[null,"trust"]
[null,"ultimate"]
[null,"unbeliev"]
[null,"uncompromis"]
[null,"unlimited"]
[null,"unusual"]
[null,"upgrade"]
[null,"user friendly"]
[null,"value"]
[null,"versatil"]
[null,"vibrant"]
[null,"we'll"]
[null,"www"]

{"sheet":"SmartBuy Item Catalog","index":3,"n_rows":250003,"n_cols":94,"rows_kept":1125,"cut":true,"hidden":false,"merged":[[1,0,1,93]],"bounds":{"rows_first":500,"rows_last":125,"rows_between":500,"halvings":2}}
["Case Internal ID","Leave Blank","Item Internal ID","Contractor Internal ID","Contract Association Internal ID","Contract Type","Contract Number","Contractor","Commodity Code","NIGP Code","Area","Zone","Highway District","TXMAS/TSB Price","Texas SmartBuy Price Verification","Base Contract Price","Qty Break 1","Price Break 1","Qty Break 2","Price Break 2","Qty Break 3","Price Break 3","Qty Break 4","Price Break 4","Qty Break 5","Price Break 5","Qty Break 6","Price Break 6","Qty Break 7","Price Break 7","Qty Break 8","Price Break 8","Qty Break 9","Price Break 9","Qty Break 10","Price Break 10","Qty Break 11","Price Break 11","Qty Break 12","Price Break 12","Qty Break 13","Price Break 13","Qty Break 14","Price Break 14","Qty Break 15","Price Break 15","Qty Break 16","Price Break 16","Qty Break 17","Price Break 17","Qty Break 18","Price Break 18","Qty Break 19","Price Break 19","Qty Break 20","Price Break 20","UOM","Qty Per UOM","Min Order Qty","Order In Increment Qty","Delivery Days","Item Start Date","Item End Date","Supplier Part No"," SPN Length\n(Max 30)","Mfgr Name","Mfgr Part No","MPN Length\n(Max 30)","Web Store Display Name","WSDN Length\n(Max 99)","Short Description","SD Length\n(Max 255)","Long Description","LD Length\n(Max 750)","Option 1","Option 2","Linked Items","Product Picture Link","UNSPSC","NAICS","GSA SIN","Item Status","Alt Fuel Tag","Lease Flag","Recycle Flag","Recycle Track Flag","Hazardous Materials","Item Type","Search Keywords","Make","Model","Special Item Notes","Contractor Award Number","Solicitation Number"]
["STOP! PLEASE READ THE INSTRUCTIONS LOCATED IN THE CATALOG INSTRUCTIONS TAB BEFORE PROCEEDING WITH YOUR CATALOG.                                    STOP! PLEASE READ THE INSTRUCTIONS LOCATED IN THE CATALOG INSTRUCTIONS TAB BEFORE PROCEEDING WITH YOUR CATALOG.                                    STOP! PLEASE READ THE INSTRUCTIONS LOCATED IN THE CATALOG INSTRUCTIONS TAB BEFORE PROCEEDING WITH YOUR CATALOG.                                    STOP! PLEASE READ THE INSTRUCTIONS LOCATED IN THE CATALOG INSTRUCTIONS TAB BEFORE PROCEEDING WITH YOUR CATALOG.                                    STOP! PLEASE READ THE INSTRUCTIONS LOCATED IN THE CATALOG INSTRUCTIONS TAB BEFORE PROCEEDING WITH YOUR CATALOG.                                    STOP! PLEASE READ THE INSTRUCTIONS LOCATED IN THE CATALOG INSTRUCTIONS TAB BEFORE PROCEEDING WITH YOUR CATALOG.                                    STOP! PLEASE READ THE INSTRUCTIONS LOCATED IN THE CATALOG INSTRUCTIONS TAB BEFORE PROCEEDING WITH YOUR CATALOG.                                    STOP! PLEASE READ THE INSTRUCTIONS LOCATED IN THE CATALOG INSTRUCTIONS TAB BEFORE PROCEEDING WITH YOUR CATALOG.                                    STOP! PLEASE READ THE INSTRUCTIONS LOCATED IN THE CATALOG INSTRUCTIONS TAB BEFORE PROCEEDING WITH YOUR CATALOG.                                    STOP! PLEASE READ THE INSTRUCTIONS LOCATED IN THE CATALOG INSTRUCTIONS TAB BEFORE PROCEEDING WITH YOUR CATALOG.                                    STOP! PLEASE READ THE INSTRUCTIONS LOCATED IN THE CATALOG INSTRUCTIONS TAB BEFORE PROCEEDING WITH YOUR CATALOG.                                    STOP! PLEASE READ THE INSTRUCTIONS LOCATED IN THE CATALOG INSTRUCTIONS TAB BEFORE PROCEEDING WITH YOUR CATALOG.                                    STOP! PLEASE READ THE INSTRUCTIONS LOCATED IN THE CATALOG INSTRUCTIONS TAB BEFORE PROCEEDING WITH YOUR CATALOG.                                    STOP! PLEASE READ THE INSTRUCTIONS LOCATED IN THE CATALOG INSTRUCTIONS TAB BEFORE PROCEEDING WITH YOUR CATALOG.                                    STOP! PLEASE READ THE INSTRUCTIONS LOCATED IN THE CATALOG INSTRUCTIONS TAB BEFORE PROCEEDING WITH YOUR CATALOG.                                    STOP! PLEASE READ THE INSTRUCTIONS LOCATED IN THE CATALOG INSTRUCTIONS TAB BEFORE PROCEEDING WITH YOUR CATALOG.                                    STOP! PLEASE READ THE INSTRUCTIONS LOCATED IN THE CATALOG INSTRUCTIONS TAB BEFORE PROCEEDING WITH YOUR CATALOG.                                    STOP! PLEASE READ THE INSTRUCTIONS LOCATED IN THE CATALOG INSTRUCTIONS TAB BEFORE PROCEEDING WITH YOUR CATALOG.                                    STOP! PLEASE READ THE INSTRUCTIONS LOCATED IN THE CATALOG INSTRUCTIONS TAB BEFORE PROCEEDING WITH YOUR CATALOG.                                    STOP! PLEASE READ THE INSTRUCTIONS LOCATED IN THE CATALOG INSTRUCTIONS TAB BEFORE PROCEEDING WITH YOUR CATALOG.                                    STOP! PLEASE READ THE INSTRUCTIONS LOCATED IN THE CATALOG INSTRUCTIONS TAB BEFORE PROCEEDING WITH YOUR CATALOG.                                    STOP! PLEASE READ THE INSTRUCTIONS LOCATED IN THE CATALOG INSTRUCTIONS TAB BEFORE PROCEEDING WITH YOUR CATALOG.                                    STOP! PLEASE READ THE INSTRUCTIONS LOCATED IN THE CATALOG INSTRUCTIONS TAB BEFORE PROCEEDING WITH YOUR CATALOG.                                    STOP! PLEASE READ THE INSTRUCTIONS LOCATED IN THE CATALOG INSTRUCTIONS TAB BEFORE PROCEEDING WITH YOUR CATALOG.                                    STOP! PLEASE READ THE INSTRUCTIONS LOCATED IN THE CATALOG INSTRUCTIONS TAB BEFORE PROCEEDING WITH YOUR CATALOG.                                    STOP! PLEASE READ THE INSTRUCTIONS LOCATED IN THE CATALOG INSTRUCTIONS TAB BEFORE PROCEEDING WITH YOUR CATALOG.                                    STOP! PLEASE READ THE INSTRUCTIONS LOCATED IN THE CATALOG INSTRUCTIONS TAB BEFORE PROCEEDING WITH YOUR CATALOG.                                    STOP! PLEASE READ THE INSTRUCTIONS LOCATED IN THE CATALOG INSTRUCTIONS TAB BEFORE PROCEEDING WITH YOUR CATALOG.                                    STOP! PLEASE READ THE INSTRUCTIONS LOCATED IN THE CATALOG INSTRUCTIONS TAB BEFORE PROCEEDING WITH YOUR CATALOG.                                    STOP! PLEASE READ THE INSTRUCTIONS LOCATED IN THE CATALOG INSTRUCTIONS TAB BEFORE PROCEEDING WITH YOUR CATALOG.                                    STOP! PLEASE READ THE INSTRUCTIONS LOCATED IN THE CATALOG INSTRUCTIONS TAB BEFORE PROCEEDING WITH YOUR CATALOG.                                    STOP! PLEASE READ THE INSTRUCTIONS LOCATED IN THE CATALOG INSTRUCTIONS TAB BEFORE PROCEEDING WITH YOUR CATALOG.                                   STOP! PLEASE READ THE INSTRUCTIONS LOCATED IN THE CATALOG INSTRUCTIONS TAB BEFORE PROCEEDING WITH YOUR CATALOG.                                    STOP! PLEASE READ THE INSTRUCTIONS LOCATED IN THE CATALOG INSTRUCTIONS TAB BEFORE PROCEEDING WITH YOUR CATALOG.                                    STOP! PLEASE READ THE INSTRUCTIONS LOCATED IN THE CATALOG INSTRUCTIONS TAB BEFORE PROCEEDING WITH YOUR CATALOG.                                    STOP! PLEASE READ THE INSTRUCTIONS LOCATED IN THE CATALOG INSTRUCTIONS TAB BEFORE PROCEEDING WITH YOUR CATALOG.                                    STOP! PLEASE READ THE INSTRUCTIONS LOCATED IN THE CATALOG INSTRUCTIONS TAB BEFORE PROCEEDING WITH YOUR CATALOG.                                    STOP! PLEASE READ THE INSTRUCTIONS LOCATED IN THE CATALOG INSTRUCTIONS TAB BEFORE PROCEEDING WITH YOUR CATALOG.                                    STOP! PLEASE READ THE INSTRUCTIONS LOCATED IN THE CATALOG INSTRUCTIONS TAB BEFORE PROCEEDING WITH YOUR CATALOG.                                    STOP! PLEASE READ THE INSTRUCTIONS LOCATED IN THE CATALOG INSTRUCTIONS TAB BEFORE PROCEEDING WITH YOUR CATALOG.                                    STOP! PLEASE READ THE INSTRUCTIONS LOCATED IN THE CATALOG INSTRUCTIONS TAB BEFORE PROCEEDING WITH YOUR CATALOG.                                    "]
["Example Only- Enter Item Information Below",null,null,null,null,"TXMAS",null,"ABC Company Inc. dba DEFG Corporation",45012,"45012",null,null,null,143.15,{"$f":"IF(N3<=TRUNC(P3*1.015228,2),\"Allowed\",\"Exceeds Max\")","v":"Allowed"},141.01,25,130.55000000000001,50,120.55,null,null,null,null,null,null,null,null,null,null,null,null,null,null,null,null,null,null,null,null,null,null,null,null,null,null,null,null,null,null,null,null,null,null,null,null,"PKG","5 per package",1,null,14,null,null,"M12453",{"$f":"LEN(BL3)","v":6},"Acme","M12453",{"$f":"LEN(BO3)","v":6},"Erasable Pens",{"$f":"LEN(BQ3)","v":13},"Pen, Erasable, Retractable, Gel Ink, .7mm, Refillable",{"$f":"LEN(BS3)","v":53},"Pen, Erasable, Retractable, Gel Ink, .7mm, Refillable, Plus Freight Order Less Than $25",{"$f":"LEN(BU3)","v":87},"Color:Red;Blue;Black;Green","Point:Fine;Medium;Micro",null,"https://catalog.acme.com/wp-content/uploads/cm/620-80-95200-5-272x272.jpg",12345678,123456,null,null,null,null,null,null,null,null,"Gel Pen,Erasable Pen,retractable pen"]
[null,null,null,null,null,null,null,null,null,null,null,null,null,null,{"$f":"IF(N4<=TRUNC(P4*1.015228,2),\"Allowed\",\"Exceeds Max\")","v":"Allowed"},null,null,null,null,null,null,null,null,null,null,null,null,null,null,null,null,null,null,null,null,null,null,null,null,null,null,null,null,null,null,null,null,null,null,null,null,null,null,null,null,null,null,null,null,null,null,null,null,null,{"$f":"LEN(BL4)","v":0},null,null,{"$f":"LEN(BO4)","v":0},null,{"$f":"LEN(BQ4)","v":0},null,{"$f":"LEN(BS4)","v":0},null,{"$f":"LEN(BU4)","v":0}]
[null,null,null,null,null,null,null,null,null,null,null,null,null,null,"Allowed",null,null,null,null,null,null,null,null,null,null,null,null,null,null,null,null,null,null,null,null,null,null,null,null,null,null,null,null,null,null,null,null,null,null,null,null,null,null,null,null,null,null,null,null,null,null,null,null,null,{"$f":"LEN(BL5)","v":0},null,null,0,null,0,null,0,null,0]
[null,null,null,null,null,null,null,null,null,null,null,null,null,null,"Allowed",null,null,null,null,null,null,null,null,null,null,null,null,null,null,null,null,null,null,null,null,null,null,null,null,null,null,null,null,null,null,null,null,null,null,null,null,null,null,null,null,null,null,null,null,null,null,null,null,null,0,null,null,0,null,0,null,0,null,0]
[null,null,null,null,null,null,null,null,null,null,null,null,null,null,"Allowed",null,null,null,null,null,null,null,null,null,null,null,null,null,null,null,null,null,null,null,null,null,null,null,null,null,null,null,null,null,null,null,null,null,null,null,null,null,null,null,null,null,null,null,null,null,null,null,null,null,0,null,null,0,null,0,null,0,null,0]
[null,null,null,null,null,null,null,null,null,null,null,null,null,null,"Allowed",null,null,null,null,null,null,null,null,null,null,null,null,null,null,null,null,null,null,null,null,null,null,null,null,null,null,null,null,null,null,null,null,null,null,null,null,null,null,null,null,null,null,null,null,null,null,null,null,null,0,null,null,0,null,0,null,0,null,0]
[null,null,null,null,null,null,null,null,null,null,null,null,null,null,"Allowed",null,null,null,null,null,null,null,null,null,null,null,null,null,null,null,null,null,null,null,null,null,null,null,null,null,null,null,null,null,null,null,null,null,null,null,null,null,null,null,null,null,null,null,null,null,null,null,null,null,0,null,null,0,null,0,null,0,null,0]
[null,null,null,null,null,null,null,null,null,null,null,null,null,null,"Allowed",null,null,null,null,null,null,null,null,null,null,null,null,null,null,null,null,null,null,null,null,null,null,null,null,null,null,null,null,null,null,null,null,null,null,null,null,null,null,null,null,null,null,null,null,null,null,null,null,null,0,null,null,0,null,0,null,0,null,0]
[null,null,null,null,null,null,null,null,null,null,null,null,null,null,"Allowed",null,null,null,null,null,null,null,null,null,null,null,null,null,null,null,null,null,null,null,null,null,null,null,null,null,null,null,null,null,null,null,null,null,null,null,null,null,null,null,null,null,null,null,null,null,null,null,null,null,0,null,null,0,null,0,null,0,null,0]
[null,null,null,null,null,null,null,null,null,null,null,null,null,null,"Allowed",null,null,null,null,null,null,null,null,null,null,null,null,null,null,null,null,null,null,null,null,null,null,null,null,null,null,null,null,null,null,null,null,null,null,null,null,null,null,null,null,null,null,null,null,null,null,null,null,null,0,null,null,0,null,0,null,0,null,0]
[null,null,null,null,null,null,null,null,null,null,null,null,null,null,"Allowed",null,null,null,null,null,null,null,null,null,null,null,null,null,null,null,null,null,null,null,null,null,null,null,null,null,null,null,null,null,null,null,null,null,null,null,null,null,null,null,null,null,null,null,null,null,null,null,null,null,0,null,null,0,null,0,null,0,null,0]
[null,null,null,null,null,null,null,null,null,null,null,null,null,null,"Allowed",null,null,null,null,null,null,null,null,null,null,null,null,null,null,null,null,null,null,null,null,null,null,null,null,null,null,null,null,null,null,null,null,null,null,null,null,null,null,null,null,null,null,null,null,null,null,null,null,null,0,null,null,0,null,0,null,0,null,0]
[null,null,null,null,null,null,null,null,null,null,null,null,null,null,"Allowed",null,null,null,null,null,null,null,null,null,null,null,null,null,null,null,null,null,null,null,null,null,null,null,null,null,null,null,null,null,null,null,null,null,null,null,null,null,null,null,null,null,null,null,null,null,null,null,null,null,0,null,null,0,null,0,null,0,null,0]
[null,null,null,null,null,null,null,null,null,null,null,null,null,null,"Allowed",null,null,null,null,null,null,null,null,null,null,null,null,null,null,null,null,null,null,null,null,null,null,null,null,null,null,null,null,null,null,null,null,null,null,null,null,null,null,null,null,null,null,null,null,null,null,null,null,null,0,null,null,0,null,0,null,0,null,0]
[null,null,null,null,null,null,null,null,null,null,null,null,null,null,"Allowed",null,null,null,null,null,null,null,null,null,null,null,null,null,null,null,null,null,null,null,null,null,null,null,null,null,null,null,null,null,null,null,null,null,null,null,null,null,null,null,null,null,null,null,null,null,null,null,null,null,0,null,null,0,null,0,null,0,null,0]
[null,null,null,null,null,null,null,null,null,null,null,null,null,null,"Allowed",null,null,null,null,null,null,null,null,null,null,null,null,null,null,null,null,null,null,null,null,null,null,null,null,null,null,null,null,null,null,null,null,null,null,null,null,null,null,null,null,null,null,null,null,null,null,null,null,null,0,null,null,0,null,0,null,0,null,0]
[null,null,null,null,null,null,null,null,null,null,null,null,null,null,"Allowed",null,null,null,null,null,null,null,null,null,null,null,null,null,null,null,null,null,null,null,null,null,null,null,null,null,null,null,null,null,null,null,null,null,null,null,null,null,null,null,null,null,null,null,null,null,null,null,null,null,0,null,null,0,null,0,null,0,null,0]
[null,null,null,null,null,null,null,null,null,null,null,null,null,null,"Allowed",null,null,null,null,null,null,null,null,null,null,null,null,null,null,null,null,null,null,null,null,null,null,null,null,null,null,null,null,null,null,null,null,null,null,null,null,null,null,null,null,null,null,null,null,null,null,null,null,null,0,null,null,0,null,0,null,0,null,0]
[null,null,null,null,null,null,null,null,null,null,null,null,null,null,"Allowed",null,null,null,null,null,null,null,null,null,null,null,null,null,null,null,null,null,null,null,null,null,null,null,null,null,null,null,null,null,null,null,null,null,null,null,null,null,null,null,null,null,null,null,null,null,null,null,null,null,0,null,null,0,null,0,null,0,null,0]
[null,null,null,null,null,null,null,null,null,null,null,null,null,null,"Allowed",null,null,null,null,null,null,null,null,null,null,null,null,null,null,null,null,null,null,null,null,null,null,null,null,null,null,null,null,null,null,null,null,null,null,null,null,null,null,null,null,null,null,null,null,null,null,null,null,null,0,null,null,0,null,0,null,0,null,0]
[null,null,null,null,null,null,null,null,null,null,null,null,null,null,"Allowed",null,null,null,null,null,null,null,null,null,null,null,null,null,null,null,null,null,null,null,null,null,null,null,null,null,null,null,null,null,null,null,null,null,null,null,null,null,null,null,null,null,null,null,null,null,null,null,null,null,0,null,null,0,null,0,null,0,null,0]
[null,null,null,null,null,null,null,null,null,null,null,null,null,null,"Allowed",null,null,null,null,null,null,null,null,null,null,null,null,null,null,null,null,null,null,null,null,null,null,null,null,null,null,null,null,null,null,null,null,null,null,null,null,null,null,null,null,null,null,null,null,null,null,null,null,null,0,null,null,0,null,0,null,0,null,0]
[null,null,null,null,null,null,null,null,null,null,null,null,null,null,"Allowed",null,null,null,null,null,null,null,null,null,null,null,null,null,null,null,null,null,null,null,null,null,null,null,null,null,null,null,null,null,null,null,null,null,null,null,null,null,null,null,null,null,null,null,null,null,null,null,null,null,0,null,null,0,null,0,null,0,null,0]
[null,null,null,null,null,null,null,null,null,null,null,null,null,null,"Allowed",null,null,null,null,null,null,null,null,null,null,null,null,null,null,null,null,null,null,null,null,null,null,null,null,null,null,null,null,null,null,null,null,null,null,null,null,null,null,null,null,null,null,null,null,null,null,null,null,null,0,null,null,0,null,0,null,0,null,0]
[null,null,null,null,null,null,null,null,null,null,null,null,null,null,"Allowed",null,null,null,null,null,null,null,null,null,null,null,null,null,null,null,null,null,null,null,null,null,null,null,null,null,null,null,null,null,null,null,null,null,null,null,null,null,null,null,null,null,null,null,null,null,null,null,null,null,0,null,null,0,null,0,null,0,null,0]
[null,null,null,null,null,null,null,null,null,null,null,null,null,null,"Allowed",null,null,null,null,null,null,null,null,null,null,null,null,null,null,null,null,null,null,null,null,null,null,null,null,null,null,null,null,null,null,null,null,null,null,null,null,null,null,null,null,null,null,null,null,null,null,null,null,null,0,null,null,0,null,0,null,0,null,0]
[null,null,null,null,null,null,null,null,null,null,null,null,null,null,"Allowed",null,null,null,null,null,null,null,null,null,null,null,null,null,null,null,null,null,null,null,null,null,null,null,null,null,null,null,null,null,null,null,null,null,null,null,null,null,null,null,null,null,null,null,null,null,null,null,null,null,0,null,null,0,null,0,null,0,null,0]
[null,null,null,null,null,null,null,null,null,null,null,null,null,null,"Allowed",null,null,null,null,null,null,null,null,null,null,null,null,null,null,null,null,null,null,null,null,null,null,null,null,null,null,null,null,null,null,null,null,null,null,null,null,null,null,null,null,null,null,null,null,null,null,null,null,null,0,null,null,0,null,0,null,0,null,0]
[null,null,null,null,null,null,null,null,null,null,null,null,null,null,"Allowed",null,null,null,null,null,null,null,null,null,null,null,null,null,null,null,null,null,null,null,null,null,null,null,null,null,null,null,null,null,null,null,null,null,null,null,null,null,null,null,null,null,null,null,null,null,null,null,null,null,0,null,null,0,null,0,null,0,null,0]
[null,null,null,null,null,null,null,null,null,null,null,null,null,null,"Allowed",null,null,null,null,null,null,null,null,null,null,null,null,null,null,null,null,null,null,null,null,null,null,null,null,null,null,null,null,null,null,null,null,null,null,null,null,null,null,null,null,null,null,null,null,null,null,null,null,null,0,null,null,0,null,0,null,0,null,0]
[null,null,null,null,null,null,null,null,null,null,null,null,null,null,"Allowed",null,null,null,null,null,null,null,null,null,null,null,null,null,null,null,null,null,null,null,null,null,null,null,null,null,null,null,null,null,null,null,null,null,null,null,null,null,null,null,null,null,null,null,null,null,null,null,null,null,0,null,null,0,null,0,null,0,null,0]
[null,null,null,null,null,null,null,null,null,null,null,null,null,null,"Allowed",null,null,null,null,null,null,null,null,null,null,null,null,null,null,null,null,null,null,null,null,null,null,null,null,null,null,null,null,null,null,null,null,null,null,null,null,null,null,null,null,null,null,null,null,null,null,null,null,null,0,null,null,0,null,0,null,0,null,0]
[null,null,null,null,null,null,null,null,null,null,null,null,null,null,"Allowed",null,null,null,null,null,null,null,null,null,null,null,null,null,null,null,null,null,null,null,null,null,null,null,null,null,null,null,null,null,null,null,null,null,null,null,null,null,null,null,null,null,null,null,null,null,null,null,null,null,0,null,null,0,null,0,null,0,null,0]
[null,null,null,null,null,null,null,null,null,null,null,null,null,null,"Allowed",null,null,null,null,null,null,null,null,null,null,null,null,null,null,null,null,null,null,null,null,null,null,null,null,null,null,null,null,null,null,null,null,null,null,null,null,null,null,null,null,null,null,null,null,null,null,null,null,null,0,null,null,0,null,0,null,0,null,0]
[null,null,null,null,null,null,null,null,null,null,null,null,null,null,"Allowed",null,null,null,null,null,null,null,null,null,null,null,null,null,null,null,null,null,null,null,null,null,null,null,null,null,null,null,null,null,null,null,null,null,null,null,null,null,null,null,null,null,null,null,null,null,null,null,null,null,0,null,null,0,null,0,null,0,null,0]
[null,null,null,null,null,null,null,null,null,null,null,null,null,null,"Allowed",null,null,null,null,null,null,null,null,null,null,null,null,null,null,null,null,null,null,null,null,null,null,null,null,null,null,null,null,null,null,null,null,null,null,null,null,null,null,null,null,null,null,null,null,null,null,null,null,null,0,null,null,0,null,0,null,0,null,0]
[null,null,null,null,null,null,null,null,null,null,null,null,null,null,"Allowed",null,null,null,null,null,null,null,null,null,null,null,null,null,null,null,null,null,null,null,null,null,null,null,null,null,null,null,null,null,null,null,null,null,null,null,null,null,null,null,null,null,null,null,null,null,null,null,null,null,0,null,null,0,null,0,null,0,null,0]
[null,null,null,null,null,null,null,null,null,null,null,null,null,null,"Allowed",null,null,null,null,null,null,null,null,null,null,null,null,null,null,null,null,null,null,null,null,null,null,null,null,null,null,null,null,null,null,null,null,null,null,null,null,null,null,null,null,null,null,null,null,null,null,null,null,null,0,null,null,0,null,0,null,0,null,0]
[null,null,null,null,null,null,null,null,null,null,null,null,null,null,"Allowed",null,null,null,null,null,null,null,null,null,null,null,null,null,null,null,null,null,null,null,null,null,null,null,null,null,null,null,null,null,null,null,null,null,null,null,null,null,null,null,null,null,null,null,null,null,null,null,null,null,0,null,null,0,null,0,null,0,null,0]
[null,null,null,null,null,null,null,null,null,null,null,null,null,null,"Allowed",null,null,null,null,null,null,null,null,null,null,null,null,null,null,null,null,null,null,null,null,null,null,null,null,null,null,null,null,null,null,null,null,null,null,null,null,null,null,null,null,null,null,null,null,null,null,null,null,null,0,null,null,0,null,0,null,0,null,0]
[null,null,null,null,null,null,null,null,null,null,null,null,null,null,"Allowed",null,null,null,null,null,null,null,null,null,null,null,null,null,null,null,null,null,null,null,null,null,null,null,null,null,null,null,null,null,null,null,null,null,null,null,null,null,null,null,null,null,null,null,null,null,null,null,null,null,0,null,null,0,null,0,null,0,null,0]
[null,null,null,null,null,null,null,null,null,null,null,null,null,null,"Allowed",null,null,null,null,null,null,null,null,null,null,null,null,null,null,null,null,null,null,null,null,null,null,null,null,null,null,null,null,null,null,null,null,null,null,null,null,null,null,null,null,null,null,null,null,null,null,null,null,null,0,null,null,0,null,0,null,0,null,0]
[null,null,null,null,null,null,null,null,null,null,null,null,null,null,"Allowed",null,null,null,null,null,null,null,null,null,null,null,null,null,null,null,null,null,null,null,null,null,null,null,null,null,null,null,null,null,null,null,null,null,null,null,null,null,null,null,null,null,null,null,null,null,null,null,null,null,0,null,null,0,null,0,null,0,null,0]
[null,null,null,null,null,null,null,null,null,null,null,null,null,null,"Allowed",null,null,null,null,null,null,null,null,null,null,null,null,null,null,null,null,null,null,null,null,null,null,null,null,null,null,null,null,null,null,null,null,null,null,null,null,null,null,null,null,null,null,null,null,null,null,null,null,null,0,null,null,0,null,0,null,0,null,0]
[null,null,null,null,null,null,null,null,null,null,null,null,null,null,"Allowed",null,null,null,null,null,null,null,null,null,null,null,null,null,null,null,null,null,null,null,null,null,null,null,null,null,null,null,null,null,null,null,null,null,null,null,null,null,null,null,null,null,null,null,null,null,null,null,null,null,0,null,null,0,null,0,null,0,null,0]
[null,null,null,null,null,null,null,null,null,null,null,null,null,null,"Allowed",null,null,null,null,null,null,null,null,null,null,null,null,null,null,null,null,null,null,null,null,null,null,null,null,null,null,null,null,null,null,null,null,null,null,null,null,null,null,null,null,null,null,null,null,null,null,null,null,null,0,null,null,0,null,0,null,0,null,0]
[null,null,null,null,null,null,null,null,null,null,null,null,null,null,"Allowed",null,null,null,null,null,null,null,null,null,null,null,null,null,null,null,null,null,null,null,null,null,null,null,null,null,null,null,null,null,null,null,null,null,null,null,null,null,null,null,null,null,null,null,null,null,null,null,null,null,0,null,null,0,null,0,null,0,null,0]
[null,null,null,null,null,null,null,null,null,null,null,null,null,null,"Allowed",null,null,null,null,null,null,null,null,null,null,null,null,null,null,null,null,null,null,null,null,null,null,null,null,null,null,null,null,null,null,null,null,null,null,null,null,null,null,null,null,null,null,null,null,null,null,null,null,null,0,null,null,0,null,0,null,0,null,0]
[null,null,null,null,null,null,null,null,null,null,null,null,null,null,"Allowed",null,null,null,null,null,null,null,null,null,null,null,null,null,null,null,null,null,null,null,null,null,null,null,null,null,null,null,null,null,null,null,null,null,null,null,null,null,null,null,null,null,null,null,null,null,null,null,null,null,0,null,null,0,null,0,null,0,null,0]
[null,null,null,null,null,null,null,null,null,null,null,null,null,null,"Allowed",null,null,null,null,null,null,null,null,null,null,null,null,null,null,null,null,null,null,null,null,null,null,null,null,null,null,null,null,null,null,null,null,null,null,null,null,null,null,null,null,null,null,null,null,null,null,null,null,null,0,null,null,0,null,0,null,0,null,0]
[null,null,null,null,null,null,null,null,null,null,null,null,null,null,"Allowed",null,null,null,null,null,null,null,null,null,null,null,null,null,null,null,null,null,null,null,null,null,null,null,null,null,null,null,null,null,null,null,null,null,null,null,null,null,null,null,null,null,null,null,null,null,null,null,null,null,0,null,null,0,null,0,null,0,null,0]
[null,null,null,null,null,null,null,null,null,null,null,null,null,null,"Allowed",null,null,null,null,null,null,null,null,null,null,null,null,null,null,null,null,null,null,null,null,null,null,null,null,null,null,null,null,null,null,null,null,null,null,null,null,null,null,null,null,null,null,null,null,null,null,null,null,null,0,null,null,0,null,0,null,0,null,0]
[null,null,null,null,null,null,null,null,null,null,null,null,null,null,"Allowed",null,null,null,null,null,null,null,null,null,null,null,null,null,null,null,null,null,null,null,null,null,null,null,null,null,null,null,null,null,null,null,null,null,null,null,null,null,null,null,null,null,null,null,null,null,null,null,null,null,0,null,null,0,null,0,null,0,null,0]
[null,null,null,null,null,null,null,null,null,null,null,null,null,null,"Allowed",null,null,null,null,null,null,null,null,null,null,null,null,null,null,null,null,null,null,null,null,null,null,null,null,null,null,null,null,null,null,null,null,null,null,null,null,null,null,null,null,null,null,null,null,null,null,null,null,null,0,null,null,0,null,0,null,0,null,0]
[null,null,null,null,null,null,null,null,null,null,null,null,null,null,"Allowed",null,null,null,null,null,null,null,null,null,null,null,null,null,null,null,null,null,null,null,null,null,null,null,null,null,null,null,null,null,null,null,null,null,null,null,null,null,null,null,null,null,null,null,null,null,null,null,null,null,0,null,null,0,null,0,null,0,null,0]
[null,null,null,null,null,null,null,null,null,null,null,null,null,null,"Allowed",null,null,null,null,null,null,null,null,null,null,null,null,null,null,null,null,null,null,null,null,null,null,null,null,null,null,null,null,null,null,null,null,null,null,null,null,null,null,null,null,null,null,null,null,null,null,null,null,null,0,null,null,0,null,0,null,0,null,0]
[null,null,null,null,null,null,null,null,null,null,null,null,null,null,"Allowed",null,null,null,null,null,null,null,null,null,null,null,null,null,null,null,null,null,null,null,null,null,null,null,null,null,null,null,null,null,null,null,null,null,null,null,null,null,null,null,null,null,null,null,null,null,null,null,null,null,0,null,null,0,null,0,null,0,null,0]
[null,null,null,null,null,null,null,null,null,null,null,null,null,null,"Allowed",null,null,null,null,null,null,null,null,null,null,null,null,null,null,null,null,null,null,null,null,null,null,null,null,null,null,null,null,null,null,null,null,null,null,null,null,null,null,null,null,null,null,null,null,null,null,null,null,null,0,null,null,0,null,0,null,0,null,0]
[null,null,null,null,null,null,null,null,null,null,null,null,null,null,"Allowed",null,null,null,null,null,null,null,null,null,null,null,null,null,null,null,null,null,null,null,null,null,null,null,null,null,null,null,null,null,null,null,null,null,null,null,null,null,null,null,null,null,null,null,null,null,null,null,null,null,0,null,null,0,null,0,null,0,null,0]
[null,null,null,null,null,null,null,null,null,null,null,null,null,null,"Allowed",null,null,null,null,null,null,null,null,null,null,null,null,null,null,null,null,null,null,null,null,null,null,null,null,null,null,null,null,null,null,null,null,null,null,null,null,null,null,null,null,null,null,null,null,null,null,null,null,null,0,null,null,0,null,0,null,0,null,0]
[null,null,null,null,null,null,null,null,null,null,null,null,null,null,"Allowed",null,null,null,null,null,null,null,null,null,null,null,null,null,null,null,null,null,null,null,null,null,null,null,null,null,null,null,null,null,null,null,null,null,null,null,null,null,null,null,null,null,null,null,null,null,null,null,null,null,0,null,null,0,null,0,null,0,null,0]
[null,null,null,null,null,null,null,null,null,null,null,null,null,null,"Allowed",null,null,null,null,null,null,null,null,null,null,null,null,null,null,null,null,null,null,null,null,null,null,null,null,null,null,null,null,null,null,null,null,null,null,null,null,null,null,null,null,null,null,null,null,null,null,null,null,null,0,null,null,0,null,0,null,0,null,0]
[null,null,null,null,null,null,null,null,null,null,null,null,null,null,"Allowed",null,null,null,null,null,null,null,null,null,null,null,null,null,null,null,null,null,null,null,null,null,null,null,null,null,null,null,null,null,null,null,null,null,null,null,null,null,null,null,null,null,null,null,null,null,null,null,null,null,0,null,null,0,null,0,null,0,null,0]
[null,null,null,null,null,null,null,null,null,null,null,null,null,null,"Allowed",null,null,null,null,null,null,null,null,null,null,null,null,null,null,null,null,null,null,null,null,null,null,null,null,null,null,null,null,null,null,null,null,null,null,null,null,null,null,null,null,null,null,null,null,null,null,null,null,null,0,null,null,0,null,0,null,0,null,0]
[null,null,null,null,null,null,null,null,null,null,null,null,null,null,{"$f":"IF(N67<=TRUNC(P67*1.015228,2),\"Allowed\",\"Exceeds Max\")","v":"Allowed"},null,null,null,null,null,null,null,null,null,null,null,null,null,null,null,null,null,null,null,null,null,null,null,null,null,null,null,null,null,null,null,null,null,null,null,null,null,null,null,null,null,null,null,null,null,null,null,null,null,0,null,null,0,null,0,null,0,null,0]
[null,null,null,null,null,null,null,null,null,null,null,null,null,null,"Allowed",null,null,null,null,null,null,null,null,null,null,null,null,null,null,null,null,null,null,null,null,null,null,null,null,null,null,null,null,null,null,null,null,null,null,null,null,null,null,null,null,null,null,null,null,null,null,null,null,null,{"$f":"LEN(BL68)","v":0},null,null,{"$f":"LEN(BO68)","v":0},null,{"$f":"LEN(BQ68)","v":0},null,{"$f":"LEN(BS68)","v":0},null,{"$f":"LEN(BU68)","v":0}]
[null,null,null,null,null,null,null,null,null,null,null,null,null,null,"Allowed",null,null,null,null,null,null,null,null,null,null,null,null,null,null,null,null,null,null,null,null,null,null,null,null,null,null,null,null,null,null,null,null,null,null,null,null,null,null,null,null,null,null,null,null,null,null,null,null,null,0,null,null,0,null,0,null,0,null,0]
[null,null,null,null,null,null,null,null,null,null,null,null,null,null,"Allowed",null,null,null,null,null,null,null,null,null,null,null,null,null,null,null,null,null,null,null,null,null,null,null,null,null,null,null,null,null,null,null,null,null,null,null,null,null,null,null,null,null,null,null,null,null,null,null,null,null,0,null,null,0,null,0,null,0,null,0]
[null,null,null,null,null,null,null,null,null,null,null,null,null,null,"Allowed",null,null,null,null,null,null,null,null,null,null,null,null,null,null,null,null,null,null,null,null,null,null,null,null,null,null,null,null,null,null,null,null,null,null,null,null,null,null,null,null,null,null,null,null,null,null,null,null,null,0,null,null,0,null,0,null,0,null,0]
[null,null,null,null,null,null,null,null,null,null,null,null,null,null,"Allowed",null,null,null,null,null,null,null,null,null,null,null,null,null,null,null,null,null,null,null,null,null,null,null,null,null,null,null,null,null,null,null,null,null,null,null,null,null,null,null,null,null,null,null,null,null,null,null,null,null,0,null,null,0,null,0,null,0,null,0]
[null,null,null,null,null,null,null,null,null,null,null,null,null,null,"Allowed",null,null,null,null,null,null,null,null,null,null,null,null,null,null,null,null,null,null,null,null,null,null,null,null,null,null,null,null,null,null,null,null,null,null,null,null,null,null,null,null,null,null,null,null,null,null,null,null,null,0,null,null,0,null,0,null,0,null,0]
[null,null,null,null,null,null,null,null,null,null,null,null,null,null,"Allowed",null,null,null,null,null,null,null,null,null,null,null,null,null,null,null,null,null,null,null,null,null,null,null,null,null,null,null,null,null,null,null,null,null,null,null,null,null,null,null,null,null,null,null,null,null,null,null,null,null,0,null,null,0,null,0,null,0,null,0]
[null,null,null,null,null,null,null,null,null,null,null,null,null,null,"Allowed",null,null,null,null,null,null,null,null,null,null,null,null,null,null,null,null,null,null,null,null,null,null,null,null,null,null,null,null,null,null,null,null,null,null,null,null,null,null,null,null,null,null,null,null,null,null,null,null,null,0,null,null,0,null,0,null,0,null,0]
[null,null,null,null,null,null,null,null,null,null,null,null,null,null,"Allowed",null,null,null,null,null,null,null,null,null,null,null,null,null,null,null,null,null,null,null,null,null,null,null,null,null,null,null,null,null,null,null,null,null,null,null,null,null,null,null,null,null,null,null,null,null,null,null,null,null,0,null,null,0,null,0,null,0,null,0]
[null,null,null,null,null,null,null,null,null,null,null,null,null,null,"Allowed",null,null,null,null,null,null,null,null,null,null,null,null,null,null,null,null,null,null,null,null,null,null,null,null,null,null,null,null,null,null,null,null,null,null,null,null,null,null,null,null,null,null,null,null,null,null,null,null,null,0,null,null,0,null,0,null,0,null,0]
[null,null,null,null,null,null,null,null,null,null,null,null,null,null,"Allowed",null,null,null,null,null,null,null,null,null,null,null,null,null,null,null,null,null,null,null,null,null,null,null,null,null,null,null,null,null,null,null,null,null,null,null,null,null,null,null,null,null,null,null,null,null,null,null,null,null,0,null,null,0,null,0,null,0,null,0]
[null,null,null,null,null,null,null,null,null,null,null,null,null,null,"Allowed",null,null,null,null,null,null,null,null,null,null,null,null,null,null,null,null,null,null,null,null,null,null,null,null,null,null,null,null,null,null,null,null,null,null,null,null,null,null,null,null,null,null,null,null,null,null,null,null,null,0,null,null,0,null,0,null,0,null,0]
[null,null,null,null,null,null,null,null,null,null,null,null,null,null,"Allowed",null,null,null,null,null,null,null,null,null,null,null,null,null,null,null,null,null,null,null,null,null,null,null,null,null,null,null,null,null,null,null,null,null,null,null,null,null,null,null,null,null,null,null,null,null,null,null,null,null,0,null,null,0,null,0,null,0,null,0]
[null,null,null,null,null,null,null,null,null,null,null,null,null,null,"Allowed",null,null,null,null,null,null,null,null,null,null,null,null,null,null,null,null,null,null,null,null,null,null,null,null,null,null,null,null,null,null,null,null,null,null,null,null,null,null,null,null,null,null,null,null,null,null,null,null,null,0,null,null,0,null,0,null,0,null,0]
[null,null,null,null,null,null,null,null,null,null,null,null,null,null,"Allowed",null,null,null,null,null,null,null,null,null,null,null,null,null,null,null,null,null,null,null,null,null,null,null,null,null,null,null,null,null,null,null,null,null,null,null,null,null,null,null,null,null,null,null,null,null,null,null,null,null,0,null,null,0,null,0,null,0,null,0]
[null,null,null,null,null,null,null,null,null,null,null,null,null,null,"Allowed",null,null,null,null,null,null,null,null,null,null,null,null,null,null,null,null,null,null,null,null,null,null,null,null,null,null,null,null,null,null,null,null,null,null,null,null,null,null,null,null,null,null,null,null,null,null,null,null,null,0,null,null,0,null,0,null,0,null,0]
[null,null,null,null,null,null,null,null,null,null,null,null,null,null,"Allowed",null,null,null,null,null,null,null,null,null,null,null,null,null,null,null,null,null,null,null,null,null,null,null,null,null,null,null,null,null,null,null,null,null,null,null,null,null,null,null,null,null,null,null,null,null,null,null,null,null,0,null,null,0,null,0,null,0,null,0]
[null,null,null,null,null,null,null,null,null,null,null,null,null,null,"Allowed",null,null,null,null,null,null,null,null,null,null,null,null,null,null,null,null,null,null,null,null,null,null,null,null,null,null,null,null,null,null,null,null,null,null,null,null,null,null,null,null,null,null,null,null,null,null,null,null,null,0,null,null,0,null,0,null,0,null,0]
[null,null,null,null,null,null,null,null,null,null,null,null,null,null,"Allowed",null,null,null,null,null,null,null,null,null,null,null,null,null,null,null,null,null,null,null,null,null,null,null,null,null,null,null,null,null,null,null,null,null,null,null,null,null,null,null,null,null,null,null,null,null,null,null,null,null,0,null,null,0,null,0,null,0,null,0]
[null,null,null,null,null,null,null,null,null,null,null,null,null,null,"Allowed",null,null,null,null,null,null,null,null,null,null,null,null,null,null,null,null,null,null,null,null,null,null,null,null,null,null,null,null,null,null,null,null,null,null,null,null,null,null,null,null,null,null,null,null,null,null,null,null,null,0,null,null,0,null,0,null,0,null,0]
[null,null,null,null,null,null,null,null,null,null,null,null,null,null,"Allowed",null,null,null,null,null,null,null,null,null,null,null,null,null,null,null,null,null,null,null,null,null,null,null,null,null,null,null,null,null,null,null,null,null,null,null,null,null,null,null,null,null,null,null,null,null,null,null,null,null,0,null,null,0,null,0,null,0,null,0]
[null,null,null,null,null,null,null,null,null,null,null,null,null,null,"Allowed",null,null,null,null,null,null,null,null,null,null,null,null,null,null,null,null,null,null,null,null,null,null,null,null,null,null,null,null,null,null,null,null,null,null,null,null,null,null,null,null,null,null,null,null,null,null,null,null,null,0,null,null,0,null,0,null,0,null,0]
[null,null,null,null,null,null,null,null,null,null,null,null,null,null,"Allowed",null,null,null,null,null,null,null,null,null,null,null,null,null,null,null,null,null,null,null,null,null,null,null,null,null,null,null,null,null,null,null,null,null,null,null,null,null,null,null,null,null,null,null,null,null,null,null,null,null,0,null,null,0,null,0,null,0,null,0]
[null,null,null,null,null,null,null,null,null,null,null,null,null,null,"Allowed",null,null,null,null,null,null,null,null,null,null,null,null,null,null,null,null,null,null,null,null,null,null,null,null,null,null,null,null,null,null,null,null,null,null,null,null,null,null,null,null,null,null,null,null,null,null,null,null,null,0,null,null,0,null,0,null,0,null,0]
[null,null,null,null,null,null,null,null,null,null,null,null,null,null,"Allowed",null,null,null,null,null,null,null,null,null,null,null,null,null,null,null,null,null,null,null,null,null,null,null,null,null,null,null,null,null,null,null,null,null,null,null,null,null,null,null,null,null,null,null,null,null,null,null,null,null,0,null,null,0,null,0,null,0,null,0]
[null,null,null,null,null,null,null,null,null,null,null,null,null,null,"Allowed",null,null,null,null,null,null,null,null,null,null,null,null,null,null,null,null,null,null,null,null,null,null,null,null,null,null,null,null,null,null,null,null,null,null,null,null,null,null,null,null,null,null,null,null,null,null,null,null,null,0,null,null,0,null,0,null,0,null,0]
[null,null,null,null,null,null,null,null,null,null,null,null,null,null,"Allowed",null,null,null,null,null,null,null,null,null,null,null,null,null,null,null,null,null,null,null,null,null,null,null,null,null,null,null,null,null,null,null,null,null,null,null,null,null,null,null,null,null,null,null,null,null,null,null,null,null,0,null,null,0,null,0,null,0,null,0]
[null,null,null,null,null,null,null,null,null,null,null,null,null,null,"Allowed",null,null,null,null,null,null,null,null,null,null,null,null,null,null,null,null,null,null,null,null,null,null,null,null,null,null,null,null,null,null,null,null,null,null,null,null,null,null,null,null,null,null,null,null,null,null,null,null,null,0,null,null,0,null,0,null,0,null,0]
[null,null,null,null,null,null,null,null,null,null,null,null,null,null,"Allowed",null,null,null,null,null,null,null,null,null,null,null,null,null,null,null,null,null,null,null,null,null,null,null,null,null,null,null,null,null,null,null,null,null,null,null,null,null,null,null,null,null,null,null,null,null,null,null,null,null,0,null,null,0,null,0,null,0,null,0]
[null,null,null,null,null,null,null,null,null,null,null,null,null,null,"Allowed",null,null,null,null,null,null,null,null,null,null,null,null,null,null,null,null,null,null,null,null,null,null,null,null,null,null,null,null,null,null,null,null,null,null,null,null,null,null,null,null,null,null,null,null,null,null,null,null,null,0,null,null,0,null,0,null,0,null,0]
[null,null,null,null,null,null,null,null,null,null,null,null,null,null,"Allowed",null,null,null,null,null,null,null,null,null,null,null,null,null,null,null,null,null,null,null,null,null,null,null,null,null,null,null,null,null,null,null,null,null,null,null,null,null,null,null,null,null,null,null,null,null,null,null,null,null,0,null,null,0,null,0,null,0,null,0]
[null,null,null,null,null,null,null,null,null,null,null,null,null,null,"Allowed",null,null,null,null,null,null,null,null,null,null,null,null,null,null,null,null,null,null,null,null,null,null,null,null,null,null,null,null,null,null,null,null,null,null,null,null,null,null,null,null,null,null,null,null,null,null,null,null,null,0,null,null,0,null,0,null,0,null,0]
[null,null,null,null,null,null,null,null,null,null,null,null,null,null,"Allowed",null,null,null,null,null,null,null,null,null,null,null,null,null,null,null,null,null,null,null,null,null,null,null,null,null,null,null,null,null,null,null,null,null,null,null,null,null,null,null,null,null,null,null,null,null,null,null,null,null,0,null,null,0,null,0,null,0,null,0]
[null,null,null,null,null,null,null,null,null,null,null,null,null,null,"Allowed",null,null,null,null,null,null,null,null,null,null,null,null,null,null,null,null,null,null,null,null,null,null,null,null,null,null,null,null,null,null,null,null,null,null,null,null,null,null,null,null,null,null,null,null,null,null,null,null,null,0,null,null,0,null,0,null,0,null,0]
[null,null,null,null,null,null,null,null,null,null,null,null,null,null,"Allowed",null,null,null,null,null,null,null,null,null,null,null,null,null,null,null,null,null,null,null,null,null,null,null,null,null,null,null,null,null,null,null,null,null,null,null,null,null,null,null,null,null,null,null,null,null,null,null,null,null,0,null,null,0,null,0,null,0,null,0]
[null,null,null,null,null,null,null,null,null,null,null,null,null,null,"Allowed",null,null,null,null,null,null,null,null,null,null,null,null,null,null,null,null,null,null,null,null,null,null,null,null,null,null,null,null,null,null,null,null,null,null,null,null,null,null,null,null,null,null,null,null,null,null,null,null,null,0,null,null,0,null,0,null,0,null,0]
[null,null,null,null,null,null,null,null,null,null,null,null,null,null,"Allowed",null,null,null,null,null,null,null,null,null,null,null,null,null,null,null,null,null,null,null,null,null,null,null,null,null,null,null,null,null,null,null,null,null,null,null,null,null,null,null,null,null,null,null,null,null,null,null,null,null,0,null,null,0,null,0,null,0,null,0]
[null,null,null,null,null,null,null,null,null,null,null,null,null,null,"Allowed",null,null,null,null,null,null,null,null,null,null,null,null,null,null,null,null,null,null,null,null,null,null,null,null,null,null,null,null,null,null,null,null,null,null,null,null,null,null,null,null,null,null,null,null,null,null,null,null,null,0,null,null,0,null,0,null,0,null,0]
[null,null,null,null,null,null,null,null,null,null,null,null,null,null,"Allowed",null,null,null,null,null,null,null,null,null,null,null,null,null,null,null,null,null,null,null,null,null,null,null,null,null,null,null,null,null,null,null,null,null,null,null,null,null,null,null,null,null,null,null,null,null,null,null,null,null,0,null,null,0,null,0,null,0,null,0]
[null,null,null,null,null,null,null,null,null,null,null,null,null,null,"Allowed",null,null,null,null,null,null,null,null,null,null,null,null,null,null,null,null,null,null,null,null,null,null,null,null,null,null,null,null,null,null,null,null,null,null,null,null,null,null,null,null,null,null,null,null,null,null,null,null,null,0,null,null,0,null,0,null,0,null,0]
[null,null,null,null,null,null,null,null,null,null,null,null,null,null,"Allowed",null,null,null,null,null,null,null,null,null,null,null,null,null,null,null,null,null,null,null,null,null,null,null,null,null,null,null,null,null,null,null,null,null,null,null,null,null,null,null,null,null,null,null,null,null,null,null,null,null,0,null,null,0,null,0,null,0,null,0]
[null,null,null,null,null,null,null,null,null,null,null,null,null,null,"Allowed",null,null,null,null,null,null,null,null,null,null,null,null,null,null,null,null,null,null,null,null,null,null,null,null,null,null,null,null,null,null,null,null,null,null,null,null,null,null,null,null,null,null,null,null,null,null,null,null,null,0,null,null,0,null,0,null,0,null,0]
[null,null,null,null,null,null,null,null,null,null,null,null,null,null,"Allowed",null,null,null,null,null,null,null,null,null,null,null,null,null,null,null,null,null,null,null,null,null,null,null,null,null,null,null,null,null,null,null,null,null,null,null,null,null,null,null,null,null,null,null,null,null,null,null,null,null,0,null,null,0,null,0,null,0,null,0]
[null,null,null,null,null,null,null,null,null,null,null,null,null,null,"Allowed",null,null,null,null,null,null,null,null,null,null,null,null,null,null,null,null,null,null,null,null,null,null,null,null,null,null,null,null,null,null,null,null,null,null,null,null,null,null,null,null,null,null,null,null,null,null,null,null,null,0,null,null,0,null,0,null,0,null,0]
[null,null,null,null,null,null,null,null,null,null,null,null,null,null,"Allowed",null,null,null,null,null,null,null,null,null,null,null,null,null,null,null,null,null,null,null,null,null,null,null,null,null,null,null,null,null,null,null,null,null,null,null,null,null,null,null,null,null,null,null,null,null,null,null,null,null,0,null,null,0,null,0,null,0,null,0]
[null,null,null,null,null,null,null,null,null,null,null,null,null,null,"Allowed",null,null,null,null,null,null,null,null,null,null,null,null,null,null,null,null,null,null,null,null,null,null,null,null,null,null,null,null,null,null,null,null,null,null,null,null,null,null,null,null,null,null,null,null,null,null,null,null,null,0,null,null,0,null,0,null,0,null,0]
[null,null,null,null,null,null,null,null,null,null,null,null,null,null,"Allowed",null,null,null,null,null,null,null,null,null,null,null,null,null,null,null,null,null,null,null,null,null,null,null,null,null,null,null,null,null,null,null,null,null,null,null,null,null,null,null,null,null,null,null,null,null,null,null,null,null,0,null,null,0,null,0,null,0,null,0]
[null,null,null,null,null,null,null,null,null,null,null,null,null,null,"Allowed",null,null,null,null,null,null,null,null,null,null,null,null,null,null,null,null,null,null,null,null,null,null,null,null,null,null,null,null,null,null,null,null,null,null,null,null,null,null,null,null,null,null,null,null,null,null,null,null,null,0,null,null,0,null,0,null,0,null,0]
[null,null,null,null,null,null,null,null,null,null,null,null,null,null,"Allowed",null,null,null,null,null,null,null,null,null,null,null,null,null,null,null,null,null,null,null,null,null,null,null,null,null,null,null,null,null,null,null,null,null,null,null,null,null,null,null,null,null,null,null,null,null,null,null,null,null,0,null,null,0,null,0,null,0,null,0]
[null,null,null,null,null,null,null,null,null,null,null,null,null,null,"Allowed",null,null,null,null,null,null,null,null,null,null,null,null,null,null,null,null,null,null,null,null,null,null,null,null,null,null,null,null,null,null,null,null,null,null,null,null,null,null,null,null,null,null,null,null,null,null,null,null,null,0,null,null,0,null,0,null,0,null,0]
[null,null,null,null,null,null,null,null,null,null,null,null,null,null,"Allowed",null,null,null,null,null,null,null,null,null,null,null,null,null,null,null,null,null,null,null,null,null,null,null,null,null,null,null,null,null,null,null,null,null,null,null,null,null,null,null,null,null,null,null,null,null,null,null,null,null,0,null,null,0,null,0,null,0,null,0]
[null,null,null,null,null,null,null,null,null,null,null,null,null,null,"Allowed",null,null,null,null,null,null,null,null,null,null,null,null,null,null,null,null,null,null,null,null,null,null,null,null,null,null,null,null,null,null,null,null,null,null,null,null,null,null,null,null,null,null,null,null,null,null,null,null,null,0,null,null,0,null,0,null,0,null,0]
[null,null,null,null,null,null,null,null,null,null,null,null,null,null,"Allowed",null,null,null,null,null,null,null,null,null,null,null,null,null,null,null,null,null,null,null,null,null,null,null,null,null,null,null,null,null,null,null,null,null,null,null,null,null,null,null,null,null,null,null,null,null,null,null,null,null,0,null,null,0,null,0,null,0,null,0]
[null,null,null,null,null,null,null,null,null,null,null,null,null,null,"Allowed",null,null,null,null,null,null,null,null,null,null,null,null,null,null,null,null,null,null,null,null,null,null,null,null,null,null,null,null,null,null,null,null,null,null,null,null,null,null,null,null,null,null,null,null,null,null,null,null,null,0,null,null,0,null,0,null,0,null,0]
[null,null,null,null,null,null,null,null,null,null,null,null,null,null,"Allowed",null,null,null,null,null,null,null,null,null,null,null,null,null,null,null,null,null,null,null,null,null,null,null,null,null,null,null,null,null,null,null,null,null,null,null,null,null,null,null,null,null,null,null,null,null,null,null,null,null,0,null,null,0,null,0,null,0,null,0]
[null,null,null,null,null,null,null,null,null,null,null,null,null,null,"Allowed",null,null,null,null,null,null,null,null,null,null,null,null,null,null,null,null,null,null,null,null,null,null,null,null,null,null,null,null,null,null,null,null,null,null,null,null,null,null,null,null,null,null,null,null,null,null,null,null,null,0,null,null,0,null,0,null,0,null,0]
[null,null,null,null,null,null,null,null,null,null,null,null,null,null,"Allowed",null,null,null,null,null,null,null,null,null,null,null,null,null,null,null,null,null,null,null,null,null,null,null,null,null,null,null,null,null,null,null,null,null,null,null,null,null,null,null,null,null,null,null,null,null,null,null,null,null,0,null,null,0,null,0,null,0,null,0]
[null,null,null,null,null,null,null,null,null,null,null,null,null,null,"Allowed",null,null,null,null,null,null,null,null,null,null,null,null,null,null,null,null,null,null,null,null,null,null,null,null,null,null,null,null,null,null,null,null,null,null,null,null,null,null,null,null,null,null,null,null,null,null,null,null,null,0,null,null,0,null,0,null,0,null,0]
[null,null,null,null,null,null,null,null,null,null,null,null,null,null,"Allowed",null,null,null,null,null,null,null,null,null,null,null,null,null,null,null,null,null,null,null,null,null,null,null,null,null,null,null,null,null,null,null,null,null,null,null,null,null,null,null,null,null,null,null,null,null,null,null,null,null,0,null,null,0,null,0,null,0,null,0]
[null,null,null,null,null,null,null,null,null,null,null,null,null,null,"Allowed",null,null,null,null,null,null,null,null,null,null,null,null,null,null,null,null,null,null,null,null,null,null,null,null,null,null,null,null,null,null,null,null,null,null,null,null,null,null,null,null,null,null,null,null,null,null,null,null,null,0,null,null,0,null,0,null,0,null,0]
[null,null,null,null,null,null,null,null,null,null,null,null,null,null,"Allowed",null,null,null,null,null,null,null,null,null,null,null,null,null,null,null,null,null,null,null,null,null,null,null,null,null,null,null,null,null,null,null,null,null,null,null,null,null,null,null,null,null,null,null,null,null,null,null,null,null,0,null,null,0,null,0,null,0,null,0]
[null,null,null,null,null,null,null,null,null,null,null,null,null,null,"Allowed",null,null,null,null,null,null,null,null,null,null,null,null,null,null,null,null,null,null,null,null,null,null,null,null,null,null,null,null,null,null,null,null,null,null,null,null,null,null,null,null,null,null,null,null,null,null,null,null,null,0,null,null,0,null,0,null,0,null,0]
[null,null,null,null,null,null,null,null,null,null,null,null,null,null,"Allowed",null,null,null,null,null,null,null,null,null,null,null,null,null,null,null,null,null,null,null,null,null,null,null,null,null,null,null,null,null,null,null,null,null,null,null,null,null,null,null,null,null,null,null,null,null,null,null,null,null,0,null,null,0,null,0,null,0,null,0]
[null,null,null,null,null,null,null,null,null,null,null,null,null,null,{"$f":"IF(N131<=TRUNC(P131*1.015228,2),\"Allowed\",\"Exceeds Max\")","v":"Allowed"},null,null,null,null,null,null,null,null,null,null,null,null,null,null,null,null,null,null,null,null,null,null,null,null,null,null,null,null,null,null,null,null,null,null,null,null,null,null,null,null,null,null,null,null,null,null,null,null,null,0,null,null,0,null,0,null,0,null,0]
[null,null,null,null,null,null,null,null,null,null,null,null,null,null,"Allowed",null,null,null,null,null,null,null,null,null,null,null,null,null,null,null,null,null,null,null,null,null,null,null,null,null,null,null,null,null,null,null,null,null,null,null,null,null,null,null,null,null,null,null,null,null,null,null,null,null,{"$f":"LEN(BL132)","v":0},null,null,{"$f":"LEN(BO132)","v":0},null,{"$f":"LEN(BQ132)","v":0},null,{"$f":"LEN(BS132)","v":0},null,{"$f":"LEN(BU132)","v":0}]
[null,null,null,null,null,null,null,null,null,null,null,null,null,null,"Allowed",null,null,null,null,null,null,null,null,null,null,null,null,null,null,null,null,null,null,null,null,null,null,null,null,null,null,null,null,null,null,null,null,null,null,null,null,null,null,null,null,null,null,null,null,null,null,null,null,null,0,null,null,0,null,0,null,0,null,0]
[null,null,null,null,null,null,null,null,null,null,null,null,null,null,"Allowed",null,null,null,null,null,null,null,null,null,null,null,null,null,null,null,null,null,null,null,null,null,null,null,null,null,null,null,null,null,null,null,null,null,null,null,null,null,null,null,null,null,null,null,null,null,null,null,null,null,0,null,null,0,null,0,null,0,null,0]
[null,null,null,null,null,null,null,null,null,null,null,null,null,null,"Allowed",null,null,null,null,null,null,null,null,null,null,null,null,null,null,null,null,null,null,null,null,null,null,null,null,null,null,null,null,null,null,null,null,null,null,null,null,null,null,null,null,null,null,null,null,null,null,null,null,null,0,null,null,0,null,0,null,0,null,0]
[null,null,null,null,null,null,null,null,null,null,null,null,null,null,"Allowed",null,null,null,null,null,null,null,null,null,null,null,null,null,null,null,null,null,null,null,null,null,null,null,null,null,null,null,null,null,null,null,null,null,null,null,null,null,null,null,null,null,null,null,null,null,null,null,null,null,0,null,null,0,null,0,null,0,null,0]
[null,null,null,null,null,null,null,null,null,null,null,null,null,null,"Allowed",null,null,null,null,null,null,null,null,null,null,null,null,null,null,null,null,null,null,null,null,null,null,null,null,null,null,null,null,null,null,null,null,null,null,null,null,null,null,null,null,null,null,null,null,null,null,null,null,null,0,null,null,0,null,0,null,0,null,0]
[null,null,null,null,null,null,null,null,null,null,null,null,null,null,"Allowed",null,null,null,null,null,null,null,null,null,null,null,null,null,null,null,null,null,null,null,null,null,null,null,null,null,null,null,null,null,null,null,null,null,null,null,null,null,null,null,null,null,null,null,null,null,null,null,null,null,0,null,null,0,null,0,null,0,null,0]
[null,null,null,null,null,null,null,null,null,null,null,null,null,null,"Allowed",null,null,null,null,null,null,null,null,null,null,null,null,null,null,null,null,null,null,null,null,null,null,null,null,null,null,null,null,null,null,null,null,null,null,null,null,null,null,null,null,null,null,null,null,null,null,null,null,null,0,null,null,0,null,0,null,0,null,0]
[null,null,null,null,null,null,null,null,null,null,null,null,null,null,"Allowed",null,null,null,null,null,null,null,null,null,null,null,null,null,null,null,null,null,null,null,null,null,null,null,null,null,null,null,null,null,null,null,null,null,null,null,null,null,null,null,null,null,null,null,null,null,null,null,null,null,0,null,null,0,null,0,null,0,null,0]
[null,null,null,null,null,null,null,null,null,null,null,null,null,null,"Allowed",null,null,null,null,null,null,null,null,null,null,null,null,null,null,null,null,null,null,null,null,null,null,null,null,null,null,null,null,null,null,null,null,null,null,null,null,null,null,null,null,null,null,null,null,null,null,null,null,null,0,null,null,0,null,0,null,0,null,0]
[null,null,null,null,null,null,null,null,null,null,null,null,null,null,"Allowed",null,null,null,null,null,null,null,null,null,null,null,null,null,null,null,null,null,null,null,null,null,null,null,null,null,null,null,null,null,null,null,null,null,null,null,null,null,null,null,null,null,null,null,null,null,null,null,null,null,0,null,null,0,null,0,null,0,null,0]
[null,null,null,null,null,null,null,null,null,null,null,null,null,null,"Allowed",null,null,null,null,null,null,null,null,null,null,null,null,null,null,null,null,null,null,null,null,null,null,null,null,null,null,null,null,null,null,null,null,null,null,null,null,null,null,null,null,null,null,null,null,null,null,null,null,null,0,null,null,0,null,0,null,0,null,0]
[null,null,null,null,null,null,null,null,null,null,null,null,null,null,"Allowed",null,null,null,null,null,null,null,null,null,null,null,null,null,null,null,null,null,null,null,null,null,null,null,null,null,null,null,null,null,null,null,null,null,null,null,null,null,null,null,null,null,null,null,null,null,null,null,null,null,0,null,null,0,null,0,null,0,null,0]
[null,null,null,null,null,null,null,null,null,null,null,null,null,null,"Allowed",null,null,null,null,null,null,null,null,null,null,null,null,null,null,null,null,null,null,null,null,null,null,null,null,null,null,null,null,null,null,null,null,null,null,null,null,null,null,null,null,null,null,null,null,null,null,null,null,null,0,null,null,0,null,0,null,0,null,0]
[null,null,null,null,null,null,null,null,null,null,null,null,null,null,"Allowed",null,null,null,null,null,null,null,null,null,null,null,null,null,null,null,null,null,null,null,null,null,null,null,null,null,null,null,null,null,null,null,null,null,null,null,null,null,null,null,null,null,null,null,null,null,null,null,null,null,0,null,null,0,null,0,null,0,null,0]
[null,null,null,null,null,null,null,null,null,null,null,null,null,null,"Allowed",null,null,null,null,null,null,null,null,null,null,null,null,null,null,null,null,null,null,null,null,null,null,null,null,null,null,null,null,null,null,null,null,null,null,null,null,null,null,null,null,null,null,null,null,null,null,null,null,null,0,null,null,0,null,0,null,0,null,0]
[null,null,null,null,null,null,null,null,null,null,null,null,null,null,"Allowed",null,null,null,null,null,null,null,null,null,null,null,null,null,null,null,null,null,null,null,null,null,null,null,null,null,null,null,null,null,null,null,null,null,null,null,null,null,null,null,null,null,null,null,null,null,null,null,null,null,0,null,null,0,null,0,null,0,null,0]
[null,null,null,null,null,null,null,null,null,null,null,null,null,null,"Allowed",null,null,null,null,null,null,null,null,null,null,null,null,null,null,null,null,null,null,null,null,null,null,null,null,null,null,null,null,null,null,null,null,null,null,null,null,null,null,null,null,null,null,null,null,null,null,null,null,null,0,null,null,0,null,0,null,0,null,0]
[null,null,null,null,null,null,null,null,null,null,null,null,null,null,"Allowed",null,null,null,null,null,null,null,null,null,null,null,null,null,null,null,null,null,null,null,null,null,null,null,null,null,null,null,null,null,null,null,null,null,null,null,null,null,null,null,null,null,null,null,null,null,null,null,null,null,0,null,null,0,null,0,null,0,null,0]
[null,null,null,null,null,null,null,null,null,null,null,null,null,null,"Allowed",null,null,null,null,null,null,null,null,null,null,null,null,null,null,null,null,null,null,null,null,null,null,null,null,null,null,null,null,null,null,null,null,null,null,null,null,null,null,null,null,null,null,null,null,null,null,null,null,null,0,null,null,0,null,0,null,0,null,0]
[null,null,null,null,null,null,null,null,null,null,null,null,null,null,"Allowed",null,null,null,null,null,null,null,null,null,null,null,null,null,null,null,null,null,null,null,null,null,null,null,null,null,null,null,null,null,null,null,null,null,null,null,null,null,null,null,null,null,null,null,null,null,null,null,null,null,0,null,null,0,null,0,null,0,null,0]
[null,null,null,null,null,null,null,null,null,null,null,null,null,null,"Allowed",null,null,null,null,null,null,null,null,null,null,null,null,null,null,null,null,null,null,null,null,null,null,null,null,null,null,null,null,null,null,null,null,null,null,null,null,null,null,null,null,null,null,null,null,null,null,null,null,null,0,null,null,0,null,0,null,0,null,0]
[null,null,null,null,null,null,null,null,null,null,null,null,null,null,"Allowed",null,null,null,null,null,null,null,null,null,null,null,null,null,null,null,null,null,null,null,null,null,null,null,null,null,null,null,null,null,null,null,null,null,null,null,null,null,null,null,null,null,null,null,null,null,null,null,null,null,0,null,null,0,null,0,null,0,null,0]
[null,null,null,null,null,null,null,null,null,null,null,null,null,null,"Allowed",null,null,null,null,null,null,null,null,null,null,null,null,null,null,null,null,null,null,null,null,null,null,null,null,null,null,null,null,null,null,null,null,null,null,null,null,null,null,null,null,null,null,null,null,null,null,null,null,null,0,null,null,0,null,0,null,0,null,0]
[null,null,null,null,null,null,null,null,null,null,null,null,null,null,"Allowed",null,null,null,null,null,null,null,null,null,null,null,null,null,null,null,null,null,null,null,null,null,null,null,null,null,null,null,null,null,null,null,null,null,null,null,null,null,null,null,null,null,null,null,null,null,null,null,null,null,0,null,null,0,null,0,null,0,null,0]
[null,null,null,null,null,null,null,null,null,null,null,null,null,null,"Allowed",null,null,null,null,null,null,null,null,null,null,null,null,null,null,null,null,null,null,null,null,null,null,null,null,null,null,null,null,null,null,null,null,null,null,null,null,null,null,null,null,null,null,null,null,null,null,null,null,null,0,null,null,0,null,0,null,0,null,0]
[null,null,null,null,null,null,null,null,null,null,null,null,null,null,"Allowed",null,null,null,null,null,null,null,null,null,null,null,null,null,null,null,null,null,null,null,null,null,null,null,null,null,null,null,null,null,null,null,null,null,null,null,null,null,null,null,null,null,null,null,null,null,null,null,null,null,0,null,null,0,null,0,null,0,null,0]
[null,null,null,null,null,null,null,null,null,null,null,null,null,null,"Allowed",null,null,null,null,null,null,null,null,null,null,null,null,null,null,null,null,null,null,null,null,null,null,null,null,null,null,null,null,null,null,null,null,null,null,null,null,null,null,null,null,null,null,null,null,null,null,null,null,null,0,null,null,0,null,0,null,0,null,0]
[null,null,null,null,null,null,null,null,null,null,null,null,null,null,"Allowed",null,null,null,null,null,null,null,null,null,null,null,null,null,null,null,null,null,null,null,null,null,null,null,null,null,null,null,null,null,null,null,null,null,null,null,null,null,null,null,null,null,null,null,null,null,null,null,null,null,0,null,null,0,null,0,null,0,null,0]
[null,null,null,null,null,null,null,null,null,null,null,null,null,null,"Allowed",null,null,null,null,null,null,null,null,null,null,null,null,null,null,null,null,null,null,null,null,null,null,null,null,null,null,null,null,null,null,null,null,null,null,null,null,null,null,null,null,null,null,null,null,null,null,null,null,null,0,null,null,0,null,0,null,0,null,0]
[null,null,null,null,null,null,null,null,null,null,null,null,null,null,"Allowed",null,null,null,null,null,null,null,null,null,null,null,null,null,null,null,null,null,null,null,null,null,null,null,null,null,null,null,null,null,null,null,null,null,null,null,null,null,null,null,null,null,null,null,null,null,null,null,null,null,0,null,null,0,null,0,null,0,null,0]
[null,null,null,null,null,null,null,null,null,null,null,null,null,null,"Allowed",null,null,null,null,null,null,null,null,null,null,null,null,null,null,null,null,null,null,null,null,null,null,null,null,null,null,null,null,null,null,null,null,null,null,null,null,null,null,null,null,null,null,null,null,null,null,null,null,null,0,null,null,0,null,0,null,0,null,0]
[null,null,null,null,null,null,null,null,null,null,null,null,null,null,"Allowed",null,null,null,null,null,null,null,null,null,null,null,null,null,null,null,null,null,null,null,null,null,null,null,null,null,null,null,null,null,null,null,null,null,null,null,null,null,null,null,null,null,null,null,null,null,null,null,null,null,0,null,null,0,null,0,null,0,null,0]
[null,null,null,null,null,null,null,null,null,null,null,null,null,null,"Allowed",null,null,null,null,null,null,null,null,null,null,null,null,null,null,null,null,null,null,null,null,null,null,null,null,null,null,null,null,null,null,null,null,null,null,null,null,null,null,null,null,null,null,null,null,null,null,null,null,null,0,null,null,0,null,0,null,0,null,0]
[null,null,null,null,null,null,null,null,null,null,null,null,null,null,"Allowed",null,null,null,null,null,null,null,null,null,null,null,null,null,null,null,null,null,null,null,null,null,null,null,null,null,null,null,null,null,null,null,null,null,null,null,null,null,null,null,null,null,null,null,null,null,null,null,null,null,0,null,null,0,null,0,null,0,null,0]
[null,null,null,null,null,null,null,null,null,null,null,null,null,null,"Allowed",null,null,null,null,null,null,null,null,null,null,null,null,null,null,null,null,null,null,null,null,null,null,null,null,null,null,null,null,null,null,null,null,null,null,null,null,null,null,null,null,null,null,null,null,null,null,null,null,null,0,null,null,0,null,0,null,0,null,0]
[null,null,null,null,null,null,null,null,null,null,null,null,null,null,"Allowed",null,null,null,null,null,null,null,null,null,null,null,null,null,null,null,null,null,null,null,null,null,null,null,null,null,null,null,null,null,null,null,null,null,null,null,null,null,null,null,null,null,null,null,null,null,null,null,null,null,0,null,null,0,null,0,null,0,null,0]
[null,null,null,null,null,null,null,null,null,null,null,null,null,null,"Allowed",null,null,null,null,null,null,null,null,null,null,null,null,null,null,null,null,null,null,null,null,null,null,null,null,null,null,null,null,null,null,null,null,null,null,null,null,null,null,null,null,null,null,null,null,null,null,null,null,null,0,null,null,0,null,0,null,0,null,0]
[null,null,null,null,null,null,null,null,null,null,null,null,null,null,"Allowed",null,null,null,null,null,null,null,null,null,null,null,null,null,null,null,null,null,null,null,null,null,null,null,null,null,null,null,null,null,null,null,null,null,null,null,null,null,null,null,null,null,null,null,null,null,null,null,null,null,0,null,null,0,null,0,null,0,null,0]
[null,null,null,null,null,null,null,null,null,null,null,null,null,null,"Allowed",null,null,null,null,null,null,null,null,null,null,null,null,null,null,null,null,null,null,null,null,null,null,null,null,null,null,null,null,null,null,null,null,null,null,null,null,null,null,null,null,null,null,null,null,null,null,null,null,null,0,null,null,0,null,0,null,0,null,0]
[null,null,null,null,null,null,null,null,null,null,null,null,null,null,"Allowed",null,null,null,null,null,null,null,null,null,null,null,null,null,null,null,null,null,null,null,null,null,null,null,null,null,null,null,null,null,null,null,null,null,null,null,null,null,null,null,null,null,null,null,null,null,null,null,null,null,0,null,null,0,null,0,null,0,null,0]
[null,null,null,null,null,null,null,null,null,null,null,null,null,null,"Allowed",null,null,null,null,null,null,null,null,null,null,null,null,null,null,null,null,null,null,null,null,null,null,null,null,null,null,null,null,null,null,null,null,null,null,null,null,null,null,null,null,null,null,null,null,null,null,null,null,null,0,null,null,0,null,0,null,0,null,0]
[null,null,null,null,null,null,null,null,null,null,null,null,null,null,"Allowed",null,null,null,null,null,null,null,null,null,null,null,null,null,null,null,null,null,null,null,null,null,null,null,null,null,null,null,null,null,null,null,null,null,null,null,null,null,null,null,null,null,null,null,null,null,null,null,null,null,0,null,null,0,null,0,null,0,null,0]
[null,null,null,null,null,null,null,null,null,null,null,null,null,null,"Allowed",null,null,null,null,null,null,null,null,null,null,null,null,null,null,null,null,null,null,null,null,null,null,null,null,null,null,null,null,null,null,null,null,null,null,null,null,null,null,null,null,null,null,null,null,null,null,null,null,null,0,null,null,0,null,0,null,0,null,0]
[null,null,null,null,null,null,null,null,null,null,null,null,null,null,"Allowed",null,null,null,null,null,null,null,null,null,null,null,null,null,null,null,null,null,null,null,null,null,null,null,null,null,null,null,null,null,null,null,null,null,null,null,null,null,null,null,null,null,null,null,null,null,null,null,null,null,0,null,null,0,null,0,null,0,null,0]
[null,null,null,null,null,null,null,null,null,null,null,null,null,null,"Allowed",null,null,null,null,null,null,null,null,null,null,null,null,null,null,null,null,null,null,null,null,null,null,null,null,null,null,null,null,null,null,null,null,null,null,null,null,null,null,null,null,null,null,null,null,null,null,null,null,null,0,null,null,0,null,0,null,0,null,0]
[null,null,null,null,null,null,null,null,null,null,null,null,null,null,"Allowed",null,null,null,null,null,null,null,null,null,null,null,null,null,null,null,null,null,null,null,null,null,null,null,null,null,null,null,null,null,null,null,null,null,null,null,null,null,null,null,null,null,null,null,null,null,null,null,null,null,0,null,null,0,null,0,null,0,null,0]
[null,null,null,null,null,null,null,null,null,null,null,null,null,null,"Allowed",null,null,null,null,null,null,null,null,null,null,null,null,null,null,null,null,null,null,null,null,null,null,null,null,null,null,null,null,null,null,null,null,null,null,null,null,null,null,null,null,null,null,null,null,null,null,null,null,null,0,null,null,0,null,0,null,0,null,0]
[null,null,null,null,null,null,null,null,null,null,null,null,null,null,"Allowed",null,null,null,null,null,null,null,null,null,null,null,null,null,null,null,null,null,null,null,null,null,null,null,null,null,null,null,null,null,null,null,null,null,null,null,null,null,null,null,null,null,null,null,null,null,null,null,null,null,0,null,null,0,null,0,null,0,null,0]
[null,null,null,null,null,null,null,null,null,null,null,null,null,null,"Allowed",null,null,null,null,null,null,null,null,null,null,null,null,null,null,null,null,null,null,null,null,null,null,null,null,null,null,null,null,null,null,null,null,null,null,null,null,null,null,null,null,null,null,null,null,null,null,null,null,null,0,null,null,0,null,0,null,0,null,0]
[null,null,null,null,null,null,null,null,null,null,null,null,null,null,"Allowed",null,null,null,null,null,null,null,null,null,null,null,null,null,null,null,null,null,null,null,null,null,null,null,null,null,null,null,null,null,null,null,null,null,null,null,null,null,null,null,null,null,null,null,null,null,null,null,null,null,0,null,null,0,null,0,null,0,null,0]
[null,null,null,null,null,null,null,null,null,null,null,null,null,null,"Allowed",null,null,null,null,null,null,null,null,null,null,null,null,null,null,null,null,null,null,null,null,null,null,null,null,null,null,null,null,null,null,null,null,null,null,null,null,null,null,null,null,null,null,null,null,null,null,null,null,null,0,null,null,0,null,0,null,0,null,0]
[null,null,null,null,null,null,null,null,null,null,null,null,null,null,"Allowed",null,null,null,null,null,null,null,null,null,null,null,null,null,null,null,null,null,null,null,null,null,null,null,null,null,null,null,null,null,null,null,null,null,null,null,null,null,null,null,null,null,null,null,null,null,null,null,null,null,0,null,null,0,null,0,null,0,null,0]
[null,null,null,null,null,null,null,null,null,null,null,null,null,null,"Allowed",null,null,null,null,null,null,null,null,null,null,null,null,null,null,null,null,null,null,null,null,null,null,null,null,null,null,null,null,null,null,null,null,null,null,null,null,null,null,null,null,null,null,null,null,null,null,null,null,null,0,null,null,0,null,0,null,0,null,0]
[null,null,null,null,null,null,null,null,null,null,null,null,null,null,"Allowed",null,null,null,null,null,null,null,null,null,null,null,null,null,null,null,null,null,null,null,null,null,null,null,null,null,null,null,null,null,null,null,null,null,null,null,null,null,null,null,null,null,null,null,null,null,null,null,null,null,0,null,null,0,null,0,null,0,null,0]
[null,null,null,null,null,null,null,null,null,null,null,null,null,null,"Allowed",null,null,null,null,null,null,null,null,null,null,null,null,null,null,null,null,null,null,null,null,null,null,null,null,null,null,null,null,null,null,null,null,null,null,null,null,null,null,null,null,null,null,null,null,null,null,null,null,null,0,null,null,0,null,0,null,0,null,0]
[null,null,null,null,null,null,null,null,null,null,null,null,null,null,"Allowed",null,null,null,null,null,null,null,null,null,null,null,null,null,null,null,null,null,null,null,null,null,null,null,null,null,null,null,null,null,null,null,null,null,null,null,null,null,null,null,null,null,null,null,null,null,null,null,null,null,0,null,null,0,null,0,null,0,null,0]
[null,null,null,null,null,null,null,null,null,null,null,null,null,null,"Allowed",null,null,null,null,null,null,null,null,null,null,null,null,null,null,null,null,null,null,null,null,null,null,null,null,null,null,null,null,null,null,null,null,null,null,null,null,null,null,null,null,null,null,null,null,null,null,null,null,null,0,null,null,0,null,0,null,0,null,0]
[null,null,null,null,null,null,null,null,null,null,null,null,null,null,"Allowed",null,null,null,null,null,null,null,null,null,null,null,null,null,null,null,null,null,null,null,null,null,null,null,null,null,null,null,null,null,null,null,null,null,null,null,null,null,null,null,null,null,null,null,null,null,null,null,null,null,0,null,null,0,null,0,null,0,null,0]
[null,null,null,null,null,null,null,null,null,null,null,null,null,null,"Allowed",null,null,null,null,null,null,null,null,null,null,null,null,null,null,null,null,null,null,null,null,null,null,null,null,null,null,null,null,null,null,null,null,null,null,null,null,null,null,null,null,null,null,null,null,null,null,null,null,null,0,null,null,0,null,0,null,0,null,0]
[null,null,null,null,null,null,null,null,null,null,null,null,null,null,"Allowed",null,null,null,null,null,null,null,null,null,null,null,null,null,null,null,null,null,null,null,null,null,null,null,null,null,null,null,null,null,null,null,null,null,null,null,null,null,null,null,null,null,null,null,null,null,null,null,null,null,0,null,null,0,null,0,null,0,null,0]
[null,null,null,null,null,null,null,null,null,null,null,null,null,null,"Allowed",null,null,null,null,null,null,null,null,null,null,null,null,null,null,null,null,null,null,null,null,null,null,null,null,null,null,null,null,null,null,null,null,null,null,null,null,null,null,null,null,null,null,null,null,null,null,null,null,null,0,null,null,0,null,0,null,0,null,0]
[null,null,null,null,null,null,null,null,null,null,null,null,null,null,"Allowed",null,null,null,null,null,null,null,null,null,null,null,null,null,null,null,null,null,null,null,null,null,null,null,null,null,null,null,null,null,null,null,null,null,null,null,null,null,null,null,null,null,null,null,null,null,null,null,null,null,0,null,null,0,null,0,null,0,null,0]
[null,null,null,null,null,null,null,null,null,null,null,null,null,null,{"$f":"IF(N195<=TRUNC(P195*1.015228,2),\"Allowed\",\"Exceeds Max\")","v":"Allowed"},null,null,null,null,null,null,null,null,null,null,null,null,null,null,null,null,null,null,null,null,null,null,null,null,null,null,null,null,null,null,null,null,null,null,null,null,null,null,null,null,null,null,null,null,null,null,null,null,null,0,null,null,0,null,0,null,0,null,0]
[null,null,null,null,null,null,null,null,null,null,null,null,null,null,"Allowed",null,null,null,null,null,null,null,null,null,null,null,null,null,null,null,null,null,null,null,null,null,null,null,null,null,null,null,null,null,null,null,null,null,null,null,null,null,null,null,null,null,null,null,null,null,null,null,null,null,{"$f":"LEN(BL196)","v":0},null,null,{"$f":"LEN(BO196)","v":0},null,{"$f":"LEN(BQ196)","v":0},null,{"$f":"LEN(BS196)","v":0},null,{"$f":"LEN(BU196)","v":0}]
[null,null,null,null,null,null,null,null,null,null,null,null,null,null,"Allowed",null,null,null,null,null,null,null,null,null,null,null,null,null,null,null,null,null,null,null,null,null,null,null,null,null,null,null,null,null,null,null,null,null,null,null,null,null,null,null,null,null,null,null,null,null,null,null,null,null,0,null,null,0,null,0,null,0,null,0]
[null,null,null,null,null,null,null,null,null,null,null,null,null,null,"Allowed",null,null,null,null,null,null,null,null,null,null,null,null,null,null,null,null,null,null,null,null,null,null,null,null,null,null,null,null,null,null,null,null,null,null,null,null,null,null,null,null,null,null,null,null,null,null,null,null,null,0,null,null,0,null,0,null,0,null,0]
[null,null,null,null,null,null,null,null,null,null,null,null,null,null,"Allowed",null,null,null,null,null,null,null,null,null,null,null,null,null,null,null,null,null,null,null,null,null,null,null,null,null,null,null,null,null,null,null,null,null,null,null,null,null,null,null,null,null,null,null,null,null,null,null,null,null,0,null,null,0,null,0,null,0,null,0]
[null,null,null,null,null,null,null,null,null,null,null,null,null,null,"Allowed",null,null,null,null,null,null,null,null,null,null,null,null,null,null,null,null,null,null,null,null,null,null,null,null,null,null,null,null,null,null,null,null,null,null,null,null,null,null,null,null,null,null,null,null,null,null,null,null,null,0,null,null,0,null,0,null,0,null,0]
[null,null,null,null,null,null,null,null,null,null,null,null,null,null,"Allowed",null,null,null,null,null,null,null,null,null,null,null,null,null,null,null,null,null,null,null,null,null,null,null,null,null,null,null,null,null,null,null,null,null,null,null,null,null,null,null,null,null,null,null,null,null,null,null,null,null,0,null,null,0,null,0,null,0,null,0]
[null,null,null,null,null,null,null,null,null,null,null,null,null,null,"Allowed",null,null,null,null,null,null,null,null,null,null,null,null,null,null,null,null,null,null,null,null,null,null,null,null,null,null,null,null,null,null,null,null,null,null,null,null,null,null,null,null,null,null,null,null,null,null,null,null,null,0,null,null,0,null,0,null,0,null,0]
[null,null,null,null,null,null,null,null,null,null,null,null,null,null,"Allowed",null,null,null,null,null,null,null,null,null,null,null,null,null,null,null,null,null,null,null,null,null,null,null,null,null,null,null,null,null,null,null,null,null,null,null,null,null,null,null,null,null,null,null,null,null,null,null,null,null,0,null,null,0,null,0,null,0,null,0]
[null,null,null,null,null,null,null,null,null,null,null,null,null,null,"Allowed",null,null,null,null,null,null,null,null,null,null,null,null,null,null,null,null,null,null,null,null,null,null,null,null,null,null,null,null,null,null,null,null,null,null,null,null,null,null,null,null,null,null,null,null,null,null,null,null,null,0,null,null,0,null,0,null,0,null,0]
[null,null,null,null,null,null,null,null,null,null,null,null,null,null,"Allowed",null,null,null,null,null,null,null,null,null,null,null,null,null,null,null,null,null,null,null,null,null,null,null,null,null,null,null,null,null,null,null,null,null,null,null,null,null,null,null,null,null,null,null,null,null,null,null,null,null,0,null,null,0,null,0,null,0,null,0]
[null,null,null,null,null,null,null,null,null,null,null,null,null,null,"Allowed",null,null,null,null,null,null,null,null,null,null,null,null,null,null,null,null,null,null,null,null,null,null,null,null,null,null,null,null,null,null,null,null,null,null,null,null,null,null,null,null,null,null,null,null,null,null,null,null,null,0,null,null,0,null,0,null,0,null,0]
[null,null,null,null,null,null,null,null,null,null,null,null,null,null,"Allowed",null,null,null,null,null,null,null,null,null,null,null,null,null,null,null,null,null,null,null,null,null,null,null,null,null,null,null,null,null,null,null,null,null,null,null,null,null,null,null,null,null,null,null,null,null,null,null,null,null,0,null,null,0,null,0,null,0,null,0]
[null,null,null,null,null,null,null,null,null,null,null,null,null,null,"Allowed",null,null,null,null,null,null,null,null,null,null,null,null,null,null,null,null,null,null,null,null,null,null,null,null,null,null,null,null,null,null,null,null,null,null,null,null,null,null,null,null,null,null,null,null,null,null,null,null,null,0,null,null,0,null,0,null,0,null,0]
[null,null,null,null,null,null,null,null,null,null,null,null,null,null,"Allowed",null,null,null,null,null,null,null,null,null,null,null,null,null,null,null,null,null,null,null,null,null,null,null,null,null,null,null,null,null,null,null,null,null,null,null,null,null,null,null,null,null,null,null,null,null,null,null,null,null,0,null,null,0,null,0,null,0,null,0]
[null,null,null,null,null,null,null,null,null,null,null,null,null,null,"Allowed",null,null,null,null,null,null,null,null,null,null,null,null,null,null,null,null,null,null,null,null,null,null,null,null,null,null,null,null,null,null,null,null,null,null,null,null,null,null,null,null,null,null,null,null,null,null,null,null,null,0,null,null,0,null,0,null,0,null,0]
[null,null,null,null,null,null,null,null,null,null,null,null,null,null,"Allowed",null,null,null,null,null,null,null,null,null,null,null,null,null,null,null,null,null,null,null,null,null,null,null,null,null,null,null,null,null,null,null,null,null,null,null,null,null,null,null,null,null,null,null,null,null,null,null,null,null,0,null,null,0,null,0,null,0,null,0]
[null,null,null,null,null,null,null,null,null,null,null,null,null,null,"Allowed",null,null,null,null,null,null,null,null,null,null,null,null,null,null,null,null,null,null,null,null,null,null,null,null,null,null,null,null,null,null,null,null,null,null,null,null,null,null,null,null,null,null,null,null,null,null,null,null,null,0,null,null,0,null,0,null,0,null,0]
[null,null,null,null,null,null,null,null,null,null,null,null,null,null,"Allowed",null,null,null,null,null,null,null,null,null,null,null,null,null,null,null,null,null,null,null,null,null,null,null,null,null,null,null,null,null,null,null,null,null,null,null,null,null,null,null,null,null,null,null,null,null,null,null,null,null,0,null,null,0,null,0,null,0,null,0]
[null,null,null,null,null,null,null,null,null,null,null,null,null,null,"Allowed",null,null,null,null,null,null,null,null,null,null,null,null,null,null,null,null,null,null,null,null,null,null,null,null,null,null,null,null,null,null,null,null,null,null,null,null,null,null,null,null,null,null,null,null,null,null,null,null,null,0,null,null,0,null,0,null,0,null,0]
[null,null,null,null,null,null,null,null,null,null,null,null,null,null,"Allowed",null,null,null,null,null,null,null,null,null,null,null,null,null,null,null,null,null,null,null,null,null,null,null,null,null,null,null,null,null,null,null,null,null,null,null,null,null,null,null,null,null,null,null,null,null,null,null,null,null,0,null,null,0,null,0,null,0,null,0]
[null,null,null,null,null,null,null,null,null,null,null,null,null,null,"Allowed",null,null,null,null,null,null,null,null,null,null,null,null,null,null,null,null,null,null,null,null,null,null,null,null,null,null,null,null,null,null,null,null,null,null,null,null,null,null,null,null,null,null,null,null,null,null,null,null,null,0,null,null,0,null,0,null,0,null,0]
[null,null,null,null,null,null,null,null,null,null,null,null,null,null,"Allowed",null,null,null,null,null,null,null,null,null,null,null,null,null,null,null,null,null,null,null,null,null,null,null,null,null,null,null,null,null,null,null,null,null,null,null,null,null,null,null,null,null,null,null,null,null,null,null,null,null,0,null,null,0,null,0,null,0,null,0]
[null,null,null,null,null,null,null,null,null,null,null,null,null,null,"Allowed",null,null,null,null,null,null,null,null,null,null,null,null,null,null,null,null,null,null,null,null,null,null,null,null,null,null,null,null,null,null,null,null,null,null,null,null,null,null,null,null,null,null,null,null,null,null,null,null,null,0,null,null,0,null,0,null,0,null,0]
[null,null,null,null,null,null,null,null,null,null,null,null,null,null,"Allowed",null,null,null,null,null,null,null,null,null,null,null,null,null,null,null,null,null,null,null,null,null,null,null,null,null,null,null,null,null,null,null,null,null,null,null,null,null,null,null,null,null,null,null,null,null,null,null,null,null,0,null,null,0,null,0,null,0,null,0]
[null,null,null,null,null,null,null,null,null,null,null,null,null,null,"Allowed",null,null,null,null,null,null,null,null,null,null,null,null,null,null,null,null,null,null,null,null,null,null,null,null,null,null,null,null,null,null,null,null,null,null,null,null,null,null,null,null,null,null,null,null,null,null,null,null,null,0,null,null,0,null,0,null,0,null,0]
[null,null,null,null,null,null,null,null,null,null,null,null,null,null,"Allowed",null,null,null,null,null,null,null,null,null,null,null,null,null,null,null,null,null,null,null,null,null,null,null,null,null,null,null,null,null,null,null,null,null,null,null,null,null,null,null,null,null,null,null,null,null,null,null,null,null,0,null,null,0,null,0,null,0,null,0]
[null,null,null,null,null,null,null,null,null,null,null,null,null,null,"Allowed",null,null,null,null,null,null,null,null,null,null,null,null,null,null,null,null,null,null,null,null,null,null,null,null,null,null,null,null,null,null,null,null,null,null,null,null,null,null,null,null,null,null,null,null,null,null,null,null,null,0,null,null,0,null,0,null,0,null,0]
[null,null,null,null,null,null,null,null,null,null,null,null,null,null,"Allowed",null,null,null,null,null,null,null,null,null,null,null,null,null,null,null,null,null,null,null,null,null,null,null,null,null,null,null,null,null,null,null,null,null,null,null,null,null,null,null,null,null,null,null,null,null,null,null,null,null,0,null,null,0,null,0,null,0,null,0]
[null,null,null,null,null,null,null,null,null,null,null,null,null,null,"Allowed",null,null,null,null,null,null,null,null,null,null,null,null,null,null,null,null,null,null,null,null,null,null,null,null,null,null,null,null,null,null,null,null,null,null,null,null,null,null,null,null,null,null,null,null,null,null,null,null,null,0,null,null,0,null,0,null,0,null,0]
[null,null,null,null,null,null,null,null,null,null,null,null,null,null,"Allowed",null,null,null,null,null,null,null,null,null,null,null,null,null,null,null,null,null,null,null,null,null,null,null,null,null,null,null,null,null,null,null,null,null,null,null,null,null,null,null,null,null,null,null,null,null,null,null,null,null,0,null,null,0,null,0,null,0,null,0]
[null,null,null,null,null,null,null,null,null,null,null,null,null,null,"Allowed",null,null,null,null,null,null,null,null,null,null,null,null,null,null,null,null,null,null,null,null,null,null,null,null,null,null,null,null,null,null,null,null,null,null,null,null,null,null,null,null,null,null,null,null,null,null,null,null,null,0,null,null,0,null,0,null,0,null,0]
[null,null,null,null,null,null,null,null,null,null,null,null,null,null,"Allowed",null,null,null,null,null,null,null,null,null,null,null,null,null,null,null,null,null,null,null,null,null,null,null,null,null,null,null,null,null,null,null,null,null,null,null,null,null,null,null,null,null,null,null,null,null,null,null,null,null,0,null,null,0,null,0,null,0,null,0]
[null,null,null,null,null,null,null,null,null,null,null,null,null,null,"Allowed",null,null,null,null,null,null,null,null,null,null,null,null,null,null,null,null,null,null,null,null,null,null,null,null,null,null,null,null,null,null,null,null,null,null,null,null,null,null,null,null,null,null,null,null,null,null,null,null,null,0,null,null,0,null,0,null,0,null,0]
[null,null,null,null,null,null,null,null,null,null,null,null,null,null,"Allowed",null,null,null,null,null,null,null,null,null,null,null,null,null,null,null,null,null,null,null,null,null,null,null,null,null,null,null,null,null,null,null,null,null,null,null,null,null,null,null,null,null,null,null,null,null,null,null,null,null,0,null,null,0,null,0,null,0,null,0]
[null,null,null,null,null,null,null,null,null,null,null,null,null,null,"Allowed",null,null,null,null,null,null,null,null,null,null,null,null,null,null,null,null,null,null,null,null,null,null,null,null,null,null,null,null,null,null,null,null,null,null,null,null,null,null,null,null,null,null,null,null,null,null,null,null,null,0,null,null,0,null,0,null,0,null,0]
[null,null,null,null,null,null,null,null,null,null,null,null,null,null,"Allowed",null,null,null,null,null,null,null,null,null,null,null,null,null,null,null,null,null,null,null,null,null,null,null,null,null,null,null,null,null,null,null,null,null,null,null,null,null,null,null,null,null,null,null,null,null,null,null,null,null,0,null,null,0,null,0,null,0,null,0]
[null,null,null,null,null,null,null,null,null,null,null,null,null,null,"Allowed",null,null,null,null,null,null,null,null,null,null,null,null,null,null,null,null,null,null,null,null,null,null,null,null,null,null,null,null,null,null,null,null,null,null,null,null,null,null,null,null,null,null,null,null,null,null,null,null,null,0,null,null,0,null,0,null,0,null,0]
[null,null,null,null,null,null,null,null,null,null,null,null,null,null,"Allowed",null,null,null,null,null,null,null,null,null,null,null,null,null,null,null,null,null,null,null,null,null,null,null,null,null,null,null,null,null,null,null,null,null,null,null,null,null,null,null,null,null,null,null,null,null,null,null,null,null,0,null,null,0,null,0,null,0,null,0]
[null,null,null,null,null,null,null,null,null,null,null,null,null,null,"Allowed",null,null,null,null,null,null,null,null,null,null,null,null,null,null,null,null,null,null,null,null,null,null,null,null,null,null,null,null,null,null,null,null,null,null,null,null,null,null,null,null,null,null,null,null,null,null,null,null,null,0,null,null,0,null,0,null,0,null,0]
[null,null,null,null,null,null,null,null,null,null,null,null,null,null,"Allowed",null,null,null,null,null,null,null,null,null,null,null,null,null,null,null,null,null,null,null,null,null,null,null,null,null,null,null,null,null,null,null,null,null,null,null,null,null,null,null,null,null,null,null,null,null,null,null,null,null,0,null,null,0,null,0,null,0,null,0]
[null,null,null,null,null,null,null,null,null,null,null,null,null,null,"Allowed",null,null,null,null,null,null,null,null,null,null,null,null,null,null,null,null,null,null,null,null,null,null,null,null,null,null,null,null,null,null,null,null,null,null,null,null,null,null,null,null,null,null,null,null,null,null,null,null,null,0,null,null,0,null,0,null,0,null,0]
[null,null,null,null,null,null,null,null,null,null,null,null,null,null,"Allowed",null,null,null,null,null,null,null,null,null,null,null,null,null,null,null,null,null,null,null,null,null,null,null,null,null,null,null,null,null,null,null,null,null,null,null,null,null,null,null,null,null,null,null,null,null,null,null,null,null,0,null,null,0,null,0,null,0,null,0]
[null,null,null,null,null,null,null,null,null,null,null,null,null,null,"Allowed",null,null,null,null,null,null,null,null,null,null,null,null,null,null,null,null,null,null,null,null,null,null,null,null,null,null,null,null,null,null,null,null,null,null,null,null,null,null,null,null,null,null,null,null,null,null,null,null,null,0,null,null,0,null,0,null,0,null,0]
[null,null,null,null,null,null,null,null,null,null,null,null,null,null,"Allowed",null,null,null,null,null,null,null,null,null,null,null,null,null,null,null,null,null,null,null,null,null,null,null,null,null,null,null,null,null,null,null,null,null,null,null,null,null,null,null,null,null,null,null,null,null,null,null,null,null,0,null,null,0,null,0,null,0,null,0]
[null,null,null,null,null,null,null,null,null,null,null,null,null,null,"Allowed",null,null,null,null,null,null,null,null,null,null,null,null,null,null,null,null,null,null,null,null,null,null,null,null,null,null,null,null,null,null,null,null,null,null,null,null,null,null,null,null,null,null,null,null,null,null,null,null,null,0,null,null,0,null,0,null,0,null,0]
[null,null,null,null,null,null,null,null,null,null,null,null,null,null,"Allowed",null,null,null,null,null,null,null,null,null,null,null,null,null,null,null,null,null,null,null,null,null,null,null,null,null,null,null,null,null,null,null,null,null,null,null,null,null,null,null,null,null,null,null,null,null,null,null,null,null,0,null,null,0,null,0,null,0,null,0]
[null,null,null,null,null,null,null,null,null,null,null,null,null,null,"Allowed",null,null,null,null,null,null,null,null,null,null,null,null,null,null,null,null,null,null,null,null,null,null,null,null,null,null,null,null,null,null,null,null,null,null,null,null,null,null,null,null,null,null,null,null,null,null,null,null,null,0,null,null,0,null,0,null,0,null,0]
[null,null,null,null,null,null,null,null,null,null,null,null,null,null,"Allowed",null,null,null,null,null,null,null,null,null,null,null,null,null,null,null,null,null,null,null,null,null,null,null,null,null,null,null,null,null,null,null,null,null,null,null,null,null,null,null,null,null,null,null,null,null,null,null,null,null,0,null,null,0,null,0,null,0,null,0]
[null,null,null,null,null,null,null,null,null,null,null,null,null,null,"Allowed",null,null,null,null,null,null,null,null,null,null,null,null,null,null,null,null,null,null,null,null,null,null,null,null,null,null,null,null,null,null,null,null,null,null,null,null,null,null,null,null,null,null,null,null,null,null,null,null,null,0,null,null,0,null,0,null,0,null,0]
[null,null,null,null,null,null,null,null,null,null,null,null,null,null,"Allowed",null,null,null,null,null,null,null,null,null,null,null,null,null,null,null,null,null,null,null,null,null,null,null,null,null,null,null,null,null,null,null,null,null,null,null,null,null,null,null,null,null,null,null,null,null,null,null,null,null,0,null,null,0,null,0,null,0,null,0]
[null,null,null,null,null,null,null,null,null,null,null,null,null,null,"Allowed",null,null,null,null,null,null,null,null,null,null,null,null,null,null,null,null,null,null,null,null,null,null,null,null,null,null,null,null,null,null,null,null,null,null,null,null,null,null,null,null,null,null,null,null,null,null,null,null,null,0,null,null,0,null,0,null,0,null,0]
[null,null,null,null,null,null,null,null,null,null,null,null,null,null,"Allowed",null,null,null,null,null,null,null,null,null,null,null,null,null,null,null,null,null,null,null,null,null,null,null,null,null,null,null,null,null,null,null,null,null,null,null,null,null,null,null,null,null,null,null,null,null,null,null,null,null,0,null,null,0,null,0,null,0,null,0]
[null,null,null,null,null,null,null,null,null,null,null,null,null,null,"Allowed",null,null,null,null,null,null,null,null,null,null,null,null,null,null,null,null,null,null,null,null,null,null,null,null,null,null,null,null,null,null,null,null,null,null,null,null,null,null,null,null,null,null,null,null,null,null,null,null,null,0,null,null,0,null,0,null,0,null,0]
[null,null,null,null,null,null,null,null,null,null,null,null,null,null,"Allowed",null,null,null,null,null,null,null,null,null,null,null,null,null,null,null,null,null,null,null,null,null,null,null,null,null,null,null,null,null,null,null,null,null,null,null,null,null,null,null,null,null,null,null,null,null,null,null,null,null,0,null,null,0,null,0,null,0,null,0]
[null,null,null,null,null,null,null,null,null,null,null,null,null,null,"Allowed",null,null,null,null,null,null,null,null,null,null,null,null,null,null,null,null,null,null,null,null,null,null,null,null,null,null,null,null,null,null,null,null,null,null,null,null,null,null,null,null,null,null,null,null,null,null,null,null,null,0,null,null,0,null,0,null,0,null,0]
[null,null,null,null,null,null,null,null,null,null,null,null,null,null,"Allowed",null,null,null,null,null,null,null,null,null,null,null,null,null,null,null,null,null,null,null,null,null,null,null,null,null,null,null,null,null,null,null,null,null,null,null,null,null,null,null,null,null,null,null,null,null,null,null,null,null,0,null,null,0,null,0,null,0,null,0]
[null,null,null,null,null,null,null,null,null,null,null,null,null,null,"Allowed",null,null,null,null,null,null,null,null,null,null,null,null,null,null,null,null,null,null,null,null,null,null,null,null,null,null,null,null,null,null,null,null,null,null,null,null,null,null,null,null,null,null,null,null,null,null,null,null,null,0,null,null,0,null,0,null,0,null,0]
[null,null,null,null,null,null,null,null,null,null,null,null,null,null,"Allowed",null,null,null,null,null,null,null,null,null,null,null,null,null,null,null,null,null,null,null,null,null,null,null,null,null,null,null,null,null,null,null,null,null,null,null,null,null,null,null,null,null,null,null,null,null,null,null,null,null,0,null,null,0,null,0,null,0,null,0]
[null,null,null,null,null,null,null,null,null,null,null,null,null,null,"Allowed",null,null,null,null,null,null,null,null,null,null,null,null,null,null,null,null,null,null,null,null,null,null,null,null,null,null,null,null,null,null,null,null,null,null,null,null,null,null,null,null,null,null,null,null,null,null,null,null,null,0,null,null,0,null,0,null,0,null,0]
[null,null,null,null,null,null,null,null,null,null,null,null,null,null,"Allowed",null,null,null,null,null,null,null,null,null,null,null,null,null,null,null,null,null,null,null,null,null,null,null,null,null,null,null,null,null,null,null,null,null,null,null,null,null,null,null,null,null,null,null,null,null,null,null,null,null,0,null,null,0,null,0,null,0,null,0]
[null,null,null,null,null,null,null,null,null,null,null,null,null,null,"Allowed",null,null,null,null,null,null,null,null,null,null,null,null,null,null,null,null,null,null,null,null,null,null,null,null,null,null,null,null,null,null,null,null,null,null,null,null,null,null,null,null,null,null,null,null,null,null,null,null,null,0,null,null,0,null,0,null,0,null,0]
[null,null,null,null,null,null,null,null,null,null,null,null,null,null,"Allowed",null,null,null,null,null,null,null,null,null,null,null,null,null,null,null,null,null,null,null,null,null,null,null,null,null,null,null,null,null,null,null,null,null,null,null,null,null,null,null,null,null,null,null,null,null,null,null,null,null,0,null,null,0,null,0,null,0,null,0]
[null,null,null,null,null,null,null,null,null,null,null,null,null,null,"Allowed",null,null,null,null,null,null,null,null,null,null,null,null,null,null,null,null,null,null,null,null,null,null,null,null,null,null,null,null,null,null,null,null,null,null,null,null,null,null,null,null,null,null,null,null,null,null,null,null,null,0,null,null,0,null,0,null,0,null,0]
[null,null,null,null,null,null,null,null,null,null,null,null,null,null,{"$f":"IF(N259<=TRUNC(P259*1.015228,2),\"Allowed\",\"Exceeds Max\")","v":"Allowed"},null,null,null,null,null,null,null,null,null,null,null,null,null,null,null,null,null,null,null,null,null,null,null,null,null,null,null,null,null,null,null,null,null,null,null,null,null,null,null,null,null,null,null,null,null,null,null,null,null,0,null,null,0,null,0,null,0,null,0]
[null,null,null,null,null,null,null,null,null,null,null,null,null,null,"Allowed",null,null,null,null,null,null,null,null,null,null,null,null,null,null,null,null,null,null,null,null,null,null,null,null,null,null,null,null,null,null,null,null,null,null,null,null,null,null,null,null,null,null,null,null,null,null,null,null,null,{"$f":"LEN(BL260)","v":0},null,null,{"$f":"LEN(BO260)","v":0},null,{"$f":"LEN(BQ260)","v":0},null,{"$f":"LEN(BS260)","v":0},null,{"$f":"LEN(BU260)","v":0}]
[null,null,null,null,null,null,null,null,null,null,null,null,null,null,"Allowed",null,null,null,null,null,null,null,null,null,null,null,null,null,null,null,null,null,null,null,null,null,null,null,null,null,null,null,null,null,null,null,null,null,null,null,null,null,null,null,null,null,null,null,null,null,null,null,null,null,0,null,null,0,null,0,null,0,null,0]
[null,null,null,null,null,null,null,null,null,null,null,null,null,null,"Allowed",null,null,null,null,null,null,null,null,null,null,null,null,null,null,null,null,null,null,null,null,null,null,null,null,null,null,null,null,null,null,null,null,null,null,null,null,null,null,null,null,null,null,null,null,null,null,null,null,null,0,null,null,0,null,0,null,0,null,0]
[null,null,null,null,null,null,null,null,null,null,null,null,null,null,"Allowed",null,null,null,null,null,null,null,null,null,null,null,null,null,null,null,null,null,null,null,null,null,null,null,null,null,null,null,null,null,null,null,null,null,null,null,null,null,null,null,null,null,null,null,null,null,null,null,null,null,0,null,null,0,null,0,null,0,null,0]
[null,null,null,null,null,null,null,null,null,null,null,null,null,null,"Allowed",null,null,null,null,null,null,null,null,null,null,null,null,null,null,null,null,null,null,null,null,null,null,null,null,null,null,null,null,null,null,null,null,null,null,null,null,null,null,null,null,null,null,null,null,null,null,null,null,null,0,null,null,0,null,0,null,0,null,0]
[null,null,null,null,null,null,null,null,null,null,null,null,null,null,"Allowed",null,null,null,null,null,null,null,null,null,null,null,null,null,null,null,null,null,null,null,null,null,null,null,null,null,null,null,null,null,null,null,null,null,null,null,null,null,null,null,null,null,null,null,null,null,null,null,null,null,0,null,null,0,null,0,null,0,null,0]
[null,null,null,null,null,null,null,null,null,null,null,null,null,null,"Allowed",null,null,null,null,null,null,null,null,null,null,null,null,null,null,null,null,null,null,null,null,null,null,null,null,null,null,null,null,null,null,null,null,null,null,null,null,null,null,null,null,null,null,null,null,null,null,null,null,null,0,null,null,0,null,0,null,0,null,0]
[null,null,null,null,null,null,null,null,null,null,null,null,null,null,"Allowed",null,null,null,null,null,null,null,null,null,null,null,null,null,null,null,null,null,null,null,null,null,null,null,null,null,null,null,null,null,null,null,null,null,null,null,null,null,null,null,null,null,null,null,null,null,null,null,null,null,0,null,null,0,null,0,null,0,null,0]
[null,null,null,null,null,null,null,null,null,null,null,null,null,null,"Allowed",null,null,null,null,null,null,null,null,null,null,null,null,null,null,null,null,null,null,null,null,null,null,null,null,null,null,null,null,null,null,null,null,null,null,null,null,null,null,null,null,null,null,null,null,null,null,null,null,null,0,null,null,0,null,0,null,0,null,0]
[null,null,null,null,null,null,null,null,null,null,null,null,null,null,"Allowed",null,null,null,null,null,null,null,null,null,null,null,null,null,null,null,null,null,null,null,null,null,null,null,null,null,null,null,null,null,null,null,null,null,null,null,null,null,null,null,null,null,null,null,null,null,null,null,null,null,0,null,null,0,null,0,null,0,null,0]
[null,null,null,null,null,null,null,null,null,null,null,null,null,null,"Allowed",null,null,null,null,null,null,null,null,null,null,null,null,null,null,null,null,null,null,null,null,null,null,null,null,null,null,null,null,null,null,null,null,null,null,null,null,null,null,null,null,null,null,null,null,null,null,null,null,null,0,null,null,0,null,0,null,0,null,0]
[null,null,null,null,null,null,null,null,null,null,null,null,null,null,"Allowed",null,null,null,null,null,null,null,null,null,null,null,null,null,null,null,null,null,null,null,null,null,null,null,null,null,null,null,null,null,null,null,null,null,null,null,null,null,null,null,null,null,null,null,null,null,null,null,null,null,0,null,null,0,null,0,null,0,null,0]
[null,null,null,null,null,null,null,null,null,null,null,null,null,null,"Allowed",null,null,null,null,null,null,null,null,null,null,null,null,null,null,null,null,null,null,null,null,null,null,null,null,null,null,null,null,null,null,null,null,null,null,null,null,null,null,null,null,null,null,null,null,null,null,null,null,null,0,null,null,0,null,0,null,0,null,0]
[null,null,null,null,null,null,null,null,null,null,null,null,null,null,"Allowed",null,null,null,null,null,null,null,null,null,null,null,null,null,null,null,null,null,null,null,null,null,null,null,null,null,null,null,null,null,null,null,null,null,null,null,null,null,null,null,null,null,null,null,null,null,null,null,null,null,0,null,null,0,null,0,null,0,null,0]
[null,null,null,null,null,null,null,null,null,null,null,null,null,null,"Allowed",null,null,null,null,null,null,null,null,null,null,null,null,null,null,null,null,null,null,null,null,null,null,null,null,null,null,null,null,null,null,null,null,null,null,null,null,null,null,null,null,null,null,null,null,null,null,null,null,null,0,null,null,0,null,0,null,0,null,0]
[null,null,null,null,null,null,null,null,null,null,null,null,null,null,"Allowed",null,null,null,null,null,null,null,null,null,null,null,null,null,null,null,null,null,null,null,null,null,null,null,null,null,null,null,null,null,null,null,null,null,null,null,null,null,null,null,null,null,null,null,null,null,null,null,null,null,0,null,null,0,null,0,null,0,null,0]
[null,null,null,null,null,null,null,null,null,null,null,null,null,null,"Allowed",null,null,null,null,null,null,null,null,null,null,null,null,null,null,null,null,null,null,null,null,null,null,null,null,null,null,null,null,null,null,null,null,null,null,null,null,null,null,null,null,null,null,null,null,null,null,null,null,null,0,null,null,0,null,0,null,0,null,0]
[null,null,null,null,null,null,null,null,null,null,null,null,null,null,"Allowed",null,null,null,null,null,null,null,null,null,null,null,null,null,null,null,null,null,null,null,null,null,null,null,null,null,null,null,null,null,null,null,null,null,null,null,null,null,null,null,null,null,null,null,null,null,null,null,null,null,0,null,null,0,null,0,null,0,null,0]
[null,null,null,null,null,null,null,null,null,null,null,null,null,null,"Allowed",null,null,null,null,null,null,null,null,null,null,null,null,null,null,null,null,null,null,null,null,null,null,null,null,null,null,null,null,null,null,null,null,null,null,null,null,null,null,null,null,null,null,null,null,null,null,null,null,null,0,null,null,0,null,0,null,0,null,0]
[null,null,null,null,null,null,null,null,null,null,null,null,null,null,"Allowed",null,null,null,null,null,null,null,null,null,null,null,null,null,null,null,null,null,null,null,null,null,null,null,null,null,null,null,null,null,null,null,null,null,null,null,null,null,null,null,null,null,null,null,null,null,null,null,null,null,0,null,null,0,null,0,null,0,null,0]
[null,null,null,null,null,null,null,null,null,null,null,null,null,null,"Allowed",null,null,null,null,null,null,null,null,null,null,null,null,null,null,null,null,null,null,null,null,null,null,null,null,null,null,null,null,null,null,null,null,null,null,null,null,null,null,null,null,null,null,null,null,null,null,null,null,null,0,null,null,0,null,0,null,0,null,0]
[null,null,null,null,null,null,null,null,null,null,null,null,null,null,"Allowed",null,null,null,null,null,null,null,null,null,null,null,null,null,null,null,null,null,null,null,null,null,null,null,null,null,null,null,null,null,null,null,null,null,null,null,null,null,null,null,null,null,null,null,null,null,null,null,null,null,0,null,null,0,null,0,null,0,null,0]
[null,null,null,null,null,null,null,null,null,null,null,null,null,null,"Allowed",null,null,null,null,null,null,null,null,null,null,null,null,null,null,null,null,null,null,null,null,null,null,null,null,null,null,null,null,null,null,null,null,null,null,null,null,null,null,null,null,null,null,null,null,null,null,null,null,null,0,null,null,0,null,0,null,0,null,0]
[null,null,null,null,null,null,null,null,null,null,null,null,null,null,"Allowed",null,null,null,null,null,null,null,null,null,null,null,null,null,null,null,null,null,null,null,null,null,null,null,null,null,null,null,null,null,null,null,null,null,null,null,null,null,null,null,null,null,null,null,null,null,null,null,null,null,0,null,null,0,null,0,null,0,null,0]
[null,null,null,null,null,null,null,null,null,null,null,null,null,null,"Allowed",null,null,null,null,null,null,null,null,null,null,null,null,null,null,null,null,null,null,null,null,null,null,null,null,null,null,null,null,null,null,null,null,null,null,null,null,null,null,null,null,null,null,null,null,null,null,null,null,null,0,null,null,0,null,0,null,0,null,0]
[null,null,null,null,null,null,null,null,null,null,null,null,null,null,"Allowed",null,null,null,null,null,null,null,null,null,null,null,null,null,null,null,null,null,null,null,null,null,null,null,null,null,null,null,null,null,null,null,null,null,null,null,null,null,null,null,null,null,null,null,null,null,null,null,null,null,0,null,null,0,null,0,null,0,null,0]
[null,null,null,null,null,null,null,null,null,null,null,null,null,null,"Allowed",null,null,null,null,null,null,null,null,null,null,null,null,null,null,null,null,null,null,null,null,null,null,null,null,null,null,null,null,null,null,null,null,null,null,null,null,null,null,null,null,null,null,null,null,null,null,null,null,null,0,null,null,0,null,0,null,0,null,0]
[null,null,null,null,null,null,null,null,null,null,null,null,null,null,"Allowed",null,null,null,null,null,null,null,null,null,null,null,null,null,null,null,null,null,null,null,null,null,null,null,null,null,null,null,null,null,null,null,null,null,null,null,null,null,null,null,null,null,null,null,null,null,null,null,null,null,0,null,null,0,null,0,null,0,null,0]
[null,null,null,null,null,null,null,null,null,null,null,null,null,null,"Allowed",null,null,null,null,null,null,null,null,null,null,null,null,null,null,null,null,null,null,null,null,null,null,null,null,null,null,null,null,null,null,null,null,null,null,null,null,null,null,null,null,null,null,null,null,null,null,null,null,null,0,null,null,0,null,0,null,0,null,0]
[null,null,null,null,null,null,null,null,null,null,null,null,null,null,"Allowed",null,null,null,null,null,null,null,null,null,null,null,null,null,null,null,null,null,null,null,null,null,null,null,null,null,null,null,null,null,null,null,null,null,null,null,null,null,null,null,null,null,null,null,null,null,null,null,null,null,0,null,null,0,null,0,null,0,null,0]
[null,null,null,null,null,null,null,null,null,null,null,null,null,null,"Allowed",null,null,null,null,null,null,null,null,null,null,null,null,null,null,null,null,null,null,null,null,null,null,null,null,null,null,null,null,null,null,null,null,null,null,null,null,null,null,null,null,null,null,null,null,null,null,null,null,null,0,null,null,0,null,0,null,0,null,0]
[null,null,null,null,null,null,null,null,null,null,null,null,null,null,"Allowed",null,null,null,null,null,null,null,null,null,null,null,null,null,null,null,null,null,null,null,null,null,null,null,null,null,null,null,null,null,null,null,null,null,null,null,null,null,null,null,null,null,null,null,null,null,null,null,null,null,0,null,null,0,null,0,null,0,null,0]
[null,null,null,null,null,null,null,null,null,null,null,null,null,null,"Allowed",null,null,null,null,null,null,null,null,null,null,null,null,null,null,null,null,null,null,null,null,null,null,null,null,null,null,null,null,null,null,null,null,null,null,null,null,null,null,null,null,null,null,null,null,null,null,null,null,null,0,null,null,0,null,0,null,0,null,0]
[null,null,null,null,null,null,null,null,null,null,null,null,null,null,"Allowed",null,null,null,null,null,null,null,null,null,null,null,null,null,null,null,null,null,null,null,null,null,null,null,null,null,null,null,null,null,null,null,null,null,null,null,null,null,null,null,null,null,null,null,null,null,null,null,null,null,0,null,null,0,null,0,null,0,null,0]
[null,null,null,null,null,null,null,null,null,null,null,null,null,null,"Allowed",null,null,null,null,null,null,null,null,null,null,null,null,null,null,null,null,null,null,null,null,null,null,null,null,null,null,null,null,null,null,null,null,null,null,null,null,null,null,null,null,null,null,null,null,null,null,null,null,null,0,null,null,0,null,0,null,0,null,0]
[null,null,null,null,null,null,null,null,null,null,null,null,null,null,"Allowed",null,null,null,null,null,null,null,null,null,null,null,null,null,null,null,null,null,null,null,null,null,null,null,null,null,null,null,null,null,null,null,null,null,null,null,null,null,null,null,null,null,null,null,null,null,null,null,null,null,0,null,null,0,null,0,null,0,null,0]
[null,null,null,null,null,null,null,null,null,null,null,null,null,null,"Allowed",null,null,null,null,null,null,null,null,null,null,null,null,null,null,null,null,null,null,null,null,null,null,null,null,null,null,null,null,null,null,null,null,null,null,null,null,null,null,null,null,null,null,null,null,null,null,null,null,null,0,null,null,0,null,0,null,0,null,0]
[null,null,null,null,null,null,null,null,null,null,null,null,null,null,"Allowed",null,null,null,null,null,null,null,null,null,null,null,null,null,null,null,null,null,null,null,null,null,null,null,null,null,null,null,null,null,null,null,null,null,null,null,null,null,null,null,null,null,null,null,null,null,null,null,null,null,0,null,null,0,null,0,null,0,null,0]
[null,null,null,null,null,null,null,null,null,null,null,null,null,null,"Allowed",null,null,null,null,null,null,null,null,null,null,null,null,null,null,null,null,null,null,null,null,null,null,null,null,null,null,null,null,null,null,null,null,null,null,null,null,null,null,null,null,null,null,null,null,null,null,null,null,null,0,null,null,0,null,0,null,0,null,0]
[null,null,null,null,null,null,null,null,null,null,null,null,null,null,"Allowed",null,null,null,null,null,null,null,null,null,null,null,null,null,null,null,null,null,null,null,null,null,null,null,null,null,null,null,null,null,null,null,null,null,null,null,null,null,null,null,null,null,null,null,null,null,null,null,null,null,0,null,null,0,null,0,null,0,null,0]
[null,null,null,null,null,null,null,null,null,null,null,null,null,null,"Allowed",null,null,null,null,null,null,null,null,null,null,null,null,null,null,null,null,null,null,null,null,null,null,null,null,null,null,null,null,null,null,null,null,null,null,null,null,null,null,null,null,null,null,null,null,null,null,null,null,null,0,null,null,0,null,0,null,0,null,0]
[null,null,null,null,null,null,null,null,null,null,null,null,null,null,"Allowed",null,null,null,null,null,null,null,null,null,null,null,null,null,null,null,null,null,null,null,null,null,null,null,null,null,null,null,null,null,null,null,null,null,null,null,null,null,null,null,null,null,null,null,null,null,null,null,null,null,0,null,null,0,null,0,null,0,null,0]
[null,null,null,null,null,null,null,null,null,null,null,null,null,null,"Allowed",null,null,null,null,null,null,null,null,null,null,null,null,null,null,null,null,null,null,null,null,null,null,null,null,null,null,null,null,null,null,null,null,null,null,null,null,null,null,null,null,null,null,null,null,null,null,null,null,null,0,null,null,0,null,0,null,0,null,0]
[null,null,null,null,null,null,null,null,null,null,null,null,null,null,"Allowed",null,null,null,null,null,null,null,null,null,null,null,null,null,null,null,null,null,null,null,null,null,null,null,null,null,null,null,null,null,null,null,null,null,null,null,null,null,null,null,null,null,null,null,null,null,null,null,null,null,0,null,null,0,null,0,null,0,null,0]
[null,null,null,null,null,null,null,null,null,null,null,null,null,null,"Allowed",null,null,null,null,null,null,null,null,null,null,null,null,null,null,null,null,null,null,null,null,null,null,null,null,null,null,null,null,null,null,null,null,null,null,null,null,null,null,null,null,null,null,null,null,null,null,null,null,null,0,null,null,0,null,0,null,0,null,0]
[null,null,null,null,null,null,null,null,null,null,null,null,null,null,"Allowed",null,null,null,null,null,null,null,null,null,null,null,null,null,null,null,null,null,null,null,null,null,null,null,null,null,null,null,null,null,null,null,null,null,null,null,null,null,null,null,null,null,null,null,null,null,null,null,null,null,0,null,null,0,null,0,null,0,null,0]
[null,null,null,null,null,null,null,null,null,null,null,null,null,null,"Allowed",null,null,null,null,null,null,null,null,null,null,null,null,null,null,null,null,null,null,null,null,null,null,null,null,null,null,null,null,null,null,null,null,null,null,null,null,null,null,null,null,null,null,null,null,null,null,null,null,null,0,null,null,0,null,0,null,0,null,0]
[null,null,null,null,null,null,null,null,null,null,null,null,null,null,"Allowed",null,null,null,null,null,null,null,null,null,null,null,null,null,null,null,null,null,null,null,null,null,null,null,null,null,null,null,null,null,null,null,null,null,null,null,null,null,null,null,null,null,null,null,null,null,null,null,null,null,0,null,null,0,null,0,null,0,null,0]
[null,null,null,null,null,null,null,null,null,null,null,null,null,null,"Allowed",null,null,null,null,null,null,null,null,null,null,null,null,null,null,null,null,null,null,null,null,null,null,null,null,null,null,null,null,null,null,null,null,null,null,null,null,null,null,null,null,null,null,null,null,null,null,null,null,null,0,null,null,0,null,0,null,0,null,0]
[null,null,null,null,null,null,null,null,null,null,null,null,null,null,"Allowed",null,null,null,null,null,null,null,null,null,null,null,null,null,null,null,null,null,null,null,null,null,null,null,null,null,null,null,null,null,null,null,null,null,null,null,null,null,null,null,null,null,null,null,null,null,null,null,null,null,0,null,null,0,null,0,null,0,null,0]
[null,null,null,null,null,null,null,null,null,null,null,null,null,null,"Allowed",null,null,null,null,null,null,null,null,null,null,null,null,null,null,null,null,null,null,null,null,null,null,null,null,null,null,null,null,null,null,null,null,null,null,null,null,null,null,null,null,null,null,null,null,null,null,null,null,null,0,null,null,0,null,0,null,0,null,0]
[null,null,null,null,null,null,null,null,null,null,null,null,null,null,"Allowed",null,null,null,null,null,null,null,null,null,null,null,null,null,null,null,null,null,null,null,null,null,null,null,null,null,null,null,null,null,null,null,null,null,null,null,null,null,null,null,null,null,null,null,null,null,null,null,null,null,0,null,null,0,null,0,null,0,null,0]
[null,null,null,null,null,null,null,null,null,null,null,null,null,null,"Allowed",null,null,null,null,null,null,null,null,null,null,null,null,null,null,null,null,null,null,null,null,null,null,null,null,null,null,null,null,null,null,null,null,null,null,null,null,null,null,null,null,null,null,null,null,null,null,null,null,null,0,null,null,0,null,0,null,0,null,0]
[null,null,null,null,null,null,null,null,null,null,null,null,null,null,"Allowed",null,null,null,null,null,null,null,null,null,null,null,null,null,null,null,null,null,null,null,null,null,null,null,null,null,null,null,null,null,null,null,null,null,null,null,null,null,null,null,null,null,null,null,null,null,null,null,null,null,0,null,null,0,null,0,null,0,null,0]
[null,null,null,null,null,null,null,null,null,null,null,null,null,null,"Allowed",null,null,null,null,null,null,null,null,null,null,null,null,null,null,null,null,null,null,null,null,null,null,null,null,null,null,null,null,null,null,null,null,null,null,null,null,null,null,null,null,null,null,null,null,null,null,null,null,null,0,null,null,0,null,0,null,0,null,0]
[null,null,null,null,null,null,null,null,null,null,null,null,null,null,"Allowed",null,null,null,null,null,null,null,null,null,null,null,null,null,null,null,null,null,null,null,null,null,null,null,null,null,null,null,null,null,null,null,null,null,null,null,null,null,null,null,null,null,null,null,null,null,null,null,null,null,0,null,null,0,null,0,null,0,null,0]
[null,null,null,null,null,null,null,null,null,null,null,null,null,null,"Allowed",null,null,null,null,null,null,null,null,null,null,null,null,null,null,null,null,null,null,null,null,null,null,null,null,null,null,null,null,null,null,null,null,null,null,null,null,null,null,null,null,null,null,null,null,null,null,null,null,null,0,null,null,0,null,0,null,0,null,0]
[null,null,null,null,null,null,null,null,null,null,null,null,null,null,"Allowed",null,null,null,null,null,null,null,null,null,null,null,null,null,null,null,null,null,null,null,null,null,null,null,null,null,null,null,null,null,null,null,null,null,null,null,null,null,null,null,null,null,null,null,null,null,null,null,null,null,0,null,null,0,null,0,null,0,null,0]
[null,null,null,null,null,null,null,null,null,null,null,null,null,null,"Allowed",null,null,null,null,null,null,null,null,null,null,null,null,null,null,null,null,null,null,null,null,null,null,null,null,null,null,null,null,null,null,null,null,null,null,null,null,null,null,null,null,null,null,null,null,null,null,null,null,null,0,null,null,0,null,0,null,0,null,0]
[null,null,null,null,null,null,null,null,null,null,null,null,null,null,"Allowed",null,null,null,null,null,null,null,null,null,null,null,null,null,null,null,null,null,null,null,null,null,null,null,null,null,null,null,null,null,null,null,null,null,null,null,null,null,null,null,null,null,null,null,null,null,null,null,null,null,0,null,null,0,null,0,null,0,null,0]
[null,null,null,null,null,null,null,null,null,null,null,null,null,null,"Allowed",null,null,null,null,null,null,null,null,null,null,null,null,null,null,null,null,null,null,null,null,null,null,null,null,null,null,null,null,null,null,null,null,null,null,null,null,null,null,null,null,null,null,null,null,null,null,null,null,null,0,null,null,0,null,0,null,0,null,0]
[null,null,null,null,null,null,null,null,null,null,null,null,null,null,"Allowed",null,null,null,null,null,null,null,null,null,null,null,null,null,null,null,null,null,null,null,null,null,null,null,null,null,null,null,null,null,null,null,null,null,null,null,null,null,null,null,null,null,null,null,null,null,null,null,null,null,0,null,null,0,null,0,null,0,null,0]
[null,null,null,null,null,null,null,null,null,null,null,null,null,null,"Allowed",null,null,null,null,null,null,null,null,null,null,null,null,null,null,null,null,null,null,null,null,null,null,null,null,null,null,null,null,null,null,null,null,null,null,null,null,null,null,null,null,null,null,null,null,null,null,null,null,null,0,null,null,0,null,0,null,0,null,0]
[null,null,null,null,null,null,null,null,null,null,null,null,null,null,{"$f":"IF(N323<=TRUNC(P323*1.015228,2),\"Allowed\",\"Exceeds Max\")","v":"Allowed"},null,null,null,null,null,null,null,null,null,null,null,null,null,null,null,null,null,null,null,null,null,null,null,null,null,null,null,null,null,null,null,null,null,null,null,null,null,null,null,null,null,null,null,null,null,null,null,null,null,0,null,null,0,null,0,null,0,null,0]
[null,null,null,null,null,null,null,null,null,null,null,null,null,null,"Allowed",null,null,null,null,null,null,null,null,null,null,null,null,null,null,null,null,null,null,null,null,null,null,null,null,null,null,null,null,null,null,null,null,null,null,null,null,null,null,null,null,null,null,null,null,null,null,null,null,null,{"$f":"LEN(BL324)","v":0},null,null,{"$f":"LEN(BO324)","v":0},null,{"$f":"LEN(BQ324)","v":0},null,{"$f":"LEN(BS324)","v":0},null,{"$f":"LEN(BU324)","v":0}]
[null,null,null,null,null,null,null,null,null,null,null,null,null,null,"Allowed",null,null,null,null,null,null,null,null,null,null,null,null,null,null,null,null,null,null,null,null,null,null,null,null,null,null,null,null,null,null,null,null,null,null,null,null,null,null,null,null,null,null,null,null,null,null,null,null,null,0,null,null,0,null,0,null,0,null,0]
[null,null,null,null,null,null,null,null,null,null,null,null,null,null,"Allowed",null,null,null,null,null,null,null,null,null,null,null,null,null,null,null,null,null,null,null,null,null,null,null,null,null,null,null,null,null,null,null,null,null,null,null,null,null,null,null,null,null,null,null,null,null,null,null,null,null,0,null,null,0,null,0,null,0,null,0]
[null,null,null,null,null,null,null,null,null,null,null,null,null,null,"Allowed",null,null,null,null,null,null,null,null,null,null,null,null,null,null,null,null,null,null,null,null,null,null,null,null,null,null,null,null,null,null,null,null,null,null,null,null,null,null,null,null,null,null,null,null,null,null,null,null,null,0,null,null,0,null,0,null,0,null,0]
[null,null,null,null,null,null,null,null,null,null,null,null,null,null,"Allowed",null,null,null,null,null,null,null,null,null,null,null,null,null,null,null,null,null,null,null,null,null,null,null,null,null,null,null,null,null,null,null,null,null,null,null,null,null,null,null,null,null,null,null,null,null,null,null,null,null,0,null,null,0,null,0,null,0,null,0]
[null,null,null,null,null,null,null,null,null,null,null,null,null,null,"Allowed",null,null,null,null,null,null,null,null,null,null,null,null,null,null,null,null,null,null,null,null,null,null,null,null,null,null,null,null,null,null,null,null,null,null,null,null,null,null,null,null,null,null,null,null,null,null,null,null,null,0,null,null,0,null,0,null,0,null,0]
[null,null,null,null,null,null,null,null,null,null,null,null,null,null,"Allowed",null,null,null,null,null,null,null,null,null,null,null,null,null,null,null,null,null,null,null,null,null,null,null,null,null,null,null,null,null,null,null,null,null,null,null,null,null,null,null,null,null,null,null,null,null,null,null,null,null,0,null,null,0,null,0,null,0,null,0]
[null,null,null,null,null,null,null,null,null,null,null,null,null,null,"Allowed",null,null,null,null,null,null,null,null,null,null,null,null,null,null,null,null,null,null,null,null,null,null,null,null,null,null,null,null,null,null,null,null,null,null,null,null,null,null,null,null,null,null,null,null,null,null,null,null,null,0,null,null,0,null,0,null,0,null,0]
[null,null,null,null,null,null,null,null,null,null,null,null,null,null,"Allowed",null,null,null,null,null,null,null,null,null,null,null,null,null,null,null,null,null,null,null,null,null,null,null,null,null,null,null,null,null,null,null,null,null,null,null,null,null,null,null,null,null,null,null,null,null,null,null,null,null,0,null,null,0,null,0,null,0,null,0]
[null,null,null,null,null,null,null,null,null,null,null,null,null,null,"Allowed",null,null,null,null,null,null,null,null,null,null,null,null,null,null,null,null,null,null,null,null,null,null,null,null,null,null,null,null,null,null,null,null,null,null,null,null,null,null,null,null,null,null,null,null,null,null,null,null,null,0,null,null,0,null,0,null,0,null,0]
[null,null,null,null,null,null,null,null,null,null,null,null,null,null,"Allowed",null,null,null,null,null,null,null,null,null,null,null,null,null,null,null,null,null,null,null,null,null,null,null,null,null,null,null,null,null,null,null,null,null,null,null,null,null,null,null,null,null,null,null,null,null,null,null,null,null,0,null,null,0,null,0,null,0,null,0]
[null,null,null,null,null,null,null,null,null,null,null,null,null,null,"Allowed",null,null,null,null,null,null,null,null,null,null,null,null,null,null,null,null,null,null,null,null,null,null,null,null,null,null,null,null,null,null,null,null,null,null,null,null,null,null,null,null,null,null,null,null,null,null,null,null,null,0,null,null,0,null,0,null,0,null,0]
[null,null,null,null,null,null,null,null,null,null,null,null,null,null,"Allowed",null,null,null,null,null,null,null,null,null,null,null,null,null,null,null,null,null,null,null,null,null,null,null,null,null,null,null,null,null,null,null,null,null,null,null,null,null,null,null,null,null,null,null,null,null,null,null,null,null,0,null,null,0,null,0,null,0,null,0]
[null,null,null,null,null,null,null,null,null,null,null,null,null,null,"Allowed",null,null,null,null,null,null,null,null,null,null,null,null,null,null,null,null,null,null,null,null,null,null,null,null,null,null,null,null,null,null,null,null,null,null,null,null,null,null,null,null,null,null,null,null,null,null,null,null,null,0,null,null,0,null,0,null,0,null,0]
[null,null,null,null,null,null,null,null,null,null,null,null,null,null,"Allowed",null,null,null,null,null,null,null,null,null,null,null,null,null,null,null,null,null,null,null,null,null,null,null,null,null,null,null,null,null,null,null,null,null,null,null,null,null,null,null,null,null,null,null,null,null,null,null,null,null,0,null,null,0,null,0,null,0,null,0]
[null,null,null,null,null,null,null,null,null,null,null,null,null,null,"Allowed",null,null,null,null,null,null,null,null,null,null,null,null,null,null,null,null,null,null,null,null,null,null,null,null,null,null,null,null,null,null,null,null,null,null,null,null,null,null,null,null,null,null,null,null,null,null,null,null,null,0,null,null,0,null,0,null,0,null,0]
[null,null,null,null,null,null,null,null,null,null,null,null,null,null,"Allowed",null,null,null,null,null,null,null,null,null,null,null,null,null,null,null,null,null,null,null,null,null,null,null,null,null,null,null,null,null,null,null,null,null,null,null,null,null,null,null,null,null,null,null,null,null,null,null,null,null,0,null,null,0,null,0,null,0,null,0]
[null,null,null,null,null,null,null,null,null,null,null,null,null,null,"Allowed",null,null,null,null,null,null,null,null,null,null,null,null,null,null,null,null,null,null,null,null,null,null,null,null,null,null,null,null,null,null,null,null,null,null,null,null,null,null,null,null,null,null,null,null,null,null,null,null,null,0,null,null,0,null,0,null,0,null,0]
[null,null,null,null,null,null,null,null,null,null,null,null,null,null,"Allowed",null,null,null,null,null,null,null,null,null,null,null,null,null,null,null,null,null,null,null,null,null,null,null,null,null,null,null,null,null,null,null,null,null,null,null,null,null,null,null,null,null,null,null,null,null,null,null,null,null,0,null,null,0,null,0,null,0,null,0]
[null,null,null,null,null,null,null,null,null,null,null,null,null,null,"Allowed",null,null,null,null,null,null,null,null,null,null,null,null,null,null,null,null,null,null,null,null,null,null,null,null,null,null,null,null,null,null,null,null,null,null,null,null,null,null,null,null,null,null,null,null,null,null,null,null,null,0,null,null,0,null,0,null,0,null,0]
[null,null,null,null,null,null,null,null,null,null,null,null,null,null,"Allowed",null,null,null,null,null,null,null,null,null,null,null,null,null,null,null,null,null,null,null,null,null,null,null,null,null,null,null,null,null,null,null,null,null,null,null,null,null,null,null,null,null,null,null,null,null,null,null,null,null,0,null,null,0,null,0,null,0,null,0]
[null,null,null,null,null,null,null,null,null,null,null,null,null,null,"Allowed",null,null,null,null,null,null,null,null,null,null,null,null,null,null,null,null,null,null,null,null,null,null,null,null,null,null,null,null,null,null,null,null,null,null,null,null,null,null,null,null,null,null,null,null,null,null,null,null,null,0,null,null,0,null,0,null,0,null,0]
[null,null,null,null,null,null,null,null,null,null,null,null,null,null,"Allowed",null,null,null,null,null,null,null,null,null,null,null,null,null,null,null,null,null,null,null,null,null,null,null,null,null,null,null,null,null,null,null,null,null,null,null,null,null,null,null,null,null,null,null,null,null,null,null,null,null,0,null,null,0,null,0,null,0,null,0]
[null,null,null,null,null,null,null,null,null,null,null,null,null,null,"Allowed",null,null,null,null,null,null,null,null,null,null,null,null,null,null,null,null,null,null,null,null,null,null,null,null,null,null,null,null,null,null,null,null,null,null,null,null,null,null,null,null,null,null,null,null,null,null,null,null,null,0,null,null,0,null,0,null,0,null,0]
[null,null,null,null,null,null,null,null,null,null,null,null,null,null,"Allowed",null,null,null,null,null,null,null,null,null,null,null,null,null,null,null,null,null,null,null,null,null,null,null,null,null,null,null,null,null,null,null,null,null,null,null,null,null,null,null,null,null,null,null,null,null,null,null,null,null,0,null,null,0,null,0,null,0,null,0]
[null,null,null,null,null,null,null,null,null,null,null,null,null,null,"Allowed",null,null,null,null,null,null,null,null,null,null,null,null,null,null,null,null,null,null,null,null,null,null,null,null,null,null,null,null,null,null,null,null,null,null,null,null,null,null,null,null,null,null,null,null,null,null,null,null,null,0,null,null,0,null,0,null,0,null,0]
[null,null,null,null,null,null,null,null,null,null,null,null,null,null,"Allowed",null,null,null,null,null,null,null,null,null,null,null,null,null,null,null,null,null,null,null,null,null,null,null,null,null,null,null,null,null,null,null,null,null,null,null,null,null,null,null,null,null,null,null,null,null,null,null,null,null,0,null,null,0,null,0,null,0,null,0]
[null,null,null,null,null,null,null,null,null,null,null,null,null,null,"Allowed",null,null,null,null,null,null,null,null,null,null,null,null,null,null,null,null,null,null,null,null,null,null,null,null,null,null,null,null,null,null,null,null,null,null,null,null,null,null,null,null,null,null,null,null,null,null,null,null,null,0,null,null,0,null,0,null,0,null,0]
[null,null,null,null,null,null,null,null,null,null,null,null,null,null,"Allowed",null,null,null,null,null,null,null,null,null,null,null,null,null,null,null,null,null,null,null,null,null,null,null,null,null,null,null,null,null,null,null,null,null,null,null,null,null,null,null,null,null,null,null,null,null,null,null,null,null,0,null,null,0,null,0,null,0,null,0]
[null,null,null,null,null,null,null,null,null,null,null,null,null,null,"Allowed",null,null,null,null,null,null,null,null,null,null,null,null,null,null,null,null,null,null,null,null,null,null,null,null,null,null,null,null,null,null,null,null,null,null,null,null,null,null,null,null,null,null,null,null,null,null,null,null,null,0,null,null,0,null,0,null,0,null,0]
[null,null,null,null,null,null,null,null,null,null,null,null,null,null,"Allowed",null,null,null,null,null,null,null,null,null,null,null,null,null,null,null,null,null,null,null,null,null,null,null,null,null,null,null,null,null,null,null,null,null,null,null,null,null,null,null,null,null,null,null,null,null,null,null,null,null,0,null,null,0,null,0,null,0,null,0]
[null,null,null,null,null,null,null,null,null,null,null,null,null,null,"Allowed",null,null,null,null,null,null,null,null,null,null,null,null,null,null,null,null,null,null,null,null,null,null,null,null,null,null,null,null,null,null,null,null,null,null,null,null,null,null,null,null,null,null,null,null,null,null,null,null,null,0,null,null,0,null,0,null,0,null,0]
[null,null,null,null,null,null,null,null,null,null,null,null,null,null,"Allowed",null,null,null,null,null,null,null,null,null,null,null,null,null,null,null,null,null,null,null,null,null,null,null,null,null,null,null,null,null,null,null,null,null,null,null,null,null,null,null,null,null,null,null,null,null,null,null,null,null,0,null,null,0,null,0,null,0,null,0]
[null,null,null,null,null,null,null,null,null,null,null,null,null,null,"Allowed",null,null,null,null,null,null,null,null,null,null,null,null,null,null,null,null,null,null,null,null,null,null,null,null,null,null,null,null,null,null,null,null,null,null,null,null,null,null,null,null,null,null,null,null,null,null,null,null,null,0,null,null,0,null,0,null,0,null,0]
[null,null,null,null,null,null,null,null,null,null,null,null,null,null,"Allowed",null,null,null,null,null,null,null,null,null,null,null,null,null,null,null,null,null,null,null,null,null,null,null,null,null,null,null,null,null,null,null,null,null,null,null,null,null,null,null,null,null,null,null,null,null,null,null,null,null,0,null,null,0,null,0,null,0,null,0]
[null,null,null,null,null,null,null,null,null,null,null,null,null,null,"Allowed",null,null,null,null,null,null,null,null,null,null,null,null,null,null,null,null,null,null,null,null,null,null,null,null,null,null,null,null,null,null,null,null,null,null,null,null,null,null,null,null,null,null,null,null,null,null,null,null,null,0,null,null,0,null,0,null,0,null,0]
[null,null,null,null,null,null,null,null,null,null,null,null,null,null,"Allowed",null,null,null,null,null,null,null,null,null,null,null,null,null,null,null,null,null,null,null,null,null,null,null,null,null,null,null,null,null,null,null,null,null,null,null,null,null,null,null,null,null,null,null,null,null,null,null,null,null,0,null,null,0,null,0,null,0,null,0]
[null,null,null,null,null,null,null,null,null,null,null,null,null,null,"Allowed",null,null,null,null,null,null,null,null,null,null,null,null,null,null,null,null,null,null,null,null,null,null,null,null,null,null,null,null,null,null,null,null,null,null,null,null,null,null,null,null,null,null,null,null,null,null,null,null,null,0,null,null,0,null,0,null,0,null,0]
[null,null,null,null,null,null,null,null,null,null,null,null,null,null,"Allowed",null,null,null,null,null,null,null,null,null,null,null,null,null,null,null,null,null,null,null,null,null,null,null,null,null,null,null,null,null,null,null,null,null,null,null,null,null,null,null,null,null,null,null,null,null,null,null,null,null,0,null,null,0,null,0,null,0,null,0]
[null,null,null,null,null,null,null,null,null,null,null,null,null,null,"Allowed",null,null,null,null,null,null,null,null,null,null,null,null,null,null,null,null,null,null,null,null,null,null,null,null,null,null,null,null,null,null,null,null,null,null,null,null,null,null,null,null,null,null,null,null,null,null,null,null,null,0,null,null,0,null,0,null,0,null,0]
[null,null,null,null,null,null,null,null,null,null,null,null,null,null,"Allowed",null,null,null,null,null,null,null,null,null,null,null,null,null,null,null,null,null,null,null,null,null,null,null,null,null,null,null,null,null,null,null,null,null,null,null,null,null,null,null,null,null,null,null,null,null,null,null,null,null,0,null,null,0,null,0,null,0,null,0]
[null,null,null,null,null,null,null,null,null,null,null,null,null,null,"Allowed",null,null,null,null,null,null,null,null,null,null,null,null,null,null,null,null,null,null,null,null,null,null,null,null,null,null,null,null,null,null,null,null,null,null,null,null,null,null,null,null,null,null,null,null,null,null,null,null,null,0,null,null,0,null,0,null,0,null,0]
[null,null,null,null,null,null,null,null,null,null,null,null,null,null,"Allowed",null,null,null,null,null,null,null,null,null,null,null,null,null,null,null,null,null,null,null,null,null,null,null,null,null,null,null,null,null,null,null,null,null,null,null,null,null,null,null,null,null,null,null,null,null,null,null,null,null,0,null,null,0,null,0,null,0,null,0]
[null,null,null,null,null,null,null,null,null,null,null,null,null,null,"Allowed",null,null,null,null,null,null,null,null,null,null,null,null,null,null,null,null,null,null,null,null,null,null,null,null,null,null,null,null,null,null,null,null,null,null,null,null,null,null,null,null,null,null,null,null,null,null,null,null,null,0,null,null,0,null,0,null,0,null,0]
[null,null,null,null,null,null,null,null,null,null,null,null,null,null,"Allowed",null,null,null,null,null,null,null,null,null,null,null,null,null,null,null,null,null,null,null,null,null,null,null,null,null,null,null,null,null,null,null,null,null,null,null,null,null,null,null,null,null,null,null,null,null,null,null,null,null,0,null,null,0,null,0,null,0,null,0]
[null,null,null,null,null,null,null,null,null,null,null,null,null,null,"Allowed",null,null,null,null,null,null,null,null,null,null,null,null,null,null,null,null,null,null,null,null,null,null,null,null,null,null,null,null,null,null,null,null,null,null,null,null,null,null,null,null,null,null,null,null,null,null,null,null,null,0,null,null,0,null,0,null,0,null,0]
[null,null,null,null,null,null,null,null,null,null,null,null,null,null,"Allowed",null,null,null,null,null,null,null,null,null,null,null,null,null,null,null,null,null,null,null,null,null,null,null,null,null,null,null,null,null,null,null,null,null,null,null,null,null,null,null,null,null,null,null,null,null,null,null,null,null,0,null,null,0,null,0,null,0,null,0]
[null,null,null,null,null,null,null,null,null,null,null,null,null,null,"Allowed",null,null,null,null,null,null,null,null,null,null,null,null,null,null,null,null,null,null,null,null,null,null,null,null,null,null,null,null,null,null,null,null,null,null,null,null,null,null,null,null,null,null,null,null,null,null,null,null,null,0,null,null,0,null,0,null,0,null,0]
[null,null,null,null,null,null,null,null,null,null,null,null,null,null,"Allowed",null,null,null,null,null,null,null,null,null,null,null,null,null,null,null,null,null,null,null,null,null,null,null,null,null,null,null,null,null,null,null,null,null,null,null,null,null,null,null,null,null,null,null,null,null,null,null,null,null,0,null,null,0,null,0,null,0,null,0]
[null,null,null,null,null,null,null,null,null,null,null,null,null,null,"Allowed",null,null,null,null,null,null,null,null,null,null,null,null,null,null,null,null,null,null,null,null,null,null,null,null,null,null,null,null,null,null,null,null,null,null,null,null,null,null,null,null,null,null,null,null,null,null,null,null,null,0,null,null,0,null,0,null,0,null,0]
[null,null,null,null,null,null,null,null,null,null,null,null,null,null,"Allowed",null,null,null,null,null,null,null,null,null,null,null,null,null,null,null,null,null,null,null,null,null,null,null,null,null,null,null,null,null,null,null,null,null,null,null,null,null,null,null,null,null,null,null,null,null,null,null,null,null,0,null,null,0,null,0,null,0,null,0]
[null,null,null,null,null,null,null,null,null,null,null,null,null,null,"Allowed",null,null,null,null,null,null,null,null,null,null,null,null,null,null,null,null,null,null,null,null,null,null,null,null,null,null,null,null,null,null,null,null,null,null,null,null,null,null,null,null,null,null,null,null,null,null,null,null,null,0,null,null,0,null,0,null,0,null,0]
[null,null,null,null,null,null,null,null,null,null,null,null,null,null,"Allowed",null,null,null,null,null,null,null,null,null,null,null,null,null,null,null,null,null,null,null,null,null,null,null,null,null,null,null,null,null,null,null,null,null,null,null,null,null,null,null,null,null,null,null,null,null,null,null,null,null,0,null,null,0,null,0,null,0,null,0]
[null,null,null,null,null,null,null,null,null,null,null,null,null,null,"Allowed",null,null,null,null,null,null,null,null,null,null,null,null,null,null,null,null,null,null,null,null,null,null,null,null,null,null,null,null,null,null,null,null,null,null,null,null,null,null,null,null,null,null,null,null,null,null,null,null,null,0,null,null,0,null,0,null,0,null,0]
[null,null,null,null,null,null,null,null,null,null,null,null,null,null,"Allowed",null,null,null,null,null,null,null,null,null,null,null,null,null,null,null,null,null,null,null,null,null,null,null,null,null,null,null,null,null,null,null,null,null,null,null,null,null,null,null,null,null,null,null,null,null,null,null,null,null,0,null,null,0,null,0,null,0,null,0]
[null,null,null,null,null,null,null,null,null,null,null,null,null,null,"Allowed",null,null,null,null,null,null,null,null,null,null,null,null,null,null,null,null,null,null,null,null,null,null,null,null,null,null,null,null,null,null,null,null,null,null,null,null,null,null,null,null,null,null,null,null,null,null,null,null,null,0,null,null,0,null,0,null,0,null,0]
[null,null,null,null,null,null,null,null,null,null,null,null,null,null,"Allowed",null,null,null,null,null,null,null,null,null,null,null,null,null,null,null,null,null,null,null,null,null,null,null,null,null,null,null,null,null,null,null,null,null,null,null,null,null,null,null,null,null,null,null,null,null,null,null,null,null,0,null,null,0,null,0,null,0,null,0]
[null,null,null,null,null,null,null,null,null,null,null,null,null,null,"Allowed",null,null,null,null,null,null,null,null,null,null,null,null,null,null,null,null,null,null,null,null,null,null,null,null,null,null,null,null,null,null,null,null,null,null,null,null,null,null,null,null,null,null,null,null,null,null,null,null,null,0,null,null,0,null,0,null,0,null,0]
[null,null,null,null,null,null,null,null,null,null,null,null,null,null,"Allowed",null,null,null,null,null,null,null,null,null,null,null,null,null,null,null,null,null,null,null,null,null,null,null,null,null,null,null,null,null,null,null,null,null,null,null,null,null,null,null,null,null,null,null,null,null,null,null,null,null,0,null,null,0,null,0,null,0,null,0]
[null,null,null,null,null,null,null,null,null,null,null,null,null,null,"Allowed",null,null,null,null,null,null,null,null,null,null,null,null,null,null,null,null,null,null,null,null,null,null,null,null,null,null,null,null,null,null,null,null,null,null,null,null,null,null,null,null,null,null,null,null,null,null,null,null,null,0,null,null,0,null,0,null,0,null,0]
[null,null,null,null,null,null,null,null,null,null,null,null,null,null,"Allowed",null,null,null,null,null,null,null,null,null,null,null,null,null,null,null,null,null,null,null,null,null,null,null,null,null,null,null,null,null,null,null,null,null,null,null,null,null,null,null,null,null,null,null,null,null,null,null,null,null,0,null,null,0,null,0,null,0,null,0]
[null,null,null,null,null,null,null,null,null,null,null,null,null,null,"Allowed",null,null,null,null,null,null,null,null,null,null,null,null,null,null,null,null,null,null,null,null,null,null,null,null,null,null,null,null,null,null,null,null,null,null,null,null,null,null,null,null,null,null,null,null,null,null,null,null,null,0,null,null,0,null,0,null,0,null,0]
[null,null,null,null,null,null,null,null,null,null,null,null,null,null,"Allowed",null,null,null,null,null,null,null,null,null,null,null,null,null,null,null,null,null,null,null,null,null,null,null,null,null,null,null,null,null,null,null,null,null,null,null,null,null,null,null,null,null,null,null,null,null,null,null,null,null,0,null,null,0,null,0,null,0,null,0]
[null,null,null,null,null,null,null,null,null,null,null,null,null,null,{"$f":"IF(N387<=TRUNC(P387*1.015228,2),\"Allowed\",\"Exceeds Max\")","v":"Allowed"},null,null,null,null,null,null,null,null,null,null,null,null,null,null,null,null,null,null,null,null,null,null,null,null,null,null,null,null,null,null,null,null,null,null,null,null,null,null,null,null,null,null,null,null,null,null,null,null,null,0,null,null,0,null,0,null,0,null,0]
[null,null,null,null,null,null,null,null,null,null,null,null,null,null,"Allowed",null,null,null,null,null,null,null,null,null,null,null,null,null,null,null,null,null,null,null,null,null,null,null,null,null,null,null,null,null,null,null,null,null,null,null,null,null,null,null,null,null,null,null,null,null,null,null,null,null,{"$f":"LEN(BL388)","v":0},null,null,{"$f":"LEN(BO388)","v":0},null,{"$f":"LEN(BQ388)","v":0},null,{"$f":"LEN(BS388)","v":0},null,{"$f":"LEN(BU388)","v":0}]
[null,null,null,null,null,null,null,null,null,null,null,null,null,null,"Allowed",null,null,null,null,null,null,null,null,null,null,null,null,null,null,null,null,null,null,null,null,null,null,null,null,null,null,null,null,null,null,null,null,null,null,null,null,null,null,null,null,null,null,null,null,null,null,null,null,null,0,null,null,0,null,0,null,0,null,0]
[null,null,null,null,null,null,null,null,null,null,null,null,null,null,"Allowed",null,null,null,null,null,null,null,null,null,null,null,null,null,null,null,null,null,null,null,null,null,null,null,null,null,null,null,null,null,null,null,null,null,null,null,null,null,null,null,null,null,null,null,null,null,null,null,null,null,0,null,null,0,null,0,null,0,null,0]
[null,null,null,null,null,null,null,null,null,null,null,null,null,null,"Allowed",null,null,null,null,null,null,null,null,null,null,null,null,null,null,null,null,null,null,null,null,null,null,null,null,null,null,null,null,null,null,null,null,null,null,null,null,null,null,null,null,null,null,null,null,null,null,null,null,null,0,null,null,0,null,0,null,0,null,0]
[null,null,null,null,null,null,null,null,null,null,null,null,null,null,"Allowed",null,null,null,null,null,null,null,null,null,null,null,null,null,null,null,null,null,null,null,null,null,null,null,null,null,null,null,null,null,null,null,null,null,null,null,null,null,null,null,null,null,null,null,null,null,null,null,null,null,0,null,null,0,null,0,null,0,null,0]
[null,null,null,null,null,null,null,null,null,null,null,null,null,null,"Allowed",null,null,null,null,null,null,null,null,null,null,null,null,null,null,null,null,null,null,null,null,null,null,null,null,null,null,null,null,null,null,null,null,null,null,null,null,null,null,null,null,null,null,null,null,null,null,null,null,null,0,null,null,0,null,0,null,0,null,0]
[null,null,null,null,null,null,null,null,null,null,null,null,null,null,"Allowed",null,null,null,null,null,null,null,null,null,null,null,null,null,null,null,null,null,null,null,null,null,null,null,null,null,null,null,null,null,null,null,null,null,null,null,null,null,null,null,null,null,null,null,null,null,null,null,null,null,0,null,null,0,null,0,null,0,null,0]
[null,null,null,null,null,null,null,null,null,null,null,null,null,null,"Allowed",null,null,null,null,null,null,null,null,null,null,null,null,null,null,null,null,null,null,null,null,null,null,null,null,null,null,null,null,null,null,null,null,null,null,null,null,null,null,null,null,null,null,null,null,null,null,null,null,null,0,null,null,0,null,0,null,0,null,0]
[null,null,null,null,null,null,null,null,null,null,null,null,null,null,"Allowed",null,null,null,null,null,null,null,null,null,null,null,null,null,null,null,null,null,null,null,null,null,null,null,null,null,null,null,null,null,null,null,null,null,null,null,null,null,null,null,null,null,null,null,null,null,null,null,null,null,0,null,null,0,null,0,null,0,null,0]
[null,null,null,null,null,null,null,null,null,null,null,null,null,null,"Allowed",null,null,null,null,null,null,null,null,null,null,null,null,null,null,null,null,null,null,null,null,null,null,null,null,null,null,null,null,null,null,null,null,null,null,null,null,null,null,null,null,null,null,null,null,null,null,null,null,null,0,null,null,0,null,0,null,0,null,0]
[null,null,null,null,null,null,null,null,null,null,null,null,null,null,"Allowed",null,null,null,null,null,null,null,null,null,null,null,null,null,null,null,null,null,null,null,null,null,null,null,null,null,null,null,null,null,null,null,null,null,null,null,null,null,null,null,null,null,null,null,null,null,null,null,null,null,0,null,null,0,null,0,null,0,null,0]
[null,null,null,null,null,null,null,null,null,null,null,null,null,null,"Allowed",null,null,null,null,null,null,null,null,null,null,null,null,null,null,null,null,null,null,null,null,null,null,null,null,null,null,null,null,null,null,null,null,null,null,null,null,null,null,null,null,null,null,null,null,null,null,null,null,null,0,null,null,0,null,0,null,0,null,0]
[null,null,null,null,null,null,null,null,null,null,null,null,null,null,"Allowed",null,null,null,null,null,null,null,null,null,null,null,null,null,null,null,null,null,null,null,null,null,null,null,null,null,null,null,null,null,null,null,null,null,null,null,null,null,null,null,null,null,null,null,null,null,null,null,null,null,0,null,null,0,null,0,null,0,null,0]
[null,null,null,null,null,null,null,null,null,null,null,null,null,null,"Allowed",null,null,null,null,null,null,null,null,null,null,null,null,null,null,null,null,null,null,null,null,null,null,null,null,null,null,null,null,null,null,null,null,null,null,null,null,null,null,null,null,null,null,null,null,null,null,null,null,null,0,null,null,0,null,0,null,0,null,0]
[null,null,null,null,null,null,null,null,null,null,null,null,null,null,"Allowed",null,null,null,null,null,null,null,null,null,null,null,null,null,null,null,null,null,null,null,null,null,null,null,null,null,null,null,null,null,null,null,null,null,null,null,null,null,null,null,null,null,null,null,null,null,null,null,null,null,0,null,null,0,null,0,null,0,null,0]
[null,null,null,null,null,null,null,null,null,null,null,null,null,null,"Allowed",null,null,null,null,null,null,null,null,null,null,null,null,null,null,null,null,null,null,null,null,null,null,null,null,null,null,null,null,null,null,null,null,null,null,null,null,null,null,null,null,null,null,null,null,null,null,null,null,null,0,null,null,0,null,0,null,0,null,0]
[null,null,null,null,null,null,null,null,null,null,null,null,null,null,"Allowed",null,null,null,null,null,null,null,null,null,null,null,null,null,null,null,null,null,null,null,null,null,null,null,null,null,null,null,null,null,null,null,null,null,null,null,null,null,null,null,null,null,null,null,null,null,null,null,null,null,0,null,null,0,null,0,null,0,null,0]
[null,null,null,null,null,null,null,null,null,null,null,null,null,null,"Allowed",null,null,null,null,null,null,null,null,null,null,null,null,null,null,null,null,null,null,null,null,null,null,null,null,null,null,null,null,null,null,null,null,null,null,null,null,null,null,null,null,null,null,null,null,null,null,null,null,null,0,null,null,0,null,0,null,0,null,0]
[null,null,null,null,null,null,null,null,null,null,null,null,null,null,"Allowed",null,null,null,null,null,null,null,null,null,null,null,null,null,null,null,null,null,null,null,null,null,null,null,null,null,null,null,null,null,null,null,null,null,null,null,null,null,null,null,null,null,null,null,null,null,null,null,null,null,0,null,null,0,null,0,null,0,null,0]
[null,null,null,null,null,null,null,null,null,null,null,null,null,null,"Allowed",null,null,null,null,null,null,null,null,null,null,null,null,null,null,null,null,null,null,null,null,null,null,null,null,null,null,null,null,null,null,null,null,null,null,null,null,null,null,null,null,null,null,null,null,null,null,null,null,null,0,null,null,0,null,0,null,0,null,0]
[null,null,null,null,null,null,null,null,null,null,null,null,null,null,"Allowed",null,null,null,null,null,null,null,null,null,null,null,null,null,null,null,null,null,null,null,null,null,null,null,null,null,null,null,null,null,null,null,null,null,null,null,null,null,null,null,null,null,null,null,null,null,null,null,null,null,0,null,null,0,null,0,null,0,null,0]
[null,null,null,null,null,null,null,null,null,null,null,null,null,null,"Allowed",null,null,null,null,null,null,null,null,null,null,null,null,null,null,null,null,null,null,null,null,null,null,null,null,null,null,null,null,null,null,null,null,null,null,null,null,null,null,null,null,null,null,null,null,null,null,null,null,null,0,null,null,0,null,0,null,0,null,0]
[null,null,null,null,null,null,null,null,null,null,null,null,null,null,"Allowed",null,null,null,null,null,null,null,null,null,null,null,null,null,null,null,null,null,null,null,null,null,null,null,null,null,null,null,null,null,null,null,null,null,null,null,null,null,null,null,null,null,null,null,null,null,null,null,null,null,0,null,null,0,null,0,null,0,null,0]
[null,null,null,null,null,null,null,null,null,null,null,null,null,null,"Allowed",null,null,null,null,null,null,null,null,null,null,null,null,null,null,null,null,null,null,null,null,null,null,null,null,null,null,null,null,null,null,null,null,null,null,null,null,null,null,null,null,null,null,null,null,null,null,null,null,null,0,null,null,0,null,0,null,0,null,0]
[null,null,null,null,null,null,null,null,null,null,null,null,null,null,"Allowed",null,null,null,null,null,null,null,null,null,null,null,null,null,null,null,null,null,null,null,null,null,null,null,null,null,null,null,null,null,null,null,null,null,null,null,null,null,null,null,null,null,null,null,null,null,null,null,null,null,0,null,null,0,null,0,null,0,null,0]
[null,null,null,null,null,null,null,null,null,null,null,null,null,null,"Allowed",null,null,null,null,null,null,null,null,null,null,null,null,null,null,null,null,null,null,null,null,null,null,null,null,null,null,null,null,null,null,null,null,null,null,null,null,null,null,null,null,null,null,null,null,null,null,null,null,null,0,null,null,0,null,0,null,0,null,0]
[null,null,null,null,null,null,null,null,null,null,null,null,null,null,"Allowed",null,null,null,null,null,null,null,null,null,null,null,null,null,null,null,null,null,null,null,null,null,null,null,null,null,null,null,null,null,null,null,null,null,null,null,null,null,null,null,null,null,null,null,null,null,null,null,null,null,0,null,null,0,null,0,null,0,null,0]
[null,null,null,null,null,null,null,null,null,null,null,null,null,null,"Allowed",null,null,null,null,null,null,null,null,null,null,null,null,null,null,null,null,null,null,null,null,null,null,null,null,null,null,null,null,null,null,null,null,null,null,null,null,null,null,null,null,null,null,null,null,null,null,null,null,null,0,null,null,0,null,0,null,0,null,0]
[null,null,null,null,null,null,null,null,null,null,null,null,null,null,"Allowed",null,null,null,null,null,null,null,null,null,null,null,null,null,null,null,null,null,null,null,null,null,null,null,null,null,null,null,null,null,null,null,null,null,null,null,null,null,null,null,null,null,null,null,null,null,null,null,null,null,0,null,null,0,null,0,null,0,null,0]
[null,null,null,null,null,null,null,null,null,null,null,null,null,null,"Allowed",null,null,null,null,null,null,null,null,null,null,null,null,null,null,null,null,null,null,null,null,null,null,null,null,null,null,null,null,null,null,null,null,null,null,null,null,null,null,null,null,null,null,null,null,null,null,null,null,null,0,null,null,0,null,0,null,0,null,0]
[null,null,null,null,null,null,null,null,null,null,null,null,null,null,"Allowed",null,null,null,null,null,null,null,null,null,null,null,null,null,null,null,null,null,null,null,null,null,null,null,null,null,null,null,null,null,null,null,null,null,null,null,null,null,null,null,null,null,null,null,null,null,null,null,null,null,0,null,null,0,null,0,null,0,null,0]
[null,null,null,null,null,null,null,null,null,null,null,null,null,null,"Allowed",null,null,null,null,null,null,null,null,null,null,null,null,null,null,null,null,null,null,null,null,null,null,null,null,null,null,null,null,null,null,null,null,null,null,null,null,null,null,null,null,null,null,null,null,null,null,null,null,null,0,null,null,0,null,0,null,0,null,0]
[null,null,null,null,null,null,null,null,null,null,null,null,null,null,"Allowed",null,null,null,null,null,null,null,null,null,null,null,null,null,null,null,null,null,null,null,null,null,null,null,null,null,null,null,null,null,null,null,null,null,null,null,null,null,null,null,null,null,null,null,null,null,null,null,null,null,0,null,null,0,null,0,null,0,null,0]
[null,null,null,null,null,null,null,null,null,null,null,null,null,null,"Allowed",null,null,null,null,null,null,null,null,null,null,null,null,null,null,null,null,null,null,null,null,null,null,null,null,null,null,null,null,null,null,null,null,null,null,null,null,null,null,null,null,null,null,null,null,null,null,null,null,null,0,null,null,0,null,0,null,0,null,0]
[null,null,null,null,null,null,null,null,null,null,null,null,null,null,"Allowed",null,null,null,null,null,null,null,null,null,null,null,null,null,null,null,null,null,null,null,null,null,null,null,null,null,null,null,null,null,null,null,null,null,null,null,null,null,null,null,null,null,null,null,null,null,null,null,null,null,0,null,null,0,null,0,null,0,null,0]
[null,null,null,null,null,null,null,null,null,null,null,null,null,null,"Allowed",null,null,null,null,null,null,null,null,null,null,null,null,null,null,null,null,null,null,null,null,null,null,null,null,null,null,null,null,null,null,null,null,null,null,null,null,null,null,null,null,null,null,null,null,null,null,null,null,null,0,null,null,0,null,0,null,0,null,0]
[null,null,null,null,null,null,null,null,null,null,null,null,null,null,"Allowed",null,null,null,null,null,null,null,null,null,null,null,null,null,null,null,null,null,null,null,null,null,null,null,null,null,null,null,null,null,null,null,null,null,null,null,null,null,null,null,null,null,null,null,null,null,null,null,null,null,0,null,null,0,null,0,null,0,null,0]
[null,null,null,null,null,null,null,null,null,null,null,null,null,null,"Allowed",null,null,null,null,null,null,null,null,null,null,null,null,null,null,null,null,null,null,null,null,null,null,null,null,null,null,null,null,null,null,null,null,null,null,null,null,null,null,null,null,null,null,null,null,null,null,null,null,null,0,null,null,0,null,0,null,0,null,0]
[null,null,null,null,null,null,null,null,null,null,null,null,null,null,"Allowed",null,null,null,null,null,null,null,null,null,null,null,null,null,null,null,null,null,null,null,null,null,null,null,null,null,null,null,null,null,null,null,null,null,null,null,null,null,null,null,null,null,null,null,null,null,null,null,null,null,0,null,null,0,null,0,null,0,null,0]
[null,null,null,null,null,null,null,null,null,null,null,null,null,null,"Allowed",null,null,null,null,null,null,null,null,null,null,null,null,null,null,null,null,null,null,null,null,null,null,null,null,null,null,null,null,null,null,null,null,null,null,null,null,null,null,null,null,null,null,null,null,null,null,null,null,null,0,null,null,0,null,0,null,0,null,0]
[null,null,null,null,null,null,null,null,null,null,null,null,null,null,"Allowed",null,null,null,null,null,null,null,null,null,null,null,null,null,null,null,null,null,null,null,null,null,null,null,null,null,null,null,null,null,null,null,null,null,null,null,null,null,null,null,null,null,null,null,null,null,null,null,null,null,0,null,null,0,null,0,null,0,null,0]
[null,null,null,null,null,null,null,null,null,null,null,null,null,null,"Allowed",null,null,null,null,null,null,null,null,null,null,null,null,null,null,null,null,null,null,null,null,null,null,null,null,null,null,null,null,null,null,null,null,null,null,null,null,null,null,null,null,null,null,null,null,null,null,null,null,null,0,null,null,0,null,0,null,0,null,0]
[null,null,null,null,null,null,null,null,null,null,null,null,null,null,"Allowed",null,null,null,null,null,null,null,null,null,null,null,null,null,null,null,null,null,null,null,null,null,null,null,null,null,null,null,null,null,null,null,null,null,null,null,null,null,null,null,null,null,null,null,null,null,null,null,null,null,0,null,null,0,null,0,null,0,null,0]
[null,null,null,null,null,null,null,null,null,null,null,null,null,null,"Allowed",null,null,null,null,null,null,null,null,null,null,null,null,null,null,null,null,null,null,null,null,null,null,null,null,null,null,null,null,null,null,null,null,null,null,null,null,null,null,null,null,null,null,null,null,null,null,null,null,null,0,null,null,0,null,0,null,0,null,0]
[null,null,null,null,null,null,null,null,null,null,null,null,null,null,"Allowed",null,null,null,null,null,null,null,null,null,null,null,null,null,null,null,null,null,null,null,null,null,null,null,null,null,null,null,null,null,null,null,null,null,null,null,null,null,null,null,null,null,null,null,null,null,null,null,null,null,0,null,null,0,null,0,null,0,null,0]
[null,null,null,null,null,null,null,null,null,null,null,null,null,null,"Allowed",null,null,null,null,null,null,null,null,null,null,null,null,null,null,null,null,null,null,null,null,null,null,null,null,null,null,null,null,null,null,null,null,null,null,null,null,null,null,null,null,null,null,null,null,null,null,null,null,null,0,null,null,0,null,0,null,0,null,0]
[null,null,null,null,null,null,null,null,null,null,null,null,null,null,"Allowed",null,null,null,null,null,null,null,null,null,null,null,null,null,null,null,null,null,null,null,null,null,null,null,null,null,null,null,null,null,null,null,null,null,null,null,null,null,null,null,null,null,null,null,null,null,null,null,null,null,0,null,null,0,null,0,null,0,null,0]
[null,null,null,null,null,null,null,null,null,null,null,null,null,null,"Allowed",null,null,null,null,null,null,null,null,null,null,null,null,null,null,null,null,null,null,null,null,null,null,null,null,null,null,null,null,null,null,null,null,null,null,null,null,null,null,null,null,null,null,null,null,null,null,null,null,null,0,null,null,0,null,0,null,0,null,0]
[null,null,null,null,null,null,null,null,null,null,null,null,null,null,"Allowed",null,null,null,null,null,null,null,null,null,null,null,null,null,null,null,null,null,null,null,null,null,null,null,null,null,null,null,null,null,null,null,null,null,null,null,null,null,null,null,null,null,null,null,null,null,null,null,null,null,0,null,null,0,null,0,null,0,null,0]
[null,null,null,null,null,null,null,null,null,null,null,null,null,null,"Allowed",null,null,null,null,null,null,null,null,null,null,null,null,null,null,null,null,null,null,null,null,null,null,null,null,null,null,null,null,null,null,null,null,null,null,null,null,null,null,null,null,null,null,null,null,null,null,null,null,null,0,null,null,0,null,0,null,0,null,0]
[null,null,null,null,null,null,null,null,null,null,null,null,null,null,"Allowed",null,null,null,null,null,null,null,null,null,null,null,null,null,null,null,null,null,null,null,null,null,null,null,null,null,null,null,null,null,null,null,null,null,null,null,null,null,null,null,null,null,null,null,null,null,null,null,null,null,0,null,null,0,null,0,null,0,null,0]
[null,null,null,null,null,null,null,null,null,null,null,null,null,null,"Allowed",null,null,null,null,null,null,null,null,null,null,null,null,null,null,null,null,null,null,null,null,null,null,null,null,null,null,null,null,null,null,null,null,null,null,null,null,null,null,null,null,null,null,null,null,null,null,null,null,null,0,null,null,0,null,0,null,0,null,0]
[null,null,null,null,null,null,null,null,null,null,null,null,null,null,"Allowed",null,null,null,null,null,null,null,null,null,null,null,null,null,null,null,null,null,null,null,null,null,null,null,null,null,null,null,null,null,null,null,null,null,null,null,null,null,null,null,null,null,null,null,null,null,null,null,null,null,0,null,null,0,null,0,null,0,null,0]
[null,null,null,null,null,null,null,null,null,null,null,null,null,null,"Allowed",null,null,null,null,null,null,null,null,null,null,null,null,null,null,null,null,null,null,null,null,null,null,null,null,null,null,null,null,null,null,null,null,null,null,null,null,null,null,null,null,null,null,null,null,null,null,null,null,null,0,null,null,0,null,0,null,0,null,0]
[null,null,null,null,null,null,null,null,null,null,null,null,null,null,"Allowed",null,null,null,null,null,null,null,null,null,null,null,null,null,null,null,null,null,null,null,null,null,null,null,null,null,null,null,null,null,null,null,null,null,null,null,null,null,null,null,null,null,null,null,null,null,null,null,null,null,0,null,null,0,null,0,null,0,null,0]
[null,null,null,null,null,null,null,null,null,null,null,null,null,null,"Allowed",null,null,null,null,null,null,null,null,null,null,null,null,null,null,null,null,null,null,null,null,null,null,null,null,null,null,null,null,null,null,null,null,null,null,null,null,null,null,null,null,null,null,null,null,null,null,null,null,null,0,null,null,0,null,0,null,0,null,0]
[null,null,null,null,null,null,null,null,null,null,null,null,null,null,"Allowed",null,null,null,null,null,null,null,null,null,null,null,null,null,null,null,null,null,null,null,null,null,null,null,null,null,null,null,null,null,null,null,null,null,null,null,null,null,null,null,null,null,null,null,null,null,null,null,null,null,0,null,null,0,null,0,null,0,null,0]
[null,null,null,null,null,null,null,null,null,null,null,null,null,null,"Allowed",null,null,null,null,null,null,null,null,null,null,null,null,null,null,null,null,null,null,null,null,null,null,null,null,null,null,null,null,null,null,null,null,null,null,null,null,null,null,null,null,null,null,null,null,null,null,null,null,null,0,null,null,0,null,0,null,0,null,0]
[null,null,null,null,null,null,null,null,null,null,null,null,null,null,"Allowed",null,null,null,null,null,null,null,null,null,null,null,null,null,null,null,null,null,null,null,null,null,null,null,null,null,null,null,null,null,null,null,null,null,null,null,null,null,null,null,null,null,null,null,null,null,null,null,null,null,0,null,null,0,null,0,null,0,null,0]
[null,null,null,null,null,null,null,null,null,null,null,null,null,null,"Allowed",null,null,null,null,null,null,null,null,null,null,null,null,null,null,null,null,null,null,null,null,null,null,null,null,null,null,null,null,null,null,null,null,null,null,null,null,null,null,null,null,null,null,null,null,null,null,null,null,null,0,null,null,0,null,0,null,0,null,0]
[null,null,null,null,null,null,null,null,null,null,null,null,null,null,"Allowed",null,null,null,null,null,null,null,null,null,null,null,null,null,null,null,null,null,null,null,null,null,null,null,null,null,null,null,null,null,null,null,null,null,null,null,null,null,null,null,null,null,null,null,null,null,null,null,null,null,0,null,null,0,null,0,null,0,null,0]
[null,null,null,null,null,null,null,null,null,null,null,null,null,null,"Allowed",null,null,null,null,null,null,null,null,null,null,null,null,null,null,null,null,null,null,null,null,null,null,null,null,null,null,null,null,null,null,null,null,null,null,null,null,null,null,null,null,null,null,null,null,null,null,null,null,null,0,null,null,0,null,0,null,0,null,0]
[null,null,null,null,null,null,null,null,null,null,null,null,null,null,"Allowed",null,null,null,null,null,null,null,null,null,null,null,null,null,null,null,null,null,null,null,null,null,null,null,null,null,null,null,null,null,null,null,null,null,null,null,null,null,null,null,null,null,null,null,null,null,null,null,null,null,0,null,null,0,null,0,null,0,null,0]
[null,null,null,null,null,null,null,null,null,null,null,null,null,null,{"$f":"IF(N451<=TRUNC(P451*1.015228,2),\"Allowed\",\"Exceeds Max\")","v":"Allowed"},null,null,null,null,null,null,null,null,null,null,null,null,null,null,null,null,null,null,null,null,null,null,null,null,null,null,null,null,null,null,null,null,null,null,null,null,null,null,null,null,null,null,null,null,null,null,null,null,null,0,null,null,0,null,0,null,0,null,0]
[null,null,null,null,null,null,null,null,null,null,null,null,null,null,"Allowed",null,null,null,null,null,null,null,null,null,null,null,null,null,null,null,null,null,null,null,null,null,null,null,null,null,null,null,null,null,null,null,null,null,null,null,null,null,null,null,null,null,null,null,null,null,null,null,null,null,{"$f":"LEN(BL452)","v":0},null,null,{"$f":"LEN(BO452)","v":0},null,{"$f":"LEN(BQ452)","v":0},null,{"$f":"LEN(BS452)","v":0},null,{"$f":"LEN(BU452)","v":0}]
[null,null,null,null,null,null,null,null,null,null,null,null,null,null,"Allowed",null,null,null,null,null,null,null,null,null,null,null,null,null,null,null,null,null,null,null,null,null,null,null,null,null,null,null,null,null,null,null,null,null,null,null,null,null,null,null,null,null,null,null,null,null,null,null,null,null,0,null,null,0,null,0,null,0,null,0]
[null,null,null,null,null,null,null,null,null,null,null,null,null,null,"Allowed",null,null,null,null,null,null,null,null,null,null,null,null,null,null,null,null,null,null,null,null,null,null,null,null,null,null,null,null,null,null,null,null,null,null,null,null,null,null,null,null,null,null,null,null,null,null,null,null,null,0,null,null,0,null,0,null,0,null,0]
[null,null,null,null,null,null,null,null,null,null,null,null,null,null,"Allowed",null,null,null,null,null,null,null,null,null,null,null,null,null,null,null,null,null,null,null,null,null,null,null,null,null,null,null,null,null,null,null,null,null,null,null,null,null,null,null,null,null,null,null,null,null,null,null,null,null,0,null,null,0,null,0,null,0,null,0]
[null,null,null,null,null,null,null,null,null,null,null,null,null,null,"Allowed",null,null,null,null,null,null,null,null,null,null,null,null,null,null,null,null,null,null,null,null,null,null,null,null,null,null,null,null,null,null,null,null,null,null,null,null,null,null,null,null,null,null,null,null,null,null,null,null,null,0,null,null,0,null,0,null,0,null,0]
[null,null,null,null,null,null,null,null,null,null,null,null,null,null,"Allowed",null,null,null,null,null,null,null,null,null,null,null,null,null,null,null,null,null,null,null,null,null,null,null,null,null,null,null,null,null,null,null,null,null,null,null,null,null,null,null,null,null,null,null,null,null,null,null,null,null,0,null,null,0,null,0,null,0,null,0]
[null,null,null,null,null,null,null,null,null,null,null,null,null,null,"Allowed",null,null,null,null,null,null,null,null,null,null,null,null,null,null,null,null,null,null,null,null,null,null,null,null,null,null,null,null,null,null,null,null,null,null,null,null,null,null,null,null,null,null,null,null,null,null,null,null,null,0,null,null,0,null,0,null,0,null,0]
[null,null,null,null,null,null,null,null,null,null,null,null,null,null,"Allowed",null,null,null,null,null,null,null,null,null,null,null,null,null,null,null,null,null,null,null,null,null,null,null,null,null,null,null,null,null,null,null,null,null,null,null,null,null,null,null,null,null,null,null,null,null,null,null,null,null,0,null,null,0,null,0,null,0,null,0]
[null,null,null,null,null,null,null,null,null,null,null,null,null,null,"Allowed",null,null,null,null,null,null,null,null,null,null,null,null,null,null,null,null,null,null,null,null,null,null,null,null,null,null,null,null,null,null,null,null,null,null,null,null,null,null,null,null,null,null,null,null,null,null,null,null,null,0,null,null,0,null,0,null,0,null,0]
[null,null,null,null,null,null,null,null,null,null,null,null,null,null,"Allowed",null,null,null,null,null,null,null,null,null,null,null,null,null,null,null,null,null,null,null,null,null,null,null,null,null,null,null,null,null,null,null,null,null,null,null,null,null,null,null,null,null,null,null,null,null,null,null,null,null,0,null,null,0,null,0,null,0,null,0]
[null,null,null,null,null,null,null,null,null,null,null,null,null,null,"Allowed",null,null,null,null,null,null,null,null,null,null,null,null,null,null,null,null,null,null,null,null,null,null,null,null,null,null,null,null,null,null,null,null,null,null,null,null,null,null,null,null,null,null,null,null,null,null,null,null,null,0,null,null,0,null,0,null,0,null,0]
[null,null,null,null,null,null,null,null,null,null,null,null,null,null,"Allowed",null,null,null,null,null,null,null,null,null,null,null,null,null,null,null,null,null,null,null,null,null,null,null,null,null,null,null,null,null,null,null,null,null,null,null,null,null,null,null,null,null,null,null,null,null,null,null,null,null,0,null,null,0,null,0,null,0,null,0]
[null,null,null,null,null,null,null,null,null,null,null,null,null,null,"Allowed",null,null,null,null,null,null,null,null,null,null,null,null,null,null,null,null,null,null,null,null,null,null,null,null,null,null,null,null,null,null,null,null,null,null,null,null,null,null,null,null,null,null,null,null,null,null,null,null,null,0,null,null,0,null,0,null,0,null,0]
[null,null,null,null,null,null,null,null,null,null,null,null,null,null,"Allowed",null,null,null,null,null,null,null,null,null,null,null,null,null,null,null,null,null,null,null,null,null,null,null,null,null,null,null,null,null,null,null,null,null,null,null,null,null,null,null,null,null,null,null,null,null,null,null,null,null,0,null,null,0,null,0,null,0,null,0]
[null,null,null,null,null,null,null,null,null,null,null,null,null,null,"Allowed",null,null,null,null,null,null,null,null,null,null,null,null,null,null,null,null,null,null,null,null,null,null,null,null,null,null,null,null,null,null,null,null,null,null,null,null,null,null,null,null,null,null,null,null,null,null,null,null,null,0,null,null,0,null,0,null,0,null,0]
[null,null,null,null,null,null,null,null,null,null,null,null,null,null,"Allowed",null,null,null,null,null,null,null,null,null,null,null,null,null,null,null,null,null,null,null,null,null,null,null,null,null,null,null,null,null,null,null,null,null,null,null,null,null,null,null,null,null,null,null,null,null,null,null,null,null,0,null,null,0,null,0,null,0,null,0]
[null,null,null,null,null,null,null,null,null,null,null,null,null,null,"Allowed",null,null,null,null,null,null,null,null,null,null,null,null,null,null,null,null,null,null,null,null,null,null,null,null,null,null,null,null,null,null,null,null,null,null,null,null,null,null,null,null,null,null,null,null,null,null,null,null,null,0,null,null,0,null,0,null,0,null,0]
[null,null,null,null,null,null,null,null,null,null,null,null,null,null,"Allowed",null,null,null,null,null,null,null,null,null,null,null,null,null,null,null,null,null,null,null,null,null,null,null,null,null,null,null,null,null,null,null,null,null,null,null,null,null,null,null,null,null,null,null,null,null,null,null,null,null,0,null,null,0,null,0,null,0,null,0]
[null,null,null,null,null,null,null,null,null,null,null,null,null,null,"Allowed",null,null,null,null,null,null,null,null,null,null,null,null,null,null,null,null,null,null,null,null,null,null,null,null,null,null,null,null,null,null,null,null,null,null,null,null,null,null,null,null,null,null,null,null,null,null,null,null,null,0,null,null,0,null,0,null,0,null,0]
[null,null,null,null,null,null,null,null,null,null,null,null,null,null,"Allowed",null,null,null,null,null,null,null,null,null,null,null,null,null,null,null,null,null,null,null,null,null,null,null,null,null,null,null,null,null,null,null,null,null,null,null,null,null,null,null,null,null,null,null,null,null,null,null,null,null,0,null,null,0,null,0,null,0,null,0]
[null,null,null,null,null,null,null,null,null,null,null,null,null,null,"Allowed",null,null,null,null,null,null,null,null,null,null,null,null,null,null,null,null,null,null,null,null,null,null,null,null,null,null,null,null,null,null,null,null,null,null,null,null,null,null,null,null,null,null,null,null,null,null,null,null,null,0,null,null,0,null,0,null,0,null,0]
[null,null,null,null,null,null,null,null,null,null,null,null,null,null,"Allowed",null,null,null,null,null,null,null,null,null,null,null,null,null,null,null,null,null,null,null,null,null,null,null,null,null,null,null,null,null,null,null,null,null,null,null,null,null,null,null,null,null,null,null,null,null,null,null,null,null,0,null,null,0,null,0,null,0,null,0]
[null,null,null,null,null,null,null,null,null,null,null,null,null,null,"Allowed",null,null,null,null,null,null,null,null,null,null,null,null,null,null,null,null,null,null,null,null,null,null,null,null,null,null,null,null,null,null,null,null,null,null,null,null,null,null,null,null,null,null,null,null,null,null,null,null,null,0,null,null,0,null,0,null,0,null,0]
[null,null,null,null,null,null,null,null,null,null,null,null,null,null,"Allowed",null,null,null,null,null,null,null,null,null,null,null,null,null,null,null,null,null,null,null,null,null,null,null,null,null,null,null,null,null,null,null,null,null,null,null,null,null,null,null,null,null,null,null,null,null,null,null,null,null,0,null,null,0,null,0,null,0,null,0]
[null,null,null,null,null,null,null,null,null,null,null,null,null,null,"Allowed",null,null,null,null,null,null,null,null,null,null,null,null,null,null,null,null,null,null,null,null,null,null,null,null,null,null,null,null,null,null,null,null,null,null,null,null,null,null,null,null,null,null,null,null,null,null,null,null,null,0,null,null,0,null,0,null,0,null,0]
[null,null,null,null,null,null,null,null,null,null,null,null,null,null,"Allowed",null,null,null,null,null,null,null,null,null,null,null,null,null,null,null,null,null,null,null,null,null,null,null,null,null,null,null,null,null,null,null,null,null,null,null,null,null,null,null,null,null,null,null,null,null,null,null,null,null,0,null,null,0,null,0,null,0,null,0]
[null,null,null,null,null,null,null,null,null,null,null,null,null,null,"Allowed",null,null,null,null,null,null,null,null,null,null,null,null,null,null,null,null,null,null,null,null,null,null,null,null,null,null,null,null,null,null,null,null,null,null,null,null,null,null,null,null,null,null,null,null,null,null,null,null,null,0,null,null,0,null,0,null,0,null,0]
[null,null,null,null,null,null,null,null,null,null,null,null,null,null,"Allowed",null,null,null,null,null,null,null,null,null,null,null,null,null,null,null,null,null,null,null,null,null,null,null,null,null,null,null,null,null,null,null,null,null,null,null,null,null,null,null,null,null,null,null,null,null,null,null,null,null,0,null,null,0,null,0,null,0,null,0]
[null,null,null,null,null,null,null,null,null,null,null,null,null,null,"Allowed",null,null,null,null,null,null,null,null,null,null,null,null,null,null,null,null,null,null,null,null,null,null,null,null,null,null,null,null,null,null,null,null,null,null,null,null,null,null,null,null,null,null,null,null,null,null,null,null,null,0,null,null,0,null,0,null,0,null,0]
[null,null,null,null,null,null,null,null,null,null,null,null,null,null,"Allowed",null,null,null,null,null,null,null,null,null,null,null,null,null,null,null,null,null,null,null,null,null,null,null,null,null,null,null,null,null,null,null,null,null,null,null,null,null,null,null,null,null,null,null,null,null,null,null,null,null,0,null,null,0,null,0,null,0,null,0]
[null,null,null,null,null,null,null,null,null,null,null,null,null,null,"Allowed",null,null,null,null,null,null,null,null,null,null,null,null,null,null,null,null,null,null,null,null,null,null,null,null,null,null,null,null,null,null,null,null,null,null,null,null,null,null,null,null,null,null,null,null,null,null,null,null,null,0,null,null,0,null,0,null,0,null,0]
[null,null,null,null,null,null,null,null,null,null,null,null,null,null,"Allowed",null,null,null,null,null,null,null,null,null,null,null,null,null,null,null,null,null,null,null,null,null,null,null,null,null,null,null,null,null,null,null,null,null,null,null,null,null,null,null,null,null,null,null,null,null,null,null,null,null,0,null,null,0,null,0,null,0,null,0]
[null,null,null,null,null,null,null,null,null,null,null,null,null,null,"Allowed",null,null,null,null,null,null,null,null,null,null,null,null,null,null,null,null,null,null,null,null,null,null,null,null,null,null,null,null,null,null,null,null,null,null,null,null,null,null,null,null,null,null,null,null,null,null,null,null,null,0,null,null,0,null,0,null,0,null,0]
[null,null,null,null,null,null,null,null,null,null,null,null,null,null,"Allowed",null,null,null,null,null,null,null,null,null,null,null,null,null,null,null,null,null,null,null,null,null,null,null,null,null,null,null,null,null,null,null,null,null,null,null,null,null,null,null,null,null,null,null,null,null,null,null,null,null,0,null,null,0,null,0,null,0,null,0]
[null,null,null,null,null,null,null,null,null,null,null,null,null,null,"Allowed",null,null,null,null,null,null,null,null,null,null,null,null,null,null,null,null,null,null,null,null,null,null,null,null,null,null,null,null,null,null,null,null,null,null,null,null,null,null,null,null,null,null,null,null,null,null,null,null,null,0,null,null,0,null,0,null,0,null,0]
[null,null,null,null,null,null,null,null,null,null,null,null,null,null,"Allowed",null,null,null,null,null,null,null,null,null,null,null,null,null,null,null,null,null,null,null,null,null,null,null,null,null,null,null,null,null,null,null,null,null,null,null,null,null,null,null,null,null,null,null,null,null,null,null,null,null,0,null,null,0,null,0,null,0,null,0]
[null,null,null,null,null,null,null,null,null,null,null,null,null,null,"Allowed",null,null,null,null,null,null,null,null,null,null,null,null,null,null,null,null,null,null,null,null,null,null,null,null,null,null,null,null,null,null,null,null,null,null,null,null,null,null,null,null,null,null,null,null,null,null,null,null,null,0,null,null,0,null,0,null,0,null,0]
[null,null,null,null,null,null,null,null,null,null,null,null,null,null,"Allowed",null,null,null,null,null,null,null,null,null,null,null,null,null,null,null,null,null,null,null,null,null,null,null,null,null,null,null,null,null,null,null,null,null,null,null,null,null,null,null,null,null,null,null,null,null,null,null,null,null,0,null,null,0,null,0,null,0,null,0]
[null,null,null,null,null,null,null,null,null,null,null,null,null,null,"Allowed",null,null,null,null,null,null,null,null,null,null,null,null,null,null,null,null,null,null,null,null,null,null,null,null,null,null,null,null,null,null,null,null,null,null,null,null,null,null,null,null,null,null,null,null,null,null,null,null,null,0,null,null,0,null,0,null,0,null,0]
[null,null,null,null,null,null,null,null,null,null,null,null,null,null,"Allowed",null,null,null,null,null,null,null,null,null,null,null,null,null,null,null,null,null,null,null,null,null,null,null,null,null,null,null,null,null,null,null,null,null,null,null,null,null,null,null,null,null,null,null,null,null,null,null,null,null,0,null,null,0,null,0,null,0,null,0]
[null,null,null,null,null,null,null,null,null,null,null,null,null,null,"Allowed",null,null,null,null,null,null,null,null,null,null,null,null,null,null,null,null,null,null,null,null,null,null,null,null,null,null,null,null,null,null,null,null,null,null,null,null,null,null,null,null,null,null,null,null,null,null,null,null,null,0,null,null,0,null,0,null,0,null,0]
[null,null,null,null,null,null,null,null,null,null,null,null,null,null,"Allowed",null,null,null,null,null,null,null,null,null,null,null,null,null,null,null,null,null,null,null,null,null,null,null,null,null,null,null,null,null,null,null,null,null,null,null,null,null,null,null,null,null,null,null,null,null,null,null,null,null,0,null,null,0,null,0,null,0,null,0]
[null,null,null,null,null,null,null,null,null,null,null,null,null,null,"Allowed",null,null,null,null,null,null,null,null,null,null,null,null,null,null,null,null,null,null,null,null,null,null,null,null,null,null,null,null,null,null,null,null,null,null,null,null,null,null,null,null,null,null,null,null,null,null,null,null,null,0,null,null,0,null,0,null,0,null,0]
[null,null,null,null,null,null,null,null,null,null,null,null,null,null,"Allowed",null,null,null,null,null,null,null,null,null,null,null,null,null,null,null,null,null,null,null,null,null,null,null,null,null,null,null,null,null,null,null,null,null,null,null,null,null,null,null,null,null,null,null,null,null,null,null,null,null,0,null,null,0,null,0,null,0,null,0]
[null,null,null,null,null,null,null,null,null,null,null,null,null,null,"Allowed",null,null,null,null,null,null,null,null,null,null,null,null,null,null,null,null,null,null,null,null,null,null,null,null,null,null,null,null,null,null,null,null,null,null,null,null,null,null,null,null,null,null,null,null,null,null,null,null,null,0,null,null,0,null,0,null,0,null,0]
[null,null,null,null,null,null,null,null,null,null,null,null,null,null,"Allowed",null,null,null,null,null,null,null,null,null,null,null,null,null,null,null,null,null,null,null,null,null,null,null,null,null,null,null,null,null,null,null,null,null,null,null,null,null,null,null,null,null,null,null,null,null,null,null,null,null,0,null,null,0,null,0,null,0,null,0]
[null,null,null,null,null,null,null,null,null,null,null,null,null,null,"Allowed",null,null,null,null,null,null,null,null,null,null,null,null,null,null,null,null,null,null,null,null,null,null,null,null,null,null,null,null,null,null,null,null,null,null,null,null,null,null,null,null,null,null,null,null,null,null,null,null,null,0,null,null,0,null,0,null,0,null,0]
[null,null,null,null,null,null,null,null,null,null,null,null,null,null,"Allowed",null,null,null,null,null,null,null,null,null,null,null,null,null,null,null,null,null,null,null,null,null,null,null,null,null,null,null,null,null,null,null,null,null,null,null,null,null,null,null,null,null,null,null,null,null,null,null,null,null,0,null,null,0,null,0,null,0,null,0]
[null,null,null,null,null,null,null,null,null,null,null,null,null,null,"Allowed",null,null,null,null,null,null,null,null,null,null,null,null,null,null,null,null,null,null,null,null,null,null,null,null,null,null,null,null,null,null,null,null,null,null,null,null,null,null,null,null,null,null,null,null,null,null,null,null,null,0,null,null,0,null,0,null,0,null,0]
[null,null,null,null,null,null,null,null,null,null,null,null,null,null,"Allowed",null,null,null,null,null,null,null,null,null,null,null,null,null,null,null,null,null,null,null,null,null,null,null,null,null,null,null,null,null,null,null,null,null,null,null,null,null,null,null,null,null,null,null,null,null,null,null,null,null,0,null,null,0,null,0,null,0,null,0]
[null,null,null,null,null,null,null,null,null,null,null,null,null,null,"Allowed",null,null,null,null,null,null,null,null,null,null,null,null,null,null,null,null,null,null,null,null,null,null,null,null,null,null,null,null,null,null,null,null,null,null,null,null,null,null,null,null,null,null,null,null,null,null,null,null,null,0,null,null,0,null,0,null,0,null,0]
[null,null,null,null,null,null,null,null,null,null,null,null,null,null,"Allowed",null,null,null,null,null,null,null,null,null,null,null,null,null,null,null,null,null,null,null,null,null,null,null,null,null,null,null,null,null,null,null,null,null,null,null,null,null,null,null,null,null,null,null,null,null,null,null,null,null,0,null,null,0,null,0,null,0,null,0]
[null,null,null,null,null,null,null,null,null,null,null,null,null,null,"Allowed",null,null,null,null,null,null,null,null,null,null,null,null,null,null,null,null,null,null,null,null,null,null,null,null,null,null,null,null,null,null,null,null,null,null,null,null,null,null,null,null,null,null,null,null,null,null,null,null,null,0,null,null,0,null,0,null,0,null,0]
[null,null,null,null,null,null,null,null,null,null,null,null,null,null,"Allowed",null,null,null,null,null,null,null,null,null,null,null,null,null,null,null,null,null,null,null,null,null,null,null,null,null,null,null,null,null,null,null,null,null,null,null,null,null,null,null,null,null,null,null,null,null,null,null,null,null,0,null,null,0,null,0,null,0,null,0]
[null,null,null,null,null,null,null,null,null,null,null,null,null,null,"Allowed",null,null,null,null,null,null,null,null,null,null,null,null,null,null,null,null,null,null,null,null,null,null,null,null,null,null,null,null,null,null,null,null,null,null,null,null,null,null,null,null,null,null,null,null,null,null,null,null,null,0,null,null,0,null,0,null,0,null,0]
[null,null,null,null,null,null,null,null,null,null,null,null,null,null,"Allowed",null,null,null,null,null,null,null,null,null,null,null,null,null,null,null,null,null,null,null,null,null,null,null,null,null,null,null,null,null,null,null,null,null,null,null,null,null,null,null,null,null,null,null,null,null,null,null,null,null,0,null,null,0,null,0,null,0,null,0]
[null,null,null,null,null,null,null,null,null,null,null,null,null,null,"Allowed",null,null,null,null,null,null,null,null,null,null,null,null,null,null,null,null,null,null,null,null,null,null,null,null,null,null,null,null,null,null,null,null,null,null,null,null,null,null,null,null,null,null,null,null,null,null,null,null,null,0,null,null,0,null,0,null,0,null,0]
[null,null,null,null,null,null,null,null,null,null,null,null,null,null,"Allowed",null,null,null,null,null,null,null,null,null,null,null,null,null,null,null,null,null,null,null,null,null,null,null,null,null,null,null,null,null,null,null,null,null,null,null,null,null,null,null,null,null,null,null,null,null,null,null,null,null,0,null,null,0,null,0,null,0,null,0]
[null,null,null,null,null,null,null,null,null,null,null,null,null,null,"Allowed",null,null,null,null,null,null,null,null,null,null,null,null,null,null,null,null,null,null,null,null,null,null,null,null,null,null,null,null,null,null,null,null,null,null,null,null,null,null,null,null,null,null,null,null,null,null,null,null,null,0,null,null,0,null,0,null,0,null,0]
[null,null,null,null,null,null,null,null,null,null,null,null,null,null,"Allowed",null,null,null,null,null,null,null,null,null,null,null,null,null,null,null,null,null,null,null,null,null,null,null,null,null,null,null,null,null,null,null,null,null,null,null,null,null,null,null,null,null,null,null,null,null,null,null,null,null,0,null,null,0,null,0,null,0,null,0]
[null,null,null,null,null,null,null,null,null,null,null,null,null,null,"Allowed",null,null,null,null,null,null,null,null,null,null,null,null,null,null,null,null,null,null,null,null,null,null,null,null,null,null,null,null,null,null,null,null,null,null,null,null,null,null,null,null,null,null,null,null,null,null,null,null,null,0,null,null,0,null,0,null,0,null,0]
[null,null,null,null,null,null,null,null,null,null,null,null,null,null,"Allowed",null,null,null,null,null,null,null,null,null,null,null,null,null,null,null,null,null,null,null,null,null,null,null,null,null,null,null,null,null,null,null,null,null,null,null,null,null,null,null,null,null,null,null,null,null,null,null,null,null,0,null,null,0,null,0,null,0,null,0]
[null,null,null,null,null,null,null,null,null,null,null,null,null,null,"Allowed",null,null,null,null,null,null,null,null,null,null,null,null,null,null,null,null,null,null,null,null,null,null,null,null,null,null,null,null,null,null,null,null,null,null,null,null,null,null,null,null,null,null,null,null,null,null,null,null,null,0,null,null,0,null,0,null,0,null,0]
[null,null,null,null,null,null,null,null,null,null,null,null,null,null,"Allowed",null,null,null,null,null,null,null,null,null,null,null,null,null,null,null,null,null,null,null,null,null,null,null,null,null,null,null,null,null,null,null,null,null,null,null,null,null,null,null,null,null,null,null,null,null,null,null,null,null,0,null,null,0,null,0,null,0,null,0]
[null,null,null,null,null,null,null,null,null,null,null,null,null,null,"Allowed",null,null,null,null,null,null,null,null,null,null,null,null,null,null,null,null,null,null,null,null,null,null,null,null,null,null,null,null,null,null,null,null,null,null,null,null,null,null,null,null,null,null,null,null,null,null,null,null,null,0,null,null,0,null,0,null,0,null,0]
[null,null,null,null,null,null,null,null,null,null,null,null,null,null,"Allowed",null,null,null,null,null,null,null,null,null,null,null,null,null,null,null,null,null,null,null,null,null,null,null,null,null,null,null,null,null,null,null,null,null,null,null,null,null,null,null,null,null,null,null,null,null,null,null,null,null,0,null,null,0,null,0,null,0,null,0]
[null,null,null,null,null,null,null,null,null,null,null,null,null,null,"Allowed",null,null,null,null,null,null,null,null,null,null,null,null,null,null,null,null,null,null,null,null,null,null,null,null,null,null,null,null,null,null,null,null,null,null,null,null,null,null,null,null,null,null,null,null,null,null,null,null,null,0,null,null,0,null,0,null,0,null,0]
[null,null,null,null,null,null,null,null,null,null,null,null,null,null,"Allowed",null,null,null,null,null,null,null,null,null,null,null,null,null,null,null,null,null,null,null,null,null,null,null,null,null,null,null,null,null,null,null,null,null,null,null,null,null,null,null,null,null,null,null,null,null,null,null,null,null,0,null,null,0,null,0,null,0,null,0]
[null,null,null,null,null,null,null,null,null,null,null,null,null,null,"Allowed",null,null,null,null,null,null,null,null,null,null,null,null,null,null,null,null,null,null,null,null,null,null,null,null,null,null,null,null,null,null,null,null,null,null,null,null,null,null,null,null,null,null,null,null,null,null,null,null,null,0,null,null,0,null,0,null,0,null,0]
[null,null,null,null,null,null,null,null,null,null,null,null,null,null,"Allowed",null,null,null,null,null,null,null,null,null,null,null,null,null,null,null,null,null,null,null,null,null,null,null,null,null,null,null,null,null,null,null,null,null,null,null,null,null,null,null,null,null,null,null,null,null,null,null,null,null,0,null,null,0,null,0,null,0,null,0]
[null,null,null,null,null,null,null,null,null,null,null,null,null,null,"Allowed",null,null,null,null,null,null,null,null,null,null,null,null,null,null,null,null,null,null,null,null,null,null,null,null,null,null,null,null,null,null,null,null,null,null,null,null,null,null,null,null,null,null,null,null,null,null,null,null,null,0,null,null,0,null,0,null,0,null,0]
[null,null,null,null,null,null,null,null,null,null,null,null,null,null,"Allowed",null,null,null,null,null,null,null,null,null,null,null,null,null,null,null,null,null,null,null,null,null,null,null,null,null,null,null,null,null,null,null,null,null,null,null,null,null,null,null,null,null,null,null,null,null,null,null,null,null,0,null,null,0,null,0,null,0,null,0]
[null,null,null,null,null,null,null,null,null,null,null,null,null,null,"Allowed",null,null,null,null,null,null,null,null,null,null,null,null,null,null,null,null,null,null,null,null,null,null,null,null,null,null,null,null,null,null,null,null,null,null,null,null,null,null,null,null,null,null,null,null,null,null,null,null,null,0,null,null,0,null,0,null,0,null,0]
[null,null,null,null,null,null,null,null,null,null,null,null,null,null,"Allowed",null,null,null,null,null,null,null,null,null,null,null,null,null,null,null,null,null,null,null,null,null,null,null,null,null,null,null,null,null,null,null,null,null,null,null,null,null,null,null,null,null,null,null,null,null,null,null,null,null,0,null,null,0,null,0,null,0,null,0]
[null,null,null,null,null,null,null,null,null,null,null,null,null,null,"Allowed",null,null,null,null,null,null,null,null,null,null,null,null,null,null,null,null,null,null,null,null,null,null,null,null,null,null,null,null,null,null,null,null,null,null,null,null,null,null,null,null,null,null,null,null,null,null,null,null,null,0,null,null,0,null,0,null,0,null,0]
[null,null,null,null,null,null,null,null,null,null,null,null,null,null,"Allowed",null,null,null,null,null,null,null,null,null,null,null,null,null,null,null,null,null,null,null,null,null,null,null,null,null,null,null,null,null,null,null,null,null,null,null,null,null,null,null,null,null,null,null,null,null,null,null,null,null,0,null,null,0,null,0,null,0,null,0]
[null,null,null,null,null,null,null,null,null,null,null,null,null,null,"Allowed",null,null,null,null,null,null,null,null,null,null,null,null,null,null,null,null,null,null,null,null,null,null,null,null,null,null,null,null,null,null,null,null,null,null,null,null,null,null,null,null,null,null,null,null,null,null,null,null,null,0,null,null,0,null,0,null,0,null,0]
[null,null,null,null,null,null,null,null,null,null,null,null,null,null,"Allowed",null,null,null,null,null,null,null,null,null,null,null,null,null,null,null,null,null,null,null,null,null,null,null,null,null,null,null,null,null,null,null,null,null,null,null,null,null,null,null,null,null,null,null,null,null,null,null,null,null,0,null,null,0,null,0,null,0,null,0]
[null,null,null,null,null,null,null,null,null,null,null,null,null,null,"Allowed",null,null,null,null,null,null,null,null,null,null,null,null,null,null,null,null,null,null,null,null,null,null,null,null,null,null,null,null,null,null,null,null,null,null,null,null,null,null,null,null,null,null,null,null,null,null,null,null,null,0,null,null,0,null,0,null,0,null,0]
[null,null,null,null,null,null,null,null,null,null,null,null,null,null,"Allowed",null,null,null,null,null,null,null,null,null,null,null,null,null,null,null,null,null,null,null,null,null,null,null,null,null,null,null,null,null,null,null,null,null,null,null,null,null,null,null,null,null,null,null,null,null,null,null,null,null,0,null,null,0,null,0,null,0,null,0]
[null,null,null,null,null,null,null,null,null,null,null,null,null,null,"Allowed",null,null,null,null,null,null,null,null,null,null,null,null,null,null,null,null,null,null,null,null,null,null,null,null,null,null,null,null,null,null,null,null,null,null,null,null,null,null,null,null,null,null,null,null,null,null,null,null,null,0,null,null,0,null,0,null,0,null,0]
[null,null,null,null,null,null,null,null,null,null,null,null,null,null,"Allowed",null,null,null,null,null,null,null,null,null,null,null,null,null,null,null,null,null,null,null,null,null,null,null,null,null,null,null,null,null,null,null,null,null,null,null,null,null,null,null,null,null,null,null,null,null,null,null,null,null,0,null,null,0,null,0,null,0,null,0]
[null,null,null,null,null,null,null,null,null,null,null,null,null,null,"Allowed",null,null,null,null,null,null,null,null,null,null,null,null,null,null,null,null,null,null,null,null,null,null,null,null,null,null,null,null,null,null,null,null,null,null,null,null,null,null,null,null,null,null,null,null,null,null,null,null,null,0,null,null,0,null,0,null,0,null,0]
[null,null,null,null,null,null,null,null,null,null,null,null,null,null,"Allowed",null,null,null,null,null,null,null,null,null,null,null,null,null,null,null,null,null,null,null,null,null,null,null,null,null,null,null,null,null,null,null,null,null,null,null,null,null,null,null,null,null,null,null,null,null,null,null,null,null,0,null,null,0,null,0,null,0,null,0]
[null,null,null,null,null,null,null,null,null,null,null,null,null,null,"Allowed",null,null,null,null,null,null,null,null,null,null,null,null,null,null,null,null,null,null,null,null,null,null,null,null,null,null,null,null,null,null,null,null,null,null,null,null,null,null,null,null,null,null,null,null,null,null,null,null,null,{"$f":"LEN(BL17988)","v":0},null,null,{"$f":"LEN(BO17988)","v":0},null,{"$f":"LEN(BQ17988)","v":0},null,{"$f":"LEN(BS17988)","v":0},null,{"$f":"LEN(BU17988)","v":0}]
[null,null,null,null,null,null,null,null,null,null,null,null,null,null,"Allowed",null,null,null,null,null,null,null,null,null,null,null,null,null,null,null,null,null,null,null,null,null,null,null,null,null,null,null,null,null,null,null,null,null,null,null,null,null,null,null,null,null,null,null,null,null,null,null,null,null,0,null,null,0,null,0,null,0,null,0]
[null,null,null,null,null,null,null,null,null,null,null,null,null,null,"Allowed",null,null,null,null,null,null,null,null,null,null,null,null,null,null,null,null,null,null,null,null,null,null,null,null,null,null,null,null,null,null,null,null,null,null,null,null,null,null,null,null,null,null,null,null,null,null,null,null,null,0,null,null,0,null,0,null,0,null,0]
[null,null,null,null,null,null,null,null,null,null,null,null,null,null,"Allowed",null,null,null,null,null,null,null,null,null,null,null,null,null,null,null,null,null,null,null,null,null,null,null,null,null,null,null,null,null,null,null,null,null,null,null,null,null,null,null,null,null,null,null,null,null,null,null,null,null,{"$f":"LEN(BL19908)","v":0},null,null,{"$f":"LEN(BO19908)","v":0},null,{"$f":"LEN(BQ19908)","v":0},null,{"$f":"LEN(BS19908)","v":0},null,{"$f":"LEN(BU19908)","v":0}]
[null,null,null,null,null,null,null,null,null,null,null,null,null,null,"Allowed",null,null,null,null,null,null,null,null,null,null,null,null,null,null,null,null,null,null,null,null,null,null,null,null,null,null,null,null,null,null,null,null,null,null,null,null,null,null,null,null,null,null,null,null,null,null,null,null,null,0,null,null,0,null,0,null,0,null,0]
[null,null,null,null,null,null,null,null,null,null,null,null,null,null,"Allowed",null,null,null,null,null,null,null,null,null,null,null,null,null,null,null,null,null,null,null,null,null,null,null,null,null,null,null,null,null,null,null,null,null,null,null,null,null,null,null,null,null,null,null,null,null,null,null,null,null,0,null,null,0,null,0,null,0,null,0]
[null,null,null,null,null,null,null,null,null,null,null,null,null,null,"Allowed",null,null,null,null,null,null,null,null,null,null,null,null,null,null,null,null,null,null,null,null,null,null,null,null,null,null,null,null,null,null,null,null,null,null,null,null,null,null,null,null,null,null,null,null,null,null,null,null,null,0,null,null,0,null,0,null,0,null,0]
[null,null,null,null,null,null,null,null,null,null,null,null,null,null,"Allowed",null,null,null,null,null,null,null,null,null,null,null,null,null,null,null,null,null,null,null,null,null,null,null,null,null,null,null,null,null,null,null,null,null,null,null,null,null,null,null,null,null,null,null,null,null,null,null,null,null,0,null,null,0,null,0,null,0,null,0]
[null,null,null,null,null,null,null,null,null,null,null,null,null,null,"Allowed",null,null,null,null,null,null,null,null,null,null,null,null,null,null,null,null,null,null,null,null,null,null,null,null,null,null,null,null,null,null,null,null,null,null,null,null,null,null,null,null,null,null,null,null,null,null,null,null,null,0,null,null,0,null,0,null,0,null,0]
[null,null,null,null,null,null,null,null,null,null,null,null,null,null,"Allowed",null,null,null,null,null,null,null,null,null,null,null,null,null,null,null,null,null,null,null,null,null,null,null,null,null,null,null,null,null,null,null,null,null,null,null,null,null,null,null,null,null,null,null,null,null,null,null,null,null,0,null,null,0,null,0,null,0,null,0]
[null,null,null,null,null,null,null,null,null,null,null,null,null,null,"Allowed",null,null,null,null,null,null,null,null,null,null,null,null,null,null,null,null,null,null,null,null,null,null,null,null,null,null,null,null,null,null,null,null,null,null,null,null,null,null,null,null,null,null,null,null,null,null,null,null,null,0,null,null,0,null,0,null,0,null,0]
[null,null,null,null,null,null,null,null,null,null,null,null,null,null,"Allowed",null,null,null,null,null,null,null,null,null,null,null,null,null,null,null,null,null,null,null,null,null,null,null,null,null,null,null,null,null,null,null,null,null,null,null,null,null,null,null,null,null,null,null,null,null,null,null,null,null,0,null,null,0,null,0,null,0,null,0]
[null,null,null,null,null,null,null,null,null,null,null,null,null,null,"Allowed",null,null,null,null,null,null,null,null,null,null,null,null,null,null,null,null,null,null,null,null,null,null,null,null,null,null,null,null,null,null,null,null,null,null,null,null,null,null,null,null,null,null,null,null,null,null,null,null,null,0,null,null,0,null,0,null,0,null,0]
[null,null,null,null,null,null,null,null,null,null,null,null,null,null,"Allowed",null,null,null,null,null,null,null,null,null,null,null,null,null,null,null,null,null,null,null,null,null,null,null,null,null,null,null,null,null,null,null,null,null,null,null,null,null,null,null,null,null,null,null,null,null,null,null,null,null,0,null,null,0,null,0,null,0,null,0]
[null,null,null,null,null,null,null,null,null,null,null,null,null,null,"Allowed",null,null,null,null,null,null,null,null,null,null,null,null,null,null,null,null,null,null,null,null,null,null,null,null,null,null,null,null,null,null,null,null,null,null,null,null,null,null,null,null,null,null,null,null,null,null,null,null,null,0,null,null,0,null,0,null,0,null,0]
[null,null,null,null,null,null,null,null,null,null,null,null,null,null,"Allowed",null,null,null,null,null,null,null,null,null,null,null,null,null,null,null,null,null,null,null,null,null,null,null,null,null,null,null,null,null,null,null,null,null,null,null,null,null,null,null,null,null,null,null,null,null,null,null,null,null,0,null,null,0,null,0,null,0,null,0]
[null,null,null,null,null,null,null,null,null,null,null,null,null,null,"Allowed",null,null,null,null,null,null,null,null,null,null,null,null,null,null,null,null,null,null,null,null,null,null,null,null,null,null,null,null,null,null,null,null,null,null,null,null,null,null,null,null,null,null,null,null,null,null,null,null,null,0,null,null,0,null,0,null,0,null,0]
[null,null,null,null,null,null,null,null,null,null,null,null,null,null,"Allowed",null,null,null,null,null,null,null,null,null,null,null,null,null,null,null,null,null,null,null,null,null,null,null,null,null,null,null,null,null,null,null,null,null,null,null,null,null,null,null,null,null,null,null,null,null,null,null,null,null,0,null,null,0,null,0,null,0,null,0]
[null,null,null,null,null,null,null,null,null,null,null,null,null,null,"Allowed",null,null,null,null,null,null,null,null,null,null,null,null,null,null,null,null,null,null,null,null,null,null,null,null,null,null,null,null,null,null,null,null,null,null,null,null,null,null,null,null,null,null,null,null,null,null,null,null,null,0,null,null,0,null,0,null,0,null,0]
[null,null,null,null,null,null,null,null,null,null,null,null,null,null,"Allowed",null,null,null,null,null,null,null,null,null,null,null,null,null,null,null,null,null,null,null,null,null,null,null,null,null,null,null,null,null,null,null,null,null,null,null,null,null,null,null,null,null,null,null,null,null,null,null,null,null,0,null,null,0,null,0,null,0,null,0]
[null,null,null,null,null,null,null,null,null,null,null,null,null,null,"Allowed",null,null,null,null,null,null,null,null,null,null,null,null,null,null,null,null,null,null,null,null,null,null,null,null,null,null,null,null,null,null,null,null,null,null,null,null,null,null,null,null,null,null,null,null,null,null,null,null,null,0,null,null,0,null,0,null,0,null,0]
[null,null,null,null,null,null,null,null,null,null,null,null,null,null,"Allowed",null,null,null,null,null,null,null,null,null,null,null,null,null,null,null,null,null,null,null,null,null,null,null,null,null,null,null,null,null,null,null,null,null,null,null,null,null,null,null,null,null,null,null,null,null,null,null,null,null,0,null,null,0,null,0,null,0,null,0]
[null,null,null,null,null,null,null,null,null,null,null,null,null,null,"Allowed",null,null,null,null,null,null,null,null,null,null,null,null,null,null,null,null,null,null,null,null,null,null,null,null,null,null,null,null,null,null,null,null,null,null,null,null,null,null,null,null,null,null,null,null,null,null,null,null,null,0,null,null,0,null,0,null,0,null,0]
[null,null,null,null,null,null,null,null,null,null,null,null,null,null,"Allowed",null,null,null,null,null,null,null,null,null,null,null,null,null,null,null,null,null,null,null,null,null,null,null,null,null,null,null,null,null,null,null,null,null,null,null,null,null,null,null,null,null,null,null,null,null,null,null,null,null,0,null,null,0,null,0,null,0,null,0]
[null,null,null,null,null,null,null,null,null,null,null,null,null,null,"Allowed",null,null,null,null,null,null,null,null,null,null,null,null,null,null,null,null,null,null,null,null,null,null,null,null,null,null,null,null,null,null,null,null,null,null,null,null,null,null,null,null,null,null,null,null,null,null,null,null,null,0,null,null,0,null,0,null,0,null,0]
[null,null,null,null,null,null,null,null,null,null,null,null,null,null,"Allowed",null,null,null,null,null,null,null,null,null,null,null,null,null,null,null,null,null,null,null,null,null,null,null,null,null,null,null,null,null,null,null,null,null,null,null,null,null,null,null,null,null,null,null,null,null,null,null,null,null,0,null,null,0,null,0,null,0,null,0]
[null,null,null,null,null,null,null,null,null,null,null,null,null,null,"Allowed",null,null,null,null,null,null,null,null,null,null,null,null,null,null,null,null,null,null,null,null,null,null,null,null,null,null,null,null,null,null,null,null,null,null,null,null,null,null,null,null,null,null,null,null,null,null,null,null,null,0,null,null,0,null,0,null,0,null,0]
[null,null,null,null,null,null,null,null,null,null,null,null,null,null,"Allowed",null,null,null,null,null,null,null,null,null,null,null,null,null,null,null,null,null,null,null,null,null,null,null,null,null,null,null,null,null,null,null,null,null,null,null,null,null,null,null,null,null,null,null,null,null,null,null,null,null,0,null,null,0,null,0,null,0,null,0]
[null,null,null,null,null,null,null,null,null,null,null,null,null,null,"Allowed",null,null,null,null,null,null,null,null,null,null,null,null,null,null,null,null,null,null,null,null,null,null,null,null,null,null,null,null,null,null,null,null,null,null,null,null,null,null,null,null,null,null,null,null,null,null,null,null,null,0,null,null,0,null,0,null,0,null,0]
[null,null,null,null,null,null,null,null,null,null,null,null,null,null,"Allowed",null,null,null,null,null,null,null,null,null,null,null,null,null,null,null,null,null,null,null,null,null,null,null,null,null,null,null,null,null,null,null,null,null,null,null,null,null,null,null,null,null,null,null,null,null,null,null,null,null,0,null,null,0,null,0,null,0,null,0]
[null,null,null,null,null,null,null,null,null,null,null,null,null,null,"Allowed",null,null,null,null,null,null,null,null,null,null,null,null,null,null,null,null,null,null,null,null,null,null,null,null,null,null,null,null,null,null,null,null,null,null,null,null,null,null,null,null,null,null,null,null,null,null,null,null,null,0,null,null,0,null,0,null,0,null,0]
[null,null,null,null,null,null,null,null,null,null,null,null,null,null,"Allowed",null,null,null,null,null,null,null,null,null,null,null,null,null,null,null,null,null,null,null,null,null,null,null,null,null,null,null,null,null,null,null,null,null,null,null,null,null,null,null,null,null,null,null,null,null,null,null,null,null,0,null,null,0,null,0,null,0,null,0]
[null,null,null,null,null,null,null,null,null,null,null,null,null,null,"Allowed",null,null,null,null,null,null,null,null,null,null,null,null,null,null,null,null,null,null,null,null,null,null,null,null,null,null,null,null,null,null,null,null,null,null,null,null,null,null,null,null,null,null,null,null,null,null,null,null,null,0,null,null,0,null,0,null,0,null,0]
[null,null,null,null,null,null,null,null,null,null,null,null,null,null,"Allowed",null,null,null,null,null,null,null,null,null,null,null,null,null,null,null,null,null,null,null,null,null,null,null,null,null,null,null,null,null,null,null,null,null,null,null,null,null,null,null,null,null,null,null,null,null,null,null,null,null,0,null,null,0,null,0,null,0,null,0]
[null,null,null,null,null,null,null,null,null,null,null,null,null,null,"Allowed",null,null,null,null,null,null,null,null,null,null,null,null,null,null,null,null,null,null,null,null,null,null,null,null,null,null,null,null,null,null,null,null,null,null,null,null,null,null,null,null,null,null,null,null,null,null,null,null,null,0,null,null,0,null,0,null,0,null,0]
[null,null,null,null,null,null,null,null,null,null,null,null,null,null,"Allowed",null,null,null,null,null,null,null,null,null,null,null,null,null,null,null,null,null,null,null,null,null,null,null,null,null,null,null,null,null,null,null,null,null,null,null,null,null,null,null,null,null,null,null,null,null,null,null,null,null,0,null,null,0,null,0,null,0,null,0]
[null,null,null,null,null,null,null,null,null,null,null,null,null,null,"Allowed",null,null,null,null,null,null,null,null,null,null,null,null,null,null,null,null,null,null,null,null,null,null,null,null,null,null,null,null,null,null,null,null,null,null,null,null,null,null,null,null,null,null,null,null,null,null,null,null,null,0,null,null,0,null,0,null,0,null,0]
[null,null,null,null,null,null,null,null,null,null,null,null,null,null,"Allowed",null,null,null,null,null,null,null,null,null,null,null,null,null,null,null,null,null,null,null,null,null,null,null,null,null,null,null,null,null,null,null,null,null,null,null,null,null,null,null,null,null,null,null,null,null,null,null,null,null,0,null,null,0,null,0,null,0,null,0]
[null,null,null,null,null,null,null,null,null,null,null,null,null,null,"Allowed",null,null,null,null,null,null,null,null,null,null,null,null,null,null,null,null,null,null,null,null,null,null,null,null,null,null,null,null,null,null,null,null,null,null,null,null,null,null,null,null,null,null,null,null,null,null,null,null,null,0,null,null,0,null,0,null,0,null,0]
[null,null,null,null,null,null,null,null,null,null,null,null,null,null,"Allowed",null,null,null,null,null,null,null,null,null,null,null,null,null,null,null,null,null,null,null,null,null,null,null,null,null,null,null,null,null,null,null,null,null,null,null,null,null,null,null,null,null,null,null,null,null,null,null,null,null,0,null,null,0,null,0,null,0,null,0]
[null,null,null,null,null,null,null,null,null,null,null,null,null,null,"Allowed",null,null,null,null,null,null,null,null,null,null,null,null,null,null,null,null,null,null,null,null,null,null,null,null,null,null,null,null,null,null,null,null,null,null,null,null,null,null,null,null,null,null,null,null,null,null,null,null,null,0,null,null,0,null,0,null,0,null,0]
[null,null,null,null,null,null,null,null,null,null,null,null,null,null,"Allowed",null,null,null,null,null,null,null,null,null,null,null,null,null,null,null,null,null,null,null,null,null,null,null,null,null,null,null,null,null,null,null,null,null,null,null,null,null,null,null,null,null,null,null,null,null,null,null,null,null,0,null,null,0,null,0,null,0,null,0]
[null,null,null,null,null,null,null,null,null,null,null,null,null,null,"Allowed",null,null,null,null,null,null,null,null,null,null,null,null,null,null,null,null,null,null,null,null,null,null,null,null,null,null,null,null,null,null,null,null,null,null,null,null,null,null,null,null,null,null,null,null,null,null,null,null,null,0,null,null,0,null,0,null,0,null,0]
[null,null,null,null,null,null,null,null,null,null,null,null,null,null,"Allowed",null,null,null,null,null,null,null,null,null,null,null,null,null,null,null,null,null,null,null,null,null,null,null,null,null,null,null,null,null,null,null,null,null,null,null,null,null,null,null,null,null,null,null,null,null,null,null,null,null,0,null,null,0,null,0,null,0,null,0]
[null,null,null,null,null,null,null,null,null,null,null,null,null,null,"Allowed",null,null,null,null,null,null,null,null,null,null,null,null,null,null,null,null,null,null,null,null,null,null,null,null,null,null,null,null,null,null,null,null,null,null,null,null,null,null,null,null,null,null,null,null,null,null,null,null,null,0,null,null,0,null,0,null,0,null,0]
[null,null,null,null,null,null,null,null,null,null,null,null,null,null,"Allowed",null,null,null,null,null,null,null,null,null,null,null,null,null,null,null,null,null,null,null,null,null,null,null,null,null,null,null,null,null,null,null,null,null,null,null,null,null,null,null,null,null,null,null,null,null,null,null,null,null,0,null,null,0,null,0,null,0,null,0]
[null,null,null,null,null,null,null,null,null,null,null,null,null,null,"Allowed",null,null,null,null,null,null,null,null,null,null,null,null,null,null,null,null,null,null,null,null,null,null,null,null,null,null,null,null,null,null,null,null,null,null,null,null,null,null,null,null,null,null,null,null,null,null,null,null,null,0,null,null,0,null,0,null,0,null,0]
[null,null,null,null,null,null,null,null,null,null,null,null,null,null,"Allowed",null,null,null,null,null,null,null,null,null,null,null,null,null,null,null,null,null,null,null,null,null,null,null,null,null,null,null,null,null,null,null,null,null,null,null,null,null,null,null,null,null,null,null,null,null,null,null,null,null,0,null,null,0,null,0,null,0,null,0]
[null,null,null,null,null,null,null,null,null,null,null,null,null,null,{"$f":"IF(N42115<=TRUNC(P42115*1.015228,2),\"Allowed\",\"Exceeds Max\")","v":"Allowed"},null,null,null,null,null,null,null,null,null,null,null,null,null,null,null,null,null,null,null,null,null,null,null,null,null,null,null,null,null,null,null,null,null,null,null,null,null,null,null,null,null,null,null,null,null,null,null,null,null,0,null,null,0,null,0,null,0,null,0]
[null,null,null,null,null,null,null,null,null,null,null,null,null,null,"Allowed",null,null,null,null,null,null,null,null,null,null,null,null,null,null,null,null,null,null,null,null,null,null,null,null,null,null,null,null,null,null,null,null,null,null,null,null,null,null,null,null,null,null,null,null,null,null,null,null,null,0,null,null,0,null,0,null,0,null,0]
[null,null,null,null,null,null,null,null,null,null,null,null,null,null,"Allowed",null,null,null,null,null,null,null,null,null,null,null,null,null,null,null,null,null,null,null,null,null,null,null,null,null,null,null,null,null,null,null,null,null,null,null,null,null,null,null,null,null,null,null,null,null,null,null,null,null,0,null,null,0,null,0,null,0,null,0]
[null,null,null,null,null,null,null,null,null,null,null,null,null,null,"Allowed",null,null,null,null,null,null,null,null,null,null,null,null,null,null,null,null,null,null,null,null,null,null,null,null,null,null,null,null,null,null,null,null,null,null,null,null,null,null,null,null,null,null,null,null,null,null,null,null,null,0,null,null,0,null,0,null,0,null,0]
[null,null,null,null,null,null,null,null,null,null,null,null,null,null,"Allowed",null,null,null,null,null,null,null,null,null,null,null,null,null,null,null,null,null,null,null,null,null,null,null,null,null,null,null,null,null,null,null,null,null,null,null,null,null,null,null,null,null,null,null,null,null,null,null,null,null,0,null,null,0,null,0,null,0,null,0]
[null,null,null,null,null,null,null,null,null,null,null,null,null,null,"Allowed",null,null,null,null,null,null,null,null,null,null,null,null,null,null,null,null,null,null,null,null,null,null,null,null,null,null,null,null,null,null,null,null,null,null,null,null,null,null,null,null,null,null,null,null,null,null,null,null,null,0,null,null,0,null,0,null,0,null,0]
[null,null,null,null,null,null,null,null,null,null,null,null,null,null,"Allowed",null,null,null,null,null,null,null,null,null,null,null,null,null,null,null,null,null,null,null,null,null,null,null,null,null,null,null,null,null,null,null,null,null,null,null,null,null,null,null,null,null,null,null,null,null,null,null,null,null,0,null,null,0,null,0,null,0,null,0]
[null,null,null,null,null,null,null,null,null,null,null,null,null,null,"Allowed",null,null,null,null,null,null,null,null,null,null,null,null,null,null,null,null,null,null,null,null,null,null,null,null,null,null,null,null,null,null,null,null,null,null,null,null,null,null,null,null,null,null,null,null,null,null,null,null,null,0,null,null,0,null,0,null,0,null,0]
[null,null,null,null,null,null,null,null,null,null,null,null,null,null,"Allowed",null,null,null,null,null,null,null,null,null,null,null,null,null,null,null,null,null,null,null,null,null,null,null,null,null,null,null,null,null,null,null,null,null,null,null,null,null,null,null,null,null,null,null,null,null,null,null,null,null,0,null,null,0,null,0,null,0,null,0]
[null,null,null,null,null,null,null,null,null,null,null,null,null,null,"Allowed",null,null,null,null,null,null,null,null,null,null,null,null,null,null,null,null,null,null,null,null,null,null,null,null,null,null,null,null,null,null,null,null,null,null,null,null,null,null,null,null,null,null,null,null,null,null,null,null,null,0,null,null,0,null,0,null,0,null,0]
[null,null,null,null,null,null,null,null,null,null,null,null,null,null,"Allowed",null,null,null,null,null,null,null,null,null,null,null,null,null,null,null,null,null,null,null,null,null,null,null,null,null,null,null,null,null,null,null,null,null,null,null,null,null,null,null,null,null,null,null,null,null,null,null,null,null,0,null,null,0,null,0,null,0,null,0]
[null,null,null,null,null,null,null,null,null,null,null,null,null,null,"Allowed",null,null,null,null,null,null,null,null,null,null,null,null,null,null,null,null,null,null,null,null,null,null,null,null,null,null,null,null,null,null,null,null,null,null,null,null,null,null,null,null,null,null,null,null,null,null,null,null,null,0,null,null,0,null,0,null,0,null,0]
[null,null,null,null,null,null,null,null,null,null,null,null,null,null,"Allowed",null,null,null,null,null,null,null,null,null,null,null,null,null,null,null,null,null,null,null,null,null,null,null,null,null,null,null,null,null,null,null,null,null,null,null,null,null,null,null,null,null,null,null,null,null,null,null,null,null,0,null,null,0,null,0,null,0,null,0]
[null,null,null,null,null,null,null,null,null,null,null,null,null,null,"Allowed",null,null,null,null,null,null,null,null,null,null,null,null,null,null,null,null,null,null,null,null,null,null,null,null,null,null,null,null,null,null,null,null,null,null,null,null,null,null,null,null,null,null,null,null,null,null,null,null,null,0,null,null,0,null,0,null,0,null,0]
[null,null,null,null,null,null,null,null,null,null,null,null,null,null,"Allowed",null,null,null,null,null,null,null,null,null,null,null,null,null,null,null,null,null,null,null,null,null,null,null,null,null,null,null,null,null,null,null,null,null,null,null,null,null,null,null,null,null,null,null,null,null,null,null,null,null,0,null,null,0,null,0,null,0,null,0]
[null,null,null,null,null,null,null,null,null,null,null,null,null,null,"Allowed",null,null,null,null,null,null,null,null,null,null,null,null,null,null,null,null,null,null,null,null,null,null,null,null,null,null,null,null,null,null,null,null,null,null,null,null,null,null,null,null,null,null,null,null,null,null,null,null,null,0,null,null,0,null,0,null,0,null,0]
[null,null,null,null,null,null,null,null,null,null,null,null,null,null,"Allowed",null,null,null,null,null,null,null,null,null,null,null,null,null,null,null,null,null,null,null,null,null,null,null,null,null,null,null,null,null,null,null,null,null,null,null,null,null,null,null,null,null,null,null,null,null,null,null,null,null,0,null,null,0,null,0,null,0,null,0]
[null,null,null,null,null,null,null,null,null,null,null,null,null,null,"Allowed",null,null,null,null,null,null,null,null,null,null,null,null,null,null,null,null,null,null,null,null,null,null,null,null,null,null,null,null,null,null,null,null,null,null,null,null,null,null,null,null,null,null,null,null,null,null,null,null,null,0,null,null,0,null,0,null,0,null,0]
[null,null,null,null,null,null,null,null,null,null,null,null,null,null,"Allowed",null,null,null,null,null,null,null,null,null,null,null,null,null,null,null,null,null,null,null,null,null,null,null,null,null,null,null,null,null,null,null,null,null,null,null,null,null,null,null,null,null,null,null,null,null,null,null,null,null,0,null,null,0,null,0,null,0,null,0]
[null,null,null,null,null,null,null,null,null,null,null,null,null,null,"Allowed",null,null,null,null,null,null,null,null,null,null,null,null,null,null,null,null,null,null,null,null,null,null,null,null,null,null,null,null,null,null,null,null,null,null,null,null,null,null,null,null,null,null,null,null,null,null,null,null,null,0,null,null,0,null,0,null,0,null,0]
[null,null,null,null,null,null,null,null,null,null,null,null,null,null,"Allowed",null,null,null,null,null,null,null,null,null,null,null,null,null,null,null,null,null,null,null,null,null,null,null,null,null,null,null,null,null,null,null,null,null,null,null,null,null,null,null,null,null,null,null,null,null,null,null,null,null,0,null,null,0,null,0,null,0,null,0]
[null,null,null,null,null,null,null,null,null,null,null,null,null,null,"Allowed",null,null,null,null,null,null,null,null,null,null,null,null,null,null,null,null,null,null,null,null,null,null,null,null,null,null,null,null,null,null,null,null,null,null,null,null,null,null,null,null,null,null,null,null,null,null,null,null,null,0,null,null,0,null,0,null,0,null,0]
[null,null,null,null,null,null,null,null,null,null,null,null,null,null,"Allowed",null,null,null,null,null,null,null,null,null,null,null,null,null,null,null,null,null,null,null,null,null,null,null,null,null,null,null,null,null,null,null,null,null,null,null,null,null,null,null,null,null,null,null,null,null,null,null,null,null,0,null,null,0,null,0,null,0,null,0]
[null,null,null,null,null,null,null,null,null,null,null,null,null,null,"Allowed",null,null,null,null,null,null,null,null,null,null,null,null,null,null,null,null,null,null,null,null,null,null,null,null,null,null,null,null,null,null,null,null,null,null,null,null,null,null,null,null,null,null,null,null,null,null,null,null,null,0,null,null,0,null,0,null,0,null,0]
[null,null,null,null,null,null,null,null,null,null,null,null,null,null,"Allowed",null,null,null,null,null,null,null,null,null,null,null,null,null,null,null,null,null,null,null,null,null,null,null,null,null,null,null,null,null,null,null,null,null,null,null,null,null,null,null,null,null,null,null,null,null,null,null,null,null,0,null,null,0,null,0,null,0,null,0]
[null,null,null,null,null,null,null,null,null,null,null,null,null,null,"Allowed",null,null,null,null,null,null,null,null,null,null,null,null,null,null,null,null,null,null,null,null,null,null,null,null,null,null,null,null,null,null,null,null,null,null,null,null,null,null,null,null,null,null,null,null,null,null,null,null,null,0,null,null,0,null,0,null,0,null,0]
[null,null,null,null,null,null,null,null,null,null,null,null,null,null,"Allowed",null,null,null,null,null,null,null,null,null,null,null,null,null,null,null,null,null,null,null,null,null,null,null,null,null,null,null,null,null,null,null,null,null,null,null,null,null,null,null,null,null,null,null,null,null,null,null,null,null,0,null,null,0,null,0,null,0,null,0]
[null,null,null,null,null,null,null,null,null,null,null,null,null,null,"Allowed",null,null,null,null,null,null,null,null,null,null,null,null,null,null,null,null,null,null,null,null,null,null,null,null,null,null,null,null,null,null,null,null,null,null,null,null,null,null,null,null,null,null,null,null,null,null,null,null,null,0,null,null,0,null,0,null,0,null,0]
[null,null,null,null,null,null,null,null,null,null,null,null,null,null,"Allowed",null,null,null,null,null,null,null,null,null,null,null,null,null,null,null,null,null,null,null,null,null,null,null,null,null,null,null,null,null,null,null,null,null,null,null,null,null,null,null,null,null,null,null,null,null,null,null,null,null,0,null,null,0,null,0,null,0,null,0]
[null,null,null,null,null,null,null,null,null,null,null,null,null,null,"Allowed",null,null,null,null,null,null,null,null,null,null,null,null,null,null,null,null,null,null,null,null,null,null,null,null,null,null,null,null,null,null,null,null,null,null,null,null,null,null,null,null,null,null,null,null,null,null,null,null,null,0,null,null,0,null,0,null,0,null,0]
[null,null,null,null,null,null,null,null,null,null,null,null,null,null,"Allowed",null,null,null,null,null,null,null,null,null,null,null,null,null,null,null,null,null,null,null,null,null,null,null,null,null,null,null,null,null,null,null,null,null,null,null,null,null,null,null,null,null,null,null,null,null,null,null,null,null,0,null,null,0,null,0,null,0,null,0]
[null,null,null,null,null,null,null,null,null,null,null,null,null,null,"Allowed",null,null,null,null,null,null,null,null,null,null,null,null,null,null,null,null,null,null,null,null,null,null,null,null,null,null,null,null,null,null,null,null,null,null,null,null,null,null,null,null,null,null,null,null,null,null,null,null,null,{"$f":"LEN(BL57604)","v":0},null,null,{"$f":"LEN(BO57604)","v":0},null,{"$f":"LEN(BQ57604)","v":0},null,{"$f":"LEN(BS57604)","v":0},null,{"$f":"LEN(BU57604)","v":0}]
[null,null,null,null,null,null,null,null,null,null,null,null,null,null,"Allowed",null,null,null,null,null,null,null,null,null,null,null,null,null,null,null,null,null,null,null,null,null,null,null,null,null,null,null,null,null,null,null,null,null,null,null,null,null,null,null,null,null,null,null,null,null,null,null,null,null,0,null,null,0,null,0,null,0,null,0]
[null,null,null,null,null,null,null,null,null,null,null,null,null,null,"Allowed",null,null,null,null,null,null,null,null,null,null,null,null,null,null,null,null,null,null,null,null,null,null,null,null,null,null,null,null,null,null,null,null,null,null,null,null,null,null,null,null,null,null,null,null,null,null,null,null,null,0,null,null,0,null,0,null,0,null,0]
[null,null,null,null,null,null,null,null,null,null,null,null,null,null,"Allowed",null,null,null,null,null,null,null,null,null,null,null,null,null,null,null,null,null,null,null,null,null,null,null,null,null,null,null,null,null,null,null,null,null,null,null,null,null,null,null,null,null,null,null,null,null,null,null,null,null,0,null,null,0,null,0,null,0,null,0]
[null,null,null,null,null,null,null,null,null,null,null,null,null,null,"Allowed",null,null,null,null,null,null,null,null,null,null,null,null,null,null,null,null,null,null,null,null,null,null,null,null,null,null,null,null,null,null,null,null,null,null,null,null,null,null,null,null,null,null,null,null,null,null,null,null,null,0,null,null,0,null,0,null,0,null,0]
[null,null,null,null,null,null,null,null,null,null,null,null,null,null,"Allowed",null,null,null,null,null,null,null,null,null,null,null,null,null,null,null,null,null,null,null,null,null,null,null,null,null,null,null,null,null,null,null,null,null,null,null,null,null,null,null,null,null,null,null,null,null,null,null,null,null,0,null,null,0,null,0,null,0,null,0]
[null,null,null,null,null,null,null,null,null,null,null,null,null,null,"Allowed",null,null,null,null,null,null,null,null,null,null,null,null,null,null,null,null,null,null,null,null,null,null,null,null,null,null,null,null,null,null,null,null,null,null,null,null,null,null,null,null,null,null,null,null,null,null,null,null,null,0,null,null,0,null,0,null,0,null,0]
[null,null,null,null,null,null,null,null,null,null,null,null,null,null,"Allowed",null,null,null,null,null,null,null,null,null,null,null,null,null,null,null,null,null,null,null,null,null,null,null,null,null,null,null,null,null,null,null,null,null,null,null,null,null,null,null,null,null,null,null,null,null,null,null,null,null,0,null,null,0,null,0,null,0,null,0]
[null,null,null,null,null,null,null,null,null,null,null,null,null,null,"Allowed",null,null,null,null,null,null,null,null,null,null,null,null,null,null,null,null,null,null,null,null,null,null,null,null,null,null,null,null,null,null,null,null,null,null,null,null,null,null,null,null,null,null,null,null,null,null,null,null,null,0,null,null,0,null,0,null,0,null,0]
[null,null,null,null,null,null,null,null,null,null,null,null,null,null,"Allowed",null,null,null,null,null,null,null,null,null,null,null,null,null,null,null,null,null,null,null,null,null,null,null,null,null,null,null,null,null,null,null,null,null,null,null,null,null,null,null,null,null,null,null,null,null,null,null,null,null,0,null,null,0,null,0,null,0,null,0]
[null,null,null,null,null,null,null,null,null,null,null,null,null,null,"Allowed",null,null,null,null,null,null,null,null,null,null,null,null,null,null,null,null,null,null,null,null,null,null,null,null,null,null,null,null,null,null,null,null,null,null,null,null,null,null,null,null,null,null,null,null,null,null,null,null,null,0,null,null,0,null,0,null,0,null,0]
[null,null,null,null,null,null,null,null,null,null,null,null,null,null,"Allowed",null,null,null,null,null,null,null,null,null,null,null,null,null,null,null,null,null,null,null,null,null,null,null,null,null,null,null,null,null,null,null,null,null,null,null,null,null,null,null,null,null,null,null,null,null,null,null,null,null,0,null,null,0,null,0,null,0,null,0]
[null,null,null,null,null,null,null,null,null,null,null,null,null,null,"Allowed",null,null,null,null,null,null,null,null,null,null,null,null,null,null,null,null,null,null,null,null,null,null,null,null,null,null,null,null,null,null,null,null,null,null,null,null,null,null,null,null,null,null,null,null,null,null,null,null,null,0,null,null,0,null,0,null,0,null,0]
[null,null,null,null,null,null,null,null,null,null,null,null,null,null,{"$f":"IF(N64195<=TRUNC(P64195*1.015228,2),\"Allowed\",\"Exceeds Max\")","v":"Allowed"},null,null,null,null,null,null,null,null,null,null,null,null,null,null,null,null,null,null,null,null,null,null,null,null,null,null,null,null,null,null,null,null,null,null,null,null,null,null,null,null,null,null,null,null,null,null,null,null,null,0,null,null,0,null,0,null,0,null,0]
[null,null,null,null,null,null,null,null,null,null,null,null,null,null,"Allowed",null,null,null,null,null,null,null,null,null,null,null,null,null,null,null,null,null,null,null,null,null,null,null,null,null,null,null,null,null,null,null,null,null,null,null,null,null,null,null,null,null,null,null,null,null,null,null,null,null,0,null,null,0,null,0,null,0,null,0]
[null,null,null,null,null,null,null,null,null,null,null,null,null,null,"Allowed",null,null,null,null,null,null,null,null,null,null,null,null,null,null,null,null,null,null,null,null,null,null,null,null,null,null,null,null,null,null,null,null,null,null,null,null,null,null,null,null,null,null,null,null,null,null,null,null,null,{"$f":"LEN(BL65092)","v":0},null,null,{"$f":"LEN(BO65092)","v":0},null,{"$f":"LEN(BQ65092)","v":0},null,{"$f":"LEN(BS65092)","v":0},null,{"$f":"LEN(BU65092)","v":0}]
[null,null,null,null,null,null,null,null,null,null,null,null,null,null,"Allowed",null,null,null,null,null,null,null,null,null,null,null,null,null,null,null,null,null,null,null,null,null,null,null,null,null,null,null,null,null,null,null,null,null,null,null,null,null,null,null,null,null,null,null,null,null,null,null,null,null,0,null,null,0,null,0,null,0,null,0]
[null,null,null,null,null,null,null,null,null,null,null,null,null,null,"Allowed",null,null,null,null,null,null,null,null,null,null,null,null,null,null,null,null,null,null,null,null,null,null,null,null,null,null,null,null,null,null,null,null,null,null,null,null,null,null,null,null,null,null,null,null,null,null,null,null,null,0,null,null,0,null,0,null,0,null,0]
[null,null,null,null,null,null,null,null,null,null,null,null,null,null,"Allowed",null,null,null,null,null,null,null,null,null,null,null,null,null,null,null,null,null,null,null,null,null,null,null,null,null,null,null,null,null,null,null,null,null,null,null,null,null,null,null,null,null,null,null,null,null,null,null,null,null,0,null,null,0,null,0,null,0,null,0]
[null,null,null,null,null,null,null,null,null,null,null,null,null,null,"Allowed",null,null,null,null,null,null,null,null,null,null,null,null,null,null,null,null,null,null,null,null,null,null,null,null,null,null,null,null,null,null,null,null,null,null,null,null,null,null,null,null,null,null,null,null,null,null,null,null,null,0,null,null,0,null,0,null,0,null,0]
[null,null,null,null,null,null,null,null,null,null,null,null,null,null,"Allowed",null,null,null,null,null,null,null,null,null,null,null,null,null,null,null,null,null,null,null,null,null,null,null,null,null,null,null,null,null,null,null,null,null,null,null,null,null,null,null,null,null,null,null,null,null,null,null,null,null,0,null,null,0,null,0,null,0,null,0]
[null,null,null,null,null,null,null,null,null,null,null,null,null,null,"Allowed",null,null,null,null,null,null,null,null,null,null,null,null,null,null,null,null,null,null,null,null,null,null,null,null,null,null,null,null,null,null,null,null,null,null,null,null,null,null,null,null,null,null,null,null,null,null,null,null,null,0,null,null,0,null,0,null,0,null,0]
[null,null,null,null,null,null,null,null,null,null,null,null,null,null,"Allowed",null,null,null,null,null,null,null,null,null,null,null,null,null,null,null,null,null,null,null,null,null,null,null,null,null,null,null,null,null,null,null,null,null,null,null,null,null,null,null,null,null,null,null,null,null,null,null,null,null,0,null,null,0,null,0,null,0,null,0]
[null,null,null,null,null,null,null,null,null,null,null,null,null,null,"Allowed",null,null,null,null,null,null,null,null,null,null,null,null,null,null,null,null,null,null,null,null,null,null,null,null,null,null,null,null,null,null,null,null,null,null,null,null,null,null,null,null,null,null,null,null,null,null,null,null,null,0,null,null,0,null,0,null,0,null,0]
[null,null,null,null,null,null,null,null,null,null,null,null,null,null,"Allowed",null,null,null,null,null,null,null,null,null,null,null,null,null,null,null,null,null,null,null,null,null,null,null,null,null,null,null,null,null,null,null,null,null,null,null,null,null,null,null,null,null,null,null,null,null,null,null,null,null,0,null,null,0,null,0,null,0,null,0]
[null,null,null,null,null,null,null,null,null,null,null,null,null,null,"Allowed",null,null,null,null,null,null,null,null,null,null,null,null,null,null,null,null,null,null,null,null,null,null,null,null,null,null,null,null,null,null,null,null,null,null,null,null,null,null,null,null,null,null,null,null,null,null,null,null,null,0,null,null,0,null,0,null,0,null,0]
[null,null,null,null,null,null,null,null,null,null,null,null,null,null,"Allowed",null,null,null,null,null,null,null,null,null,null,null,null,null,null,null,null,null,null,null,null,null,null,null,null,null,null,null,null,null,null,null,null,null,null,null,null,null,null,null,null,null,null,null,null,null,null,null,null,null,0,null,null,0,null,0,null,0,null,0]
[null,null,null,null,null,null,null,null,null,null,null,null,null,null,"Allowed",null,null,null,null,null,null,null,null,null,null,null,null,null,null,null,null,null,null,null,null,null,null,null,null,null,null,null,null,null,null,null,null,null,null,null,null,null,null,null,null,null,null,null,null,null,null,null,null,null,0,null,null,0,null,0,null,0,null,0]
[null,null,null,null,null,null,null,null,null,null,null,null,null,null,"Allowed",null,null,null,null,null,null,null,null,null,null,null,null,null,null,null,null,null,null,null,null,null,null,null,null,null,null,null,null,null,null,null,null,null,null,null,null,null,null,null,null,null,null,null,null,null,null,null,null,null,0,null,null,0,null,0,null,0,null,0]
[null,null,null,null,null,null,null,null,null,null,null,null,null,null,"Allowed",null,null,null,null,null,null,null,null,null,null,null,null,null,null,null,null,null,null,null,null,null,null,null,null,null,null,null,null,null,null,null,null,null,null,null,null,null,null,null,null,null,null,null,null,null,null,null,null,null,0,null,null,0,null,0,null,0,null,0]
[null,null,null,null,null,null,null,null,null,null,null,null,null,null,"Allowed",null,null,null,null,null,null,null,null,null,null,null,null,null,null,null,null,null,null,null,null,null,null,null,null,null,null,null,null,null,null,null,null,null,null,null,null,null,null,null,null,null,null,null,null,null,null,null,null,null,0,null,null,0,null,0,null,0,null,0]
[null,null,null,null,null,null,null,null,null,null,null,null,null,null,"Allowed",null,null,null,null,null,null,null,null,null,null,null,null,null,null,null,null,null,null,null,null,null,null,null,null,null,null,null,null,null,null,null,null,null,null,null,null,null,null,null,null,null,null,null,null,null,null,null,null,null,0,null,null,0,null,0,null,0,null,0]
[null,null,null,null,null,null,null,null,null,null,null,null,null,null,"Allowed",null,null,null,null,null,null,null,null,null,null,null,null,null,null,null,null,null,null,null,null,null,null,null,null,null,null,null,null,null,null,null,null,null,null,null,null,null,null,null,null,null,null,null,null,null,null,null,null,null,0,null,null,0,null,0,null,0,null,0]
[null,null,null,null,null,null,null,null,null,null,null,null,null,null,"Allowed",null,null,null,null,null,null,null,null,null,null,null,null,null,null,null,null,null,null,null,null,null,null,null,null,null,null,null,null,null,null,null,null,null,null,null,null,null,null,null,null,null,null,null,null,null,null,null,null,null,0,null,null,0,null,0,null,0,null,0]
[null,null,null,null,null,null,null,null,null,null,null,null,null,null,"Allowed",null,null,null,null,null,null,null,null,null,null,null,null,null,null,null,null,null,null,null,null,null,null,null,null,null,null,null,null,null,null,null,null,null,null,null,null,null,null,null,null,null,null,null,null,null,null,null,null,null,0,null,null,0,null,0,null,0,null,0]
[null,null,null,null,null,null,null,null,null,null,null,null,null,null,"Allowed",null,null,null,null,null,null,null,null,null,null,null,null,null,null,null,null,null,null,null,null,null,null,null,null,null,null,null,null,null,null,null,null,null,null,null,null,null,null,null,null,null,null,null,null,null,null,null,null,null,0,null,null,0,null,0,null,0,null,0]
[null,null,null,null,null,null,null,null,null,null,null,null,null,null,"Allowed",null,null,null,null,null,null,null,null,null,null,null,null,null,null,null,null,null,null,null,null,null,null,null,null,null,null,null,null,null,null,null,null,null,null,null,null,null,null,null,null,null,null,null,null,null,null,null,null,null,0,null,null,0,null,0,null,0,null,0]
[null,null,null,null,null,null,null,null,null,null,null,null,null,null,"Allowed",null,null,null,null,null,null,null,null,null,null,null,null,null,null,null,null,null,null,null,null,null,null,null,null,null,null,null,null,null,null,null,null,null,null,null,null,null,null,null,null,null,null,null,null,null,null,null,null,null,0,null,null,0,null,0,null,0,null,0]
[null,null,null,null,null,null,null,null,null,null,null,null,null,null,"Allowed",null,null,null,null,null,null,null,null,null,null,null,null,null,null,null,null,null,null,null,null,null,null,null,null,null,null,null,null,null,null,null,null,null,null,null,null,null,null,null,null,null,null,null,null,null,null,null,null,null,0,null,null,0,null,0,null,0,null,0]
[null,null,null,null,null,null,null,null,null,null,null,null,null,null,"Allowed",null,null,null,null,null,null,null,null,null,null,null,null,null,null,null,null,null,null,null,null,null,null,null,null,null,null,null,null,null,null,null,null,null,null,null,null,null,null,null,null,null,null,null,null,null,null,null,null,null,0,null,null,0,null,0,null,0,null,0]
[null,null,null,null,null,null,null,null,null,null,null,null,null,null,"Allowed",null,null,null,null,null,null,null,null,null,null,null,null,null,null,null,null,null,null,null,null,null,null,null,null,null,null,null,null,null,null,null,null,null,null,null,null,null,null,null,null,null,null,null,null,null,null,null,null,null,0,null,null,0,null,0,null,0,null,0]
[null,null,null,null,null,null,null,null,null,null,null,null,null,null,"Allowed",null,null,null,null,null,null,null,null,null,null,null,null,null,null,null,null,null,null,null,null,null,null,null,null,null,null,null,null,null,null,null,null,null,null,null,null,null,null,null,null,null,null,null,null,null,null,null,null,null,0,null,null,0,null,0,null,0,null,0]
[null,null,null,null,null,null,null,null,null,null,null,null,null,null,"Allowed",null,null,null,null,null,null,null,null,null,null,null,null,null,null,null,null,null,null,null,null,null,null,null,null,null,null,null,null,null,null,null,null,null,null,null,null,null,null,null,null,null,null,null,null,null,null,null,null,null,0,null,null,0,null,0,null,0,null,0]
[null,null,null,null,null,null,null,null,null,null,null,null,null,null,"Allowed",null,null,null,null,null,null,null,null,null,null,null,null,null,null,null,null,null,null,null,null,null,null,null,null,null,null,null,null,null,null,null,null,null,null,null,null,null,null,null,null,null,null,null,null,null,null,null,null,null,0,null,null,0,null,0,null,0,null,0]
[null,null,null,null,null,null,null,null,null,null,null,null,null,null,"Allowed",null,null,null,null,null,null,null,null,null,null,null,null,null,null,null,null,null,null,null,null,null,null,null,null,null,null,null,null,null,null,null,null,null,null,null,null,null,null,null,null,null,null,null,null,null,null,null,null,null,0,null,null,0,null,0,null,0,null,0]
[null,null,null,null,null,null,null,null,null,null,null,null,null,null,"Allowed",null,null,null,null,null,null,null,null,null,null,null,null,null,null,null,null,null,null,null,null,null,null,null,null,null,null,null,null,null,null,null,null,null,null,null,null,null,null,null,null,null,null,null,null,null,null,null,null,null,0,null,null,0,null,0,null,0,null,0]
[null,null,null,null,null,null,null,null,null,null,null,null,null,null,"Allowed",null,null,null,null,null,null,null,null,null,null,null,null,null,null,null,null,null,null,null,null,null,null,null,null,null,null,null,null,null,null,null,null,null,null,null,null,null,null,null,null,null,null,null,null,null,null,null,null,null,0,null,null,0,null,0,null,0,null,0]
[null,null,null,null,null,null,null,null,null,null,null,null,null,null,"Allowed",null,null,null,null,null,null,null,null,null,null,null,null,null,null,null,null,null,null,null,null,null,null,null,null,null,null,null,null,null,null,null,null,null,null,null,null,null,null,null,null,null,null,null,null,null,null,null,null,null,0,null,null,0,null,0,null,0,null,0]
[null,null,null,null,null,null,null,null,null,null,null,null,null,null,"Allowed",null,null,null,null,null,null,null,null,null,null,null,null,null,null,null,null,null,null,null,null,null,null,null,null,null,null,null,null,null,null,null,null,null,null,null,null,null,null,null,null,null,null,null,null,null,null,null,null,null,0,null,null,0,null,0,null,0,null,0]
[null,null,null,null,null,null,null,null,null,null,null,null,null,null,"Allowed",null,null,null,null,null,null,null,null,null,null,null,null,null,null,null,null,null,null,null,null,null,null,null,null,null,null,null,null,null,null,null,null,null,null,null,null,null,null,null,null,null,null,null,null,null,null,null,null,null,0,null,null,0,null,0,null,0,null,0]
[null,null,null,null,null,null,null,null,null,null,null,null,null,null,"Allowed",null,null,null,null,null,null,null,null,null,null,null,null,null,null,null,null,null,null,null,null,null,null,null,null,null,null,null,null,null,null,null,null,null,null,null,null,null,null,null,null,null,null,null,null,null,null,null,null,null,0,null,null,0,null,0,null,0,null,0]
[null,null,null,null,null,null,null,null,null,null,null,null,null,null,"Allowed",null,null,null,null,null,null,null,null,null,null,null,null,null,null,null,null,null,null,null,null,null,null,null,null,null,null,null,null,null,null,null,null,null,null,null,null,null,null,null,null,null,null,null,null,null,null,null,null,null,0,null,null,0,null,0,null,0,null,0]
[null,null,null,null,null,null,null,null,null,null,null,null,null,null,"Allowed",null,null,null,null,null,null,null,null,null,null,null,null,null,null,null,null,null,null,null,null,null,null,null,null,null,null,null,null,null,null,null,null,null,null,null,null,null,null,null,null,null,null,null,null,null,null,null,null,null,0,null,null,0,null,0,null,0,null,0]
[null,null,null,null,null,null,null,null,null,null,null,null,null,null,"Allowed",null,null,null,null,null,null,null,null,null,null,null,null,null,null,null,null,null,null,null,null,null,null,null,null,null,null,null,null,null,null,null,null,null,null,null,null,null,null,null,null,null,null,null,null,null,null,null,null,null,0,null,null,0,null,0,null,0,null,0]
[null,null,null,null,null,null,null,null,null,null,null,null,null,null,"Allowed",null,null,null,null,null,null,null,null,null,null,null,null,null,null,null,null,null,null,null,null,null,null,null,null,null,null,null,null,null,null,null,null,null,null,null,null,null,null,null,null,null,null,null,null,null,null,null,null,null,0,null,null,0,null,0,null,0,null,0]
[null,null,null,null,null,null,null,null,null,null,null,null,null,null,"Allowed",null,null,null,null,null,null,null,null,null,null,null,null,null,null,null,null,null,null,null,null,null,null,null,null,null,null,null,null,null,null,null,null,null,null,null,null,null,null,null,null,null,null,null,null,null,null,null,null,null,0,null,null,0,null,0,null,0,null,0]
[null,null,null,null,null,null,null,null,null,null,null,null,null,null,"Allowed",null,null,null,null,null,null,null,null,null,null,null,null,null,null,null,null,null,null,null,null,null,null,null,null,null,null,null,null,null,null,null,null,null,null,null,null,null,null,null,null,null,null,null,null,null,null,null,null,null,0,null,null,0,null,0,null,0,null,0]
[null,null,null,null,null,null,null,null,null,null,null,null,null,null,"Allowed",null,null,null,null,null,null,null,null,null,null,null,null,null,null,null,null,null,null,null,null,null,null,null,null,null,null,null,null,null,null,null,null,null,null,null,null,null,null,null,null,null,null,null,null,null,null,null,null,null,0,null,null,0,null,0,null,0,null,0]
[null,null,null,null,null,null,null,null,null,null,null,null,null,null,"Allowed",null,null,null,null,null,null,null,null,null,null,null,null,null,null,null,null,null,null,null,null,null,null,null,null,null,null,null,null,null,null,null,null,null,null,null,null,null,null,null,null,null,null,null,null,null,null,null,null,null,0,null,null,0,null,0,null,0,null,0]
[null,null,null,null,null,null,null,null,null,null,null,null,null,null,"Allowed",null,null,null,null,null,null,null,null,null,null,null,null,null,null,null,null,null,null,null,null,null,null,null,null,null,null,null,null,null,null,null,null,null,null,null,null,null,null,null,null,null,null,null,null,null,null,null,null,null,0,null,null,0,null,0,null,0,null,0]
[null,null,null,null,null,null,null,null,null,null,null,null,null,null,{"$f":"IF(N87299<=TRUNC(P87299*1.015228,2),\"Allowed\",\"Exceeds Max\")","v":"Allowed"},null,null,null,null,null,null,null,null,null,null,null,null,null,null,null,null,null,null,null,null,null,null,null,null,null,null,null,null,null,null,null,null,null,null,null,null,null,null,null,null,null,null,null,null,null,null,null,null,null,0,null,null,0,null,0,null,0,null,0]
[null,null,null,null,null,null,null,null,null,null,null,null,null,null,"Allowed",null,null,null,null,null,null,null,null,null,null,null,null,null,null,null,null,null,null,null,null,null,null,null,null,null,null,null,null,null,null,null,null,null,null,null,null,null,null,null,null,null,null,null,null,null,null,null,null,null,0,null,null,0,null,0,null,0,null,0]
[null,null,null,null,null,null,null,null,null,null,null,null,null,null,"Allowed",null,null,null,null,null,null,null,null,null,null,null,null,null,null,null,null,null,null,null,null,null,null,null,null,null,null,null,null,null,null,null,null,null,null,null,null,null,null,null,null,null,null,null,null,null,null,null,null,null,0,null,null,0,null,0,null,0,null,0]
[null,null,null,null,null,null,null,null,null,null,null,null,null,null,{"$f":"IF(N89219<=TRUNC(P89219*1.015228,2),\"Allowed\",\"Exceeds Max\")","v":"Allowed"},null,null,null,null,null,null,null,null,null,null,null,null,null,null,null,null,null,null,null,null,null,null,null,null,null,null,null,null,null,null,null,null,null,null,null,null,null,null,null,null,null,null,null,null,null,null,null,null,null,0,null,null,0,null,0,null,0,null,0]
[null,null,null,null,null,null,null,null,null,null,null,null,null,null,"Allowed",null,null,null,null,null,null,null,null,null,null,null,null,null,null,null,null,null,null,null,null,null,null,null,null,null,null,null,null,null,null,null,null,null,null,null,null,null,null,null,null,null,null,null,null,null,null,null,null,null,0,null,null,0,null,0,null,0,null,0]
[null,null,null,null,null,null,null,null,null,null,null,null,null,null,"Allowed",null,null,null,null,null,null,null,null,null,null,null,null,null,null,null,null,null,null,null,null,null,null,null,null,null,null,null,null,null,null,null,null,null,null,null,null,null,null,null,null,null,null,null,null,null,null,null,null,null,0,null,null,0,null,0,null,0,null,0]
[null,null,null,null,null,null,null,null,null,null,null,null,null,null,"Allowed",null,null,null,null,null,null,null,null,null,null,null,null,null,null,null,null,null,null,null,null,null,null,null,null,null,null,null,null,null,null,null,null,null,null,null,null,null,null,null,null,null,null,null,null,null,null,null,null,null,0,null,null,0,null,0,null,0,null,0]
[null,null,null,null,null,null,null,null,null,null,null,null,null,null,"Allowed",null,null,null,null,null,null,null,null,null,null,null,null,null,null,null,null,null,null,null,null,null,null,null,null,null,null,null,null,null,null,null,null,null,null,null,null,null,null,null,null,null,null,null,null,null,null,null,null,null,0,null,null,0,null,0,null,0,null,0]
[null,null,null,null,null,null,null,null,null,null,null,null,null,null,"Allowed",null,null,null,null,null,null,null,null,null,null,null,null,null,null,null,null,null,null,null,null,null,null,null,null,null,null,null,null,null,null,null,null,null,null,null,null,null,null,null,null,null,null,null,null,null,null,null,null,null,0,null,null,0,null,0,null,0,null,0]
[null,null,null,null,null,null,null,null,null,null,null,null,null,null,"Allowed",null,null,null,null,null,null,null,null,null,null,null,null,null,null,null,null,null,null,null,null,null,null,null,null,null,null,null,null,null,null,null,null,null,null,null,null,null,null,null,null,null,null,null,null,null,null,null,null,null,0,null,null,0,null,0,null,0,null,0]
[null,null,null,null,null,null,null,null,null,null,null,null,null,null,"Allowed",null,null,null,null,null,null,null,null,null,null,null,null,null,null,null,null,null,null,null,null,null,null,null,null,null,null,null,null,null,null,null,null,null,null,null,null,null,null,null,null,null,null,null,null,null,null,null,null,null,0,null,null,0,null,0,null,0,null,0]
[null,null,null,null,null,null,null,null,null,null,null,null,null,null,"Allowed",null,null,null,null,null,null,null,null,null,null,null,null,null,null,null,null,null,null,null,null,null,null,null,null,null,null,null,null,null,null,null,null,null,null,null,null,null,null,null,null,null,null,null,null,null,null,null,null,null,0,null,null,0,null,0,null,0,null,0]
[null,null,null,null,null,null,null,null,null,null,null,null,null,null,"Allowed",null,null,null,null,null,null,null,null,null,null,null,null,null,null,null,null,null,null,null,null,null,null,null,null,null,null,null,null,null,null,null,null,null,null,null,null,null,null,null,null,null,null,null,null,null,null,null,null,null,0,null,null,0,null,0,null,0,null,0]
[null,null,null,null,null,null,null,null,null,null,null,null,null,null,"Allowed",null,null,null,null,null,null,null,null,null,null,null,null,null,null,null,null,null,null,null,null,null,null,null,null,null,null,null,null,null,null,null,null,null,null,null,null,null,null,null,null,null,null,null,null,null,null,null,null,null,0,null,null,0,null,0,null,0,null,0]
[null,null,null,null,null,null,null,null,null,null,null,null,null,null,"Allowed",null,null,null,null,null,null,null,null,null,null,null,null,null,null,null,null,null,null,null,null,null,null,null,null,null,null,null,null,null,null,null,null,null,null,null,null,null,null,null,null,null,null,null,null,null,null,null,null,null,0,null,null,0,null,0,null,0,null,0]
[null,null,null,null,null,null,null,null,null,null,null,null,null,null,"Allowed",null,null,null,null,null,null,null,null,null,null,null,null,null,null,null,null,null,null,null,null,null,null,null,null,null,null,null,null,null,null,null,null,null,null,null,null,null,null,null,null,null,null,null,null,null,null,null,null,null,0,null,null,0,null,0,null,0,null,0]
[null,null,null,null,null,null,null,null,null,null,null,null,null,null,"Allowed",null,null,null,null,null,null,null,null,null,null,null,null,null,null,null,null,null,null,null,null,null,null,null,null,null,null,null,null,null,null,null,null,null,null,null,null,null,null,null,null,null,null,null,null,null,null,null,null,null,0,null,null,0,null,0,null,0,null,0]
[null,null,null,null,null,null,null,null,null,null,null,null,null,null,"Allowed",null,null,null,null,null,null,null,null,null,null,null,null,null,null,null,null,null,null,null,null,null,null,null,null,null,null,null,null,null,null,null,null,null,null,null,null,null,null,null,null,null,null,null,null,null,null,null,null,null,0,null,null,0,null,0,null,0,null,0]
[null,null,null,null,null,null,null,null,null,null,null,null,null,null,"Allowed",null,null,null,null,null,null,null,null,null,null,null,null,null,null,null,null,null,null,null,null,null,null,null,null,null,null,null,null,null,null,null,null,null,null,null,null,null,null,null,null,null,null,null,null,null,null,null,null,null,0,null,null,0,null,0,null,0,null,0]
[null,null,null,null,null,null,null,null,null,null,null,null,null,null,"Allowed",null,null,null,null,null,null,null,null,null,null,null,null,null,null,null,null,null,null,null,null,null,null,null,null,null,null,null,null,null,null,null,null,null,null,null,null,null,null,null,null,null,null,null,null,null,null,null,null,null,0,null,null,0,null,0,null,0,null,0]
[null,null,null,null,null,null,null,null,null,null,null,null,null,null,"Allowed",null,null,null,null,null,null,null,null,null,null,null,null,null,null,null,null,null,null,null,null,null,null,null,null,null,null,null,null,null,null,null,null,null,null,null,null,null,null,null,null,null,null,null,null,null,null,null,null,null,0,null,null,0,null,0,null,0,null,0]
[null,null,null,null,null,null,null,null,null,null,null,null,null,null,"Allowed",null,null,null,null,null,null,null,null,null,null,null,null,null,null,null,null,null,null,null,null,null,null,null,null,null,null,null,null,null,null,null,null,null,null,null,null,null,null,null,null,null,null,null,null,null,null,null,null,null,0,null,null,0,null,0,null,0,null,0]
[null,null,null,null,null,null,null,null,null,null,null,null,null,null,"Allowed",null,null,null,null,null,null,null,null,null,null,null,null,null,null,null,null,null,null,null,null,null,null,null,null,null,null,null,null,null,null,null,null,null,null,null,null,null,null,null,null,null,null,null,null,null,null,null,null,null,0,null,null,0,null,0,null,0,null,0]
[null,null,null,null,null,null,null,null,null,null,null,null,null,null,"Allowed",null,null,null,null,null,null,null,null,null,null,null,null,null,null,null,null,null,null,null,null,null,null,null,null,null,null,null,null,null,null,null,null,null,null,null,null,null,null,null,null,null,null,null,null,null,null,null,null,null,0,null,null,0,null,0,null,0,null,0]
[null,null,null,null,null,null,null,null,null,null,null,null,null,null,"Allowed",null,null,null,null,null,null,null,null,null,null,null,null,null,null,null,null,null,null,null,null,null,null,null,null,null,null,null,null,null,null,null,null,null,null,null,null,null,null,null,null,null,null,null,null,null,null,null,null,null,0,null,null,0,null,0,null,0,null,0]
[null,null,null,null,null,null,null,null,null,null,null,null,null,null,"Allowed",null,null,null,null,null,null,null,null,null,null,null,null,null,null,null,null,null,null,null,null,null,null,null,null,null,null,null,null,null,null,null,null,null,null,null,null,null,null,null,null,null,null,null,null,null,null,null,null,null,0,null,null,0,null,0,null,0,null,0]
[null,null,null,null,null,null,null,null,null,null,null,null,null,null,"Allowed",null,null,null,null,null,null,null,null,null,null,null,null,null,null,null,null,null,null,null,null,null,null,null,null,null,null,null,null,null,null,null,null,null,null,null,null,null,null,null,null,null,null,null,null,null,null,null,null,null,0,null,null,0,null,0,null,0,null,0]
[null,null,null,null,null,null,null,null,null,null,null,null,null,null,"Allowed",null,null,null,null,null,null,null,null,null,null,null,null,null,null,null,null,null,null,null,null,null,null,null,null,null,null,null,null,null,null,null,null,null,null,null,null,null,null,null,null,null,null,null,null,null,null,null,null,null,0,null,null,0,null,0,null,0,null,0]
[null,null,null,null,null,null,null,null,null,null,null,null,null,null,"Allowed",null,null,null,null,null,null,null,null,null,null,null,null,null,null,null,null,null,null,null,null,null,null,null,null,null,null,null,null,null,null,null,null,null,null,null,null,null,null,null,null,null,null,null,null,null,null,null,null,null,0,null,null,0,null,0,null,0,null,0]
[null,null,null,null,null,null,null,null,null,null,null,null,null,null,"Allowed",null,null,null,null,null,null,null,null,null,null,null,null,null,null,null,null,null,null,null,null,null,null,null,null,null,null,null,null,null,null,null,null,null,null,null,null,null,null,null,null,null,null,null,null,null,null,null,null,null,0,null,null,0,null,0,null,0,null,0]
[null,null,null,null,null,null,null,null,null,null,null,null,null,null,"Allowed",null,null,null,null,null,null,null,null,null,null,null,null,null,null,null,null,null,null,null,null,null,null,null,null,null,null,null,null,null,null,null,null,null,null,null,null,null,null,null,null,null,null,null,null,null,null,null,null,null,0,null,null,0,null,0,null,0,null,0]
[null,null,null,null,null,null,null,null,null,null,null,null,null,null,"Allowed",null,null,null,null,null,null,null,null,null,null,null,null,null,null,null,null,null,null,null,null,null,null,null,null,null,null,null,null,null,null,null,null,null,null,null,null,null,null,null,null,null,null,null,null,null,null,null,null,null,0,null,null,0,null,0,null,0,null,0]
[null,null,null,null,null,null,null,null,null,null,null,null,null,null,"Allowed",null,null,null,null,null,null,null,null,null,null,null,null,null,null,null,null,null,null,null,null,null,null,null,null,null,null,null,null,null,null,null,null,null,null,null,null,null,null,null,null,null,null,null,null,null,null,null,null,null,0,null,null,0,null,0,null,0,null,0]
[null,null,null,null,null,null,null,null,null,null,null,null,null,null,"Allowed",null,null,null,null,null,null,null,null,null,null,null,null,null,null,null,null,null,null,null,null,null,null,null,null,null,null,null,null,null,null,null,null,null,null,null,null,null,null,null,null,null,null,null,null,null,null,null,null,null,0,null,null,0,null,0,null,0,null,0]
[null,null,null,null,null,null,null,null,null,null,null,null,null,null,"Allowed",null,null,null,null,null,null,null,null,null,null,null,null,null,null,null,null,null,null,null,null,null,null,null,null,null,null,null,null,null,null,null,null,null,null,null,null,null,null,null,null,null,null,null,null,null,null,null,null,null,0,null,null,0,null,0,null,0,null,0]
[null,null,null,null,null,null,null,null,null,null,null,null,null,null,"Allowed",null,null,null,null,null,null,null,null,null,null,null,null,null,null,null,null,null,null,null,null,null,null,null,null,null,null,null,null,null,null,null,null,null,null,null,null,null,null,null,null,null,null,null,null,null,null,null,null,null,0,null,null,0,null,0,null,0,null,0]
[null,null,null,null,null,null,null,null,null,null,null,null,null,null,"Allowed",null,null,null,null,null,null,null,null,null,null,null,null,null,null,null,null,null,null,null,null,null,null,null,null,null,null,null,null,null,null,null,null,null,null,null,null,null,null,null,null,null,null,null,null,null,null,null,null,null,0,null,null,0,null,0,null,0,null,0]
[null,null,null,null,null,null,null,null,null,null,null,null,null,null,"Allowed",null,null,null,null,null,null,null,null,null,null,null,null,null,null,null,null,null,null,null,null,null,null,null,null,null,null,null,null,null,null,null,null,null,null,null,null,null,null,null,null,null,null,null,null,null,null,null,null,null,0,null,null,0,null,0,null,0,null,0]
[null,null,null,null,null,null,null,null,null,null,null,null,null,null,"Allowed",null,null,null,null,null,null,null,null,null,null,null,null,null,null,null,null,null,null,null,null,null,null,null,null,null,null,null,null,null,null,null,null,null,null,null,null,null,null,null,null,null,null,null,null,null,null,null,null,null,0,null,null,0,null,0,null,0,null,0]
[null,null,null,null,null,null,null,null,null,null,null,null,null,null,"Allowed",null,null,null,null,null,null,null,null,null,null,null,null,null,null,null,null,null,null,null,null,null,null,null,null,null,null,null,null,null,null,null,null,null,null,null,null,null,null,null,null,null,null,null,null,null,null,null,null,null,0,null,null,0,null,0,null,0,null,0]
[null,null,null,null,null,null,null,null,null,null,null,null,null,null,"Allowed",null,null,null,null,null,null,null,null,null,null,null,null,null,null,null,null,null,null,null,null,null,null,null,null,null,null,null,null,null,null,null,null,null,null,null,null,null,null,null,null,null,null,null,null,null,null,null,null,null,0,null,null,0,null,0,null,0,null,0]
[null,null,null,null,null,null,null,null,null,null,null,null,null,null,"Allowed",null,null,null,null,null,null,null,null,null,null,null,null,null,null,null,null,null,null,null,null,null,null,null,null,null,null,null,null,null,null,null,null,null,null,null,null,null,null,null,null,null,null,null,null,null,null,null,null,null,0,null,null,0,null,0,null,0,null,0]
[null,null,null,null,null,null,null,null,null,null,null,null,null,null,"Allowed",null,null,null,null,null,null,null,null,null,null,null,null,null,null,null,null,null,null,null,null,null,null,null,null,null,null,null,null,null,null,null,null,null,null,null,null,null,null,null,null,null,null,null,null,null,null,null,null,null,0,null,null,0,null,0,null,0,null,0]
[null,null,null,null,null,null,null,null,null,null,null,null,null,null,"Allowed",null,null,null,null,null,null,null,null,null,null,null,null,null,null,null,null,null,null,null,null,null,null,null,null,null,null,null,null,null,null,null,null,null,null,null,null,null,null,null,null,null,null,null,null,null,null,null,null,null,0,null,null,0,null,0,null,0,null,0]
[null,null,null,null,null,null,null,null,null,null,null,null,null,null,"Allowed",null,null,null,null,null,null,null,null,null,null,null,null,null,null,null,null,null,null,null,null,null,null,null,null,null,null,null,null,null,null,null,null,null,null,null,null,null,null,null,null,null,null,null,null,null,null,null,null,null,0,null,null,0,null,0,null,0,null,0]
[null,null,null,null,null,null,null,null,null,null,null,null,null,null,"Allowed",null,null,null,null,null,null,null,null,null,null,null,null,null,null,null,null,null,null,null,null,null,null,null,null,null,null,null,null,null,null,null,null,null,null,null,null,null,null,null,null,null,null,null,null,null,null,null,null,null,0,null,null,0,null,0,null,0,null,0]
[null,null,null,null,null,null,null,null,null,null,null,null,null,null,"Allowed",null,null,null,null,null,null,null,null,null,null,null,null,null,null,null,null,null,null,null,null,null,null,null,null,null,null,null,null,null,null,null,null,null,null,null,null,null,null,null,null,null,null,null,null,null,null,null,null,null,{"$f":"LEN(BL110276)","v":0},null,null,{"$f":"LEN(BO110276)","v":0},null,{"$f":"LEN(BQ110276)","v":0},null,{"$f":"LEN(BS110276)","v":0},null,{"$f":"LEN(BU110276)","v":0}]
[null,null,null,null,null,null,null,null,null,null,null,null,null,null,"Allowed",null,null,null,null,null,null,null,null,null,null,null,null,null,null,null,null,null,null,null,null,null,null,null,null,null,null,null,null,null,null,null,null,null,null,null,null,null,null,null,null,null,null,null,null,null,null,null,null,null,0,null,null,0,null,0,null,0,null,0]
[null,null,null,null,null,null,null,null,null,null,null,null,null,null,"Allowed",null,null,null,null,null,null,null,null,null,null,null,null,null,null,null,null,null,null,null,null,null,null,null,null,null,null,null,null,null,null,null,null,null,null,null,null,null,null,null,null,null,null,null,null,null,null,null,null,null,0,null,null,0,null,0,null,0,null,0]
[null,null,null,null,null,null,null,null,null,null,null,null,null,null,"Allowed",null,null,null,null,null,null,null,null,null,null,null,null,null,null,null,null,null,null,null,null,null,null,null,null,null,null,null,null,null,null,null,null,null,null,null,null,null,null,null,null,null,null,null,null,null,null,null,null,null,{"$f":"LEN(BL112196)","v":0},null,null,{"$f":"LEN(BO112196)","v":0},null,{"$f":"LEN(BQ112196)","v":0},null,{"$f":"LEN(BS112196)","v":0},null,{"$f":"LEN(BU112196)","v":0}]
[null,null,null,null,null,null,null,null,null,null,null,null,null,null,"Allowed",null,null,null,null,null,null,null,null,null,null,null,null,null,null,null,null,null,null,null,null,null,null,null,null,null,null,null,null,null,null,null,null,null,null,null,null,null,null,null,null,null,null,null,null,null,null,null,null,null,0,null,null,0,null,0,null,0,null,0]
[null,null,null,null,null,null,null,null,null,null,null,null,null,null,"Allowed",null,null,null,null,null,null,null,null,null,null,null,null,null,null,null,null,null,null,null,null,null,null,null,null,null,null,null,null,null,null,null,null,null,null,null,null,null,null,null,null,null,null,null,null,null,null,null,null,null,0,null,null,0,null,0,null,0,null,0]
[null,null,null,null,null,null,null,null,null,null,null,null,null,null,"Allowed",null,null,null,null,null,null,null,null,null,null,null,null,null,null,null,null,null,null,null,null,null,null,null,null,null,null,null,null,null,null,null,null,null,null,null,null,null,null,null,null,null,null,null,null,null,null,null,null,null,0,null,null,0,null,0,null,0,null,0]
[null,null,null,null,null,null,null,null,null,null,null,null,null,null,"Allowed",null,null,null,null,null,null,null,null,null,null,null,null,null,null,null,null,null,null,null,null,null,null,null,null,null,null,null,null,null,null,null,null,null,null,null,null,null,null,null,null,null,null,null,null,null,null,null,null,null,0,null,null,0,null,0,null,0,null,0]
[null,null,null,null,null,null,null,null,null,null,null,null,null,null,"Allowed",null,null,null,null,null,null,null,null,null,null,null,null,null,null,null,null,null,null,null,null,null,null,null,null,null,null,null,null,null,null,null,null,null,null,null,null,null,null,null,null,null,null,null,null,null,null,null,null,null,0,null,null,0,null,0,null,0,null,0]
[null,null,null,null,null,null,null,null,null,null,null,null,null,null,"Allowed",null,null,null,null,null,null,null,null,null,null,null,null,null,null,null,null,null,null,null,null,null,null,null,null,null,null,null,null,null,null,null,null,null,null,null,null,null,null,null,null,null,null,null,null,null,null,null,null,null,0,null,null,0,null,0,null,0,null,0]
[null,null,null,null,null,null,null,null,null,null,null,null,null,null,"Allowed",null,null,null,null,null,null,null,null,null,null,null,null,null,null,null,null,null,null,null,null,null,null,null,null,null,null,null,null,null,null,null,null,null,null,null,null,null,null,null,null,null,null,null,null,null,null,null,null,null,0,null,null,0,null,0,null,0,null,0]
[null,null,null,null,null,null,null,null,null,null,null,null,null,null,"Allowed",null,null,null,null,null,null,null,null,null,null,null,null,null,null,null,null,null,null,null,null,null,null,null,null,null,null,null,null,null,null,null,null,null,null,null,null,null,null,null,null,null,null,null,null,null,null,null,null,null,0,null,null,0,null,0,null,0,null,0]
[null,null,null,null,null,null,null,null,null,null,null,null,null,null,"Allowed",null,null,null,null,null,null,null,null,null,null,null,null,null,null,null,null,null,null,null,null,null,null,null,null,null,null,null,null,null,null,null,null,null,null,null,null,null,null,null,null,null,null,null,null,null,null,null,null,null,0,null,null,0,null,0,null,0,null,0]
[null,null,null,null,null,null,null,null,null,null,null,null,null,null,"Allowed",null,null,null,null,null,null,null,null,null,null,null,null,null,null,null,null,null,null,null,null,null,null,null,null,null,null,null,null,null,null,null,null,null,null,null,null,null,null,null,null,null,null,null,null,null,null,null,null,null,0,null,null,0,null,0,null,0,null,0]
[null,null,null,null,null,null,null,null,null,null,null,null,null,null,"Allowed",null,null,null,null,null,null,null,null,null,null,null,null,null,null,null,null,null,null,null,null,null,null,null,null,null,null,null,null,null,null,null,null,null,null,null,null,null,null,null,null,null,null,null,null,null,null,null,null,null,0,null,null,0,null,0,null,0,null,0]
[null,null,null,null,null,null,null,null,null,null,null,null,null,null,"Allowed",null,null,null,null,null,null,null,null,null,null,null,null,null,null,null,null,null,null,null,null,null,null,null,null,null,null,null,null,null,null,null,null,null,null,null,null,null,null,null,null,null,null,null,null,null,null,null,null,null,0,null,null,0,null,0,null,0,null,0]
[null,null,null,null,null,null,null,null,null,null,null,null,null,null,"Allowed",null,null,null,null,null,null,null,null,null,null,null,null,null,null,null,null,null,null,null,null,null,null,null,null,null,null,null,null,null,null,null,null,null,null,null,null,null,null,null,null,null,null,null,null,null,null,null,null,null,0,null,null,0,null,0,null,0,null,0]
[null,null,null,null,null,null,null,null,null,null,null,null,null,null,"Allowed",null,null,null,null,null,null,null,null,null,null,null,null,null,null,null,null,null,null,null,null,null,null,null,null,null,null,null,null,null,null,null,null,null,null,null,null,null,null,null,null,null,null,null,null,null,null,null,null,null,0,null,null,0,null,0,null,0,null,0]
[null,null,null,null,null,null,null,null,null,null,null,null,null,null,"Allowed",null,null,null,null,null,null,null,null,null,null,null,null,null,null,null,null,null,null,null,null,null,null,null,null,null,null,null,null,null,null,null,null,null,null,null,null,null,null,null,null,null,null,null,null,null,null,null,null,null,0,null,null,0,null,0,null,0,null,0]
[null,null,null,null,null,null,null,null,null,null,null,null,null,null,"Allowed",null,null,null,null,null,null,null,null,null,null,null,null,null,null,null,null,null,null,null,null,null,null,null,null,null,null,null,null,null,null,null,null,null,null,null,null,null,null,null,null,null,null,null,null,null,null,null,null,null,0,null,null,0,null,0,null,0,null,0]
[null,null,null,null,null,null,null,null,null,null,null,null,null,null,"Allowed",null,null,null,null,null,null,null,null,null,null,null,null,null,null,null,null,null,null,null,null,null,null,null,null,null,null,null,null,null,null,null,null,null,null,null,null,null,null,null,null,null,null,null,null,null,null,null,null,null,0,null,null,0,null,0,null,0,null,0]
[null,null,null,null,null,null,null,null,null,null,null,null,null,null,"Allowed",null,null,null,null,null,null,null,null,null,null,null,null,null,null,null,null,null,null,null,null,null,null,null,null,null,null,null,null,null,null,null,null,null,null,null,null,null,null,null,null,null,null,null,null,null,null,null,null,null,0,null,null,0,null,0,null,0,null,0]
[null,null,null,null,null,null,null,null,null,null,null,null,null,null,"Allowed",null,null,null,null,null,null,null,null,null,null,null,null,null,null,null,null,null,null,null,null,null,null,null,null,null,null,null,null,null,null,null,null,null,null,null,null,null,null,null,null,null,null,null,null,null,null,null,null,null,0,null,null,0,null,0,null,0,null,0]
[null,null,null,null,null,null,null,null,null,null,null,null,null,null,"Allowed",null,null,null,null,null,null,null,null,null,null,null,null,null,null,null,null,null,null,null,null,null,null,null,null,null,null,null,null,null,null,null,null,null,null,null,null,null,null,null,null,null,null,null,null,null,null,null,null,null,0,null,null,0,null,0,null,0,null,0]
[null,null,null,null,null,null,null,null,null,null,null,null,null,null,"Allowed",null,null,null,null,null,null,null,null,null,null,null,null,null,null,null,null,null,null,null,null,null,null,null,null,null,null,null,null,null,null,null,null,null,null,null,null,null,null,null,null,null,null,null,null,null,null,null,null,null,0,null,null,0,null,0,null,0,null,0]
[null,null,null,null,null,null,null,null,null,null,null,null,null,null,"Allowed",null,null,null,null,null,null,null,null,null,null,null,null,null,null,null,null,null,null,null,null,null,null,null,null,null,null,null,null,null,null,null,null,null,null,null,null,null,null,null,null,null,null,null,null,null,null,null,null,null,0,null,null,0,null,0,null,0,null,0]
[null,null,null,null,null,null,null,null,null,null,null,null,null,null,"Allowed",null,null,null,null,null,null,null,null,null,null,null,null,null,null,null,null,null,null,null,null,null,null,null,null,null,null,null,null,null,null,null,null,null,null,null,null,null,null,null,null,null,null,null,null,null,null,null,null,null,0,null,null,0,null,0,null,0,null,0]
[null,null,null,null,null,null,null,null,null,null,null,null,null,null,"Allowed",null,null,null,null,null,null,null,null,null,null,null,null,null,null,null,null,null,null,null,null,null,null,null,null,null,null,null,null,null,null,null,null,null,null,null,null,null,null,null,null,null,null,null,null,null,null,null,null,null,0,null,null,0,null,0,null,0,null,0]
[null,null,null,null,null,null,null,null,null,null,null,null,null,null,"Allowed",null,null,null,null,null,null,null,null,null,null,null,null,null,null,null,null,null,null,null,null,null,null,null,null,null,null,null,null,null,null,null,null,null,null,null,null,null,null,null,null,null,null,null,null,null,null,null,null,null,0,null,null,0,null,0,null,0,null,0]
[null,null,null,null,null,null,null,null,null,null,null,null,null,null,"Allowed",null,null,null,null,null,null,null,null,null,null,null,null,null,null,null,null,null,null,null,null,null,null,null,null,null,null,null,null,null,null,null,null,null,null,null,null,null,null,null,null,null,null,null,null,null,null,null,null,null,0,null,null,0,null,0,null,0,null,0]
[null,null,null,null,null,null,null,null,null,null,null,null,null,null,"Allowed",null,null,null,null,null,null,null,null,null,null,null,null,null,null,null,null,null,null,null,null,null,null,null,null,null,null,null,null,null,null,null,null,null,null,null,null,null,null,null,null,null,null,null,null,null,null,null,null,null,0,null,null,0,null,0,null,0,null,0]
[null,null,null,null,null,null,null,null,null,null,null,null,null,null,"Allowed",null,null,null,null,null,null,null,null,null,null,null,null,null,null,null,null,null,null,null,null,null,null,null,null,null,null,null,null,null,null,null,null,null,null,null,null,null,null,null,null,null,null,null,null,null,null,null,null,null,0,null,null,0,null,0,null,0,null,0]
[null,null,null,null,null,null,null,null,null,null,null,null,null,null,"Allowed",null,null,null,null,null,null,null,null,null,null,null,null,null,null,null,null,null,null,null,null,null,null,null,null,null,null,null,null,null,null,null,null,null,null,null,null,null,null,null,null,null,null,null,null,null,null,null,null,null,0,null,null,0,null,0,null,0,null,0]
[null,null,null,null,null,null,null,null,null,null,null,null,null,null,"Allowed",null,null,null,null,null,null,null,null,null,null,null,null,null,null,null,null,null,null,null,null,null,null,null,null,null,null,null,null,null,null,null,null,null,null,null,null,null,null,null,null,null,null,null,null,null,null,null,null,null,0,null,null,0,null,0,null,0,null,0]
[null,null,null,null,null,null,null,null,null,null,null,null,null,null,"Allowed",null,null,null,null,null,null,null,null,null,null,null,null,null,null,null,null,null,null,null,null,null,null,null,null,null,null,null,null,null,null,null,null,null,null,null,null,null,null,null,null,null,null,null,null,null,null,null,null,null,0,null,null,0,null,0,null,0,null,0]
[null,null,null,null,null,null,null,null,null,null,null,null,null,null,"Allowed",null,null,null,null,null,null,null,null,null,null,null,null,null,null,null,null,null,null,null,null,null,null,null,null,null,null,null,null,null,null,null,null,null,null,null,null,null,null,null,null,null,null,null,null,null,null,null,null,null,0,null,null,0,null,0,null,0,null,0]
[null,null,null,null,null,null,null,null,null,null,null,null,null,null,"Allowed",null,null,null,null,null,null,null,null,null,null,null,null,null,null,null,null,null,null,null,null,null,null,null,null,null,null,null,null,null,null,null,null,null,null,null,null,null,null,null,null,null,null,null,null,null,null,null,null,null,0,null,null,0,null,0,null,0,null,0]
[null,null,null,null,null,null,null,null,null,null,null,null,null,null,"Allowed",null,null,null,null,null,null,null,null,null,null,null,null,null,null,null,null,null,null,null,null,null,null,null,null,null,null,null,null,null,null,null,null,null,null,null,null,null,null,null,null,null,null,null,null,null,null,null,null,null,0,null,null,0,null,0,null,0,null,0]
[null,null,null,null,null,null,null,null,null,null,null,null,null,null,"Allowed",null,null,null,null,null,null,null,null,null,null,null,null,null,null,null,null,null,null,null,null,null,null,null,null,null,null,null,null,null,null,null,null,null,null,null,null,null,null,null,null,null,null,null,null,null,null,null,null,null,0,null,null,0,null,0,null,0,null,0]
[null,null,null,null,null,null,null,null,null,null,null,null,null,null,"Allowed",null,null,null,null,null,null,null,null,null,null,null,null,null,null,null,null,null,null,null,null,null,null,null,null,null,null,null,null,null,null,null,null,null,null,null,null,null,null,null,null,null,null,null,null,null,null,null,null,null,0,null,null,0,null,0,null,0,null,0]
[null,null,null,null,null,null,null,null,null,null,null,null,null,null,"Allowed",null,null,null,null,null,null,null,null,null,null,null,null,null,null,null,null,null,null,null,null,null,null,null,null,null,null,null,null,null,null,null,null,null,null,null,null,null,null,null,null,null,null,null,null,null,null,null,null,null,0,null,null,0,null,0,null,0,null,0]
[null,null,null,null,null,null,null,null,null,null,null,null,null,null,"Allowed",null,null,null,null,null,null,null,null,null,null,null,null,null,null,null,null,null,null,null,null,null,null,null,null,null,null,null,null,null,null,null,null,null,null,null,null,null,null,null,null,null,null,null,null,null,null,null,null,null,0,null,null,0,null,0,null,0,null,0]
[null,null,null,null,null,null,null,null,null,null,null,null,null,null,"Allowed",null,null,null,null,null,null,null,null,null,null,null,null,null,null,null,null,null,null,null,null,null,null,null,null,null,null,null,null,null,null,null,null,null,null,null,null,null,null,null,null,null,null,null,null,null,null,null,null,null,0,null,null,0,null,0,null,0,null,0]
[null,null,null,null,null,null,null,null,null,null,null,null,null,null,"Allowed",null,null,null,null,null,null,null,null,null,null,null,null,null,null,null,null,null,null,null,null,null,null,null,null,null,null,null,null,null,null,null,null,null,null,null,null,null,null,null,null,null,null,null,null,null,null,null,null,null,0,null,null,0,null,0,null,0,null,0]
[null,null,null,null,null,null,null,null,null,null,null,null,null,null,"Allowed",null,null,null,null,null,null,null,null,null,null,null,null,null,null,null,null,null,null,null,null,null,null,null,null,null,null,null,null,null,null,null,null,null,null,null,null,null,null,null,null,null,null,null,null,null,null,null,null,null,0,null,null,0,null,0,null,0,null,0]
[null,null,null,null,null,null,null,null,null,null,null,null,null,null,"Allowed",null,null,null,null,null,null,null,null,null,null,null,null,null,null,null,null,null,null,null,null,null,null,null,null,null,null,null,null,null,null,null,null,null,null,null,null,null,null,null,null,null,null,null,null,null,null,null,null,null,0,null,null,0,null,0,null,0,null,0]
[null,null,null,null,null,null,null,null,null,null,null,null,null,null,{"$f":"IF(N133443<=TRUNC(P133443*1.015228,2),\"Allowed\",\"Exceeds Max\")","v":"Allowed"},null,null,null,null,null,null,null,null,null,null,null,null,null,null,null,null,null,null,null,null,null,null,null,null,null,null,null,null,null,null,null,null,null,null,null,null,null,null,null,null,null,null,null,null,null,null,null,null,null,0,null,null,0,null,0,null,0,null,0]
[null,null,null,null,null,null,null,null,null,null,null,null,null,null,"Allowed",null,null,null,null,null,null,null,null,null,null,null,null,null,null,null,null,null,null,null,null,null,null,null,null,null,null,null,null,null,null,null,null,null,null,null,null,null,null,null,null,null,null,null,null,null,null,null,null,null,0,null,null,0,null,0,null,0,null,0]
[null,null,null,null,null,null,null,null,null,null,null,null,null,null,{"$f":"IF(N134403<=TRUNC(P134403*1.015228,2),\"Allowed\",\"Exceeds Max\")","v":"Allowed"},null,null,null,null,null,null,null,null,null,null,null,null,null,null,null,null,null,null,null,null,null,null,null,null,null,null,null,null,null,null,null,null,null,null,null,null,null,null,null,null,null,null,null,null,null,null,null,null,null,0,null,null,0,null,0,null,0,null,0]
[null,null,null,null,null,null,null,null,null,null,null,null,null,null,"Allowed",null,null,null,null,null,null,null,null,null,null,null,null,null,null,null,null,null,null,null,null,null,null,null,null,null,null,null,null,null,null,null,null,null,null,null,null,null,null,null,null,null,null,null,null,null,null,null,null,null,0,null,null,0,null,0,null,0,null,0]
[null,null,null,null,null,null,null,null,null,null,null,null,null,null,"Allowed",null,null,null,null,null,null,null,null,null,null,null,null,null,null,null,null,null,null,null,null,null,null,null,null,null,null,null,null,null,null,null,null,null,null,null,null,null,null,null,null,null,null,null,null,null,null,null,null,null,0,null,null,0,null,0,null,0,null,0]
[null,null,null,null,null,null,null,null,null,null,null,null,null,null,"Allowed",null,null,null,null,null,null,null,null,null,null,null,null,null,null,null,null,null,null,null,null,null,null,null,null,null,null,null,null,null,null,null,null,null,null,null,null,null,null,null,null,null,null,null,null,null,null,null,null,null,0,null,null,0,null,0,null,0,null,0]
[null,null,null,null,null,null,null,null,null,null,null,null,null,null,"Allowed",null,null,null,null,null,null,null,null,null,null,null,null,null,null,null,null,null,null,null,null,null,null,null,null,null,null,null,null,null,null,null,null,null,null,null,null,null,null,null,null,null,null,null,null,null,null,null,null,null,0,null,null,0,null,0,null,0,null,0]
[null,null,null,null,null,null,null,null,null,null,null,null,null,null,"Allowed",null,null,null,null,null,null,null,null,null,null,null,null,null,null,null,null,null,null,null,null,null,null,null,null,null,null,null,null,null,null,null,null,null,null,null,null,null,null,null,null,null,null,null,null,null,null,null,null,null,0,null,null,0,null,0,null,0,null,0]
[null,null,null,null,null,null,null,null,null,null,null,null,null,null,"Allowed",null,null,null,null,null,null,null,null,null,null,null,null,null,null,null,null,null,null,null,null,null,null,null,null,null,null,null,null,null,null,null,null,null,null,null,null,null,null,null,null,null,null,null,null,null,null,null,null,null,0,null,null,0,null,0,null,0,null,0]
[null,null,null,null,null,null,null,null,null,null,null,null,null,null,"Allowed",null,null,null,null,null,null,null,null,null,null,null,null,null,null,null,null,null,null,null,null,null,null,null,null,null,null,null,null,null,null,null,null,null,null,null,null,null,null,null,null,null,null,null,null,null,null,null,null,null,0,null,null,0,null,0,null,0,null,0]
[null,null,null,null,null,null,null,null,null,null,null,null,null,null,"Allowed",null,null,null,null,null,null,null,null,null,null,null,null,null,null,null,null,null,null,null,null,null,null,null,null,null,null,null,null,null,null,null,null,null,null,null,null,null,null,null,null,null,null,null,null,null,null,null,null,null,0,null,null,0,null,0,null,0,null,0]
[null,null,null,null,null,null,null,null,null,null,null,null,null,null,"Allowed",null,null,null,null,null,null,null,null,null,null,null,null,null,null,null,null,null,null,null,null,null,null,null,null,null,null,null,null,null,null,null,null,null,null,null,null,null,null,null,null,null,null,null,null,null,null,null,null,null,0,null,null,0,null,0,null,0,null,0]
[null,null,null,null,null,null,null,null,null,null,null,null,null,null,"Allowed",null,null,null,null,null,null,null,null,null,null,null,null,null,null,null,null,null,null,null,null,null,null,null,null,null,null,null,null,null,null,null,null,null,null,null,null,null,null,null,null,null,null,null,null,null,null,null,null,null,0,null,null,0,null,0,null,0,null,0]
[null,null,null,null,null,null,null,null,null,null,null,null,null,null,"Allowed",null,null,null,null,null,null,null,null,null,null,null,null,null,null,null,null,null,null,null,null,null,null,null,null,null,null,null,null,null,null,null,null,null,null,null,null,null,null,null,null,null,null,null,null,null,null,null,null,null,0,null,null,0,null,0,null,0,null,0]
[null,null,null,null,null,null,null,null,null,null,null,null,null,null,"Allowed",null,null,null,null,null,null,null,null,null,null,null,null,null,null,null,null,null,null,null,null,null,null,null,null,null,null,null,null,null,null,null,null,null,null,null,null,null,null,null,null,null,null,null,null,null,null,null,null,null,0,null,null,0,null,0,null,0,null,0]
[null,null,null,null,null,null,null,null,null,null,null,null,null,null,"Allowed",null,null,null,null,null,null,null,null,null,null,null,null,null,null,null,null,null,null,null,null,null,null,null,null,null,null,null,null,null,null,null,null,null,null,null,null,null,null,null,null,null,null,null,null,null,null,null,null,null,0,null,null,0,null,0,null,0,null,0]
[null,null,null,null,null,null,null,null,null,null,null,null,null,null,"Allowed",null,null,null,null,null,null,null,null,null,null,null,null,null,null,null,null,null,null,null,null,null,null,null,null,null,null,null,null,null,null,null,null,null,null,null,null,null,null,null,null,null,null,null,null,null,null,null,null,null,0,null,null,0,null,0,null,0,null,0]
[null,null,null,null,null,null,null,null,null,null,null,null,null,null,"Allowed",null,null,null,null,null,null,null,null,null,null,null,null,null,null,null,null,null,null,null,null,null,null,null,null,null,null,null,null,null,null,null,null,null,null,null,null,null,null,null,null,null,null,null,null,null,null,null,null,null,0,null,null,0,null,0,null,0,null,0]
[null,null,null,null,null,null,null,null,null,null,null,null,null,null,"Allowed",null,null,null,null,null,null,null,null,null,null,null,null,null,null,null,null,null,null,null,null,null,null,null,null,null,null,null,null,null,null,null,null,null,null,null,null,null,null,null,null,null,null,null,null,null,null,null,null,null,0,null,null,0,null,0,null,0,null,0]
[null,null,null,null,null,null,null,null,null,null,null,null,null,null,"Allowed",null,null,null,null,null,null,null,null,null,null,null,null,null,null,null,null,null,null,null,null,null,null,null,null,null,null,null,null,null,null,null,null,null,null,null,null,null,null,null,null,null,null,null,null,null,null,null,null,null,0,null,null,0,null,0,null,0,null,0]
[null,null,null,null,null,null,null,null,null,null,null,null,null,null,"Allowed",null,null,null,null,null,null,null,null,null,null,null,null,null,null,null,null,null,null,null,null,null,null,null,null,null,null,null,null,null,null,null,null,null,null,null,null,null,null,null,null,null,null,null,null,null,null,null,null,null,0,null,null,0,null,0,null,0,null,0]
[null,null,null,null,null,null,null,null,null,null,null,null,null,null,"Allowed",null,null,null,null,null,null,null,null,null,null,null,null,null,null,null,null,null,null,null,null,null,null,null,null,null,null,null,null,null,null,null,null,null,null,null,null,null,null,null,null,null,null,null,null,null,null,null,null,null,0,null,null,0,null,0,null,0,null,0]
[null,null,null,null,null,null,null,null,null,null,null,null,null,null,"Allowed",null,null,null,null,null,null,null,null,null,null,null,null,null,null,null,null,null,null,null,null,null,null,null,null,null,null,null,null,null,null,null,null,null,null,null,null,null,null,null,null,null,null,null,null,null,null,null,null,null,0,null,null,0,null,0,null,0,null,0]
[null,null,null,null,null,null,null,null,null,null,null,null,null,null,"Allowed",null,null,null,null,null,null,null,null,null,null,null,null,null,null,null,null,null,null,null,null,null,null,null,null,null,null,null,null,null,null,null,null,null,null,null,null,null,null,null,null,null,null,null,null,null,null,null,null,null,0,null,null,0,null,0,null,0,null,0]
[null,null,null,null,null,null,null,null,null,null,null,null,null,null,"Allowed",null,null,null,null,null,null,null,null,null,null,null,null,null,null,null,null,null,null,null,null,null,null,null,null,null,null,null,null,null,null,null,null,null,null,null,null,null,null,null,null,null,null,null,null,null,null,null,null,null,0,null,null,0,null,0,null,0,null,0]
[null,null,null,null,null,null,null,null,null,null,null,null,null,null,"Allowed",null,null,null,null,null,null,null,null,null,null,null,null,null,null,null,null,null,null,null,null,null,null,null,null,null,null,null,null,null,null,null,null,null,null,null,null,null,null,null,null,null,null,null,null,null,null,null,null,null,0,null,null,0,null,0,null,0,null,0]
[null,null,null,null,null,null,null,null,null,null,null,null,null,null,"Allowed",null,null,null,null,null,null,null,null,null,null,null,null,null,null,null,null,null,null,null,null,null,null,null,null,null,null,null,null,null,null,null,null,null,null,null,null,null,null,null,null,null,null,null,null,null,null,null,null,null,0,null,null,0,null,0,null,0,null,0]
[null,null,null,null,null,null,null,null,null,null,null,null,null,null,"Allowed",null,null,null,null,null,null,null,null,null,null,null,null,null,null,null,null,null,null,null,null,null,null,null,null,null,null,null,null,null,null,null,null,null,null,null,null,null,null,null,null,null,null,null,null,null,null,null,null,null,0,null,null,0,null,0,null,0,null,0]
[null,null,null,null,null,null,null,null,null,null,null,null,null,null,"Allowed",null,null,null,null,null,null,null,null,null,null,null,null,null,null,null,null,null,null,null,null,null,null,null,null,null,null,null,null,null,null,null,null,null,null,null,null,null,null,null,null,null,null,null,null,null,null,null,null,null,0,null,null,0,null,0,null,0,null,0]
[null,null,null,null,null,null,null,null,null,null,null,null,null,null,"Allowed",null,null,null,null,null,null,null,null,null,null,null,null,null,null,null,null,null,null,null,null,null,null,null,null,null,null,null,null,null,null,null,null,null,null,null,null,null,null,null,null,null,null,null,null,null,null,null,null,null,0,null,null,0,null,0,null,0,null,0]
[null,null,null,null,null,null,null,null,null,null,null,null,null,null,"Allowed",null,null,null,null,null,null,null,null,null,null,null,null,null,null,null,null,null,null,null,null,null,null,null,null,null,null,null,null,null,null,null,null,null,null,null,null,null,null,null,null,null,null,null,null,null,null,null,null,null,0,null,null,0,null,0,null,0,null,0]
[null,null,null,null,null,null,null,null,null,null,null,null,null,null,"Allowed",null,null,null,null,null,null,null,null,null,null,null,null,null,null,null,null,null,null,null,null,null,null,null,null,null,null,null,null,null,null,null,null,null,null,null,null,null,null,null,null,null,null,null,null,null,null,null,null,null,0,null,null,0,null,0,null,0,null,0]
[null,null,null,null,null,null,null,null,null,null,null,null,null,null,"Allowed",null,null,null,null,null,null,null,null,null,null,null,null,null,null,null,null,null,null,null,null,null,null,null,null,null,null,null,null,null,null,null,null,null,null,null,null,null,null,null,null,null,null,null,null,null,null,null,null,null,0,null,null,0,null,0,null,0,null,0]
[null,null,null,null,null,null,null,null,null,null,null,null,null,null,"Allowed",null,null,null,null,null,null,null,null,null,null,null,null,null,null,null,null,null,null,null,null,null,null,null,null,null,null,null,null,null,null,null,null,null,null,null,null,null,null,null,null,null,null,null,null,null,null,null,null,null,0,null,null,0,null,0,null,0,null,0]
[null,null,null,null,null,null,null,null,null,null,null,null,null,null,"Allowed",null,null,null,null,null,null,null,null,null,null,null,null,null,null,null,null,null,null,null,null,null,null,null,null,null,null,null,null,null,null,null,null,null,null,null,null,null,null,null,null,null,null,null,null,null,null,null,null,null,0,null,null,0,null,0,null,0,null,0]
[null,null,null,null,null,null,null,null,null,null,null,null,null,null,"Allowed",null,null,null,null,null,null,null,null,null,null,null,null,null,null,null,null,null,null,null,null,null,null,null,null,null,null,null,null,null,null,null,null,null,null,null,null,null,null,null,null,null,null,null,null,null,null,null,null,null,{"$f":"LEN(BL150980)","v":0},null,null,{"$f":"LEN(BO150980)","v":0},null,{"$f":"LEN(BQ150980)","v":0},null,{"$f":"LEN(BS150980)","v":0},null,{"$f":"LEN(BU150980)","v":0}]
[null,null,null,null,null,null,null,null,null,null,null,null,null,null,"Allowed",null,null,null,null,null,null,null,null,null,null,null,null,null,null,null,null,null,null,null,null,null,null,null,null,null,null,null,null,null,null,null,null,null,null,null,null,null,null,null,null,null,null,null,null,null,null,null,null,null,0,null,null,0,null,0,null,0,null,0]
[null,null,null,null,null,null,null,null,null,null,null,null,null,null,"Allowed",null,null,null,null,null,null,null,null,null,null,null,null,null,null,null,null,null,null,null,null,null,null,null,null,null,null,null,null,null,null,null,null,null,null,null,null,null,null,null,null,null,null,null,null,null,null,null,null,null,0,null,null,0,null,0,null,0,null,0]
[null,null,null,null,null,null,null,null,null,null,null,null,null,null,"Allowed",null,null,null,null,null,null,null,null,null,null,null,null,null,null,null,null,null,null,null,null,null,null,null,null,null,null,null,null,null,null,null,null,null,null,null,null,null,null,null,null,null,null,null,null,null,null,null,null,null,0,null,null,0,null,0,null,0,null,0]
[null,null,null,null,null,null,null,null,null,null,null,null,null,null,"Allowed",null,null,null,null,null,null,null,null,null,null,null,null,null,null,null,null,null,null,null,null,null,null,null,null,null,null,null,null,null,null,null,null,null,null,null,null,null,null,null,null,null,null,null,null,null,null,null,null,null,0,null,null,0,null,0,null,0,null,0]
[null,null,null,null,null,null,null,null,null,null,null,null,null,null,"Allowed",null,null,null,null,null,null,null,null,null,null,null,null,null,null,null,null,null,null,null,null,null,null,null,null,null,null,null,null,null,null,null,null,null,null,null,null,null,null,null,null,null,null,null,null,null,null,null,null,null,0,null,null,0,null,0,null,0,null,0]
[null,null,null,null,null,null,null,null,null,null,null,null,null,null,"Allowed",null,null,null,null,null,null,null,null,null,null,null,null,null,null,null,null,null,null,null,null,null,null,null,null,null,null,null,null,null,null,null,null,null,null,null,null,null,null,null,null,null,null,null,null,null,null,null,null,null,0,null,null,0,null,0,null,0,null,0]
[null,null,null,null,null,null,null,null,null,null,null,null,null,null,"Allowed",null,null,null,null,null,null,null,null,null,null,null,null,null,null,null,null,null,null,null,null,null,null,null,null,null,null,null,null,null,null,null,null,null,null,null,null,null,null,null,null,null,null,null,null,null,null,null,null,null,0,null,null,0,null,0,null,0,null,0]
[null,null,null,null,null,null,null,null,null,null,null,null,null,null,"Allowed",null,null,null,null,null,null,null,null,null,null,null,null,null,null,null,null,null,null,null,null,null,null,null,null,null,null,null,null,null,null,null,null,null,null,null,null,null,null,null,null,null,null,null,null,null,null,null,null,null,0,null,null,0,null,0,null,0,null,0]
[null,null,null,null,null,null,null,null,null,null,null,null,null,null,"Allowed",null,null,null,null,null,null,null,null,null,null,null,null,null,null,null,null,null,null,null,null,null,null,null,null,null,null,null,null,null,null,null,null,null,null,null,null,null,null,null,null,null,null,null,null,null,null,null,null,null,0,null,null,0,null,0,null,0,null,0]
[null,null,null,null,null,null,null,null,null,null,null,null,null,null,"Allowed",null,null,null,null,null,null,null,null,null,null,null,null,null,null,null,null,null,null,null,null,null,null,null,null,null,null,null,null,null,null,null,null,null,null,null,null,null,null,null,null,null,null,null,null,null,null,null,null,null,0,null,null,0,null,0,null,0,null,0]
[null,null,null,null,null,null,null,null,null,null,null,null,null,null,"Allowed",null,null,null,null,null,null,null,null,null,null,null,null,null,null,null,null,null,null,null,null,null,null,null,null,null,null,null,null,null,null,null,null,null,null,null,null,null,null,null,null,null,null,null,null,null,null,null,null,null,0,null,null,0,null,0,null,0,null,0]
[null,null,null,null,null,null,null,null,null,null,null,null,null,null,"Allowed",null,null,null,null,null,null,null,null,null,null,null,null,null,null,null,null,null,null,null,null,null,null,null,null,null,null,null,null,null,null,null,null,null,null,null,null,null,null,null,null,null,null,null,null,null,null,null,null,null,0,null,null,0,null,0,null,0,null,0]
[null,null,null,null,null,null,null,null,null,null,null,null,null,null,"Allowed",null,null,null,null,null,null,null,null,null,null,null,null,null,null,null,null,null,null,null,null,null,null,null,null,null,null,null,null,null,null,null,null,null,null,null,null,null,null,null,null,null,null,null,null,null,null,null,null,null,0,null,null,0,null,0,null,0,null,0]
[null,null,null,null,null,null,null,null,null,null,null,null,null,null,"Allowed",null,null,null,null,null,null,null,null,null,null,null,null,null,null,null,null,null,null,null,null,null,null,null,null,null,null,null,null,null,null,null,null,null,null,null,null,null,null,null,null,null,null,null,null,null,null,null,null,null,0,null,null,0,null,0,null,0,null,0]
[null,null,null,null,null,null,null,null,null,null,null,null,null,null,"Allowed",null,null,null,null,null,null,null,null,null,null,null,null,null,null,null,null,null,null,null,null,null,null,null,null,null,null,null,null,null,null,null,null,null,null,null,null,null,null,null,null,null,null,null,null,null,null,null,null,null,0,null,null,0,null,0,null,0,null,0]
[null,null,null,null,null,null,null,null,null,null,null,null,null,null,"Allowed",null,null,null,null,null,null,null,null,null,null,null,null,null,null,null,null,null,null,null,null,null,null,null,null,null,null,null,null,null,null,null,null,null,null,null,null,null,null,null,null,null,null,null,null,null,null,null,null,null,0,null,null,0,null,0,null,0,null,0]
[null,null,null,null,null,null,null,null,null,null,null,null,null,null,"Allowed",null,null,null,null,null,null,null,null,null,null,null,null,null,null,null,null,null,null,null,null,null,null,null,null,null,null,null,null,null,null,null,null,null,null,null,null,null,null,null,null,null,null,null,null,null,null,null,null,null,0,null,null,0,null,0,null,0,null,0]
[null,null,null,null,null,null,null,null,null,null,null,null,null,null,"Allowed",null,null,null,null,null,null,null,null,null,null,null,null,null,null,null,null,null,null,null,null,null,null,null,null,null,null,null,null,null,null,null,null,null,null,null,null,null,null,null,null,null,null,null,null,null,null,null,null,null,0,null,null,0,null,0,null,0,null,0]
[null,null,null,null,null,null,null,null,null,null,null,null,null,null,"Allowed",null,null,null,null,null,null,null,null,null,null,null,null,null,null,null,null,null,null,null,null,null,null,null,null,null,null,null,null,null,null,null,null,null,null,null,null,null,null,null,null,null,null,null,null,null,null,null,null,null,0,null,null,0,null,0,null,0,null,0]
[null,null,null,null,null,null,null,null,null,null,null,null,null,null,"Allowed",null,null,null,null,null,null,null,null,null,null,null,null,null,null,null,null,null,null,null,null,null,null,null,null,null,null,null,null,null,null,null,null,null,null,null,null,null,null,null,null,null,null,null,null,null,null,null,null,null,0,null,null,0,null,0,null,0,null,0]
[null,null,null,null,null,null,null,null,null,null,null,null,null,null,"Allowed",null,null,null,null,null,null,null,null,null,null,null,null,null,null,null,null,null,null,null,null,null,null,null,null,null,null,null,null,null,null,null,null,null,null,null,null,null,null,null,null,null,null,null,null,null,null,null,null,null,0,null,null,0,null,0,null,0,null,0]
[null,null,null,null,null,null,null,null,null,null,null,null,null,null,"Allowed",null,null,null,null,null,null,null,null,null,null,null,null,null,null,null,null,null,null,null,null,null,null,null,null,null,null,null,null,null,null,null,null,null,null,null,null,null,null,null,null,null,null,null,null,null,null,null,null,null,0,null,null,0,null,0,null,0,null,0]
[null,null,null,null,null,null,null,null,null,null,null,null,null,null,"Allowed",null,null,null,null,null,null,null,null,null,null,null,null,null,null,null,null,null,null,null,null,null,null,null,null,null,null,null,null,null,null,null,null,null,null,null,null,null,null,null,null,null,null,null,null,null,null,null,null,null,0,null,null,0,null,0,null,0,null,0]
[null,null,null,null,null,null,null,null,null,null,null,null,null,null,"Allowed",null,null,null,null,null,null,null,null,null,null,null,null,null,null,null,null,null,null,null,null,null,null,null,null,null,null,null,null,null,null,null,null,null,null,null,null,null,null,null,null,null,null,null,null,null,null,null,null,null,0,null,null,0,null,0,null,0,null,0]
[null,null,null,null,null,null,null,null,null,null,null,null,null,null,"Allowed",null,null,null,null,null,null,null,null,null,null,null,null,null,null,null,null,null,null,null,null,null,null,null,null,null,null,null,null,null,null,null,null,null,null,null,null,null,null,null,null,null,null,null,null,null,null,null,null,null,0,null,null,0,null,0,null,0,null,0]
[null,null,null,null,null,null,null,null,null,null,null,null,null,null,"Allowed",null,null,null,null,null,null,null,null,null,null,null,null,null,null,null,null,null,null,null,null,null,null,null,null,null,null,null,null,null,null,null,null,null,null,null,null,null,null,null,null,null,null,null,null,null,null,null,null,null,0,null,null,0,null,0,null,0,null,0]
[null,null,null,null,null,null,null,null,null,null,null,null,null,null,"Allowed",null,null,null,null,null,null,null,null,null,null,null,null,null,null,null,null,null,null,null,null,null,null,null,null,null,null,null,null,null,null,null,null,null,null,null,null,null,null,null,null,null,null,null,null,null,null,null,null,null,0,null,null,0,null,0,null,0,null,0]
[null,null,null,null,null,null,null,null,null,null,null,null,null,null,"Allowed",null,null,null,null,null,null,null,null,null,null,null,null,null,null,null,null,null,null,null,null,null,null,null,null,null,null,null,null,null,null,null,null,null,null,null,null,null,null,null,null,null,null,null,null,null,null,null,null,null,0,null,null,0,null,0,null,0,null,0]
[null,null,null,null,null,null,null,null,null,null,null,null,null,null,"Allowed",null,null,null,null,null,null,null,null,null,null,null,null,null,null,null,null,null,null,null,null,null,null,null,null,null,null,null,null,null,null,null,null,null,null,null,null,null,null,null,null,null,null,null,null,null,null,null,null,null,0,null,null,0,null,0,null,0,null,0]
[null,null,null,null,null,null,null,null,null,null,null,null,null,null,"Allowed",null,null,null,null,null,null,null,null,null,null,null,null,null,null,null,null,null,null,null,null,null,null,null,null,null,null,null,null,null,null,null,null,null,null,null,null,null,null,null,null,null,null,null,null,null,null,null,null,null,0,null,null,0,null,0,null,0,null,0]
[null,null,null,null,null,null,null,null,null,null,null,null,null,null,"Allowed",null,null,null,null,null,null,null,null,null,null,null,null,null,null,null,null,null,null,null,null,null,null,null,null,null,null,null,null,null,null,null,null,null,null,null,null,null,null,null,null,null,null,null,null,null,null,null,null,null,0,null,null,0,null,0,null,0,null,0]
[null,null,null,null,null,null,null,null,null,null,null,null,null,null,"Allowed",null,null,null,null,null,null,null,null,null,null,null,null,null,null,null,null,null,null,null,null,null,null,null,null,null,null,null,null,null,null,null,null,null,null,null,null,null,null,null,null,null,null,null,null,null,null,null,null,null,0,null,null,0,null,0,null,0,null,0]
[null,null,null,null,null,null,null,null,null,null,null,null,null,null,"Allowed",null,null,null,null,null,null,null,null,null,null,null,null,null,null,null,null,null,null,null,null,null,null,null,null,null,null,null,null,null,null,null,null,null,null,null,null,null,null,null,null,null,null,null,null,null,null,null,null,null,0,null,null,0,null,0,null,0,null,0]
[null,null,null,null,null,null,null,null,null,null,null,null,null,null,"Allowed",null,null,null,null,null,null,null,null,null,null,null,null,null,null,null,null,null,null,null,null,null,null,null,null,null,null,null,null,null,null,null,null,null,null,null,null,null,null,null,null,null,null,null,null,null,null,null,null,null,0,null,null,0,null,0,null,0,null,0]
[null,null,null,null,null,null,null,null,null,null,null,null,null,null,"Allowed",null,null,null,null,null,null,null,null,null,null,null,null,null,null,null,null,null,null,null,null,null,null,null,null,null,null,null,null,null,null,null,null,null,null,null,null,null,null,null,null,null,null,null,null,null,null,null,null,null,0,null,null,0,null,0,null,0,null,0]
[null,null,null,null,null,null,null,null,null,null,null,null,null,null,"Allowed",null,null,null,null,null,null,null,null,null,null,null,null,null,null,null,null,null,null,null,null,null,null,null,null,null,null,null,null,null,null,null,null,null,null,null,null,null,null,null,null,null,null,null,null,null,null,null,null,null,0,null,null,0,null,0,null,0,null,0]
[null,null,null,null,null,null,null,null,null,null,null,null,null,null,"Allowed",null,null,null,null,null,null,null,null,null,null,null,null,null,null,null,null,null,null,null,null,null,null,null,null,null,null,null,null,null,null,null,null,null,null,null,null,null,null,null,null,null,null,null,null,null,null,null,null,null,0,null,null,0,null,0,null,0,null,0]
[null,null,null,null,null,null,null,null,null,null,null,null,null,null,"Allowed",null,null,null,null,null,null,null,null,null,null,null,null,null,null,null,null,null,null,null,null,null,null,null,null,null,null,null,null,null,null,null,null,null,null,null,null,null,null,null,null,null,null,null,null,null,null,null,null,null,0,null,null,0,null,0,null,0,null,0]
[null,null,null,null,null,null,null,null,null,null,null,null,null,null,"Allowed",null,null,null,null,null,null,null,null,null,null,null,null,null,null,null,null,null,null,null,null,null,null,null,null,null,null,null,null,null,null,null,null,null,null,null,null,null,null,null,null,null,null,null,null,null,null,null,null,null,0,null,null,0,null,0,null,0,null,0]
[null,null,null,null,null,null,null,null,null,null,null,null,null,null,"Allowed",null,null,null,null,null,null,null,null,null,null,null,null,null,null,null,null,null,null,null,null,null,null,null,null,null,null,null,null,null,null,null,null,null,null,null,null,null,null,null,null,null,null,null,null,null,null,null,null,null,0,null,null,0,null,0,null,0,null,0]
[null,null,null,null,null,null,null,null,null,null,null,null,null,null,"Allowed",null,null,null,null,null,null,null,null,null,null,null,null,null,null,null,null,null,null,null,null,null,null,null,null,null,null,null,null,null,null,null,null,null,null,null,null,null,null,null,null,null,null,null,null,null,null,null,null,null,0,null,null,0,null,0,null,0,null,0]
[null,null,null,null,null,null,null,null,null,null,null,null,null,null,"Allowed",null,null,null,null,null,null,null,null,null,null,null,null,null,null,null,null,null,null,null,null,null,null,null,null,null,null,null,null,null,null,null,null,null,null,null,null,null,null,null,null,null,null,null,null,null,null,null,null,null,0,null,null,0,null,0,null,0,null,0]
[null,null,null,null,null,null,null,null,null,null,null,null,null,null,"Allowed",null,null,null,null,null,null,null,null,null,null,null,null,null,null,null,null,null,null,null,null,null,null,null,null,null,null,null,null,null,null,null,null,null,null,null,null,null,null,null,null,null,null,null,null,null,null,null,null,null,0,null,null,0,null,0,null,0,null,0]
[null,null,null,null,null,null,null,null,null,null,null,null,null,null,"Allowed",null,null,null,null,null,null,null,null,null,null,null,null,null,null,null,null,null,null,null,null,null,null,null,null,null,null,null,null,null,null,null,null,null,null,null,null,null,null,null,null,null,null,null,null,null,null,null,null,null,0,null,null,0,null,0,null,0,null,0]
[null,null,null,null,null,null,null,null,null,null,null,null,null,null,"Allowed",null,null,null,null,null,null,null,null,null,null,null,null,null,null,null,null,null,null,null,null,null,null,null,null,null,null,null,null,null,null,null,null,null,null,null,null,null,null,null,null,null,null,null,null,null,null,null,null,null,0,null,null,0,null,0,null,0,null,0]
[null,null,null,null,null,null,null,null,null,null,null,null,null,null,"Allowed",null,null,null,null,null,null,null,null,null,null,null,null,null,null,null,null,null,null,null,null,null,null,null,null,null,null,null,null,null,null,null,null,null,null,null,null,null,null,null,null,null,null,null,null,null,null,null,null,null,0,null,null,0,null,0,null,0,null,0]
[null,null,null,null,null,null,null,null,null,null,null,null,null,null,"Allowed",null,null,null,null,null,null,null,null,null,null,null,null,null,null,null,null,null,null,null,null,null,null,null,null,null,null,null,null,null,null,null,null,null,null,null,null,null,null,null,null,null,null,null,null,null,null,null,null,null,0,null,null,0,null,0,null,0,null,0]
[null,null,null,null,null,null,null,null,null,null,null,null,null,null,"Allowed",null,null,null,null,null,null,null,null,null,null,null,null,null,null,null,null,null,null,null,null,null,null,null,null,null,null,null,null,null,null,null,null,null,null,null,null,null,null,null,null,null,null,null,null,null,null,null,null,null,0,null,null,0,null,0,null,0,null,0]
[null,null,null,null,null,null,null,null,null,null,null,null,null,null,"Allowed",null,null,null,null,null,null,null,null,null,null,null,null,null,null,null,null,null,null,null,null,null,null,null,null,null,null,null,null,null,null,null,null,null,null,null,null,null,null,null,null,null,null,null,null,null,null,null,null,null,0,null,null,0,null,0,null,0,null,0]
[null,null,null,null,null,null,null,null,null,null,null,null,null,null,"Allowed",null,null,null,null,null,null,null,null,null,null,null,null,null,null,null,null,null,null,null,null,null,null,null,null,null,null,null,null,null,null,null,null,null,null,null,null,null,null,null,null,null,null,null,null,null,null,null,null,null,0,null,null,0,null,0,null,0,null,0]
[null,null,null,null,null,null,null,null,null,null,null,null,null,null,"Allowed",null,null,null,null,null,null,null,null,null,null,null,null,null,null,null,null,null,null,null,null,null,null,null,null,null,null,null,null,null,null,null,null,null,null,null,null,null,null,null,null,null,null,null,null,null,null,null,null,null,0,null,null,0,null,0,null,0,null,0]
[null,null,null,null,null,null,null,null,null,null,null,null,null,null,"Allowed",null,null,null,null,null,null,null,null,null,null,null,null,null,null,null,null,null,null,null,null,null,null,null,null,null,null,null,null,null,null,null,null,null,null,null,null,null,null,null,null,null,null,null,null,null,null,null,null,null,0,null,null,0,null,0,null,0,null,0]
[null,null,null,null,null,null,null,null,null,null,null,null,null,null,"Allowed",null,null,null,null,null,null,null,null,null,null,null,null,null,null,null,null,null,null,null,null,null,null,null,null,null,null,null,null,null,null,null,null,null,null,null,null,null,null,null,null,null,null,null,null,null,null,null,null,null,0,null,null,0,null,0,null,0,null,0]
[null,null,null,null,null,null,null,null,null,null,null,null,null,null,"Allowed",null,null,null,null,null,null,null,null,null,null,null,null,null,null,null,null,null,null,null,null,null,null,null,null,null,null,null,null,null,null,null,null,null,null,null,null,null,null,null,null,null,null,null,null,null,null,null,null,null,0,null,null,0,null,0,null,0,null,0]
[null,null,null,null,null,null,null,null,null,null,null,null,null,null,"Allowed",null,null,null,null,null,null,null,null,null,null,null,null,null,null,null,null,null,null,null,null,null,null,null,null,null,null,null,null,null,null,null,null,null,null,null,null,null,null,null,null,null,null,null,null,null,null,null,null,null,0,null,null,0,null,0,null,0,null,0]
[null,null,null,null,null,null,null,null,null,null,null,null,null,null,"Allowed",null,null,null,null,null,null,null,null,null,null,null,null,null,null,null,null,null,null,null,null,null,null,null,null,null,null,null,null,null,null,null,null,null,null,null,null,null,null,null,null,null,null,null,null,null,null,null,null,null,0,null,null,0,null,0,null,0,null,0]
[null,null,null,null,null,null,null,null,null,null,null,null,null,null,"Allowed",null,null,null,null,null,null,null,null,null,null,null,null,null,null,null,null,null,null,null,null,null,null,null,null,null,null,null,null,null,null,null,null,null,null,null,null,null,null,null,null,null,null,null,null,null,null,null,null,null,0,null,null,0,null,0,null,0,null,0]
[null,null,null,null,null,null,null,null,null,null,null,null,null,null,{"$f":"IF(N179587<=TRUNC(P179587*1.015228,2),\"Allowed\",\"Exceeds Max\")","v":"Allowed"},null,null,null,null,null,null,null,null,null,null,null,null,null,null,null,null,null,null,null,null,null,null,null,null,null,null,null,null,null,null,null,null,null,null,null,null,null,null,null,null,null,null,null,null,null,null,null,null,null,0,null,null,0,null,0,null,0,null,0]
[null,null,null,null,null,null,null,null,null,null,null,null,null,null,"Allowed",null,null,null,null,null,null,null,null,null,null,null,null,null,null,null,null,null,null,null,null,null,null,null,null,null,null,null,null,null,null,null,null,null,null,null,null,null,null,null,null,null,null,null,null,null,null,null,null,null,0,null,null,0,null,0,null,0,null,0]
[null,null,null,null,null,null,null,null,null,null,null,null,null,null,"Allowed",null,null,null,null,null,null,null,null,null,null,null,null,null,null,null,null,null,null,null,null,null,null,null,null,null,null,null,null,null,null,null,null,null,null,null,null,null,null,null,null,null,null,null,null,null,null,null,null,null,0,null,null,0,null,0,null,0,null,0]
[null,null,null,null,null,null,null,null,null,null,null,null,null,null,{"$f":"IF(N181507<=TRUNC(P181507*1.015228,2),\"Allowed\",\"Exceeds Max\")","v":"Allowed"},null,null,null,null,null,null,null,null,null,null,null,null,null,null,null,null,null,null,null,null,null,null,null,null,null,null,null,null,null,null,null,null,null,null,null,null,null,null,null,null,null,null,null,null,null,null,null,null,null,0,null,null,0,null,0,null,0,null,0]
[null,null,null,null,null,null,null,null,null,null,null,null,null,null,"Allowed",null,null,null,null,null,null,null,null,null,null,null,null,null,null,null,null,null,null,null,null,null,null,null,null,null,null,null,null,null,null,null,null,null,null,null,null,null,null,null,null,null,null,null,null,null,null,null,null,null,0,null,null,0,null,0,null,0,null,0]
[null,null,null,null,null,null,null,null,null,null,null,null,null,null,"Allowed",null,null,null,null,null,null,null,null,null,null,null,null,null,null,null,null,null,null,null,null,null,null,null,null,null,null,null,null,null,null,null,null,null,null,null,null,null,null,null,null,null,null,null,null,null,null,null,null,null,0,null,null,0,null,0,null,0,null,0]
[null,null,null,null,null,null,null,null,null,null,null,null,null,null,"Allowed",null,null,null,null,null,null,null,null,null,null,null,null,null,null,null,null,null,null,null,null,null,null,null,null,null,null,null,null,null,null,null,null,null,null,null,null,null,null,null,null,null,null,null,null,null,null,null,null,null,0,null,null,0,null,0,null,0,null,0]
[null,null,null,null,null,null,null,null,null,null,null,null,null,null,"Allowed",null,null,null,null,null,null,null,null,null,null,null,null,null,null,null,null,null,null,null,null,null,null,null,null,null,null,null,null,null,null,null,null,null,null,null,null,null,null,null,null,null,null,null,null,null,null,null,null,null,0,null,null,0,null,0,null,0,null,0]
[null,null,null,null,null,null,null,null,null,null,null,null,null,null,"Allowed",null,null,null,null,null,null,null,null,null,null,null,null,null,null,null,null,null,null,null,null,null,null,null,null,null,null,null,null,null,null,null,null,null,null,null,null,null,null,null,null,null,null,null,null,null,null,null,null,null,0,null,null,0,null,0,null,0,null,0]
[null,null,null,null,null,null,null,null,null,null,null,null,null,null,"Allowed",null,null,null,null,null,null,null,null,null,null,null,null,null,null,null,null,null,null,null,null,null,null,null,null,null,null,null,null,null,null,null,null,null,null,null,null,null,null,null,null,null,null,null,null,null,null,null,null,null,0,null,null,0,null,0,null,0,null,0]
[null,null,null,null,null,null,null,null,null,null,null,null,null,null,"Allowed",null,null,null,null,null,null,null,null,null,null,null,null,null,null,null,null,null,null,null,null,null,null,null,null,null,null,null,null,null,null,null,null,null,null,null,null,null,null,null,null,null,null,null,null,null,null,null,null,null,0,null,null,0,null,0,null,0,null,0]
[null,null,null,null,null,null,null,null,null,null,null,null,null,null,"Allowed",null,null,null,null,null,null,null,null,null,null,null,null,null,null,null,null,null,null,null,null,null,null,null,null,null,null,null,null,null,null,null,null,null,null,null,null,null,null,null,null,null,null,null,null,null,null,null,null,null,0,null,null,0,null,0,null,0,null,0]
[null,null,null,null,null,null,null,null,null,null,null,null,null,null,"Allowed",null,null,null,null,null,null,null,null,null,null,null,null,null,null,null,null,null,null,null,null,null,null,null,null,null,null,null,null,null,null,null,null,null,null,null,null,null,null,null,null,null,null,null,null,null,null,null,null,null,0,null,null,0,null,0,null,0,null,0]
[null,null,null,null,null,null,null,null,null,null,null,null,null,null,"Allowed",null,null,null,null,null,null,null,null,null,null,null,null,null,null,null,null,null,null,null,null,null,null,null,null,null,null,null,null,null,null,null,null,null,null,null,null,null,null,null,null,null,null,null,null,null,null,null,null,null,0,null,null,0,null,0,null,0,null,0]
[null,null,null,null,null,null,null,null,null,null,null,null,null,null,"Allowed",null,null,null,null,null,null,null,null,null,null,null,null,null,null,null,null,null,null,null,null,null,null,null,null,null,null,null,null,null,null,null,null,null,null,null,null,null,null,null,null,null,null,null,null,null,null,null,null,null,0,null,null,0,null,0,null,0,null,0]
[null,null,null,null,null,null,null,null,null,null,null,null,null,null,"Allowed",null,null,null,null,null,null,null,null,null,null,null,null,null,null,null,null,null,null,null,null,null,null,null,null,null,null,null,null,null,null,null,null,null,null,null,null,null,null,null,null,null,null,null,null,null,null,null,null,null,0,null,null,0,null,0,null,0,null,0]
[null,null,null,null,null,null,null,null,null,null,null,null,null,null,"Allowed",null,null,null,null,null,null,null,null,null,null,null,null,null,null,null,null,null,null,null,null,null,null,null,null,null,null,null,null,null,null,null,null,null,null,null,null,null,null,null,null,null,null,null,null,null,null,null,null,null,0,null,null,0,null,0,null,0,null,0]
[null,null,null,null,null,null,null,null,null,null,null,null,null,null,"Allowed",null,null,null,null,null,null,null,null,null,null,null,null,null,null,null,null,null,null,null,null,null,null,null,null,null,null,null,null,null,null,null,null,null,null,null,null,null,null,null,null,null,null,null,null,null,null,null,null,null,0,null,null,0,null,0,null,0,null,0]
[null,null,null,null,null,null,null,null,null,null,null,null,null,null,"Allowed",null,null,null,null,null,null,null,null,null,null,null,null,null,null,null,null,null,null,null,null,null,null,null,null,null,null,null,null,null,null,null,null,null,null,null,null,null,null,null,null,null,null,null,null,null,null,null,null,null,0,null,null,0,null,0,null,0,null,0]
[null,null,null,null,null,null,null,null,null,null,null,null,null,null,"Allowed",null,null,null,null,null,null,null,null,null,null,null,null,null,null,null,null,null,null,null,null,null,null,null,null,null,null,null,null,null,null,null,null,null,null,null,null,null,null,null,null,null,null,null,null,null,null,null,null,null,0,null,null,0,null,0,null,0,null,0]
[null,null,null,null,null,null,null,null,null,null,null,null,null,null,"Allowed",null,null,null,null,null,null,null,null,null,null,null,null,null,null,null,null,null,null,null,null,null,null,null,null,null,null,null,null,null,null,null,null,null,null,null,null,null,null,null,null,null,null,null,null,null,null,null,null,null,0,null,null,0,null,0,null,0,null,0]
[null,null,null,null,null,null,null,null,null,null,null,null,null,null,"Allowed",null,null,null,null,null,null,null,null,null,null,null,null,null,null,null,null,null,null,null,null,null,null,null,null,null,null,null,null,null,null,null,null,null,null,null,null,null,null,null,null,null,null,null,null,null,null,null,null,null,0,null,null,0,null,0,null,0,null,0]
[null,null,null,null,null,null,null,null,null,null,null,null,null,null,"Allowed",null,null,null,null,null,null,null,null,null,null,null,null,null,null,null,null,null,null,null,null,null,null,null,null,null,null,null,null,null,null,null,null,null,null,null,null,null,null,null,null,null,null,null,null,null,null,null,null,null,0,null,null,0,null,0,null,0,null,0]
[null,null,null,null,null,null,null,null,null,null,null,null,null,null,"Allowed",null,null,null,null,null,null,null,null,null,null,null,null,null,null,null,null,null,null,null,null,null,null,null,null,null,null,null,null,null,null,null,null,null,null,null,null,null,null,null,null,null,null,null,null,null,null,null,null,null,0,null,null,0,null,0,null,0,null,0]
[null,null,null,null,null,null,null,null,null,null,null,null,null,null,"Allowed",null,null,null,null,null,null,null,null,null,null,null,null,null,null,null,null,null,null,null,null,null,null,null,null,null,null,null,null,null,null,null,null,null,null,null,null,null,null,null,null,null,null,null,null,null,null,null,null,null,0,null,null,0,null,0,null,0,null,0]
[null,null,null,null,null,null,null,null,null,null,null,null,null,null,"Allowed",null,null,null,null,null,null,null,null,null,null,null,null,null,null,null,null,null,null,null,null,null,null,null,null,null,null,null,null,null,null,null,null,null,null,null,null,null,null,null,null,null,null,null,null,null,null,null,null,null,0,null,null,0,null,0,null,0,null,0]
[null,null,null,null,null,null,null,null,null,null,null,null,null,null,"Allowed",null,null,null,null,null,null,null,null,null,null,null,null,null,null,null,null,null,null,null,null,null,null,null,null,null,null,null,null,null,null,null,null,null,null,null,null,null,null,null,null,null,null,null,null,null,null,null,null,null,0,null,null,0,null,0,null,0,null,0]
[null,null,null,null,null,null,null,null,null,null,null,null,null,null,"Allowed",null,null,null,null,null,null,null,null,null,null,null,null,null,null,null,null,null,null,null,null,null,null,null,null,null,null,null,null,null,null,null,null,null,null,null,null,null,null,null,null,null,null,null,null,null,null,null,null,null,0,null,null,0,null,0,null,0,null,0]
[null,null,null,null,null,null,null,null,null,null,null,null,null,null,"Allowed",null,null,null,null,null,null,null,null,null,null,null,null,null,null,null,null,null,null,null,null,null,null,null,null,null,null,null,null,null,null,null,null,null,null,null,null,null,null,null,null,null,null,null,null,null,null,null,null,null,0,null,null,0,null,0,null,0,null,0]
[null,null,null,null,null,null,null,null,null,null,null,null,null,null,"Allowed",null,null,null,null,null,null,null,null,null,null,null,null,null,null,null,null,null,null,null,null,null,null,null,null,null,null,null,null,null,null,null,null,null,null,null,null,null,null,null,null,null,null,null,null,null,null,null,null,null,0,null,null,0,null,0,null,0,null,0]
[null,null,null,null,null,null,null,null,null,null,null,null,null,null,"Allowed",null,null,null,null,null,null,null,null,null,null,null,null,null,null,null,null,null,null,null,null,null,null,null,null,null,null,null,null,null,null,null,null,null,null,null,null,null,null,null,null,null,null,null,null,null,null,null,null,null,0,null,null,0,null,0,null,0,null,0]
[null,null,null,null,null,null,null,null,null,null,null,null,null,null,"Allowed",null,null,null,null,null,null,null,null,null,null,null,null,null,null,null,null,null,null,null,null,null,null,null,null,null,null,null,null,null,null,null,null,null,null,null,null,null,null,null,null,null,null,null,null,null,null,null,null,null,0,null,null,0,null,0,null,0,null,0]
[null,null,null,null,null,null,null,null,null,null,null,null,null,null,"Allowed",null,null,null,null,null,null,null,null,null,null,null,null,null,null,null,null,null,null,null,null,null,null,null,null,null,null,null,null,null,null,null,null,null,null,null,null,null,null,null,null,null,null,null,null,null,null,null,null,null,0,null,null,0,null,0,null,0,null,0]
[null,null,null,null,null,null,null,null,null,null,null,null,null,null,"Allowed",null,null,null,null,null,null,null,null,null,null,null,null,null,null,null,null,null,null,null,null,null,null,null,null,null,null,null,null,null,null,null,null,null,null,null,null,null,null,null,null,null,null,null,null,null,null,null,null,null,{"$f":"LEN(BL196164)","v":0},null,null,{"$f":"LEN(BO196164)","v":0},null,{"$f":"LEN(BQ196164)","v":0},null,{"$f":"LEN(BS196164)","v":0},null,{"$f":"LEN(BU196164)","v":0}]
[null,null,null,null,null,null,null,null,null,null,null,null,null,null,"Allowed",null,null,null,null,null,null,null,null,null,null,null,null,null,null,null,null,null,null,null,null,null,null,null,null,null,null,null,null,null,null,null,null,null,null,null,null,null,null,null,null,null,null,null,null,null,null,null,null,null,0,null,null,0,null,0,null,0,null,0]
[null,null,null,null,null,null,null,null,null,null,null,null,null,null,"Allowed",null,null,null,null,null,null,null,null,null,null,null,null,null,null,null,null,null,null,null,null,null,null,null,null,null,null,null,null,null,null,null,null,null,null,null,null,null,null,null,null,null,null,null,null,null,null,null,null,null,0,null,null,0,null,0,null,0,null,0]
[null,null,null,null,null,null,null,null,null,null,null,null,null,null,"Allowed",null,null,null,null,null,null,null,null,null,null,null,null,null,null,null,null,null,null,null,null,null,null,null,null,null,null,null,null,null,null,null,null,null,null,null,null,null,null,null,null,null,null,null,null,null,null,null,null,null,0,null,null,0,null,0,null,0,null,0]
[null,null,null,null,null,null,null,null,null,null,null,null,null,null,"Allowed",null,null,null,null,null,null,null,null,null,null,null,null,null,null,null,null,null,null,null,null,null,null,null,null,null,null,null,null,null,null,null,null,null,null,null,null,null,null,null,null,null,null,null,null,null,null,null,null,null,0,null,null,0,null,0,null,0,null,0]
[null,null,null,null,null,null,null,null,null,null,null,null,null,null,"Allowed",null,null,null,null,null,null,null,null,null,null,null,null,null,null,null,null,null,null,null,null,null,null,null,null,null,null,null,null,null,null,null,null,null,null,null,null,null,null,null,null,null,null,null,null,null,null,null,null,null,0,null,null,0,null,0,null,0,null,0]
[null,null,null,null,null,null,null,null,null,null,null,null,null,null,"Allowed",null,null,null,null,null,null,null,null,null,null,null,null,null,null,null,null,null,null,null,null,null,null,null,null,null,null,null,null,null,null,null,null,null,null,null,null,null,null,null,null,null,null,null,null,null,null,null,null,null,0,null,null,0,null,0,null,0,null,0]
[null,null,null,null,null,null,null,null,null,null,null,null,null,null,"Allowed",null,null,null,null,null,null,null,null,null,null,null,null,null,null,null,null,null,null,null,null,null,null,null,null,null,null,null,null,null,null,null,null,null,null,null,null,null,null,null,null,null,null,null,null,null,null,null,null,null,0,null,null,0,null,0,null,0,null,0]
[null,null,null,null,null,null,null,null,null,null,null,null,null,null,"Allowed",null,null,null,null,null,null,null,null,null,null,null,null,null,null,null,null,null,null,null,null,null,null,null,null,null,null,null,null,null,null,null,null,null,null,null,null,null,null,null,null,null,null,null,null,null,null,null,null,null,0,null,null,0,null,0,null,0,null,0]
[null,null,null,null,null,null,null,null,null,null,null,null,null,null,"Allowed",null,null,null,null,null,null,null,null,null,null,null,null,null,null,null,null,null,null,null,null,null,null,null,null,null,null,null,null,null,null,null,null,null,null,null,null,null,null,null,null,null,null,null,null,null,null,null,null,null,0,null,null,0,null,0,null,0,null,0]
[null,null,null,null,null,null,null,null,null,null,null,null,null,null,"Allowed",null,null,null,null,null,null,null,null,null,null,null,null,null,null,null,null,null,null,null,null,null,null,null,null,null,null,null,null,null,null,null,null,null,null,null,null,null,null,null,null,null,null,null,null,null,null,null,null,null,0,null,null,0,null,0,null,0,null,0]
[null,null,null,null,null,null,null,null,null,null,null,null,null,null,"Allowed",null,null,null,null,null,null,null,null,null,null,null,null,null,null,null,null,null,null,null,null,null,null,null,null,null,null,null,null,null,null,null,null,null,null,null,null,null,null,null,null,null,null,null,null,null,null,null,null,null,0,null,null,0,null,0,null,0,null,0]
[null,null,null,null,null,null,null,null,null,null,null,null,null,null,"Allowed",null,null,null,null,null,null,null,null,null,null,null,null,null,null,null,null,null,null,null,null,null,null,null,null,null,null,null,null,null,null,null,null,null,null,null,null,null,null,null,null,null,null,null,null,null,null,null,null,null,0,null,null,0,null,0,null,0,null,0]
[null,null,null,null,null,null,null,null,null,null,null,null,null,null,{"$f":"IF(N202691<=TRUNC(P202691*1.015228,2),\"Allowed\",\"Exceeds Max\")","v":"Allowed"},null,null,null,null,null,null,null,null,null,null,null,null,null,null,null,null,null,null,null,null,null,null,null,null,null,null,null,null,null,null,null,null,null,null,null,null,null,null,null,null,null,null,null,null,null,null,null,null,null,0,null,null,0,null,0,null,0,null,0]
[null,null,null,null,null,null,null,null,null,null,null,null,null,null,"Allowed",null,null,null,null,null,null,null,null,null,null,null,null,null,null,null,null,null,null,null,null,null,null,null,null,null,null,null,null,null,null,null,null,null,null,null,null,null,null,null,null,null,null,null,null,null,null,null,null,null,0,null,null,0,null,0,null,0,null,0]
[null,null,null,null,null,null,null,null,null,null,null,null,null,null,"Allowed",null,null,null,null,null,null,null,null,null,null,null,null,null,null,null,null,null,null,null,null,null,null,null,null,null,null,null,null,null,null,null,null,null,null,null,null,null,null,null,null,null,null,null,null,null,null,null,null,null,0,null,null,0,null,0,null,0,null,0]
[null,null,null,null,null,null,null,null,null,null,null,null,null,null,"Allowed",null,null,null,null,null,null,null,null,null,null,null,null,null,null,null,null,null,null,null,null,null,null,null,null,null,null,null,null,null,null,null,null,null,null,null,null,null,null,null,null,null,null,null,null,null,null,null,null,null,0,null,null,0,null,0,null,0,null,0]
[null,null,null,null,null,null,null,null,null,null,null,null,null,null,"Allowed",null,null,null,null,null,null,null,null,null,null,null,null,null,null,null,null,null,null,null,null,null,null,null,null,null,null,null,null,null,null,null,null,null,null,null,null,null,null,null,null,null,null,null,null,null,null,null,null,null,0,null,null,0,null,0,null,0,null,0]
[null,null,null,null,null,null,null,null,null,null,null,null,null,null,"Allowed",null,null,null,null,null,null,null,null,null,null,null,null,null,null,null,null,null,null,null,null,null,null,null,null,null,null,null,null,null,null,null,null,null,null,null,null,null,null,null,null,null,null,null,null,null,null,null,null,null,0,null,null,0,null,0,null,0,null,0]
[null,null,null,null,null,null,null,null,null,null,null,null,null,null,"Allowed",null,null,null,null,null,null,null,null,null,null,null,null,null,null,null,null,null,null,null,null,null,null,null,null,null,null,null,null,null,null,null,null,null,null,null,null,null,null,null,null,null,null,null,null,null,null,null,null,null,0,null,null,0,null,0,null,0,null,0]
[null,null,null,null,null,null,null,null,null,null,null,null,null,null,"Allowed",null,null,null,null,null,null,null,null,null,null,null,null,null,null,null,null,null,null,null,null,null,null,null,null,null,null,null,null,null,null,null,null,null,null,null,null,null,null,null,null,null,null,null,null,null,null,null,null,null,0,null,null,0,null,0,null,0,null,0]
[null,null,null,null,null,null,null,null,null,null,null,null,null,null,"Allowed",null,null,null,null,null,null,null,null,null,null,null,null,null,null,null,null,null,null,null,null,null,null,null,null,null,null,null,null,null,null,null,null,null,null,null,null,null,null,null,null,null,null,null,null,null,null,null,null,null,0,null,null,0,null,0,null,0,null,0]
[null,null,null,null,null,null,null,null,null,null,null,null,null,null,"Allowed",null,null,null,null,null,null,null,null,null,null,null,null,null,null,null,null,null,null,null,null,null,null,null,null,null,null,null,null,null,null,null,null,null,null,null,null,null,null,null,null,null,null,null,null,null,null,null,null,null,0,null,null,0,null,0,null,0,null,0]
[null,null,null,null,null,null,null,null,null,null,null,null,null,null,"Allowed",null,null,null,null,null,null,null,null,null,null,null,null,null,null,null,null,null,null,null,null,null,null,null,null,null,null,null,null,null,null,null,null,null,null,null,null,null,null,null,null,null,null,null,null,null,null,null,null,null,0,null,null,0,null,0,null,0,null,0]
[null,null,null,null,null,null,null,null,null,null,null,null,null,null,"Allowed",null,null,null,null,null,null,null,null,null,null,null,null,null,null,null,null,null,null,null,null,null,null,null,null,null,null,null,null,null,null,null,null,null,null,null,null,null,null,null,null,null,null,null,null,null,null,null,null,null,0,null,null,0,null,0,null,0,null,0]
[null,null,null,null,null,null,null,null,null,null,null,null,null,null,"Allowed",null,null,null,null,null,null,null,null,null,null,null,null,null,null,null,null,null,null,null,null,null,null,null,null,null,null,null,null,null,null,null,null,null,null,null,null,null,null,null,null,null,null,null,null,null,null,null,null,null,0,null,null,0,null,0,null,0,null,0]
[null,null,null,null,null,null,null,null,null,null,null,null,null,null,"Allowed",null,null,null,null,null,null,null,null,null,null,null,null,null,null,null,null,null,null,null,null,null,null,null,null,null,null,null,null,null,null,null,null,null,null,null,null,null,null,null,null,null,null,null,null,null,null,null,null,null,0,null,null,0,null,0,null,0,null,0]
[null,null,null,null,null,null,null,null,null,null,null,null,null,null,"Allowed",null,null,null,null,null,null,null,null,null,null,null,null,null,null,null,null,null,null,null,null,null,null,null,null,null,null,null,null,null,null,null,null,null,null,null,null,null,null,null,null,null,null,null,null,null,null,null,null,null,0,null,null,0,null,0,null,0,null,0]
[null,null,null,null,null,null,null,null,null,null,null,null,null,null,"Allowed",null,null,null,null,null,null,null,null,null,null,null,null,null,null,null,null,null,null,null,null,null,null,null,null,null,null,null,null,null,null,null,null,null,null,null,null,null,null,null,null,null,null,null,null,null,null,null,null,null,0,null,null,0,null,0,null,0,null,0]
[null,null,null,null,null,null,null,null,null,null,null,null,null,null,"Allowed",null,null,null,null,null,null,null,null,null,null,null,null,null,null,null,null,null,null,null,null,null,null,null,null,null,null,null,null,null,null,null,null,null,null,null,null,null,null,null,null,null,null,null,null,null,null,null,null,null,0,null,null,0,null,0,null,0,null,0]
[null,null,null,null,null,null,null,null,null,null,null,null,null,null,"Allowed",null,null,null,null,null,null,null,null,null,null,null,null,null,null,null,null,null,null,null,null,null,null,null,null,null,null,null,null,null,null,null,null,null,null,null,null,null,null,null,null,null,null,null,null,null,null,null,null,null,0,null,null,0,null,0,null,0,null,0]
[null,null,null,null,null,null,null,null,null,null,null,null,null,null,"Allowed",null,null,null,null,null,null,null,null,null,null,null,null,null,null,null,null,null,null,null,null,null,null,null,null,null,null,null,null,null,null,null,null,null,null,null,null,null,null,null,null,null,null,null,null,null,null,null,null,null,0,null,null,0,null,0,null,0,null,0]
[null,null,null,null,null,null,null,null,null,null,null,null,null,null,"Allowed",null,null,null,null,null,null,null,null,null,null,null,null,null,null,null,null,null,null,null,null,null,null,null,null,null,null,null,null,null,null,null,null,null,null,null,null,null,null,null,null,null,null,null,null,null,null,null,null,null,0,null,null,0,null,0,null,0,null,0]
[null,null,null,null,null,null,null,null,null,null,null,null,null,null,"Allowed",null,null,null,null,null,null,null,null,null,null,null,null,null,null,null,null,null,null,null,null,null,null,null,null,null,null,null,null,null,null,null,null,null,null,null,null,null,null,null,null,null,null,null,null,null,null,null,null,null,0,null,null,0,null,0,null,0,null,0]
[null,null,null,null,null,null,null,null,null,null,null,null,null,null,"Allowed",null,null,null,null,null,null,null,null,null,null,null,null,null,null,null,null,null,null,null,null,null,null,null,null,null,null,null,null,null,null,null,null,null,null,null,null,null,null,null,null,null,null,null,null,null,null,null,null,null,0,null,null,0,null,0,null,0,null,0]
[null,null,null,null,null,null,null,null,null,null,null,null,null,null,"Allowed",null,null,null,null,null,null,null,null,null,null,null,null,null,null,null,null,null,null,null,null,null,null,null,null,null,null,null,null,null,null,null,null,null,null,null,null,null,null,null,null,null,null,null,null,null,null,null,null,null,0,null,null,0,null,0,null,0,null,0]
[null,null,null,null,null,null,null,null,null,null,null,null,null,null,"Allowed",null,null,null,null,null,null,null,null,null,null,null,null,null,null,null,null,null,null,null,null,null,null,null,null,null,null,null,null,null,null,null,null,null,null,null,null,null,null,null,null,null,null,null,null,null,null,null,null,null,0,null,null,0,null,0,null,0,null,0]
[null,null,null,null,null,null,null,null,null,null,null,null,null,null,"Allowed",null,null,null,null,null,null,null,null,null,null,null,null,null,null,null,null,null,null,null,null,null,null,null,null,null,null,null,null,null,null,null,null,null,null,null,null,null,null,null,null,null,null,null,null,null,null,null,null,null,0,null,null,0,null,0,null,0,null,0]
[null,null,null,null,null,null,null,null,null,null,null,null,null,null,"Allowed",null,null,null,null,null,null,null,null,null,null,null,null,null,null,null,null,null,null,null,null,null,null,null,null,null,null,null,null,null,null,null,null,null,null,null,null,null,null,null,null,null,null,null,null,null,null,null,null,null,0,null,null,0,null,0,null,0,null,0]
[null,null,null,null,null,null,null,null,null,null,null,null,null,null,"Allowed",null,null,null,null,null,null,null,null,null,null,null,null,null,null,null,null,null,null,null,null,null,null,null,null,null,null,null,null,null,null,null,null,null,null,null,null,null,null,null,null,null,null,null,null,null,null,null,null,null,0,null,null,0,null,0,null,0,null,0]
[null,null,null,null,null,null,null,null,null,null,null,null,null,null,"Allowed",null,null,null,null,null,null,null,null,null,null,null,null,null,null,null,null,null,null,null,null,null,null,null,null,null,null,null,null,null,null,null,null,null,null,null,null,null,null,null,null,null,null,null,null,null,null,null,null,null,0,null,null,0,null,0,null,0,null,0]
[null,null,null,null,null,null,null,null,null,null,null,null,null,null,"Allowed",null,null,null,null,null,null,null,null,null,null,null,null,null,null,null,null,null,null,null,null,null,null,null,null,null,null,null,null,null,null,null,null,null,null,null,null,null,null,null,null,null,null,null,null,null,null,null,null,null,0,null,null,0,null,0,null,0,null,0]
[null,null,null,null,null,null,null,null,null,null,null,null,null,null,"Allowed",null,null,null,null,null,null,null,null,null,null,null,null,null,null,null,null,null,null,null,null,null,null,null,null,null,null,null,null,null,null,null,null,null,null,null,null,null,null,null,null,null,null,null,null,null,null,null,null,null,0,null,null,0,null,0,null,0,null,0]
[null,null,null,null,null,null,null,null,null,null,null,null,null,null,"Allowed",null,null,null,null,null,null,null,null,null,null,null,null,null,null,null,null,null,null,null,null,null,null,null,null,null,null,null,null,null,null,null,null,null,null,null,null,null,null,null,null,null,null,null,null,null,null,null,null,null,0,null,null,0,null,0,null,0,null,0]
[null,null,null,null,null,null,null,null,null,null,null,null,null,null,"Allowed",null,null,null,null,null,null,null,null,null,null,null,null,null,null,null,null,null,null,null,null,null,null,null,null,null,null,null,null,null,null,null,null,null,null,null,null,null,null,null,null,null,null,null,null,null,null,null,null,null,0,null,null,0,null,0,null,0,null,0]
[null,null,null,null,null,null,null,null,null,null,null,null,null,null,"Allowed",null,null,null,null,null,null,null,null,null,null,null,null,null,null,null,null,null,null,null,null,null,null,null,null,null,null,null,null,null,null,null,null,null,null,null,null,null,null,null,null,null,null,null,null,null,null,null,null,null,0,null,null,0,null,0,null,0,null,0]
[null,null,null,null,null,null,null,null,null,null,null,null,null,null,"Allowed",null,null,null,null,null,null,null,null,null,null,null,null,null,null,null,null,null,null,null,null,null,null,null,null,null,null,null,null,null,null,null,null,null,null,null,null,null,null,null,null,null,null,null,null,null,null,null,null,null,0,null,null,0,null,0,null,0,null,0]
[null,null,null,null,null,null,null,null,null,null,null,null,null,null,"Allowed",null,null,null,null,null,null,null,null,null,null,null,null,null,null,null,null,null,null,null,null,null,null,null,null,null,null,null,null,null,null,null,null,null,null,null,null,null,null,null,null,null,null,null,null,null,null,null,null,null,0,null,null,0,null,0,null,0,null,0]
[null,null,null,null,null,null,null,null,null,null,null,null,null,null,"Allowed",null,null,null,null,null,null,null,null,null,null,null,null,null,null,null,null,null,null,null,null,null,null,null,null,null,null,null,null,null,null,null,null,null,null,null,null,null,null,null,null,null,null,null,null,null,null,null,null,null,0,null,null,0,null,0,null,0,null,0]
[null,null,null,null,null,null,null,null,null,null,null,null,null,null,"Allowed",null,null,null,null,null,null,null,null,null,null,null,null,null,null,null,null,null,null,null,null,null,null,null,null,null,null,null,null,null,null,null,null,null,null,null,null,null,null,null,null,null,null,null,null,null,null,null,null,null,0,null,null,0,null,0,null,0,null,0]
[null,null,null,null,null,null,null,null,null,null,null,null,null,null,"Allowed",null,null,null,null,null,null,null,null,null,null,null,null,null,null,null,null,null,null,null,null,null,null,null,null,null,null,null,null,null,null,null,null,null,null,null,null,null,null,null,null,null,null,null,null,null,null,null,null,null,0,null,null,0,null,0,null,0,null,0]
[null,null,null,null,null,null,null,null,null,null,null,null,null,null,"Allowed",null,null,null,null,null,null,null,null,null,null,null,null,null,null,null,null,null,null,null,null,null,null,null,null,null,null,null,null,null,null,null,null,null,null,null,null,null,null,null,null,null,null,null,null,null,null,null,null,null,0,null,null,0,null,0,null,0,null,0]
[null,null,null,null,null,null,null,null,null,null,null,null,null,null,"Allowed",null,null,null,null,null,null,null,null,null,null,null,null,null,null,null,null,null,null,null,null,null,null,null,null,null,null,null,null,null,null,null,null,null,null,null,null,null,null,null,null,null,null,null,null,null,null,null,null,null,0,null,null,0,null,0,null,0,null,0]
[null,null,null,null,null,null,null,null,null,null,null,null,null,null,"Allowed",null,null,null,null,null,null,null,null,null,null,null,null,null,null,null,null,null,null,null,null,null,null,null,null,null,null,null,null,null,null,null,null,null,null,null,null,null,null,null,null,null,null,null,null,null,null,null,null,null,0,null,null,0,null,0,null,0,null,0]
[null,null,null,null,null,null,null,null,null,null,null,null,null,null,"Allowed",null,null,null,null,null,null,null,null,null,null,null,null,null,null,null,null,null,null,null,null,null,null,null,null,null,null,null,null,null,null,null,null,null,null,null,null,null,null,null,null,null,null,null,null,null,null,null,null,null,0,null,null,0,null,0,null,0,null,0]
[null,null,null,null,null,null,null,null,null,null,null,null,null,null,"Allowed",null,null,null,null,null,null,null,null,null,null,null,null,null,null,null,null,null,null,null,null,null,null,null,null,null,null,null,null,null,null,null,null,null,null,null,null,null,null,null,null,null,null,null,null,null,null,null,null,null,0,null,null,0,null,0,null,0,null,0]
[null,null,null,null,null,null,null,null,null,null,null,null,null,null,"Allowed",null,null,null,null,null,null,null,null,null,null,null,null,null,null,null,null,null,null,null,null,null,null,null,null,null,null,null,null,null,null,null,null,null,null,null,null,null,null,null,null,null,null,null,null,null,null,null,null,null,0,null,null,0,null,0,null,0,null,0]
[null,null,null,null,null,null,null,null,null,null,null,null,null,null,"Allowed",null,null,null,null,null,null,null,null,null,null,null,null,null,null,null,null,null,null,null,null,null,null,null,null,null,null,null,null,null,null,null,null,null,null,null,null,null,null,null,null,null,null,null,null,null,null,null,null,null,0,null,null,0,null,0,null,0,null,0]
[null,null,null,null,null,null,null,null,null,null,null,null,null,null,"Allowed",null,null,null,null,null,null,null,null,null,null,null,null,null,null,null,null,null,null,null,null,null,null,null,null,null,null,null,null,null,null,null,null,null,null,null,null,null,null,null,null,null,null,null,null,null,null,null,null,null,0,null,null,0,null,0,null,0,null,0]
[null,null,null,null,null,null,null,null,null,null,null,null,null,null,"Allowed",null,null,null,null,null,null,null,null,null,null,null,null,null,null,null,null,null,null,null,null,null,null,null,null,null,null,null,null,null,null,null,null,null,null,null,null,null,null,null,null,null,null,null,null,null,null,null,null,null,0,null,null,0,null,0,null,0,null,0]
[null,null,null,null,null,null,null,null,null,null,null,null,null,null,"Allowed",null,null,null,null,null,null,null,null,null,null,null,null,null,null,null,null,null,null,null,null,null,null,null,null,null,null,null,null,null,null,null,null,null,null,null,null,null,null,null,null,null,null,null,null,null,null,null,null,null,0,null,null,0,null,0,null,0,null,0]
[null,null,null,null,null,null,null,null,null,null,null,null,null,null,{"$f":"IF(N226691<=TRUNC(P226691*1.015228,2),\"Allowed\",\"Exceeds Max\")","v":"Allowed"},null,null,null,null,null,null,null,null,null,null,null,null,null,null,null,null,null,null,null,null,null,null,null,null,null,null,null,null,null,null,null,null,null,null,null,null,null,null,null,null,null,null,null,null,null,null,null,null,null,0,null,null,0,null,0,null,0,null,0]
[null,null,null,null,null,null,null,null,null,null,null,null,null,null,"Allowed",null,null,null,null,null,null,null,null,null,null,null,null,null,null,null,null,null,null,null,null,null,null,null,null,null,null,null,null,null,null,null,null,null,null,null,null,null,null,null,null,null,null,null,null,null,null,null,null,null,0,null,null,0,null,0,null,0,null,0]
[null,null,null,null,null,null,null,null,null,null,null,null,null,null,"Allowed",null,null,null,null,null,null,null,null,null,null,null,null,null,null,null,null,null,null,null,null,null,null,null,null,null,null,null,null,null,null,null,null,null,null,null,null,null,null,null,null,null,null,null,null,null,null,null,null,null,0,null,null,0,null,0,null,0,null,0]
[null,null,null,null,null,null,null,null,null,null,null,null,null,null,"Allowed",null,null,null,null,null,null,null,null,null,null,null,null,null,null,null,null,null,null,null,null,null,null,null,null,null,null,null,null,null,null,null,null,null,null,null,null,null,null,null,null,null,null,null,null,null,null,null,null,null,0,null,null,0,null,0,null,0,null,0]
[null,null,null,null,null,null,null,null,null,null,null,null,null,null,"Allowed",null,null,null,null,null,null,null,null,null,null,null,null,null,null,null,null,null,null,null,null,null,null,null,null,null,null,null,null,null,null,null,null,null,null,null,null,null,null,null,null,null,null,null,null,null,null,null,null,null,0,null,null,0,null,0,null,0,null,0]
[null,null,null,null,null,null,null,null,null,null,null,null,null,null,"Allowed",null,null,null,null,null,null,null,null,null,null,null,null,null,null,null,null,null,null,null,null,null,null,null,null,null,null,null,null,null,null,null,null,null,null,null,null,null,null,null,null,null,null,null,null,null,null,null,null,null,0,null,null,0,null,0,null,0,null,0]
[null,null,null,null,null,null,null,null,null,null,null,null,null,null,"Allowed",null,null,null,null,null,null,null,null,null,null,null,null,null,null,null,null,null,null,null,null,null,null,null,null,null,null,null,null,null,null,null,null,null,null,null,null,null,null,null,null,null,null,null,null,null,null,null,null,null,0,null,null,0,null,0,null,0,null,0]
[null,null,null,null,null,null,null,null,null,null,null,null,null,null,"Allowed",null,null,null,null,null,null,null,null,null,null,null,null,null,null,null,null,null,null,null,null,null,null,null,null,null,null,null,null,null,null,null,null,null,null,null,null,null,null,null,null,null,null,null,null,null,null,null,null,null,0,null,null,0,null,0,null,0,null,0]
[null,null,null,null,null,null,null,null,null,null,null,null,null,null,"Allowed",null,null,null,null,null,null,null,null,null,null,null,null,null,null,null,null,null,null,null,null,null,null,null,null,null,null,null,null,null,null,null,null,null,null,null,null,null,null,null,null,null,null,null,null,null,null,null,null,null,0,null,null,0,null,0,null,0,null,0]
[null,null,null,null,null,null,null,null,null,null,null,null,null,null,"Allowed",null,null,null,null,null,null,null,null,null,null,null,null,null,null,null,null,null,null,null,null,null,null,null,null,null,null,null,null,null,null,null,null,null,null,null,null,null,null,null,null,null,null,null,null,null,null,null,null,null,0,null,null,0,null,0,null,0,null,0]
[null,null,null,null,null,null,null,null,null,null,null,null,null,null,"Allowed",null,null,null,null,null,null,null,null,null,null,null,null,null,null,null,null,null,null,null,null,null,null,null,null,null,null,null,null,null,null,null,null,null,null,null,null,null,null,null,null,null,null,null,null,null,null,null,null,null,0,null,null,0,null,0,null,0,null,0]
[null,null,null,null,null,null,null,null,null,null,null,null,null,null,"Allowed",null,null,null,null,null,null,null,null,null,null,null,null,null,null,null,null,null,null,null,null,null,null,null,null,null,null,null,null,null,null,null,null,null,null,null,null,null,null,null,null,null,null,null,null,null,null,null,null,null,0,null,null,0,null,0,null,0,null,0]
[null,null,null,null,null,null,null,null,null,null,null,null,null,null,"Allowed",null,null,null,null,null,null,null,null,null,null,null,null,null,null,null,null,null,null,null,null,null,null,null,null,null,null,null,null,null,null,null,null,null,null,null,null,null,null,null,null,null,null,null,null,null,null,null,null,null,0,null,null,0,null,0,null,0,null,0]
[null,null,null,null,null,null,null,null,null,null,null,null,null,null,"Allowed",null,null,null,null,null,null,null,null,null,null,null,null,null,null,null,null,null,null,null,null,null,null,null,null,null,null,null,null,null,null,null,null,null,null,null,null,null,null,null,null,null,null,null,null,null,null,null,null,null,0,null,null,0,null,0,null,0,null,0]
[null,null,null,null,null,null,null,null,null,null,null,null,null,null,"Allowed",null,null,null,null,null,null,null,null,null,null,null,null,null,null,null,null,null,null,null,null,null,null,null,null,null,null,null,null,null,null,null,null,null,null,null,null,null,null,null,null,null,null,null,null,null,null,null,null,null,0,null,null,0,null,0,null,0,null,0]
[null,null,null,null,null,null,null,null,null,null,null,null,null,null,"Allowed",null,null,null,null,null,null,null,null,null,null,null,null,null,null,null,null,null,null,null,null,null,null,null,null,null,null,null,null,null,null,null,null,null,null,null,null,null,null,null,null,null,null,null,null,null,null,null,null,null,0,null,null,0,null,0,null,0,null,0]
[null,null,null,null,null,null,null,null,null,null,null,null,null,null,"Allowed",null,null,null,null,null,null,null,null,null,null,null,null,null,null,null,null,null,null,null,null,null,null,null,null,null,null,null,null,null,null,null,null,null,null,null,null,null,null,null,null,null,null,null,null,null,null,null,null,null,0,null,null,0,null,0,null,0,null,0]
[null,null,null,null,null,null,null,null,null,null,null,null,null,null,"Allowed",null,null,null,null,null,null,null,null,null,null,null,null,null,null,null,null,null,null,null,null,null,null,null,null,null,null,null,null,null,null,null,null,null,null,null,null,null,null,null,null,null,null,null,null,null,null,null,null,null,0,null,null,0,null,0,null,0,null,0]
[null,null,null,null,null,null,null,null,null,null,null,null,null,null,"Allowed",null,null,null,null,null,null,null,null,null,null,null,null,null,null,null,null,null,null,null,null,null,null,null,null,null,null,null,null,null,null,null,null,null,null,null,null,null,null,null,null,null,null,null,null,null,null,null,null,null,0,null,null,0,null,0,null,0,null,0]
[null,null,null,null,null,null,null,null,null,null,null,null,null,null,"Allowed",null,null,null,null,null,null,null,null,null,null,null,null,null,null,null,null,null,null,null,null,null,null,null,null,null,null,null,null,null,null,null,null,null,null,null,null,null,null,null,null,null,null,null,null,null,null,null,null,null,0,null,null,0,null,0,null,0,null,0]
[null,null,null,null,null,null,null,null,null,null,null,null,null,null,"Allowed",null,null,null,null,null,null,null,null,null,null,null,null,null,null,null,null,null,null,null,null,null,null,null,null,null,null,null,null,null,null,null,null,null,null,null,null,null,null,null,null,null,null,null,null,null,null,null,null,null,0,null,null,0,null,0,null,0,null,0]
[null,null,null,null,null,null,null,null,null,null,null,null,null,null,"Allowed",null,null,null,null,null,null,null,null,null,null,null,null,null,null,null,null,null,null,null,null,null,null,null,null,null,null,null,null,null,null,null,null,null,null,null,null,null,null,null,null,null,null,null,null,null,null,null,null,null,0,null,null,0,null,0,null,0,null,0]
[null,null,null,null,null,null,null,null,null,null,null,null,null,null,"Allowed",null,null,null,null,null,null,null,null,null,null,null,null,null,null,null,null,null,null,null,null,null,null,null,null,null,null,null,null,null,null,null,null,null,null,null,null,null,null,null,null,null,null,null,null,null,null,null,null,null,0,null,null,0,null,0,null,0,null,0]
[null,null,null,null,null,null,null,null,null,null,null,null,null,null,"Allowed",null,null,null,null,null,null,null,null,null,null,null,null,null,null,null,null,null,null,null,null,null,null,null,null,null,null,null,null,null,null,null,null,null,null,null,null,null,null,null,null,null,null,null,null,null,null,null,null,null,0,null,null,0,null,0,null,0,null,0]
[null,null,null,null,null,null,null,null,null,null,null,null,null,null,"Allowed",null,null,null,null,null,null,null,null,null,null,null,null,null,null,null,null,null,null,null,null,null,null,null,null,null,null,null,null,null,null,null,null,null,null,null,null,null,null,null,null,null,null,null,null,null,null,null,null,null,0,null,null,0,null,0,null,0,null,0]
[null,null,null,null,null,null,null,null,null,null,null,null,null,null,"Allowed",null,null,null,null,null,null,null,null,null,null,null,null,null,null,null,null,null,null,null,null,null,null,null,null,null,null,null,null,null,null,null,null,null,null,null,null,null,null,null,null,null,null,null,null,null,null,null,null,null,0,null,null,0,null,0,null,0,null,0]
[null,null,null,null,null,null,null,null,null,null,null,null,null,null,"Allowed",null,null,null,null,null,null,null,null,null,null,null,null,null,null,null,null,null,null,null,null,null,null,null,null,null,null,null,null,null,null,null,null,null,null,null,null,null,null,null,null,null,null,null,null,null,null,null,null,null,0,null,null,0,null,0,null,0,null,0]
[null,null,null,null,null,null,null,null,null,null,null,null,null,null,"Allowed",null,null,null,null,null,null,null,null,null,null,null,null,null,null,null,null,null,null,null,null,null,null,null,null,null,null,null,null,null,null,null,null,null,null,null,null,null,null,null,null,null,null,null,null,null,null,null,null,null,0,null,null,0,null,0,null,0,null,0]
[null,null,null,null,null,null,null,null,null,null,null,null,null,null,"Allowed",null,null,null,null,null,null,null,null,null,null,null,null,null,null,null,null,null,null,null,null,null,null,null,null,null,null,null,null,null,null,null,null,null,null,null,null,null,null,null,null,null,null,null,null,null,null,null,null,null,0,null,null,0,null,0,null,0,null,0]
[null,null,null,null,null,null,null,null,null,null,null,null,null,null,"Allowed",null,null,null,null,null,null,null,null,null,null,null,null,null,null,null,null,null,null,null,null,null,null,null,null,null,null,null,null,null,null,null,null,null,null,null,null,null,null,null,null,null,null,null,null,null,null,null,null,null,0,null,null,0,null,0,null,0,null,0]
[null,null,null,null,null,null,null,null,null,null,null,null,null,null,"Allowed",null,null,null,null,null,null,null,null,null,null,null,null,null,null,null,null,null,null,null,null,null,null,null,null,null,null,null,null,null,null,null,null,null,null,null,null,null,null,null,null,null,null,null,null,null,null,null,null,null,0,null,null,0,null,0,null,0,null,0]
[null,null,null,null,null,null,null,null,null,null,null,null,null,null,"Allowed",null,null,null,null,null,null,null,null,null,null,null,null,null,null,null,null,null,null,null,null,null,null,null,null,null,null,null,null,null,null,null,null,null,null,null,null,null,null,null,null,null,null,null,null,null,null,null,null,null,0,null,null,0,null,0,null,0,null,0]
[null,null,null,null,null,null,null,null,null,null,null,null,null,null,"Allowed",null,null,null,null,null,null,null,null,null,null,null,null,null,null,null,null,null,null,null,null,null,null,null,null,null,null,null,null,null,null,null,null,null,null,null,null,null,null,null,null,null,null,null,null,null,null,null,null,null,0,null,null,0,null,0,null,0,null,0]
[null,null,null,null,null,null,null,null,null,null,null,null,null,null,"Allowed",null,null,null,null,null,null,null,null,null,null,null,null,null,null,null,null,null,null,null,null,null,null,null,null,null,null,null,null,null,null,null,null,null,null,null,null,null,null,null,null,null,null,null,null,null,null,null,null,null,{"$f":"LEN(BL243268)","v":0},null,null,{"$f":"LEN(BO243268)","v":0},null,{"$f":"LEN(BQ243268)","v":0},null,{"$f":"LEN(BS243268)","v":0},null,{"$f":"LEN(BU243268)","v":0}]
[null,null,null,null,null,null,null,null,null,null,null,null,null,null,"Allowed",null,null,null,null,null,null,null,null,null,null,null,null,null,null,null,null,null,null,null,null,null,null,null,null,null,null,null,null,null,null,null,null,null,null,null,null,null,null,null,null,null,null,null,null,null,null,null,null,null,0,null,null,0,null,0,null,0,null,0]
[null,null,null,null,null,null,null,null,null,null,null,null,null,null,"Allowed",null,null,null,null,null,null,null,null,null,null,null,null,null,null,null,null,null,null,null,null,null,null,null,null,null,null,null,null,null,null,null,null,null,null,null,null,null,null,null,null,null,null,null,null,null,null,null,null,null,0,null,null,0,null,0,null,0,null,0]
[null,null,null,null,null,null,null,null,null,null,null,null,null,null,"Allowed",null,null,null,null,null,null,null,null,null,null,null,null,null,null,null,null,null,null,null,null,null,null,null,null,null,null,null,null,null,null,null,null,null,null,null,null,null,null,null,null,null,null,null,null,null,null,null,null,null,0,null,null,0,null,0,null,0,null,0]
[null,null,null,null,null,null,null,null,null,null,null,null,null,null,"Allowed",null,null,null,null,null,null,null,null,null,null,null,null,null,null,null,null,null,null,null,null,null,null,null,null,null,null,null,null,null,null,null,null,null,null,null,null,null,null,null,null,null,null,null,null,null,null,null,null,null,0,null,null,0,null,0,null,0,null,0]
[null,null,null,null,null,null,null,null,null,null,null,null,null,null,"Allowed",null,null,null,null,null,null,null,null,null,null,null,null,null,null,null,null,null,null,null,null,null,null,null,null,null,null,null,null,null,null,null,null,null,null,null,null,null,null,null,null,null,null,null,null,null,null,null,null,null,0,null,null,0,null,0,null,0,null,0]
[null,null,null,null,null,null,null,null,null,null,null,null,null,null,"Allowed",null,null,null,null,null,null,null,null,null,null,null,null,null,null,null,null,null,null,null,null,null,null,null,null,null,null,null,null,null,null,null,null,null,null,null,null,null,null,null,null,null,null,null,null,null,null,null,null,null,0,null,null,0,null,0,null,0,null,0]
[null,null,null,null,null,null,null,null,null,null,null,null,null,null,"Allowed",null,null,null,null,null,null,null,null,null,null,null,null,null,null,null,null,null,null,null,null,null,null,null,null,null,null,null,null,null,null,null,null,null,null,null,null,null,null,null,null,null,null,null,null,null,null,null,null,null,0,null,null,0,null,0,null,0,null,0]
[null,null,null,null,null,null,null,null,null,null,null,null,null,null,"Allowed",null,null,null,null,null,null,null,null,null,null,null,null,null,null,null,null,null,null,null,null,null,null,null,null,null,null,null,null,null,null,null,null,null,null,null,null,null,null,null,null,null,null,null,null,null,null,null,null,null,0,null,null,0,null,0,null,0,null,0]
[null,null,null,null,null,null,null,null,null,null,null,null,null,null,"Allowed",null,null,null,null,null,null,null,null,null,null,null,null,null,null,null,null,null,null,null,null,null,null,null,null,null,null,null,null,null,null,null,null,null,null,null,null,null,null,null,null,null,null,null,null,null,null,null,null,null,0,null,null,0,null,0,null,0,null,0]
[null,null,null,null,null,null,null,null,null,null,null,null,null,null,"Allowed",null,null,null,null,null,null,null,null,null,null,null,null,null,null,null,null,null,null,null,null,null,null,null,null,null,null,null,null,null,null,null,null,null,null,null,null,null,null,null,null,null,null,null,null,null,null,null,null,null,0,null,null,0,null,0,null,0,null,0]
[null,null,null,null,null,null,null,null,null,null,null,null,null,null,"Allowed",null,null,null,null,null,null,null,null,null,null,null,null,null,null,null,null,null,null,null,null,null,null,null,null,null,null,null,null,null,null,null,null,null,null,null,null,null,null,null,null,null,null,null,null,null,null,null,null,null,0,null,null,0,null,0,null,0,null,0]
[null,null,null,null,null,null,null,null,null,null,null,null,null,null,"Allowed",null,null,null,null,null,null,null,null,null,null,null,null,null,null,null,null,null,null,null,null,null,null,null,null,null,null,null,null,null,null,null,null,null,null,null,null,null,null,null,null,null,null,null,null,null,null,null,null,null,0,null,null,0,null,0,null,0,null,0]
[null,null,null,null,null,null,null,null,null,null,null,null,null,null,"Allowed",null,null,null,null,null,null,null,null,null,null,null,null,null,null,null,null,null,null,null,null,null,null,null,null,null,null,null,null,null,null,null,null,null,null,null,null,null,null,null,null,null,null,null,null,null,null,null,null,null,0,null,null,0,null,0,null,0,null,0]
[null,null,null,null,null,null,null,null,null,null,null,null,null,null,"Allowed",null,null,null,null,null,null,null,null,null,null,null,null,null,null,null,null,null,null,null,null,null,null,null,null,null,null,null,null,null,null,null,null,null,null,null,null,null,null,null,null,null,null,null,null,null,null,null,null,null,0,null,null,0,null,0,null,0,null,0]
[null,null,null,null,null,null,null,null,null,null,null,null,null,null,"Allowed",null,null,null,null,null,null,null,null,null,null,null,null,null,null,null,null,null,null,null,null,null,null,null,null,null,null,null,null,null,null,null,null,null,null,null,null,null,null,null,null,null,null,null,null,null,null,null,null,null,0,null,null,0,null,0,null,0,null,0]
[null,null,null,null,null,null,null,null,null,null,null,null,null,null,"Allowed",null,null,null,null,null,null,null,null,null,null,null,null,null,null,null,null,null,null,null,null,null,null,null,null,null,null,null,null,null,null,null,null,null,null,null,null,null,null,null,null,null,null,null,null,null,null,null,null,null,0,null,null,0,null,0,null,0,null,0]
[null,null,null,null,null,null,null,null,null,null,null,null,null,null,"Allowed",null,null,null,null,null,null,null,null,null,null,null,null,null,null,null,null,null,null,null,null,null,null,null,null,null,null,null,null,null,null,null,null,null,null,null,null,null,null,null,null,null,null,null,null,null,null,null,null,null,0,null,null,0,null,0,null,0,null,0]
[null,null,null,null,null,null,null,null,null,null,null,null,null,null,"Allowed",null,null,null,null,null,null,null,null,null,null,null,null,null,null,null,null,null,null,null,null,null,null,null,null,null,null,null,null,null,null,null,null,null,null,null,null,null,null,null,null,null,null,null,null,null,null,null,null,null,0,null,null,0,null,0,null,0,null,0]
[null,null,null,null,null,null,null,null,null,null,null,null,null,null,"Allowed",null,null,null,null,null,null,null,null,null,null,null,null,null,null,null,null,null,null,null,null,null,null,null,null,null,null,null,null,null,null,null,null,null,null,null,null,null,null,null,null,null,null,null,null,null,null,null,null,null,0,null,null,0,null,0,null,0,null,0]
[null,null,null,null,null,null,null,null,null,null,null,null,null,null,"Allowed",null,null,null,null,null,null,null,null,null,null,null,null,null,null,null,null,null,null,null,null,null,null,null,null,null,null,null,null,null,null,null,null,null,null,null,null,null,null,null,null,null,null,null,null,null,null,null,null,null,0,null,null,0,null,0,null,0,null,0]
[null,null,null,null,null,null,null,null,null,null,null,null,null,null,"Allowed",null,null,null,null,null,null,null,null,null,null,null,null,null,null,null,null,null,null,null,null,null,null,null,null,null,null,null,null,null,null,null,null,null,null,null,null,null,null,null,null,null,null,null,null,null,null,null,null,null,0,null,null,0,null,0,null,0,null,0]
[null,null,null,null,null,null,null,null,null,null,null,null,null,null,"Allowed",null,null,null,null,null,null,null,null,null,null,null,null,null,null,null,null,null,null,null,null,null,null,null,null,null,null,null,null,null,null,null,null,null,null,null,null,null,null,null,null,null,null,null,null,null,null,null,null,null,0,null,null,0,null,0,null,0,null,0]
[null,null,null,null,null,null,null,null,null,null,null,null,null,null,"Allowed",null,null,null,null,null,null,null,null,null,null,null,null,null,null,null,null,null,null,null,null,null,null,null,null,null,null,null,null,null,null,null,null,null,null,null,null,null,null,null,null,null,null,null,null,null,null,null,null,null,0,null,null,0,null,0,null,0,null,0]
[null,null,null,null,null,null,null,null,null,null,null,null,null,null,"Allowed",null,null,null,null,null,null,null,null,null,null,null,null,null,null,null,null,null,null,null,null,null,null,null,null,null,null,null,null,null,null,null,null,null,null,null,null,null,null,null,null,null,null,null,null,null,null,null,null,null,0,null,null,0,null,0,null,0,null,0]
[null,null,null,null,null,null,null,null,null,null,null,null,null,null,"Allowed",null,null,null,null,null,null,null,null,null,null,null,null,null,null,null,null,null,null,null,null,null,null,null,null,null,null,null,null,null,null,null,null,null,null,null,null,null,null,null,null,null,null,null,null,null,null,null,null,null,0,null,null,0,null,0,null,0,null,0]
[null,null,null,null,null,null,null,null,null,null,null,null,null,null,"Allowed",null,null,null,null,null,null,null,null,null,null,null,null,null,null,null,null,null,null,null,null,null,null,null,null,null,null,null,null,null,null,null,null,null,null,null,null,null,null,null,null,null,null,null,null,null,null,null,null,null,0,null,null,0,null,0,null,0,null,0]
[null,null,null,null,null,null,null,null,null,null,null,null,null,null,"Allowed",null,null,null,null,null,null,null,null,null,null,null,null,null,null,null,null,null,null,null,null,null,null,null,null,null,null,null,null,null,null,null,null,null,null,null,null,null,null,null,null,null,null,null,null,null,null,null,null,null,0,null,null,0,null,0,null,0,null,0]
[null,null,null,null,null,null,null,null,null,null,null,null,null,null,"Allowed",null,null,null,null,null,null,null,null,null,null,null,null,null,null,null,null,null,null,null,null,null,null,null,null,null,null,null,null,null,null,null,null,null,null,null,null,null,null,null,null,null,null,null,null,null,null,null,null,null,0,null,null,0,null,0,null,0,null,0]
[null,null,null,null,null,null,null,null,null,null,null,null,null,null,"Allowed",null,null,null,null,null,null,null,null,null,null,null,null,null,null,null,null,null,null,null,null,null,null,null,null,null,null,null,null,null,null,null,null,null,null,null,null,null,null,null,null,null,null,null,null,null,null,null,null,null,0,null,null,0,null,0,null,0,null,0]
[null,null,null,null,null,null,null,null,null,null,null,null,null,null,"Allowed",null,null,null,null,null,null,null,null,null,null,null,null,null,null,null,null,null,null,null,null,null,null,null,null,null,null,null,null,null,null,null,null,null,null,null,null,null,null,null,null,null,null,null,null,null,null,null,null,null,0,null,null,0,null,0,null,0,null,0]
[null,null,null,null,null,null,null,null,null,null,null,null,null,null,"Allowed",null,null,null,null,null,null,null,null,null,null,null,null,null,null,null,null,null,null,null,null,null,null,null,null,null,null,null,null,null,null,null,null,null,null,null,null,null,null,null,null,null,null,null,null,null,null,null,null,null,0,null,null,0,null,0,null,0,null,0]
[null,null,null,null,null,null,null,null,null,null,null,null,null,null,"Allowed",null,null,null,null,null,null,null,null,null,null,null,null,null,null,null,null,null,null,null,null,null,null,null,null,null,null,null,null,null,null,null,null,null,null,null,null,null,null,null,null,null,null,null,null,null,null,null,null,null,0,null,null,0,null,0,null,0,null,0]
[null,null,null,null,null,null,null,null,null,null,null,null,null,null,"Allowed",null,null,null,null,null,null,null,null,null,null,null,null,null,null,null,null,null,null,null,null,null,null,null,null,null,null,null,null,null,null,null,null,null,null,null,null,null,null,null,null,null,null,null,null,null,null,null,null,null,0,null,null,0,null,0,null,0,null,0]
[null,null,null,null,null,null,null,null,null,null,null,null,null,null,"Allowed",null,null,null,null,null,null,null,null,null,null,null,null,null,null,null,null,null,null,null,null,null,null,null,null,null,null,null,null,null,null,null,null,null,null,null,null,null,null,null,null,null,null,null,null,null,null,null,null,null,0,null,null,0,null,0,null,0,null,0]
[null,null,null,null,null,null,null,null,null,null,null,null,null,null,"Allowed",null,null,null,null,null,null,null,null,null,null,null,null,null,null,null,null,null,null,null,null,null,null,null,null,null,null,null,null,null,null,null,null,null,null,null,null,null,null,null,null,null,null,null,null,null,null,null,null,null,0,null,null,0,null,0,null,0,null,0]
[null,null,null,null,null,null,null,null,null,null,null,null,null,null,"Allowed",null,null,null,null,null,null,null,null,null,null,null,null,null,null,null,null,null,null,null,null,null,null,null,null,null,null,null,null,null,null,null,null,null,null,null,null,null,null,null,null,null,null,null,null,null,null,null,null,null,0,null,null,0,null,0,null,0,null,0]
[null,null,null,null,null,null,null,null,null,null,null,null,null,null,"Allowed",null,null,null,null,null,null,null,null,null,null,null,null,null,null,null,null,null,null,null,null,null,null,null,null,null,null,null,null,null,null,null,null,null,null,null,null,null,null,null,null,null,null,null,null,null,null,null,null,null,0,null,null,0,null,0,null,0,null,0]
[null,null,null,null,null,null,null,null,null,null,null,null,null,null,"Allowed",null,null,null,null,null,null,null,null,null,null,null,null,null,null,null,null,null,null,null,null,null,null,null,null,null,null,null,null,null,null,null,null,null,null,null,null,null,null,null,null,null,null,null,null,null,null,null,null,null,0,null,null,0,null,0,null,0,null,0]
[null,null,null,null,null,null,null,null,null,null,null,null,null,null,"Allowed",null,null,null,null,null,null,null,null,null,null,null,null,null,null,null,null,null,null,null,null,null,null,null,null,null,null,null,null,null,null,null,null,null,null,null,null,null,null,null,null,null,null,null,null,null,null,null,null,null,0,null,null,0,null,0,null,0,null,0]
[null,null,null,null,null,null,null,null,null,null,null,null,null,null,"Allowed",null,null,null,null,null,null,null,null,null,null,null,null,null,null,null,null,null,null,null,null,null,null,null,null,null,null,null,null,null,null,null,null,null,null,null,null,null,null,null,null,null,null,null,null,null,null,null,null,null,0,null,null,0,null,0,null,0,null,0]
[null,null,null,null,null,null,null,null,null,null,null,null,null,null,"Allowed",null,null,null,null,null,null,null,null,null,null,null,null,null,null,null,null,null,null,null,null,null,null,null,null,null,null,null,null,null,null,null,null,null,null,null,null,null,null,null,null,null,null,null,null,null,null,null,null,null,0,null,null,0,null,0,null,0,null,0]
[null,null,null,null,null,null,null,null,null,null,null,null,null,null,"Allowed",null,null,null,null,null,null,null,null,null,null,null,null,null,null,null,null,null,null,null,null,null,null,null,null,null,null,null,null,null,null,null,null,null,null,null,null,null,null,null,null,null,null,null,null,null,null,null,null,null,0,null,null,0,null,0,null,0,null,0]
[null,null,null,null,null,null,null,null,null,null,null,null,null,null,"Allowed",null,null,null,null,null,null,null,null,null,null,null,null,null,null,null,null,null,null,null,null,null,null,null,null,null,null,null,null,null,null,null,null,null,null,null,null,null,null,null,null,null,null,null,null,null,null,null,null,null,0,null,null,0,null,0,null,0,null,0]
[null,null,null,null,null,null,null,null,null,null,null,null,null,null,"Allowed",null,null,null,null,null,null,null,null,null,null,null,null,null,null,null,null,null,null,null,null,null,null,null,null,null,null,null,null,null,null,null,null,null,null,null,null,null,null,null,null,null,null,null,null,null,null,null,null,null,0,null,null,0,null,0,null,0,null,0]
[null,null,null,null,null,null,null,null,null,null,null,null,null,null,"Allowed",null,null,null,null,null,null,null,null,null,null,null,null,null,null,null,null,null,null,null,null,null,null,null,null,null,null,null,null,null,null,null,null,null,null,null,null,null,null,null,null,null,null,null,null,null,null,null,null,null,0,null,null,0,null,0,null,0,null,0]
[null,null,null,null,null,null,null,null,null,null,null,null,null,null,"Allowed",null,null,null,null,null,null,null,null,null,null,null,null,null,null,null,null,null,null,null,null,null,null,null,null,null,null,null,null,null,null,null,null,null,null,null,null,null,null,null,null,null,null,null,null,null,null,null,null,null,0,null,null,0,null,0,null,0,null,0]
[null,null,null,null,null,null,null,null,null,null,null,null,null,null,"Allowed",null,null,null,null,null,null,null,null,null,null,null,null,null,null,null,null,null,null,null,null,null,null,null,null,null,null,null,null,null,null,null,null,null,null,null,null,null,null,null,null,null,null,null,null,null,null,null,null,null,0,null,null,0,null,0,null,0,null,0]
[null,null,null,null,null,null,null,null,null,null,null,null,null,null,"Allowed",null,null,null,null,null,null,null,null,null,null,null,null,null,null,null,null,null,null,null,null,null,null,null,null,null,null,null,null,null,null,null,null,null,null,null,null,null,null,null,null,null,null,null,null,null,null,null,null,null,0,null,null,0,null,0,null,0,null,0]
[null,null,null,null,null,null,null,null,null,null,null,null,null,null,"Allowed",null,null,null,null,null,null,null,null,null,null,null,null,null,null,null,null,null,null,null,null,null,null,null,null,null,null,null,null,null,null,null,null,null,null,null,null,null,null,null,null,null,null,null,null,null,null,null,null,null,0,null,null,0,null,0,null,0,null,0]
[null,null,null,null,null,null,null,null,null,null,null,null,null,null,"Allowed",null,null,null,null,null,null,null,null,null,null,null,null,null,null,null,null,null,null,null,null,null,null,null,null,null,null,null,null,null,null,null,null,null,null,null,null,null,null,null,null,null,null,null,null,null,null,null,null,null,0,null,null,0,null,0,null,0,null,0]
[null,null,null,null,null,null,null,null,null,null,null,null,null,null,"Allowed",null,null,null,null,null,null,null,null,null,null,null,null,null,null,null,null,null,null,null,null,null,null,null,null,null,null,null,null,null,null,null,null,null,null,null,null,null,null,null,null,null,null,null,null,null,null,null,null,null,0,null,null,0,null,0,null,0,null,0]
[null,null,null,null,null,null,null,null,null,null,null,null,null,null,"Allowed",null,null,null,null,null,null,null,null,null,null,null,null,null,null,null,null,null,null,null,null,null,null,null,null,null,null,null,null,null,null,null,null,null,null,null,null,null,null,null,null,null,null,null,null,null,null,null,null,null,0,null,null,0,null,0,null,0,null,0]
[null,null,null,null,null,null,null,null,null,null,null,null,null,null,"Allowed",null,null,null,null,null,null,null,null,null,null,null,null,null,null,null,null,null,null,null,null,null,null,null,null,null,null,null,null,null,null,null,null,null,null,null,null,null,null,null,null,null,null,null,null,null,null,null,null,null,0,null,null,0,null,0,null,0,null,0]
[null,null,null,null,null,null,null,null,null,null,null,null,null,null,"Allowed",null,null,null,null,null,null,null,null,null,null,null,null,null,null,null,null,null,null,null,null,null,null,null,null,null,null,null,null,null,null,null,null,null,null,null,null,null,null,null,null,null,null,null,null,null,null,null,null,null,0,null,null,0,null,0,null,0,null,0]
[null,null,null,null,null,null,null,null,null,null,null,null,null,null,"Allowed",null,null,null,null,null,null,null,null,null,null,null,null,null,null,null,null,null,null,null,null,null,null,null,null,null,null,null,null,null,null,null,null,null,null,null,null,null,null,null,null,null,null,null,null,null,null,null,null,null,0,null,null,0,null,0,null,0,null,0]
[null,null,null,null,null,null,null,null,null,null,null,null,null,null,"Allowed",null,null,null,null,null,null,null,null,null,null,null,null,null,null,null,null,null,null,null,null,null,null,null,null,null,null,null,null,null,null,null,null,null,null,null,null,null,null,null,null,null,null,null,null,null,null,null,null,null,0,null,null,0,null,0,null,0,null,0]
[null,null,null,null,null,null,null,null,null,null,null,null,null,null,"Allowed",null,null,null,null,null,null,null,null,null,null,null,null,null,null,null,null,null,null,null,null,null,null,null,null,null,null,null,null,null,null,null,null,null,null,null,null,null,null,null,null,null,null,null,null,null,null,null,null,null,0,null,null,0,null,0,null,0,null,0]
[null,null,null,null,null,null,null,null,null,null,null,null,null,null,{"$f":"IF(N249923<=TRUNC(P249923*1.015228,2),\"Allowed\",\"Exceeds Max\")","v":"Allowed"},null,null,null,null,null,null,null,null,null,null,null,null,null,null,null,null,null,null,null,null,null,null,null,null,null,null,null,null,null,null,null,null,null,null,null,null,null,null,null,null,null,null,null,null,null,null,null,null,null,0,null,null,0,null,0,null,0,null,0]
[null,null,null,null,null,null,null,null,null,null,null,null,null,null,"Allowed",null,null,null,null,null,null,null,null,null,null,null,null,null,null,null,null,null,null,null,null,null,null,null,null,null,null,null,null,null,null,null,null,null,null,null,null,null,null,null,null,null,null,null,null,null,null,null,null,null,{"$f":"LEN(BL249924)","v":0},null,null,{"$f":"LEN(BO249924)","v":0},null,{"$f":"LEN(BQ249924)","v":0},null,{"$f":"LEN(BS249924)","v":0},null,{"$f":"LEN(BU249924)","v":0}]
[null,null,null,null,null,null,null,null,null,null,null,null,null,null,"Allowed",null,null,null,null,null,null,null,null,null,null,null,null,null,null,null,null,null,null,null,null,null,null,null,null,null,null,null,null,null,null,null,null,null,null,null,null,null,null,null,null,null,null,null,null,null,null,null,null,null,0,null,null,0,null,0,null,0,null,0]
[null,null,null,null,null,null,null,null,null,null,null,null,null,null,"Allowed",null,null,null,null,null,null,null,null,null,null,null,null,null,null,null,null,null,null,null,null,null,null,null,null,null,null,null,null,null,null,null,null,null,null,null,null,null,null,null,null,null,null,null,null,null,null,null,null,null,0,null,null,0,null,0,null,0,null,0]
[null,null,null,null,null,null,null,null,null,null,null,null,null,null,"Allowed",null,null,null,null,null,null,null,null,null,null,null,null,null,null,null,null,null,null,null,null,null,null,null,null,null,null,null,null,null,null,null,null,null,null,null,null,null,null,null,null,null,null,null,null,null,null,null,null,null,0,null,null,0,null,0,null,0,null,0]
[null,null,null,null,null,null,null,null,null,null,null,null,null,null,"Allowed",null,null,null,null,null,null,null,null,null,null,null,null,null,null,null,null,null,null,null,null,null,null,null,null,null,null,null,null,null,null,null,null,null,null,null,null,null,null,null,null,null,null,null,null,null,null,null,null,null,0,null,null,0,null,0,null,0,null,0]
[null,null,null,null,null,null,null,null,null,null,null,null,null,null,"Allowed",null,null,null,null,null,null,null,null,null,null,null,null,null,null,null,null,null,null,null,null,null,null,null,null,null,null,null,null,null,null,null,null,null,null,null,null,null,null,null,null,null,null,null,null,null,null,null,null,null,0,null,null,0,null,0,null,0,null,0]
[null,null,null,null,null,null,null,null,null,null,null,null,null,null,"Allowed",null,null,null,null,null,null,null,null,null,null,null,null,null,null,null,null,null,null,null,null,null,null,null,null,null,null,null,null,null,null,null,null,null,null,null,null,null,null,null,null,null,null,null,null,null,null,null,null,null,0,null,null,0,null,0,null,0,null,0]
[null,null,null,null,null,null,null,null,null,null,null,null,null,null,"Allowed",null,null,null,null,null,null,null,null,null,null,null,null,null,null,null,null,null,null,null,null,null,null,null,null,null,null,null,null,null,null,null,null,null,null,null,null,null,null,null,null,null,null,null,null,null,null,null,null,null,0,null,null,0,null,0,null,0,null,0]
[null,null,null,null,null,null,null,null,null,null,null,null,null,null,"Allowed",null,null,null,null,null,null,null,null,null,null,null,null,null,null,null,null,null,null,null,null,null,null,null,null,null,null,null,null,null,null,null,null,null,null,null,null,null,null,null,null,null,null,null,null,null,null,null,null,null,0,null,null,0,null,0,null,0,null,0]
[null,null,null,null,null,null,null,null,null,null,null,null,null,null,"Allowed",null,null,null,null,null,null,null,null,null,null,null,null,null,null,null,null,null,null,null,null,null,null,null,null,null,null,null,null,null,null,null,null,null,null,null,null,null,null,null,null,null,null,null,null,null,null,null,null,null,0,null,null,0,null,0,null,0,null,0]
[null,null,null,null,null,null,null,null,null,null,null,null,null,null,"Allowed",null,null,null,null,null,null,null,null,null,null,null,null,null,null,null,null,null,null,null,null,null,null,null,null,null,null,null,null,null,null,null,null,null,null,null,null,null,null,null,null,null,null,null,null,null,null,null,null,null,0,null,null,0,null,0,null,0,null,0]
[null,null,null,null,null,null,null,null,null,null,null,null,null,null,"Allowed",null,null,null,null,null,null,null,null,null,null,null,null,null,null,null,null,null,null,null,null,null,null,null,null,null,null,null,null,null,null,null,null,null,null,null,null,null,null,null,null,null,null,null,null,null,null,null,null,null,0,null,null,0,null,0,null,0,null,0]
[null,null,null,null,null,null,null,null,null,null,null,null,null,null,"Allowed",null,null,null,null,null,null,null,null,null,null,null,null,null,null,null,null,null,null,null,null,null,null,null,null,null,null,null,null,null,null,null,null,null,null,null,null,null,null,null,null,null,null,null,null,null,null,null,null,null,0,null,null,0,null,0,null,0,null,0]
[null,null,null,null,null,null,null,null,null,null,null,null,null,null,"Allowed",null,null,null,null,null,null,null,null,null,null,null,null,null,null,null,null,null,null,null,null,null,null,null,null,null,null,null,null,null,null,null,null,null,null,null,null,null,null,null,null,null,null,null,null,null,null,null,null,null,0,null,null,0,null,0,null,0,null,0]
[null,null,null,null,null,null,null,null,null,null,null,null,null,null,"Allowed",null,null,null,null,null,null,null,null,null,null,null,null,null,null,null,null,null,null,null,null,null,null,null,null,null,null,null,null,null,null,null,null,null,null,null,null,null,null,null,null,null,null,null,null,null,null,null,null,null,0,null,null,0,null,0,null,0,null,0]
[null,null,null,null,null,null,null,null,null,null,null,null,null,null,"Allowed",null,null,null,null,null,null,null,null,null,null,null,null,null,null,null,null,null,null,null,null,null,null,null,null,null,null,null,null,null,null,null,null,null,null,null,null,null,null,null,null,null,null,null,null,null,null,null,null,null,0,null,null,0,null,0,null,0,null,0]
[null,null,null,null,null,null,null,null,null,null,null,null,null,null,"Allowed",null,null,null,null,null,null,null,null,null,null,null,null,null,null,null,null,null,null,null,null,null,null,null,null,null,null,null,null,null,null,null,null,null,null,null,null,null,null,null,null,null,null,null,null,null,null,null,null,null,0,null,null,0,null,0,null,0,null,0]
[null,null,null,null,null,null,null,null,null,null,null,null,null,null,"Allowed",null,null,null,null,null,null,null,null,null,null,null,null,null,null,null,null,null,null,null,null,null,null,null,null,null,null,null,null,null,null,null,null,null,null,null,null,null,null,null,null,null,null,null,null,null,null,null,null,null,0,null,null,0,null,0,null,0,null,0]
[null,null,null,null,null,null,null,null,null,null,null,null,null,null,"Allowed",null,null,null,null,null,null,null,null,null,null,null,null,null,null,null,null,null,null,null,null,null,null,null,null,null,null,null,null,null,null,null,null,null,null,null,null,null,null,null,null,null,null,null,null,null,null,null,null,null,0,null,null,0,null,0,null,0,null,0]
[null,null,null,null,null,null,null,null,null,null,null,null,null,null,"Allowed",null,null,null,null,null,null,null,null,null,null,null,null,null,null,null,null,null,null,null,null,null,null,null,null,null,null,null,null,null,null,null,null,null,null,null,null,null,null,null,null,null,null,null,null,null,null,null,null,null,0,null,null,0,null,0,null,0,null,0]
[null,null,null,null,null,null,null,null,null,null,null,null,null,null,"Allowed",null,null,null,null,null,null,null,null,null,null,null,null,null,null,null,null,null,null,null,null,null,null,null,null,null,null,null,null,null,null,null,null,null,null,null,null,null,null,null,null,null,null,null,null,null,null,null,null,null,0,null,null,0,null,0,null,0,null,0]
[null,null,null,null,null,null,null,null,null,null,null,null,null,null,"Allowed",null,null,null,null,null,null,null,null,null,null,null,null,null,null,null,null,null,null,null,null,null,null,null,null,null,null,null,null,null,null,null,null,null,null,null,null,null,null,null,null,null,null,null,null,null,null,null,null,null,0,null,null,0,null,0,null,0,null,0]
[null,null,null,null,null,null,null,null,null,null,null,null,null,null,"Allowed",null,null,null,null,null,null,null,null,null,null,null,null,null,null,null,null,null,null,null,null,null,null,null,null,null,null,null,null,null,null,null,null,null,null,null,null,null,null,null,null,null,null,null,null,null,null,null,null,null,0,null,null,0,null,0,null,0,null,0]
[null,null,null,null,null,null,null,null,null,null,null,null,null,null,"Allowed",null,null,null,null,null,null,null,null,null,null,null,null,null,null,null,null,null,null,null,null,null,null,null,null,null,null,null,null,null,null,null,null,null,null,null,null,null,null,null,null,null,null,null,null,null,null,null,null,null,0,null,null,0,null,0,null,0,null,0]
[null,null,null,null,null,null,null,null,null,null,null,null,null,null,"Allowed",null,null,null,null,null,null,null,null,null,null,null,null,null,null,null,null,null,null,null,null,null,null,null,null,null,null,null,null,null,null,null,null,null,null,null,null,null,null,null,null,null,null,null,null,null,null,null,null,null,0,null,null,0,null,0,null,0,null,0]
[null,null,null,null,null,null,null,null,null,null,null,null,null,null,"Allowed",null,null,null,null,null,null,null,null,null,null,null,null,null,null,null,null,null,null,null,null,null,null,null,null,null,null,null,null,null,null,null,null,null,null,null,null,null,null,null,null,null,null,null,null,null,null,null,null,null,0,null,null,0,null,0,null,0,null,0]
[null,null,null,null,null,null,null,null,null,null,null,null,null,null,"Allowed",null,null,null,null,null,null,null,null,null,null,null,null,null,null,null,null,null,null,null,null,null,null,null,null,null,null,null,null,null,null,null,null,null,null,null,null,null,null,null,null,null,null,null,null,null,null,null,null,null,0,null,null,0,null,0,null,0,null,0]
[null,null,null,null,null,null,null,null,null,null,null,null,null,null,"Allowed",null,null,null,null,null,null,null,null,null,null,null,null,null,null,null,null,null,null,null,null,null,null,null,null,null,null,null,null,null,null,null,null,null,null,null,null,null,null,null,null,null,null,null,null,null,null,null,null,null,0,null,null,0,null,0,null,0,null,0]
[null,null,null,null,null,null,null,null,null,null,null,null,null,null,"Allowed",null,null,null,null,null,null,null,null,null,null,null,null,null,null,null,null,null,null,null,null,null,null,null,null,null,null,null,null,null,null,null,null,null,null,null,null,null,null,null,null,null,null,null,null,null,null,null,null,null,0,null,null,0,null,0,null,0,null,0]
[null,null,null,null,null,null,null,null,null,null,null,null,null,null,"Allowed",null,null,null,null,null,null,null,null,null,null,null,null,null,null,null,null,null,null,null,null,null,null,null,null,null,null,null,null,null,null,null,null,null,null,null,null,null,null,null,null,null,null,null,null,null,null,null,null,null,0,null,null,0,null,0,null,0,null,0]
[null,null,null,null,null,null,null,null,null,null,null,null,null,null,"Allowed",null,null,null,null,null,null,null,null,null,null,null,null,null,null,null,null,null,null,null,null,null,null,null,null,null,null,null,null,null,null,null,null,null,null,null,null,null,null,null,null,null,null,null,null,null,null,null,null,null,0,null,null,0,null,0,null,0,null,0]
[null,null,null,null,null,null,null,null,null,null,null,null,null,null,"Allowed",null,null,null,null,null,null,null,null,null,null,null,null,null,null,null,null,null,null,null,null,null,null,null,null,null,null,null,null,null,null,null,null,null,null,null,null,null,null,null,null,null,null,null,null,null,null,null,null,null,0,null,null,0,null,0,null,0,null,0]
[null,null,null,null,null,null,null,null,null,null,null,null,null,null,"Allowed",null,null,null,null,null,null,null,null,null,null,null,null,null,null,null,null,null,null,null,null,null,null,null,null,null,null,null,null,null,null,null,null,null,null,null,null,null,null,null,null,null,null,null,null,null,null,null,null,null,0,null,null,0,null,0,null,0,null,0]
[null,null,null,null,null,null,null,null,null,null,null,null,null,null,"Allowed",null,null,null,null,null,null,null,null,null,null,null,null,null,null,null,null,null,null,null,null,null,null,null,null,null,null,null,null,null,null,null,null,null,null,null,null,null,null,null,null,null,null,null,null,null,null,null,null,null,0,null,null,0,null,0,null,0,null,0]
[null,null,null,null,null,null,null,null,null,null,null,null,null,null,"Allowed",null,null,null,null,null,null,null,null,null,null,null,null,null,null,null,null,null,null,null,null,null,null,null,null,null,null,null,null,null,null,null,null,null,null,null,null,null,null,null,null,null,null,null,null,null,null,null,null,null,0,null,null,0,null,0,null,0,null,0]
[null,null,null,null,null,null,null,null,null,null,null,null,null,null,"Allowed",null,null,null,null,null,null,null,null,null,null,null,null,null,null,null,null,null,null,null,null,null,null,null,null,null,null,null,null,null,null,null,null,null,null,null,null,null,null,null,null,null,null,null,null,null,null,null,null,null,0,null,null,0,null,0,null,0,null,0]
[null,null,null,null,null,null,null,null,null,null,null,null,null,null,"Allowed",null,null,null,null,null,null,null,null,null,null,null,null,null,null,null,null,null,null,null,null,null,null,null,null,null,null,null,null,null,null,null,null,null,null,null,null,null,null,null,null,null,null,null,null,null,null,null,null,null,0,null,null,0,null,0,null,0,null,0]
[null,null,null,null,null,null,null,null,null,null,null,null,null,null,"Allowed",null,null,null,null,null,null,null,null,null,null,null,null,null,null,null,null,null,null,null,null,null,null,null,null,null,null,null,null,null,null,null,null,null,null,null,null,null,null,null,null,null,null,null,null,null,null,null,null,null,0,null,null,0,null,0,null,0,null,0]
[null,null,null,null,null,null,null,null,null,null,null,null,null,null,"Allowed",null,null,null,null,null,null,null,null,null,null,null,null,null,null,null,null,null,null,null,null,null,null,null,null,null,null,null,null,null,null,null,null,null,null,null,null,null,null,null,null,null,null,null,null,null,null,null,null,null,0,null,null,0,null,0,null,0,null,0]
[null,null,null,null,null,null,null,null,null,null,null,null,null,null,"Allowed",null,null,null,null,null,null,null,null,null,null,null,null,null,null,null,null,null,null,null,null,null,null,null,null,null,null,null,null,null,null,null,null,null,null,null,null,null,null,null,null,null,null,null,null,null,null,null,null,null,0,null,null,0,null,0,null,0,null,0]
[null,null,null,null,null,null,null,null,null,null,null,null,null,null,"Allowed",null,null,null,null,null,null,null,null,null,null,null,null,null,null,null,null,null,null,null,null,null,null,null,null,null,null,null,null,null,null,null,null,null,null,null,null,null,null,null,null,null,null,null,null,null,null,null,null,null,0,null,null,0,null,0,null,0,null,0]
[null,null,null,null,null,null,null,null,null,null,null,null,null,null,"Allowed",null,null,null,null,null,null,null,null,null,null,null,null,null,null,null,null,null,null,null,null,null,null,null,null,null,null,null,null,null,null,null,null,null,null,null,null,null,null,null,null,null,null,null,null,null,null,null,null,null,0,null,null,0,null,0,null,0,null,0]
[null,null,null,null,null,null,null,null,null,null,null,null,null,null,"Allowed",null,null,null,null,null,null,null,null,null,null,null,null,null,null,null,null,null,null,null,null,null,null,null,null,null,null,null,null,null,null,null,null,null,null,null,null,null,null,null,null,null,null,null,null,null,null,null,null,null,0,null,null,0,null,0,null,0,null,0]
[null,null,null,null,null,null,null,null,null,null,null,null,null,null,"Allowed",null,null,null,null,null,null,null,null,null,null,null,null,null,null,null,null,null,null,null,null,null,null,null,null,null,null,null,null,null,null,null,null,null,null,null,null,null,null,null,null,null,null,null,null,null,null,null,null,null,0,null,null,0,null,0,null,0,null,0]
[null,null,null,null,null,null,null,null,null,null,null,null,null,null,"Allowed",null,null,null,null,null,null,null,null,null,null,null,null,null,null,null,null,null,null,null,null,null,null,null,null,null,null,null,null,null,null,null,null,null,null,null,null,null,null,null,null,null,null,null,null,null,null,null,null,null,0,null,null,0,null,0,null,0,null,0]
[null,null,null,null,null,null,null,null,null,null,null,null,null,null,"Allowed",null,null,null,null,null,null,null,null,null,null,null,null,null,null,null,null,null,null,null,null,null,null,null,null,null,null,null,null,null,null,null,null,null,null,null,null,null,null,null,null,null,null,null,null,null,null,null,null,null,0,null,null,0,null,0,null,0,null,0]
[null,null,null,null,null,null,null,null,null,null,null,null,null,null,"Allowed",null,null,null,null,null,null,null,null,null,null,null,null,null,null,null,null,null,null,null,null,null,null,null,null,null,null,null,null,null,null,null,null,null,null,null,null,null,null,null,null,null,null,null,null,null,null,null,null,null,0,null,null,0,null,0,null,0,null,0]
[null,null,null,null,null,null,null,null,null,null,null,null,null,null,"Allowed",null,null,null,null,null,null,null,null,null,null,null,null,null,null,null,null,null,null,null,null,null,null,null,null,null,null,null,null,null,null,null,null,null,null,null,null,null,null,null,null,null,null,null,null,null,null,null,null,null,0,null,null,0,null,0,null,0,null,0]
[null,null,null,null,null,null,null,null,null,null,null,null,null,null,"Allowed",null,null,null,null,null,null,null,null,null,null,null,null,null,null,null,null,null,null,null,null,null,null,null,null,null,null,null,null,null,null,null,null,null,null,null,null,null,null,null,null,null,null,null,null,null,null,null,null,null,0,null,null,0,null,0,null,0,null,0]
[null,null,null,null,null,null,null,null,null,null,null,null,null,null,"Allowed",null,null,null,null,null,null,null,null,null,null,null,null,null,null,null,null,null,null,null,null,null,null,null,null,null,null,null,null,null,null,null,null,null,null,null,null,null,null,null,null,null,null,null,null,null,null,null,null,null,0,null,null,0,null,0,null,0,null,0]
[null,null,null,null,null,null,null,null,null,null,null,null,null,null,"Allowed",null,null,null,null,null,null,null,null,null,null,null,null,null,null,null,null,null,null,null,null,null,null,null,null,null,null,null,null,null,null,null,null,null,null,null,null,null,null,null,null,null,null,null,null,null,null,null,null,null,0,null,null,0,null,0,null,0,null,0]
[null,null,null,null,null,null,null,null,null,null,null,null,null,null,"Allowed",null,null,null,null,null,null,null,null,null,null,null,null,null,null,null,null,null,null,null,null,null,null,null,null,null,null,null,null,null,null,null,null,null,null,null,null,null,null,null,null,null,null,null,null,null,null,null,null,null,0,null,null,0,null,0,null,0,null,0]
[null,null,null,null,null,null,null,null,null,null,null,null,null,null,"Allowed",null,null,null,null,null,null,null,null,null,null,null,null,null,null,null,null,null,null,null,null,null,null,null,null,null,null,null,null,null,null,null,null,null,null,null,null,null,null,null,null,null,null,null,null,null,null,null,null,null,0,null,null,0,null,0,null,0,null,0]
[null,null,null,null,null,null,null,null,null,null,null,null,null,null,"Allowed",null,null,null,null,null,null,null,null,null,null,null,null,null,null,null,null,null,null,null,null,null,null,null,null,null,null,null,null,null,null,null,null,null,null,null,null,null,null,null,null,null,null,null,null,null,null,null,null,null,0,null,null,0,null,0,null,0,null,0]
[null,null,null,null,null,null,null,null,null,null,null,null,null,null,"Allowed",null,null,null,null,null,null,null,null,null,null,null,null,null,null,null,null,null,null,null,null,null,null,null,null,null,null,null,null,null,null,null,null,null,null,null,null,null,null,null,null,null,null,null,null,null,null,null,null,null,0,null,null,0,null,0,null,0,null,0]
[null,null,null,null,null,null,null,null,null,null,null,null,null,null,"Allowed",null,null,null,null,null,null,null,null,null,null,null,null,null,null,null,null,null,null,null,null,null,null,null,null,null,null,null,null,null,null,null,null,null,null,null,null,null,null,null,null,null,null,null,null,null,null,null,null,null,0,null,null,0,null,0,null,0,null,0]
[null,null,null,null,null,null,null,null,null,null,null,null,null,null,"Allowed",null,null,null,null,null,null,null,null,null,null,null,null,null,null,null,null,null,null,null,null,null,null,null,null,null,null,null,null,null,null,null,null,null,null,null,null,null,null,null,null,null,null,null,null,null,null,null,null,null,0,null,null,0,null,0,null,0,null,0]
[null,null,null,null,null,null,null,null,null,null,null,null,null,null,"Allowed",null,null,null,null,null,null,null,null,null,null,null,null,null,null,null,null,null,null,null,null,null,null,null,null,null,null,null,null,null,null,null,null,null,null,null,null,null,null,null,null,null,null,null,null,null,null,null,null,null,0,null,null,0,null,0,null,0,null,0]
[null,null,null,null,null,null,null,null,null,null,null,null,null,null,"Allowed",null,null,null,null,null,null,null,null,null,null,null,null,null,null,null,null,null,null,null,null,null,null,null,null,null,null,null,null,null,null,null,null,null,null,null,null,null,null,null,null,null,null,null,null,null,null,null,null,null,0,null,null,0,null,0,null,0,null,0]
[null,null,null,null,null,null,null,null,null,null,null,null,null,null,"Allowed",null,null,null,null,null,null,null,null,null,null,null,null,null,null,null,null,null,null,null,null,null,null,null,null,null,null,null,null,null,null,null,null,null,null,null,null,null,null,null,null,null,null,null,null,null,null,null,null,null,0,null,null,0,null,0,null,0,null,0]
[null,null,null,null,null,null,null,null,null,null,null,null,null,null,"Allowed",null,null,null,null,null,null,null,null,null,null,null,null,null,null,null,null,null,null,null,null,null,null,null,null,null,null,null,null,null,null,null,null,null,null,null,null,null,null,null,null,null,null,null,null,null,null,null,null,null,0,null,null,0,null,0,null,0,null,0]
[null,null,null,null,null,null,null,null,null,null,null,null,null,null,"Allowed",null,null,null,null,null,null,null,null,null,null,null,null,null,null,null,null,null,null,null,null,null,null,null,null,null,null,null,null,null,null,null,null,null,null,null,null,null,null,null,null,null,null,null,null,null,null,null,null,null,0,null,null,0,null,0,null,0,null,0]
[null,null,null,null,null,null,null,null,null,null,null,null,null,null,"Allowed",null,null,null,null,null,null,null,null,null,null,null,null,null,null,null,null,null,null,null,null,null,null,null,null,null,null,null,null,null,null,null,null,null,null,null,null,null,null,null,null,null,null,null,null,null,null,null,null,null,0,null,null,0,null,0,null,0,null,0]
[null,null,null,null,null,null,null,null,null,null,null,null,null,null,{"$f":"IF(N249987<=TRUNC(P249987*1.015228,2),\"Allowed\",\"Exceeds Max\")","v":"Allowed"},null,null,null,null,null,null,null,null,null,null,null,null,null,null,null,null,null,null,null,null,null,null,null,null,null,null,null,null,null,null,null,null,null,null,null,null,null,null,null,null,null,null,null,null,null,null,null,null,null,0,null,null,0,null,0,null,0,null,0]
[null,null,null,null,null,null,null,null,null,null,null,null,null,null,"Allowed",null,null,null,null,null,null,null,null,null,null,null,null,null,null,null,null,null,null,null,null,null,null,null,null,null,null,null,null,null,null,null,null,null,null,null,null,null,null,null,null,null,null,null,null,null,null,null,null,null,{"$f":"LEN(BL249988)","v":0},null,null,{"$f":"LEN(BO249988)","v":0},null,{"$f":"LEN(BQ249988)","v":0},null,{"$f":"LEN(BS249988)","v":0},null,{"$f":"LEN(BU249988)","v":0}]
[null,null,null,null,null,null,null,null,null,null,null,null,null,null,"Allowed",null,null,null,null,null,null,null,null,null,null,null,null,null,null,null,null,null,null,null,null,null,null,null,null,null,null,null,null,null,null,null,null,null,null,null,null,null,null,null,null,null,null,null,null,null,null,null,null,null,0,null,null,0,null,0,null,0,null,0]
[null,null,null,null,null,null,null,null,null,null,null,null,null,null,"Allowed",null,null,null,null,null,null,null,null,null,null,null,null,null,null,null,null,null,null,null,null,null,null,null,null,null,null,null,null,null,null,null,null,null,null,null,null,null,null,null,null,null,null,null,null,null,null,null,null,null,0,null,null,0,null,0,null,0,null,0]
[null,null,null,null,null,null,null,null,null,null,null,null,null,null,"Allowed",null,null,null,null,null,null,null,null,null,null,null,null,null,null,null,null,null,null,null,null,null,null,null,null,null,null,null,null,null,null,null,null,null,null,null,null,null,null,null,null,null,null,null,null,null,null,null,null,null,0,null,null,0,null,0,null,0,null,0]
[null,null,null,null,null,null,null,null,null,null,null,null,null,null,"Allowed",null,null,null,null,null,null,null,null,null,null,null,null,null,null,null,null,null,null,null,null,null,null,null,null,null,null,null,null,null,null,null,null,null,null,null,null,null,null,null,null,null,null,null,null,null,null,null,null,null,0,null,null,0,null,0,null,0,null,0]
[null,null,null,null,null,null,null,null,null,null,null,null,null,null,"Allowed",null,null,null,null,null,null,null,null,null,null,null,null,null,null,null,null,null,null,null,null,null,null,null,null,null,null,null,null,null,null,null,null,null,null,null,null,null,null,null,null,null,null,null,null,null,null,null,null,null,0,null,null,0,null,0,null,0,null,0]
[null,null,null,null,null,null,null,null,null,null,null,null,null,null,"Allowed",null,null,null,null,null,null,null,null,null,null,null,null,null,null,null,null,null,null,null,null,null,null,null,null,null,null,null,null,null,null,null,null,null,null,null,null,null,null,null,null,null,null,null,null,null,null,null,null,null,0,null,null,0,null,0,null,0,null,0]
[null,null,null,null,null,null,null,null,null,null,null,null,null,null,"Allowed",null,null,null,null,null,null,null,null,null,null,null,null,null,null,null,null,null,null,null,null,null,null,null,null,null,null,null,null,null,null,null,null,null,null,null,null,null,null,null,null,null,null,null,null,null,null,null,null,null,0,null,null,0,null,0,null,0,null,0]
[null,null,null,null,null,null,null,null,null,null,null,null,null,null,"Allowed",null,null,null,null,null,null,null,null,null,null,null,null,null,null,null,null,null,null,null,null,null,null,null,null,null,null,null,null,null,null,null,null,null,null,null,null,null,null,null,null,null,null,null,null,null,null,null,null,null,0,null,null,0,null,0,null,0,null,0]
[null,null,null,null,null,null,null,null,null,null,null,null,null,null,"Allowed",null,null,null,null,null,null,null,null,null,null,null,null,null,null,null,null,null,null,null,null,null,null,null,null,null,null,null,null,null,null,null,null,null,null,null,null,null,null,null,null,null,null,null,null,null,null,null,null,null,0,null,null,0,null,0,null,0,null,0]
[null,null,null,null,null,null,null,null,null,null,null,null,null,null,"Allowed",null,null,null,null,null,null,null,null,null,null,null,null,null,null,null,null,null,null,null,null,null,null,null,null,null,null,null,null,null,null,null,null,null,null,null,null,null,null,null,null,null,null,null,null,null,null,null,null,null,0,null,null,0,null,0,null,0,null,0]
[null,null,null,null,null,null,null,null,null,null,null,null,null,null,"Allowed",null,null,null,null,null,null,null,null,null,null,null,null,null,null,null,null,null,null,null,null,null,null,null,null,null,null,null,null,null,null,null,null,null,null,null,null,null,null,null,null,null,null,null,null,null,null,null,null,null,0,null,null,0,null,0,null,0,null,0]
[null,null,null,null,null,null,null,null,null,null,null,null,null,null,"Allowed",null,null,null,null,null,null,null,null,null,null,null,null,null,null,null,null,null,null,null,null,null,null,null,null,null,null,null,null,null,null,null,null,null,null,null,null,null,null,null,null,null,null,null,null,null,null,null,null,null,0,null,null,0,null,0,null,0,null,0]
[null,null,null,null,null,null,null,null,null,null,null,null,null,null,"Allowed",null,null,null,null,null,null,null,null,null,null,null,null,null,null,null,null,null,null,null,null,null,null,null,null,null,null,null,null,null,null,null,null,null,null,null,null,null,null,null,null,null,null,null,null,null,null,null,null,null,0,null,null,0,null,0,null,0,null,0]
[null,null,null,null,null,null,null,null,null,null,null,null,null,null,"Allowed",null,null,null,null,null,null,null,null,null,null,null,null,null,null,null,null,null,null,null,null,null,null,null,null,null,null,null,null,null,null,null,null,null,null,null,null,null,null,null,null,null,null,null,null,null,null,null,null,null,0,null,null,0,null,0,null,0,null,0]
[null,null,null,null,null,null,null,null,null,null,null,null,null,null,"Allowed",null,null,null,null,null,null,null,null,null,null,null,null,null,null,null,null,null,null,null,null,null,null,null,null,null,null,null,null,null,null,null,null,null,null,null,null,null,null,null,null,null,null,null,null,null,null,null,null,null,0,null,null,0,null,0,null,0,null,0]